Workbook

Sheet Totals
C1: Event Date | D1: 2020-07-09 | E1: =TEXT(Session.Date,"dddd") -> Thursday | G1: Total lines expected | H1: =Tables.Count*Boards.Count -> 460 | I1: Tables | J1: =Tables.Count -> 23 | L1: MP Scale | M1: Club | O1: Save Settings | P1: Yes: and logins | R1: Scorer
C2: Description | D2: <File Description> | G2: Lines scored | H2: =COUNTA(Results.Contracts) -> 460 | I2: Rows in ranking | J2: =ROWS(Session.Ranking) -> 46 | L2: MP Type | M2: Black | O2: Club Name | P2: <Club Name> | Q2: Name | R2: <Scorer's Name>
C3: Title | D3: <File Title> | G3: Expected total mps | H3: =Results.Trav.NumLines*Boards.Count*2*(Results.Trav.NumLines-1) -> 20240 | L3: MP Awarded | M3: TRUE | O3: Club ID | P3: <Club's EBU Number> | Q3: Tel. | R3: <Scorer's Tel.>
C4: BW.Index | D4: 1 | G4: Total mps in ranking | H4: =SUM(INDEX(Session.Ranking,,5)) -> 20240 | I4: BBO.Tourney | J4: ="#"&BBO.Tourney.ID -> #6999 | L4: UMS ChargeCode | M4: 12 | O4: BW Website | P4: <Club's BW site> | Q4: Email | R4: <Scorer's Email>
C5: Include Replays | D5: Yes: use real names
B6: Pair No. | C6: =IF(Winners.Count=1,"N/A","NS/EW") -> NS/EW | D6: Names | E6: Boards | F6: Total mps | G6: % | H6: Player-1 | I6: Player-2 | J6: EBU-1 | K6: EBU-2 | L6: Place | M6: MPs | O6: UserIDs | Q6: Matches
B7: =ROW()-ROW($B$6) -> 1 | C7: =IF(Winners.Count=1,"",IF(B7>Tables.Count,"EW","NS")) -> NS | D7: =H7&" & "&I7 -> North Player-1 & Guest S1 | E7: =SIGN(C7<>"EW")*SUMPRODUCT(SIGN($B7=Results.NS),SIGN(LEN(Results.Contracts)>0))+SIGN(C7<>"NS")*SUMPRODUCT(SIGN($B7=Results.EW),SIGN(LEN(Results.Contracts)>0)) -> 20 | F7: =SIGN(C7<>"EW")*SUMPRODUCT(SIGN($B7=INDEX(Results.Scoring,,2)),INDEX(Results.Scoring,,10))+SIGN(C7<>"NS")*SUMPRODUCT(SIGN($B7=INDEX(Results.Scoring,,3)),INDEX(Results.Scoring,,11)) -> 524 | G7: =IF(E7=0,0,F7/E7/2/(Results.Trav.NumLines-1)) -> 0.5954545455 | H7: =IF(ISNA(Q7),"Guest "&O7,INDEX(BBO.Realnames,Q7)) -> North Player-1 | I7: =IF(ISNA(R7),"Guest "&P7,INDEX(BBO.Realnames,R7)) -> Guest S1 | J7: =INDEX(BBO.EBU.Numbers,Q7) ->  | K7: =INDEX(BBO.EBU.Numbers,R7) ->  | L7: =RANK(G7,INDEX(IF(C7="NS",Session.NS,IF(C7="EW",Session.EW,Session.Ranking)),,6)) -> 4 | M7: =IF(MP.Awards?,IFERROR(VLOOKUP($L7,IF($C7="NS",MP.NS,IF($C7="EW",MP.EW,MP.OneWinner)),2,FALSE),""),"") -> 50 | O7: N1 | P7: S1 | Q7: =MATCH(LOWER(O7),LOWER(BBO.Logins),0) -> 4 | R7: =MATCH(LOWER(P7),LOWER(BBO.Logins),0) -> 
B8: 2 | C8: NS | D8: =H8&" & "&I8 -> Guest N2 & Guest S2 | E8: =SIGN(C8<>"EW")*SUMPRODUCT(SIGN($B8=Results.NS),SIGN(LEN(Results.Contracts)>0))+SIGN(C8<>"NS")*SUMPRODUCT(SIGN($B8=Results.EW),SIGN(LEN(Results.Contracts)>0)) -> 20 | F8: =SIGN(C8<>"EW")*SUMPRODUCT(SIGN($B8=INDEX(Results.Scoring,,2)),INDEX(Results.Scoring,,10))+SIGN(C8<>"NS")*SUMPRODUCT(SIGN($B8=INDEX(Results.Scoring,,3)),INDEX(Results.Scoring,,11)) -> 510 | G8: =IF(E8=0,0,F8/E8/2/(Results.Trav.NumLines-1)) -> 0.5795454545 | H8: =IF(ISNA(Q8),"Guest "&O8,INDEX(BBO.Realnames,Q8)) -> Guest N2 | I8: =IF(ISNA(R8),"Guest "&P8,INDEX(BBO.Realnames,R8)) -> Guest S2 | J8: =INDEX(BBO.EBU.Numbers,Q8) ->  | K8: =INDEX(BBO.EBU.Numbers,R8) ->  | L8: =RANK(G8,INDEX(IF(C8="NS",Session.NS,IF(C8="EW",Session.EW,Session.Ranking)),,6)) -> 5 | M8: 40 | O8: N2 | P8: S2 | Q8: =MATCH(LOWER(O8),LOWER(BBO.Logins),0) ->  | R8: =MATCH(LOWER(P8),LOWER(BBO.Logins),0) -> 
B9: 3 | C9: =IF(Winners.Count=1,"",IF(B9>Tables.Count,"EW","NS")) -> NS | D9: =H9&" & "&I9 -> Guest N3 & South Player-3 | E9: =SIGN(C9<>"EW")*SUMPRODUCT(SIGN($B9=Results.NS),SIGN(LEN(Results.Contracts)>0))+SIGN(C9<>"NS")*SUMPRODUCT(SIGN($B9=Results.EW),SIGN(LEN(Results.Contracts)>0)) -> 20 | F9: =SIGN(C9<>"EW")*SUMPRODUCT(SIGN($B9=INDEX(Results.Scoring,,2)),INDEX(Results.Scoring,,10))+SIGN(C9<>"NS")*SUMPRODUCT(SIGN($B9=INDEX(Results.Scoring,,3)),INDEX(Results.Scoring,,11)) -> 355 | G9: =IF(E9=0,0,F9/E9/2/(Results.Trav.NumLines-1)) -> 0.4034090909 | H9: =IF(ISNA(Q9),"Guest "&O9,INDEX(BBO.Realnames,Q9)) -> Guest N3 | I9: =IF(ISNA(R9),"Guest "&P9,INDEX(BBO.Realnames,R9)) -> South Player-3 | J9: =INDEX(BBO.EBU.Numbers,Q9) ->  | K9: =INDEX(BBO.EBU.Numbers,R9) ->  | L9: =RANK(G9,INDEX(IF(C9="NS",Session.NS,IF(C9="EW",Session.EW,Session.Ranking)),,6)) -> 21 | O9: N3 | P9: S3 | Q9: =MATCH(LOWER(O9),LOWER(BBO.Logins),0) ->  | R9: =MATCH(LOWER(P9),LOWER(BBO.Logins),0) -> 6
B10: 4 | C10: =IF(Winners.Count=1,"",IF(B10>Tables.Count,"EW","NS")) -> NS | D10: =H10&" & "&I10 -> Guest N4 & Guest S4 | E10: =SIGN(C10<>"EW")*SUMPRODUCT(SIGN($B10=Results.NS),SIGN(LEN(Results.Contracts)>0))+SIGN(C10<>"NS")*SUMPRODUCT(SIGN($B10=Results.EW),SIGN(LEN(Results.Contracts)>0)) -> 20 | F10: =SIGN(C10<>"EW")*SUMPRODUCT(SIGN($B10=INDEX(Results.Scoring,,2)),INDEX(Results.Scoring,,10))+SIGN(C10<>"NS")*SUMPRODUCT(SIGN($B10=INDEX(Results.Scoring,,3)),INDEX(Results.Scoring,,11)) -> 430 | G10: =IF(E10=0,0,F10/E10/2/(Results.Trav.NumLines-1)) -> 0.4886363636 | H10: =IF(ISNA(Q10),"Guest "&O10,INDEX(BBO.Realnames,Q10)) -> Guest N4 | I10: =IF(ISNA(R10),"Guest "&P10,INDEX(BBO.Realnames,R10)) -> Guest S4 | J10: =INDEX(BBO.EBU.Numbers,Q10) ->  | K10: =INDEX(BBO.EBU.Numbers,R10) ->  | L10: =RANK(G10,INDEX(IF(C10="NS",Session.NS,IF(C10="EW",Session.EW,Session.Ranking)),,6)) -> 13 | O10: N4 | P10: S4 | Q10: =MATCH(LOWER(O10),LOWER(BBO.Logins),0) ->  | R10: =MATCH(LOWER(P10),LOWER(BBO.Logins),0) -> 
B11: 5 | C11: =IF(Winners.Count=1,"",IF(B11>Tables.Count,"EW","NS")) -> NS | D11: =H11&" & "&I11 -> North Player-5 & Guest S5 | E11: =SIGN(C11<>"EW")*SUMPRODUCT(SIGN($B11=Results.NS),SIGN(LEN(Results.Contracts)>0))+SIGN(C11<>"NS")*SUMPRODUCT(SIGN($B11=Results.EW),SIGN(LEN(Results.Contracts)>0)) -> 20 | F11: =SIGN(C11<>"EW")*SUMPRODUCT(SIGN($B11=INDEX(Results.Scoring,,2)),INDEX(Results.Scoring,,10))+SIGN(C11<>"NS")*SUMPRODUCT(SIGN($B11=INDEX(Results.Scoring,,3)),INDEX(Results.Scoring,,11)) -> 474 | G11: =IF(E11=0,0,F11/E11/2/(Results.Trav.NumLines-1)) -> 0.5386363636 | H11: =IF(ISNA(Q11),"Guest "&O11,INDEX(BBO.Realnames,Q11)) -> North Player-5 | I11: =IF(ISNA(R11),"Guest "&P11,INDEX(BBO.Realnames,R11)) -> Guest S5 | J11: =INDEX(BBO.EBU.Numbers,Q11) ->  | K11: =INDEX(BBO.EBU.Numbers,R11) ->  | L11: =RANK(G11,INDEX(IF(C11="NS",Session.NS,IF(C11="EW",Session.EW,Session.Ranking)),,6)) -> 9 | O11: N5 | P11: S5 | Q11: =MATCH(LOWER(O11),LOWER(BBO.Logins),0) -> 8 | R11: =MATCH(LOWER(P11),LOWER(BBO.Logins),0) -> 
B12: 6 | C12: =IF(Winners.Count=1,"",IF(B12>Tables.Count,"EW","NS")) -> NS | D12: =H12&" & "&I12 -> Guest N6 & Guest S6 | E12: =SIGN(C12<>"EW")*SUMPRODUCT(SIGN($B12=Results.NS),SIGN(LEN(Results.Contracts)>0))+SIGN(C12<>"NS")*SUMPRODUCT(SIGN($B12=Results.EW),SIGN(LEN(Results.Contracts)>0)) -> 20 | F12: =SIGN(C12<>"EW")*SUMPRODUCT(SIGN($B12=INDEX(Results.Scoring,,2)),INDEX(Results.Scoring,,10))+SIGN(C12<>"NS")*SUMPRODUCT(SIGN($B12=INDEX(Results.Scoring,,3)),INDEX(Results.Scoring,,11)) -> 359 | G12: =IF(E12=0,0,F12/E12/2/(Results.Trav.NumLines-1)) -> 0.4079545455 | H12: =IF(ISNA(Q12),"Guest "&O12,INDEX(BBO.Realnames,Q12)) -> Guest N6 | I12: =IF(ISNA(R12),"Guest "&P12,INDEX(BBO.Realnames,R12)) -> Guest S6 | J12: =INDEX(BBO.EBU.Numbers,Q12) ->  | K12: =INDEX(BBO.EBU.Numbers,R12) ->  | L12: =RANK(G12,INDEX(IF(C12="NS",Session.NS,IF(C12="EW",Session.EW,Session.Ranking)),,6)) -> 20 | O12: N6 | P12: S6 | Q12: =MATCH(LOWER(O12),LOWER(BBO.Logins),0) ->  | R12: =MATCH(LOWER(P12),LOWER(BBO.Logins),0) -> 
B13: 7 | C13: =IF(Winners.Count=1,"",IF(B13>Tables.Count,"EW","NS")) -> NS | D13: =H13&" & "&I13 -> Guest N7 & South Player-7 | E13: =SIGN(C13<>"EW")*SUMPRODUCT(SIGN($B13=Results.NS),SIGN(LEN(Results.Contracts)>0))+SIGN(C13<>"NS")*SUMPRODUCT(SIGN($B13=Results.EW),SIGN(LEN(Results.Contracts)>0)) -> 20 | F13: =SIGN(C13<>"EW")*SUMPRODUCT(SIGN($B13=INDEX(Results.Scoring,,2)),INDEX(Results.Scoring,,10))+SIGN(C13<>"NS")*SUMPRODUCT(SIGN($B13=INDEX(Results.Scoring,,3)),INDEX(Results.Scoring,,11)) -> 378 | G13: =IF(E13=0,0,F13/E13/2/(Results.Trav.NumLines-1)) -> 0.4295454545 | H13: =IF(ISNA(Q13),"Guest "&O13,INDEX(BBO.Realnames,Q13)) -> Guest N7 | I13: =IF(ISNA(R13),"Guest "&P13,INDEX(BBO.Realnames,R13)) -> South Player-7 | J13: =INDEX(BBO.EBU.Numbers,Q13) ->  | K13: =INDEX(BBO.EBU.Numbers,R13) ->  | L13: =RANK(G13,INDEX(IF(C13="NS",Session.NS,IF(C13="EW",Session.EW,Session.Ranking)),,6)) -> 18 | O13: N7 | P13: S7 | Q13: =MATCH(LOWER(O13),LOWER(BBO.Logins),0) ->  | R13: =MATCH(LOWER(P13),LOWER(BBO.Logins),0) -> 10
B14: 8 | C14: =IF(Winners.Count=1,"",IF(B14>Tables.Count,"EW","NS")) -> NS | D14: =H14&" & "&I14 -> Guest N8 & Guest S8 | E14: =SIGN(C14<>"EW")*SUMPRODUCT(SIGN($B14=Results.NS),SIGN(LEN(Results.Contracts)>0))+SIGN(C14<>"NS")*SUMPRODUCT(SIGN($B14=Results.EW),SIGN(LEN(Results.Contracts)>0)) -> 20 | F14: =SIGN(C14<>"EW")*SUMPRODUCT(SIGN($B14=INDEX(Results.Scoring,,2)),INDEX(Results.Scoring,,10))+SIGN(C14<>"NS")*SUMPRODUCT(SIGN($B14=INDEX(Results.Scoring,,3)),INDEX(Results.Scoring,,11)) -> 571 | G14: =IF(E14=0,0,F14/E14/2/(Results.Trav.NumLines-1)) -> 0.6488636364 | H14: =IF(ISNA(Q14),"Guest "&O14,INDEX(BBO.Realnames,Q14)) -> Guest N8 | I14: =IF(ISNA(R14),"Guest "&P14,INDEX(BBO.Realnames,R14)) -> Guest S8 | J14: =INDEX(BBO.EBU.Numbers,Q14) ->  | K14: =INDEX(BBO.EBU.Numbers,R14) ->  | L14: =RANK(G14,INDEX(IF(C14="NS",Session.NS,IF(C14="EW",Session.EW,Session.Ranking)),,6)) -> 1 | M14: 80 | O14: N8 | P14: S8 | Q14: =MATCH(LOWER(O14),LOWER(BBO.Logins),0) ->  | R14: =MATCH(LOWER(P14),LOWER(BBO.Logins),0) -> 
B15: 9 | C15: =IF(Winners.Count=1,"",IF(B15>Tables.Count,"EW","NS")) -> NS | D15: =H15&" & "&I15 -> North Player-9 & Guest S9 | E15: =SIGN(C15<>"EW")*SUMPRODUCT(SIGN($B15=Results.NS),SIGN(LEN(Results.Contracts)>0))+SIGN(C15<>"NS")*SUMPRODUCT(SIGN($B15=Results.EW),SIGN(LEN(Results.Contracts)>0)) -> 20 | F15: =SIGN(C15<>"EW")*SUMPRODUCT(SIGN($B15=INDEX(Results.Scoring,,2)),INDEX(Results.Scoring,,10))+SIGN(C15<>"NS")*SUMPRODUCT(SIGN($B15=INDEX(Results.Scoring,,3)),INDEX(Results.Scoring,,11)) -> 477 | G15: =IF(E15=0,0,F15/E15/2/(Results.Trav.NumLines-1)) -> 0.5420454545 | H15: =IF(ISNA(Q15),"Guest "&O15,INDEX(BBO.Realnames,Q15)) -> North Player-9 | I15: =IF(ISNA(R15),"Guest "&P15,INDEX(BBO.Realnames,R15)) -> Guest S9 | J15: =INDEX(BBO.EBU.Numbers,Q15) -> 123456 | K15: =INDEX(BBO.EBU.Numbers,R15) ->  | L15: =RANK(G15,INDEX(IF(C15="NS",Session.NS,IF(C15="EW",Session.EW,Session.Ranking)),,6)) -> 8 | M15: 10 | O15: N9 | P15: S9 | Q15: =MATCH(LOWER(O15),LOWER(BBO.Logins),0) -> 12 | R15: =MATCH(LOWER(P15),LOWER(BBO.Logins),0) -> 
B16: 10 | C16: =IF(Winners.Count=1,"",IF(B16>Tables.Count,"EW","NS")) -> NS | D16: =H16&" & "&I16 -> Guest N10 & Guest S10 | E16: =SIGN(C16<>"EW")*SUMPRODUCT(SIGN($B16=Results.NS),SIGN(LEN(Results.Contracts)>0))+SIGN(C16<>"NS")*SUMPRODUCT(SIGN($B16=Results.EW),SIGN(LEN(Results.Contracts)>0)) -> 20 | F16: =SIGN(C16<>"EW")*SUMPRODUCT(SIGN($B16=INDEX(Results.Scoring,,2)),INDEX(Results.Scoring,,10))+SIGN(C16<>"NS")*SUMPRODUCT(SIGN($B16=INDEX(Results.Scoring,,3)),INDEX(Results.Scoring,,11)) -> 436 | G16: =IF(E16=0,0,F16/E16/2/(Results.Trav.NumLines-1)) -> 0.4954545455 | H16: =IF(ISNA(Q16),"Guest "&O16,INDEX(BBO.Realnames,Q16)) -> Guest N10 | I16: =IF(ISNA(R16),"Guest "&P16,INDEX(BBO.Realnames,R16)) -> Guest S10 | J16: =INDEX(BBO.EBU.Numbers,Q16) ->  | K16: =INDEX(BBO.EBU.Numbers,R16) ->  | L16: =RANK(G16,INDEX(IF(C16="NS",Session.NS,IF(C16="EW",Session.EW,Session.Ranking)),,6)) -> 12 | O16: N10 | P16: S10 | Q16: =MATCH(LOWER(O16),LOWER(BBO.Logins),0) ->  | R16: =MATCH(LOWER(P16),LOWER(BBO.Logins),0) -> 
B17: 11 | C17: =IF(Winners.Count=1,"",IF(B17>Tables.Count,"EW","NS")) -> NS | D17: =H17&" & "&I17 -> Guest N11 & South Player-11 | E17: =SIGN(C17<>"EW")*SUMPRODUCT(SIGN($B17=Results.NS),SIGN(LEN(Results.Contracts)>0))+SIGN(C17<>"NS")*SUMPRODUCT(SIGN($B17=Results.EW),SIGN(LEN(Results.Contracts)>0)) -> 20 | F17: =SIGN(C17<>"EW")*SUMPRODUCT(SIGN($B17=INDEX(Results.Scoring,,2)),INDEX(Results.Scoring,,10))+SIGN(C17<>"NS")*SUMPRODUCT(SIGN($B17=INDEX(Results.Scoring,,3)),INDEX(Results.Scoring,,11)) -> 454 | G17: =IF(E17=0,0,F17/E17/2/(Results.Trav.NumLines-1)) -> 0.5159090909 | H17: =IF(ISNA(Q17),"Guest "&O17,INDEX(BBO.Realnames,Q17)) -> Guest N11 | I17: =IF(ISNA(R17),"Guest "&P17,INDEX(BBO.Realnames,R17)) -> South Player-11 | J17: =INDEX(BBO.EBU.Numbers,Q17) ->  | K17: =INDEX(BBO.EBU.Numbers,R17) ->  | L17: =RANK(G17,INDEX(IF(C17="NS",Session.NS,IF(C17="EW",Session.EW,Session.Ranking)),,6)) -> 11 | O17: N11 | P17: S11 | Q17: =MATCH(LOWER(O17),LOWER(BBO.Logins),0) ->  | R17: =MATCH(LOWER(P17),LOWER(BBO.Logins),0) -> 14
B18: 12 | C18: =IF(Winners.Count=1,"",IF(B18>Tables.Count,"EW","NS")) -> NS | D18: =H18&" & "&I18 -> Guest N12 & Guest S12 | E18: =SIGN(C18<>"EW")*SUMPRODUCT(SIGN($B18=Results.NS),SIGN(LEN(Results.Contracts)>0))+SIGN(C18<>"NS")*SUMPRODUCT(SIGN($B18=Results.EW),SIGN(LEN(Results.Contracts)>0)) -> 20 | F18: =SIGN(C18<>"EW")*SUMPRODUCT(SIGN($B18=INDEX(Results.Scoring,,2)),INDEX(Results.Scoring,,10))+SIGN(C18<>"NS")*SUMPRODUCT(SIGN($B18=INDEX(Results.Scoring,,3)),INDEX(Results.Scoring,,11)) -> 565 | G18: =IF(E18=0,0,F18/E18/2/(Results.Trav.NumLines-1)) -> 0.6420454545 | H18: =IF(ISNA(Q18),"Guest "&O18,INDEX(BBO.Realnames,Q18)) -> Guest N12 | I18: =IF(ISNA(R18),"Guest "&P18,INDEX(BBO.Realnames,R18)) -> Guest S12 | J18: =INDEX(BBO.EBU.Numbers,Q18) ->  | K18: =INDEX(BBO.EBU.Numbers,R18) ->  | L18: =RANK(G18,INDEX(IF(C18="NS",Session.NS,IF(C18="EW",Session.EW,Session.Ranking)),,6)) -> 2 | M18: 70 | O18: N12 | P18: S12 | Q18: =MATCH(LOWER(O18),LOWER(BBO.Logins),0) ->  | R18: =MATCH(LOWER(P18),LOWER(BBO.Logins),0) -> 
B19: 13 | C19: =IF(Winners.Count=1,"",IF(B19>Tables.Count,"EW","NS")) -> NS | D19: =H19&" & "&I19 -> North Player-13 & Guest S13 | E19: =SIGN(C19<>"EW")*SUMPRODUCT(SIGN($B19=Results.NS),SIGN(LEN(Results.Contracts)>0))+SIGN(C19<>"NS")*SUMPRODUCT(SIGN($B19=Results.EW),SIGN(LEN(Results.Contracts)>0)) -> 20 | F19: =SIGN(C19<>"EW")*SUMPRODUCT(SIGN($B19=INDEX(Results.Scoring,,2)),INDEX(Results.Scoring,,10))+SIGN(C19<>"NS")*SUMPRODUCT(SIGN($B19=INDEX(Results.Scoring,,3)),INDEX(Results.Scoring,,11)) -> 374 | G19: =IF(E19=0,0,F19/E19/2/(Results.Trav.NumLines-1)) -> 0.425 | H19: =IF(ISNA(Q19),"Guest "&O19,INDEX(BBO.Realnames,Q19)) -> North Player-13 | I19: =IF(ISNA(R19),"Guest "&P19,INDEX(BBO.Realnames,R19)) -> Guest S13 | J19: =INDEX(BBO.EBU.Numbers,Q19) ->  | K19: =INDEX(BBO.EBU.Numbers,R19) ->  | L19: =RANK(G19,INDEX(IF(C19="NS",Session.NS,IF(C19="EW",Session.EW,Session.Ranking)),,6)) -> 19 | O19: N13 | P19: S13 | Q19: =MATCH(LOWER(O19),LOWER(BBO.Logins),0) -> 16 | R19: =MATCH(LOWER(P19),LOWER(BBO.Logins),0) -> 
B20: 14 | C20: =IF(Winners.Count=1,"",IF(B20>Tables.Count,"EW","NS")) -> NS | D20: =H20&" & "&I20 -> Guest N14 & Guest S14 | E20: =SIGN(C20<>"EW")*SUMPRODUCT(SIGN($B20=Results.NS),SIGN(LEN(Results.Contracts)>0))+SIGN(C20<>"NS")*SUMPRODUCT(SIGN($B20=Results.EW),SIGN(LEN(Results.Contracts)>0)) -> 20 | F20: =SIGN(C20<>"EW")*SUMPRODUCT(SIGN($B20=INDEX(Results.Scoring,,2)),INDEX(Results.Scoring,,10))+SIGN(C20<>"NS")*SUMPRODUCT(SIGN($B20=INDEX(Results.Scoring,,3)),INDEX(Results.Scoring,,11)) -> 549 | G20: =IF(E20=0,0,F20/E20/2/(Results.Trav.NumLines-1)) -> 0.6238636364 | H20: =IF(ISNA(Q20),"Guest "&O20,INDEX(BBO.Realnames,Q20)) -> Guest N14 | I20: =IF(ISNA(R20),"Guest "&P20,INDEX(BBO.Realnames,R20)) -> Guest S14 | J20: =INDEX(BBO.EBU.Numbers,Q20) ->  | K20: =INDEX(BBO.EBU.Numbers,R20) ->  | L20: =RANK(G20,INDEX(IF(C20="NS",Session.NS,IF(C20="EW",Session.EW,Session.Ranking)),,6)) -> 3 | M20: 60 | O20: N14 | P20: S14 | Q20: =MATCH(LOWER(O20),LOWER(BBO.Logins),0) ->  | R20: =MATCH(LOWER(P20),LOWER(BBO.Logins),0) -> 
B21: 15 | C21: =IF(Winners.Count=1,"",IF(B21>Tables.Count,"EW","NS")) -> NS | D21: =H21&" & "&I21 -> Guest N15 & South Player-15 | E21: =SIGN(C21<>"EW")*SUMPRODUCT(SIGN($B21=Results.NS),SIGN(LEN(Results.Contracts)>0))+SIGN(C21<>"NS")*SUMPRODUCT(SIGN($B21=Results.EW),SIGN(LEN(Results.Contracts)>0)) -> 20 | F21: =SIGN(C21<>"EW")*SUMPRODUCT(SIGN($B21=INDEX(Results.Scoring,,2)),INDEX(Results.Scoring,,10))+SIGN(C21<>"NS")*SUMPRODUCT(SIGN($B21=INDEX(Results.Scoring,,3)),INDEX(Results.Scoring,,11)) -> 402 | G21: =IF(E21=0,0,F21/E21/2/(Results.Trav.NumLines-1)) -> 0.4568181818 | H21: =IF(ISNA(Q21),"Guest "&O21,INDEX(BBO.Realnames,Q21)) -> Guest N15 | I21: =IF(ISNA(R21),"Guest "&P21,INDEX(BBO.Realnames,R21)) -> South Player-15 | J21: =INDEX(BBO.EBU.Numbers,Q21) ->  | K21: =INDEX(BBO.EBU.Numbers,R21) ->  | L21: =RANK(G21,INDEX(IF(C21="NS",Session.NS,IF(C21="EW",Session.EW,Session.Ranking)),,6)) -> 15 | O21: N15 | P21: S15 | Q21: =MATCH(LOWER(O21),LOWER(BBO.Logins),0) ->  | R21: =MATCH(LOWER(P21),LOWER(BBO.Logins),0) -> 18
B22: 16 | C22: =IF(Winners.Count=1,"",IF(B22>Tables.Count,"EW","NS")) -> NS | D22: =H22&" & "&I22 -> Guest N16 & Guest S16 | E22: =SIGN(C22<>"EW")*SUMPRODUCT(SIGN($B22=Results.NS),SIGN(LEN(Results.Contracts)>0))+SIGN(C22<>"NS")*SUMPRODUCT(SIGN($B22=Results.EW),SIGN(LEN(Results.Contracts)>0)) -> 20 | F22: =SIGN(C22<>"EW")*SUMPRODUCT(SIGN($B22=INDEX(Results.Scoring,,2)),INDEX(Results.Scoring,,10))+SIGN(C22<>"NS")*SUMPRODUCT(SIGN($B22=INDEX(Results.Scoring,,3)),INDEX(Results.Scoring,,11)) -> 493 | G22: =IF(E22=0,0,F22/E22/2/(Results.Trav.NumLines-1)) -> 0.5602272727 | H22: =IF(ISNA(Q22),"Guest "&O22,INDEX(BBO.Realnames,Q22)) -> Guest N16 | I22: =IF(ISNA(R22),"Guest "&P22,INDEX(BBO.Realnames,R22)) -> Guest S16 | J22: =INDEX(BBO.EBU.Numbers,Q22) ->  | K22: =INDEX(BBO.EBU.Numbers,R22) ->  | L22: =RANK(G22,INDEX(IF(C22="NS",Session.NS,IF(C22="EW",Session.EW,Session.Ranking)),,6)) -> 6 | M22: 30 | O22: N16 | P22: S16 | Q22: =MATCH(LOWER(O22),LOWER(BBO.Logins),0) ->  | R22: =MATCH(LOWER(P22),LOWER(BBO.Logins),0) -> 
B23: 17 | C23: =IF(Winners.Count=1,"",IF(B23>Tables.Count,"EW","NS")) -> NS | D23: =H23&" & "&I23 -> North Player-17 & Guest S17 | E23: =SIGN(C23<>"EW")*SUMPRODUCT(SIGN($B23=Results.NS),SIGN(LEN(Results.Contracts)>0))+SIGN(C23<>"NS")*SUMPRODUCT(SIGN($B23=Results.EW),SIGN(LEN(Results.Contracts)>0)) -> 20 | F23: =SIGN(C23<>"EW")*SUMPRODUCT(SIGN($B23=INDEX(Results.Scoring,,2)),INDEX(Results.Scoring,,10))+SIGN(C23<>"NS")*SUMPRODUCT(SIGN($B23=INDEX(Results.Scoring,,3)),INDEX(Results.Scoring,,11)) -> 413 | G23: =IF(E23=0,0,F23/E23/2/(Results.Trav.NumLines-1)) -> 0.4693181818 | H23: =IF(ISNA(Q23),"Guest "&O23,INDEX(BBO.Realnames,Q23)) -> North Player-17 | I23: =IF(ISNA(R23),"Guest "&P23,INDEX(BBO.Realnames,R23)) -> Guest S17 | J23: =INDEX(BBO.EBU.Numbers,Q23) ->  | K23: =INDEX(BBO.EBU.Numbers,R23) ->  | L23: =RANK(G23,INDEX(IF(C23="NS",Session.NS,IF(C23="EW",Session.EW,Session.Ranking)),,6)) -> 14 | O23: N17 | P23: S17 | Q23: =MATCH(LOWER(O23),LOWER(BBO.Logins),0) -> 20 | R23: =MATCH(LOWER(P23),LOWER(BBO.Logins),0) -> 
B24: 18 | C24: =IF(Winners.Count=1,"",IF(B24>Tables.Count,"EW","NS")) -> NS | D24: =H24&" & "&I24 -> Guest N18 & Guest S18 | E24: =SIGN(C24<>"EW")*SUMPRODUCT(SIGN($B24=Results.NS),SIGN(LEN(Results.Contracts)>0))+SIGN(C24<>"NS")*SUMPRODUCT(SIGN($B24=Results.EW),SIGN(LEN(Results.Contracts)>0)) -> 20 | F24: =SIGN(C24<>"EW")*SUMPRODUCT(SIGN($B24=INDEX(Results.Scoring,,2)),INDEX(Results.Scoring,,10))+SIGN(C24<>"NS")*SUMPRODUCT(SIGN($B24=INDEX(Results.Scoring,,3)),INDEX(Results.Scoring,,11)) -> 461 | G24: =IF(E24=0,0,F24/E24/2/(Results.Trav.NumLines-1)) -> 0.5238636364 | H24: =IF(ISNA(Q24),"Guest "&O24,INDEX(BBO.Realnames,Q24)) -> Guest N18 | I24: =IF(ISNA(R24),"Guest "&P24,INDEX(BBO.Realnames,R24)) -> Guest S18 | J24: =INDEX(BBO.EBU.Numbers,Q24) ->  | K24: =INDEX(BBO.EBU.Numbers,R24) ->  | L24: =RANK(G24,INDEX(IF(C24="NS",Session.NS,IF(C24="EW",Session.EW,Session.Ranking)),,6)) -> 10 | O24: N18 | P24: S18 | Q24: =MATCH(LOWER(O24),LOWER(BBO.Logins),0) ->  | R24: =MATCH(LOWER(P24),LOWER(BBO.Logins),0) -> 
B25: 19 | C25: =IF(Winners.Count=1,"",IF(B25>Tables.Count,"EW","NS")) -> NS | D25: =H25&" & "&I25 -> Guest N19 & South Player-19 | E25: =SIGN(C25<>"EW")*SUMPRODUCT(SIGN($B25=Results.NS),SIGN(LEN(Results.Contracts)>0))+SIGN(C25<>"NS")*SUMPRODUCT(SIGN($B25=Results.EW),SIGN(LEN(Results.Contracts)>0)) -> 20 | F25: =SIGN(C25<>"EW")*SUMPRODUCT(SIGN($B25=INDEX(Results.Scoring,,2)),INDEX(Results.Scoring,,10))+SIGN(C25<>"NS")*SUMPRODUCT(SIGN($B25=INDEX(Results.Scoring,,3)),INDEX(Results.Scoring,,11)) -> 382 | G25: =IF(E25=0,0,F25/E25/2/(Results.Trav.NumLines-1)) -> 0.4340909091 | H25: =IF(ISNA(Q25),"Guest "&O25,INDEX(BBO.Realnames,Q25)) -> Guest N19 | I25: =IF(ISNA(R25),"Guest "&P25,INDEX(BBO.Realnames,R25)) -> South Player-19 | J25: =INDEX(BBO.EBU.Numbers,Q25) ->  | K25: =INDEX(BBO.EBU.Numbers,R25) ->  | L25: =RANK(G25,INDEX(IF(C25="NS",Session.NS,IF(C25="EW",Session.EW,Session.Ranking)),,6)) -> 16 | O25: N19 | P25: S19 | Q25: =MATCH(LOWER(O25),LOWER(BBO.Logins),0) ->  | R25: =MATCH(LOWER(P25),LOWER(BBO.Logins),0) -> 22
B26: 20 | C26: =IF(Winners.Count=1,"",IF(B26>Tables.Count,"EW","NS")) -> NS | D26: =H26&" & "&I26 -> Guest N20 & Guest S20 | E26: =SIGN(C26<>"EW")*SUMPRODUCT(SIGN($B26=Results.NS),SIGN(LEN(Results.Contracts)>0))+SIGN(C26<>"NS")*SUMPRODUCT(SIGN($B26=Results.EW),SIGN(LEN(Results.Contracts)>0)) -> 20 | F26: =SIGN(C26<>"EW")*SUMPRODUCT(SIGN($B26=INDEX(Results.Scoring,,2)),INDEX(Results.Scoring,,10))+SIGN(C26<>"NS")*SUMPRODUCT(SIGN($B26=INDEX(Results.Scoring,,3)),INDEX(Results.Scoring,,11)) -> 330 | G26: =IF(E26=0,0,F26/E26/2/(Results.Trav.NumLines-1)) -> 0.375 | H26: =IF(ISNA(Q26),"Guest "&O26,INDEX(BBO.Realnames,Q26)) -> Guest N20 | I26: =IF(ISNA(R26),"Guest "&P26,INDEX(BBO.Realnames,R26)) -> Guest S20 | J26: =INDEX(BBO.EBU.Numbers,Q26) ->  | K26: =INDEX(BBO.EBU.Numbers,R26) ->  | L26: =RANK(G26,INDEX(IF(C26="NS",Session.NS,IF(C26="EW",Session.EW,Session.Ranking)),,6)) -> 22 | O26: N20 | P26: S20 | Q26: =MATCH(LOWER(O26),LOWER(BBO.Logins),0) ->  | R26: =MATCH(LOWER(P26),LOWER(BBO.Logins),0) -> 
B27: 21 | C27: =IF(Winners.Count=1,"",IF(B27>Tables.Count,"EW","NS")) -> NS | D27: =H27&" & "&I27 -> North Player-21 & Guest S21 | E27: =SIGN(C27<>"EW")*SUMPRODUCT(SIGN($B27=Results.NS),SIGN(LEN(Results.Contracts)>0))+SIGN(C27<>"NS")*SUMPRODUCT(SIGN($B27=Results.EW),SIGN(LEN(Results.Contracts)>0)) -> 20 | F27: =SIGN(C27<>"EW")*SUMPRODUCT(SIGN($B27=INDEX(Results.Scoring,,2)),INDEX(Results.Scoring,,10))+SIGN(C27<>"NS")*SUMPRODUCT(SIGN($B27=INDEX(Results.Scoring,,3)),INDEX(Results.Scoring,,11)) -> 490 | G27: =IF(E27=0,0,F27/E27/2/(Results.Trav.NumLines-1)) -> 0.5568181818 | H27: =IF(ISNA(Q27),"Guest "&O27,INDEX(BBO.Realnames,Q27)) -> North Player-21 | I27: =IF(ISNA(R27),"Guest "&P27,INDEX(BBO.Realnames,R27)) -> Guest S21 | J27: =INDEX(BBO.EBU.Numbers,Q27) ->  | K27: =INDEX(BBO.EBU.Numbers,R27) ->  | L27: =RANK(G27,INDEX(IF(C27="NS",Session.NS,IF(C27="EW",Session.EW,Session.Ranking)),,6)) -> 7 | M27: 20 | O27: N21 | P27: S21 | Q27: =MATCH(LOWER(O27),LOWER(BBO.Logins),0) -> 24 | R27: =MATCH(LOWER(P27),LOWER(BBO.Logins),0) -> 
B28: 22 | C28: =IF(Winners.Count=1,"",IF(B28>Tables.Count,"EW","NS")) -> NS | D28: =H28&" & "&I28 -> Guest N22 & Guest S22 | E28: =SIGN(C28<>"EW")*SUMPRODUCT(SIGN($B28=Results.NS),SIGN(LEN(Results.Contracts)>0))+SIGN(C28<>"NS")*SUMPRODUCT(SIGN($B28=Results.EW),SIGN(LEN(Results.Contracts)>0)) -> 20 | F28: =SIGN(C28<>"EW")*SUMPRODUCT(SIGN($B28=INDEX(Results.Scoring,,2)),INDEX(Results.Scoring,,10))+SIGN(C28<>"NS")*SUMPRODUCT(SIGN($B28=INDEX(Results.Scoring,,3)),INDEX(Results.Scoring,,11)) -> 311 | G28: =IF(E28=0,0,F28/E28/2/(Results.Trav.NumLines-1)) -> 0.3534090909 | H28: =IF(ISNA(Q28),"Guest "&O28,INDEX(BBO.Realnames,Q28)) -> Guest N22 | I28: =IF(ISNA(R28),"Guest "&P28,INDEX(BBO.Realnames,R28)) -> Guest S22 | J28: =INDEX(BBO.EBU.Numbers,Q28) ->  | K28: =INDEX(BBO.EBU.Numbers,R28) ->  | L28: =RANK(G28,INDEX(IF(C28="NS",Session.NS,IF(C28="EW",Session.EW,Session.Ranking)),,6)) -> 23 | O28: N22 | P28: S22 | Q28: =MATCH(LOWER(O28),LOWER(BBO.Logins),0) ->  | R28: =MATCH(LOWER(P28),LOWER(BBO.Logins),0) -> 
B29: 23 | C29: =IF(Winners.Count=1,"",IF(B29>Tables.Count,"EW","NS")) -> NS | D29: =H29&" & "&I29 -> Guest N23 & South Player-23 | E29: =SIGN(C29<>"EW")*SUMPRODUCT(SIGN($B29=Results.NS),SIGN(LEN(Results.Contracts)>0))+SIGN(C29<>"NS")*SUMPRODUCT(SIGN($B29=Results.EW),SIGN(LEN(Results.Contracts)>0)) -> 20 | F29: =SIGN(C29<>"EW")*SUMPRODUCT(SIGN($B29=INDEX(Results.Scoring,,2)),INDEX(Results.Scoring,,10))+SIGN(C29<>"NS")*SUMPRODUCT(SIGN($B29=INDEX(Results.Scoring,,3)),INDEX(Results.Scoring,,11)) -> 382 | G29: =IF(E29=0,0,F29/E29/2/(Results.Trav.NumLines-1)) -> 0.4340909091 | H29: =IF(ISNA(Q29),"Guest "&O29,INDEX(BBO.Realnames,Q29)) -> Guest N23 | I29: =IF(ISNA(R29),"Guest "&P29,INDEX(BBO.Realnames,R29)) -> South Player-23 | J29: =INDEX(BBO.EBU.Numbers,Q29) ->  | K29: =INDEX(BBO.EBU.Numbers,R29) ->  | L29: =RANK(G29,INDEX(IF(C29="NS",Session.NS,IF(C29="EW",Session.EW,Session.Ranking)),,6)) -> 16 | O29: N23 | P29: S23 | Q29: =MATCH(LOWER(O29),LOWER(BBO.Logins),0) ->  | R29: =MATCH(LOWER(P29),LOWER(BBO.Logins),0) -> 26
B30: 24 | C30: =IF(Winners.Count=1,"",IF(B30>Tables.Count,"EW","NS")) -> EW | D30: =H30&" & "&I30 -> Guest E1 & Guest W1 | E30: =SIGN(C30<>"EW")*SUMPRODUCT(SIGN($B30=Results.NS),SIGN(LEN(Results.Contracts)>0))+SIGN(C30<>"NS")*SUMPRODUCT(SIGN($B30=Results.EW),SIGN(LEN(Results.Contracts)>0)) -> 20 | F30: =SIGN(C30<>"EW")*SUMPRODUCT(SIGN($B30=INDEX(Results.Scoring,,2)),INDEX(Results.Scoring,,10))+SIGN(C30<>"NS")*SUMPRODUCT(SIGN($B30=INDEX(Results.Scoring,,3)),INDEX(Results.Scoring,,11)) -> 344 | G30: =IF(E30=0,0,F30/E30/2/(Results.Trav.NumLines-1)) -> 0.3909090909 | H30: =IF(ISNA(Q30),"Guest "&O30,INDEX(BBO.Realnames,Q30)) -> Guest E1 | I30: =IF(ISNA(R30),"Guest "&P30,INDEX(BBO.Realnames,R30)) -> Guest W1 | J30: =INDEX(BBO.EBU.Numbers,Q30) ->  | K30: =INDEX(BBO.EBU.Numbers,R30) ->  | L30: =RANK(G30,INDEX(IF(C30="NS",Session.NS,IF(C30="EW",Session.EW,Session.Ranking)),,6)) -> 21 | O30: E1 | P30: W1 | Q30: =MATCH(LOWER(O30),LOWER(BBO.Logins),0) ->  | R30: =MATCH(LOWER(P30),LOWER(BBO.Logins),0) -> 
B31: 25 | C31: =IF(Winners.Count=1,"",IF(B31>Tables.Count,"EW","NS")) -> EW | D31: =H31&" & "&I31 -> East Player-2 & Guest W2 | E31: =SIGN(C31<>"EW")*SUMPRODUCT(SIGN($B31=Results.NS),SIGN(LEN(Results.Contracts)>0))+SIGN(C31<>"NS")*SUMPRODUCT(SIGN($B31=Results.EW),SIGN(LEN(Results.Contracts)>0)) -> 20 | F31: =SIGN(C31<>"EW")*SUMPRODUCT(SIGN($B31=INDEX(Results.Scoring,,2)),INDEX(Results.Scoring,,10))+SIGN(C31<>"NS")*SUMPRODUCT(SIGN($B31=INDEX(Results.Scoring,,3)),INDEX(Results.Scoring,,11)) -> 248 | G31: =IF(E31=0,0,F31/E31/2/(Results.Trav.NumLines-1)) -> 0.2818181818 | H31: =IF(ISNA(Q31),"Guest "&O31,INDEX(BBO.Realnames,Q31)) -> East Player-2 | I31: =IF(ISNA(R31),"Guest "&P31,INDEX(BBO.Realnames,R31)) -> Guest W2 | J31: =INDEX(BBO.EBU.Numbers,Q31) -> 82890 | K31: =INDEX(BBO.EBU.Numbers,R31) ->  | L31: =RANK(G31,INDEX(IF(C31="NS",Session.NS,IF(C31="EW",Session.EW,Session.Ranking)),,6)) -> 23 | O31: E2 | P31: W2 | Q31: =MATCH(LOWER(O31),LOWER(BBO.Logins),0) -> 5 | R31: =MATCH(LOWER(P31),LOWER(BBO.Logins),0) -> 
B32: 26 | C32: =IF(Winners.Count=1,"",IF(B32>Tables.Count,"EW","NS")) -> EW | D32: =H32&" & "&I32 -> Guest E3 & Guest W3 | E32: =SIGN(C32<>"EW")*SUMPRODUCT(SIGN($B32=Results.NS),SIGN(LEN(Results.Contracts)>0))+SIGN(C32<>"NS")*SUMPRODUCT(SIGN($B32=Results.EW),SIGN(LEN(Results.Contracts)>0)) -> 20 | F32: =SIGN(C32<>"EW")*SUMPRODUCT(SIGN($B32=INDEX(Results.Scoring,,2)),INDEX(Results.Scoring,,10))+SIGN(C32<>"NS")*SUMPRODUCT(SIGN($B32=INDEX(Results.Scoring,,3)),INDEX(Results.Scoring,,11)) -> 406 | G32: =IF(E32=0,0,F32/E32/2/(Results.Trav.NumLines-1)) -> 0.4613636364 | H32: =IF(ISNA(Q32),"Guest "&O32,INDEX(BBO.Realnames,Q32)) -> Guest E3 | I32: =IF(ISNA(R32),"Guest "&P32,INDEX(BBO.Realnames,R32)) -> Guest W3 | J32: =INDEX(BBO.EBU.Numbers,Q32) ->  | K32: =INDEX(BBO.EBU.Numbers,R32) ->  | L32: =RANK(G32,INDEX(IF(C32="NS",Session.NS,IF(C32="EW",Session.EW,Session.Ranking)),,6)) -> 18 | O32: E3 | P32: W3 | Q32: =MATCH(LOWER(O32),LOWER(BBO.Logins),0) ->  | R32: =MATCH(LOWER(P32),LOWER(BBO.Logins),0) -> 
B33: 27 | C33: =IF(Winners.Count=1,"",IF(B33>Tables.Count,"EW","NS")) -> EW | D33: =H33&" & "&I33 -> Guest E4 & West Player-4 | E33: =SIGN(C33<>"EW")*SUMPRODUCT(SIGN($B33=Results.NS),SIGN(LEN(Results.Contracts)>0))+SIGN(C33<>"NS")*SUMPRODUCT(SIGN($B33=Results.EW),SIGN(LEN(Results.Contracts)>0)) -> 20 | F33: =SIGN(C33<>"EW")*SUMPRODUCT(SIGN($B33=INDEX(Results.Scoring,,2)),INDEX(Results.Scoring,,10))+SIGN(C33<>"NS")*SUMPRODUCT(SIGN($B33=INDEX(Results.Scoring,,3)),INDEX(Results.Scoring,,11)) -> 455 | G33: =IF(E33=0,0,F33/E33/2/(Results.Trav.NumLines-1)) -> 0.5170454545 | H33: =IF(ISNA(Q33),"Guest "&O33,INDEX(BBO.Realnames,Q33)) -> Guest E4 | I33: =IF(ISNA(R33),"Guest "&P33,INDEX(BBO.Realnames,R33)) -> West Player-4 | J33: =INDEX(BBO.EBU.Numbers,Q33) ->  | K33: =INDEX(BBO.EBU.Numbers,R33) ->  | L33: =RANK(G33,INDEX(IF(C33="NS",Session.NS,IF(C33="EW",Session.EW,Session.Ranking)),,6)) -> 12 | O33: E4 | P33: W4 | Q33: =MATCH(LOWER(O33),LOWER(BBO.Logins),0) ->  | R33: =MATCH(LOWER(P33),LOWER(BBO.Logins),0) -> 7
B34: 28 | C34: =IF(Winners.Count=1,"",IF(B34>Tables.Count,"EW","NS")) -> EW | D34: =H34&" & "&I34 -> Guest E5 & Guest W5 | E34: =SIGN(C34<>"EW")*SUMPRODUCT(SIGN($B34=Results.NS),SIGN(LEN(Results.Contracts)>0))+SIGN(C34<>"NS")*SUMPRODUCT(SIGN($B34=Results.EW),SIGN(LEN(Results.Contracts)>0)) -> 20 | F34: =SIGN(C34<>"EW")*SUMPRODUCT(SIGN($B34=INDEX(Results.Scoring,,2)),INDEX(Results.Scoring,,10))+SIGN(C34<>"NS")*SUMPRODUCT(SIGN($B34=INDEX(Results.Scoring,,3)),INDEX(Results.Scoring,,11)) -> 419 | G34: =IF(E34=0,0,F34/E34/2/(Results.Trav.NumLines-1)) -> 0.4761363636 | H34: =IF(ISNA(Q34),"Guest "&O34,INDEX(BBO.Realnames,Q34)) -> Guest E5 | I34: =IF(ISNA(R34),"Guest "&P34,INDEX(BBO.Realnames,R34)) -> Guest W5 | J34: =INDEX(BBO.EBU.Numbers,Q34) ->  | K34: =INDEX(BBO.EBU.Numbers,R34) ->  | L34: =RANK(G34,INDEX(IF(C34="NS",Session.NS,IF(C34="EW",Session.EW,Session.Ranking)),,6)) -> 16 | O34: E5 | P34: W5 | Q34: =MATCH(LOWER(O34),LOWER(BBO.Logins),0) ->  | R34: =MATCH(LOWER(P34),LOWER(BBO.Logins),0) -> 
B35: 29 | C35: =IF(Winners.Count=1,"",IF(B35>Tables.Count,"EW","NS")) -> EW | D35: =H35&" & "&I35 -> East Player-6 & Guest W6 | E35: =SIGN(C35<>"EW")*SUMPRODUCT(SIGN($B35=Results.NS),SIGN(LEN(Results.Contracts)>0))+SIGN(C35<>"NS")*SUMPRODUCT(SIGN($B35=Results.EW),SIGN(LEN(Results.Contracts)>0)) -> 20 | F35: =SIGN(C35<>"EW")*SUMPRODUCT(SIGN($B35=INDEX(Results.Scoring,,2)),INDEX(Results.Scoring,,10))+SIGN(C35<>"NS")*SUMPRODUCT(SIGN($B35=INDEX(Results.Scoring,,3)),INDEX(Results.Scoring,,11)) -> 503 | G35: =IF(E35=0,0,F35/E35/2/(Results.Trav.NumLines-1)) -> 0.5715909091 | H35: =IF(ISNA(Q35),"Guest "&O35,INDEX(BBO.Realnames,Q35)) -> East Player-6 | I35: =IF(ISNA(R35),"Guest "&P35,INDEX(BBO.Realnames,R35)) -> Guest W6 | J35: =INDEX(BBO.EBU.Numbers,Q35) ->  | K35: =INDEX(BBO.EBU.Numbers,R35) ->  | L35: =RANK(G35,INDEX(IF(C35="NS",Session.NS,IF(C35="EW",Session.EW,Session.Ranking)),,6)) -> 5 | M35: 40 | O35: E6 | P35: W6 | Q35: =MATCH(LOWER(O35),LOWER(BBO.Logins),0) -> 9 | R35: =MATCH(LOWER(P35),LOWER(BBO.Logins),0) -> 
B36: 30 | C36: =IF(Winners.Count=1,"",IF(B36>Tables.Count,"EW","NS")) -> EW | D36: =H36&" & "&I36 -> Guest E7 & Guest W7 | E36: =SIGN(C36<>"EW")*SUMPRODUCT(SIGN($B36=Results.NS),SIGN(LEN(Results.Contracts)>0))+SIGN(C36<>"NS")*SUMPRODUCT(SIGN($B36=Results.EW),SIGN(LEN(Results.Contracts)>0)) -> 20 | F36: =SIGN(C36<>"EW")*SUMPRODUCT(SIGN($B36=INDEX(Results.Scoring,,2)),INDEX(Results.Scoring,,10))+SIGN(C36<>"NS")*SUMPRODUCT(SIGN($B36=INDEX(Results.Scoring,,3)),INDEX(Results.Scoring,,11)) -> 438 | G36: =IF(E36=0,0,F36/E36/2/(Results.Trav.NumLines-1)) -> 0.4977272727 | H36: =IF(ISNA(Q36),"Guest "&O36,INDEX(BBO.Realnames,Q36)) -> Guest E7 | I36: =IF(ISNA(R36),"Guest "&P36,INDEX(BBO.Realnames,R36)) -> Guest W7 | J36: =INDEX(BBO.EBU.Numbers,Q36) ->  | K36: =INDEX(BBO.EBU.Numbers,R36) ->  | L36: =RANK(G36,INDEX(IF(C36="NS",Session.NS,IF(C36="EW",Session.EW,Session.Ranking)),,6)) -> 14 | O36: E7 | P36: W7 | Q36: =MATCH(LOWER(O36),LOWER(BBO.Logins),0) ->  | R36: =MATCH(LOWER(P36),LOWER(BBO.Logins),0) -> 
B37: 31 | C37: =IF(Winners.Count=1,"",IF(B37>Tables.Count,"EW","NS")) -> EW | D37: =H37&" & "&I37 -> Guest E8 & West Player-8 | E37: =SIGN(C37<>"EW")*SUMPRODUCT(SIGN($B37=Results.NS),SIGN(LEN(Results.Contracts)>0))+SIGN(C37<>"NS")*SUMPRODUCT(SIGN($B37=Results.EW),SIGN(LEN(Results.Contracts)>0)) -> 20 | F37: =SIGN(C37<>"EW")*SUMPRODUCT(SIGN($B37=INDEX(Results.Scoring,,2)),INDEX(Results.Scoring,,10))+SIGN(C37<>"NS")*SUMPRODUCT(SIGN($B37=INDEX(Results.Scoring,,3)),INDEX(Results.Scoring,,11)) -> 420 | G37: =IF(E37=0,0,F37/E37/2/(Results.Trav.NumLines-1)) -> 0.4772727273 | H37: =IF(ISNA(Q37),"Guest "&O37,INDEX(BBO.Realnames,Q37)) -> Guest E8 | I37: =IF(ISNA(R37),"Guest "&P37,INDEX(BBO.Realnames,R37)) -> West Player-8 | J37: =INDEX(BBO.EBU.Numbers,Q37) ->  | K37: =INDEX(BBO.EBU.Numbers,R37) ->  | L37: =RANK(G37,INDEX(IF(C37="NS",Session.NS,IF(C37="EW",Session.EW,Session.Ranking)),,6)) -> 15 | O37: E8 | P37: W8 | Q37: =MATCH(LOWER(O37),LOWER(BBO.Logins),0) ->  | R37: =MATCH(LOWER(P37),LOWER(BBO.Logins),0) -> 11
B38: 32 | C38: =IF(Winners.Count=1,"",IF(B38>Tables.Count,"EW","NS")) -> EW | D38: =H38&" & "&I38 -> Guest E9 & Guest W9 | E38: =SIGN(C38<>"EW")*SUMPRODUCT(SIGN($B38=Results.NS),SIGN(LEN(Results.Contracts)>0))+SIGN(C38<>"NS")*SUMPRODUCT(SIGN($B38=Results.EW),SIGN(LEN(Results.Contracts)>0)) -> 20 | F38: =SIGN(C38<>"EW")*SUMPRODUCT(SIGN($B38=INDEX(Results.Scoring,,2)),INDEX(Results.Scoring,,10))+SIGN(C38<>"NS")*SUMPRODUCT(SIGN($B38=INDEX(Results.Scoring,,3)),INDEX(Results.Scoring,,11)) -> 459 | G38: =IF(E38=0,0,F38/E38/2/(Results.Trav.NumLines-1)) -> 0.5215909091 | H38: =IF(ISNA(Q38),"Guest "&O38,INDEX(BBO.Realnames,Q38)) -> Guest E9 | I38: =IF(ISNA(R38),"Guest "&P38,INDEX(BBO.Realnames,R38)) -> Guest W9 | J38: =INDEX(BBO.EBU.Numbers,Q38) ->  | K38: =INDEX(BBO.EBU.Numbers,R38) ->  | L38: =RANK(G38,INDEX(IF(C38="NS",Session.NS,IF(C38="EW",Session.EW,Session.Ranking)),,6)) -> 10 | O38: E9 | P38: W9 | Q38: =MATCH(LOWER(O38),LOWER(BBO.Logins),0) ->  | R38: =MATCH(LOWER(P38),LOWER(BBO.Logins),0) -> 
B39: 33 | C39: =IF(Winners.Count=1,"",IF(B39>Tables.Count,"EW","NS")) -> EW | D39: =H39&" & "&I39 -> East Player-10 & Guest W10 | E39: =SIGN(C39<>"EW")*SUMPRODUCT(SIGN($B39=Results.NS),SIGN(LEN(Results.Contracts)>0))+SIGN(C39<>"NS")*SUMPRODUCT(SIGN($B39=Results.EW),SIGN(LEN(Results.Contracts)>0)) -> 20 | F39: =SIGN(C39<>"EW")*SUMPRODUCT(SIGN($B39=INDEX(Results.Scoring,,2)),INDEX(Results.Scoring,,10))+SIGN(C39<>"NS")*SUMPRODUCT(SIGN($B39=INDEX(Results.Scoring,,3)),INDEX(Results.Scoring,,11)) -> 535 | G39: =IF(E39=0,0,F39/E39/2/(Results.Trav.NumLines-1)) -> 0.6079545455 | H39: =IF(ISNA(Q39),"Guest "&O39,INDEX(BBO.Realnames,Q39)) -> East Player-10 | I39: =IF(ISNA(R39),"Guest "&P39,INDEX(BBO.Realnames,R39)) -> Guest W10 | J39: =INDEX(BBO.EBU.Numbers,Q39) ->  | K39: =INDEX(BBO.EBU.Numbers,R39) ->  | L39: =RANK(G39,INDEX(IF(C39="NS",Session.NS,IF(C39="EW",Session.EW,Session.Ranking)),,6)) -> 2 | M39: 70 | O39: E10 | P39: W10 | Q39: =MATCH(LOWER(O39),LOWER(BBO.Logins),0) -> 13 | R39: =MATCH(LOWER(P39),LOWER(BBO.Logins),0) -> 
B40: 34 | C40: =IF(Winners.Count=1,"",IF(B40>Tables.Count,"EW","NS")) -> EW | D40: =H40&" & "&I40 -> Guest E11 & Guest W11 | E40: =SIGN(C40<>"EW")*SUMPRODUCT(SIGN($B40=Results.NS),SIGN(LEN(Results.Contracts)>0))+SIGN(C40<>"NS")*SUMPRODUCT(SIGN($B40=Results.EW),SIGN(LEN(Results.Contracts)>0)) -> 20 | F40: =SIGN(C40<>"EW")*SUMPRODUCT(SIGN($B40=INDEX(Results.Scoring,,2)),INDEX(Results.Scoring,,10))+SIGN(C40<>"NS")*SUMPRODUCT(SIGN($B40=INDEX(Results.Scoring,,3)),INDEX(Results.Scoring,,11)) -> 496 | G40: =IF(E40=0,0,F40/E40/2/(Results.Trav.NumLines-1)) -> 0.5636363636 | H40: =IF(ISNA(Q40),"Guest "&O40,INDEX(BBO.Realnames,Q40)) -> Guest E11 | I40: =IF(ISNA(R40),"Guest "&P40,INDEX(BBO.Realnames,R40)) -> Guest W11 | J40: =INDEX(BBO.EBU.Numbers,Q40) ->  | K40: =INDEX(BBO.EBU.Numbers,R40) ->  | L40: =RANK(G40,INDEX(IF(C40="NS",Session.NS,IF(C40="EW",Session.EW,Session.Ranking)),,6)) -> 6 | M40: 30 | O40: E11 | P40: W11 | Q40: =MATCH(LOWER(O40),LOWER(BBO.Logins),0) ->  | R40: =MATCH(LOWER(P40),LOWER(BBO.Logins),0) -> 
B41: 35 | C41: =IF(Winners.Count=1,"",IF(B41>Tables.Count,"EW","NS")) -> EW | D41: =H41&" & "&I41 -> Guest E12 & West Player-12 | E41: =SIGN(C41<>"EW")*SUMPRODUCT(SIGN($B41=Results.NS),SIGN(LEN(Results.Contracts)>0))+SIGN(C41<>"NS")*SUMPRODUCT(SIGN($B41=Results.EW),SIGN(LEN(Results.Contracts)>0)) -> 20 | F41: =SIGN(C41<>"EW")*SUMPRODUCT(SIGN($B41=INDEX(Results.Scoring,,2)),INDEX(Results.Scoring,,10))+SIGN(C41<>"NS")*SUMPRODUCT(SIGN($B41=INDEX(Results.Scoring,,3)),INDEX(Results.Scoring,,11)) -> 459 | G41: =IF(E41=0,0,F41/E41/2/(Results.Trav.NumLines-1)) -> 0.5215909091 | H41: =IF(ISNA(Q41),"Guest "&O41,INDEX(BBO.Realnames,Q41)) -> Guest E12 | I41: =IF(ISNA(R41),"Guest "&P41,INDEX(BBO.Realnames,R41)) -> West Player-12 | J41: =INDEX(BBO.EBU.Numbers,Q41) ->  | K41: =INDEX(BBO.EBU.Numbers,R41) ->  | L41: =RANK(G41,INDEX(IF(C41="NS",Session.NS,IF(C41="EW",Session.EW,Session.Ranking)),,6)) -> 10 | O41: E12 | P41: W12 | Q41: =MATCH(LOWER(O41),LOWER(BBO.Logins),0) ->  | R41: =MATCH(LOWER(P41),LOWER(BBO.Logins),0) -> 15
B42: 36 | C42: =IF(Winners.Count=1,"",IF(B42>Tables.Count,"EW","NS")) -> EW | D42: =H42&" & "&I42 -> Guest E13 & Guest W13 | E42: =SIGN(C42<>"EW")*SUMPRODUCT(SIGN($B42=Results.NS),SIGN(LEN(Results.Contracts)>0))+SIGN(C42<>"NS")*SUMPRODUCT(SIGN($B42=Results.EW),SIGN(LEN(Results.Contracts)>0)) -> 20 | F42: =SIGN(C42<>"EW")*SUMPRODUCT(SIGN($B42=INDEX(Results.Scoring,,2)),INDEX(Results.Scoring,,10))+SIGN(C42<>"NS")*SUMPRODUCT(SIGN($B42=INDEX(Results.Scoring,,3)),INDEX(Results.Scoring,,11)) -> 515 | G42: =IF(E42=0,0,F42/E42/2/(Results.Trav.NumLines-1)) -> 0.5852272727 | H42: =IF(ISNA(Q42),"Guest "&O42,INDEX(BBO.Realnames,Q42)) -> Guest E13 | I42: =IF(ISNA(R42),"Guest "&P42,INDEX(BBO.Realnames,R42)) -> Guest W13 | J42: =INDEX(BBO.EBU.Numbers,Q42) ->  | K42: =INDEX(BBO.EBU.Numbers,R42) ->  | L42: =RANK(G42,INDEX(IF(C42="NS",Session.NS,IF(C42="EW",Session.EW,Session.Ranking)),,6)) -> 4 | M42: 50 | O42: E13 | P42: W13 | Q42: =MATCH(LOWER(O42),LOWER(BBO.Logins),0) ->  | R42: =MATCH(LOWER(P42),LOWER(BBO.Logins),0) -> 
B43: 37 | C43: =IF(Winners.Count=1,"",IF(B43>Tables.Count,"EW","NS")) -> EW | D43: =H43&" & "&I43 -> East Player-14 & Guest W14 | E43: =SIGN(C43<>"EW")*SUMPRODUCT(SIGN($B43=Results.NS),SIGN(LEN(Results.Contracts)>0))+SIGN(C43<>"NS")*SUMPRODUCT(SIGN($B43=Results.EW),SIGN(LEN(Results.Contracts)>0)) -> 20 | F43: =SIGN(C43<>"EW")*SUMPRODUCT(SIGN($B43=INDEX(Results.Scoring,,2)),INDEX(Results.Scoring,,10))+SIGN(C43<>"NS")*SUMPRODUCT(SIGN($B43=INDEX(Results.Scoring,,3)),INDEX(Results.Scoring,,11)) -> 481 | G43: =IF(E43=0,0,F43/E43/2/(Results.Trav.NumLines-1)) -> 0.5465909091 | H43: =IF(ISNA(Q43),"Guest "&O43,INDEX(BBO.Realnames,Q43)) -> East Player-14 | I43: =IF(ISNA(R43),"Guest "&P43,INDEX(BBO.Realnames,R43)) -> Guest W14 | J43: =INDEX(BBO.EBU.Numbers,Q43) ->  | K43: =INDEX(BBO.EBU.Numbers,R43) ->  | L43: =RANK(G43,INDEX(IF(C43="NS",Session.NS,IF(C43="EW",Session.EW,Session.Ranking)),,6)) -> 8 | M43: 10 | O43: E14 | P43: W14 | Q43: =MATCH(LOWER(O43),LOWER(BBO.Logins),0) -> 17 | R43: =MATCH(LOWER(P43),LOWER(BBO.Logins),0) -> 
B44: 38 | C44: =IF(Winners.Count=1,"",IF(B44>Tables.Count,"EW","NS")) -> EW | D44: =H44&" & "&I44 -> Guest E15 & Guest W15 | E44: =SIGN(C44<>"EW")*SUMPRODUCT(SIGN($B44=Results.NS),SIGN(LEN(Results.Contracts)>0))+SIGN(C44<>"NS")*SUMPRODUCT(SIGN($B44=Results.EW),SIGN(LEN(Results.Contracts)>0)) -> 20 | F44: =SIGN(C44<>"EW")*SUMPRODUCT(SIGN($B44=INDEX(Results.Scoring,,2)),INDEX(Results.Scoring,,10))+SIGN(C44<>"NS")*SUMPRODUCT(SIGN($B44=INDEX(Results.Scoring,,3)),INDEX(Results.Scoring,,11)) -> 412 | G44: =IF(E44=0,0,F44/E44/2/(Results.Trav.NumLines-1)) -> 0.4681818182 | H44: =IF(ISNA(Q44),"Guest "&O44,INDEX(BBO.Realnames,Q44)) -> Guest E15 | I44: =IF(ISNA(R44),"Guest "&P44,INDEX(BBO.Realnames,R44)) -> Guest W15 | J44: =INDEX(BBO.EBU.Numbers,Q44) ->  | K44: =INDEX(BBO.EBU.Numbers,R44) ->  | L44: =RANK(G44,INDEX(IF(C44="NS",Session.NS,IF(C44="EW",Session.EW,Session.Ranking)),,6)) -> 17 | O44: E15 | P44: W15 | Q44: =MATCH(LOWER(O44),LOWER(BBO.Logins),0) ->  | R44: =MATCH(LOWER(P44),LOWER(BBO.Logins),0) -> 
B45: 39 | C45: =IF(Winners.Count=1,"",IF(B45>Tables.Count,"EW","NS")) -> EW | D45: =H45&" & "&I45 -> Guest E16 & West Player-16 | E45: =SIGN(C45<>"EW")*SUMPRODUCT(SIGN($B45=Results.NS),SIGN(LEN(Results.Contracts)>0))+SIGN(C45<>"NS")*SUMPRODUCT(SIGN($B45=Results.EW),SIGN(LEN(Results.Contracts)>0)) -> 20 | F45: =SIGN(C45<>"EW")*SUMPRODUCT(SIGN($B45=INDEX(Results.Scoring,,2)),INDEX(Results.Scoring,,10))+SIGN(C45<>"NS")*SUMPRODUCT(SIGN($B45=INDEX(Results.Scoring,,3)),INDEX(Results.Scoring,,11)) -> 439 | G45: =IF(E45=0,0,F45/E45/2/(Results.Trav.NumLines-1)) -> 0.4988636364 | H45: =IF(ISNA(Q45),"Guest "&O45,INDEX(BBO.Realnames,Q45)) -> Guest E16 | I45: =IF(ISNA(R45),"Guest "&P45,INDEX(BBO.Realnames,R45)) -> West Player-16 | J45: =INDEX(BBO.EBU.Numbers,Q45) ->  | K45: =INDEX(BBO.EBU.Numbers,R45) ->  | L45: =RANK(G45,INDEX(IF(C45="NS",Session.NS,IF(C45="EW",Session.EW,Session.Ranking)),,6)) -> 13 | O45: E16 | P45: W16 | Q45: =MATCH(LOWER(O45),LOWER(BBO.Logins),0) ->  | R45: =MATCH(LOWER(P45),LOWER(BBO.Logins),0) -> 19
B46: 40 | C46: =IF(Winners.Count=1,"",IF(B46>Tables.Count,"EW","NS")) -> EW | D46: =H46&" & "&I46 -> Guest E17 & Guest W17 | E46: =SIGN(C46<>"EW")*SUMPRODUCT(SIGN($B46=Results.NS),SIGN(LEN(Results.Contracts)>0))+SIGN(C46<>"NS")*SUMPRODUCT(SIGN($B46=Results.EW),SIGN(LEN(Results.Contracts)>0)) -> 20 | F46: =SIGN(C46<>"EW")*SUMPRODUCT(SIGN($B46=INDEX(Results.Scoring,,2)),INDEX(Results.Scoring,,10))+SIGN(C46<>"NS")*SUMPRODUCT(SIGN($B46=INDEX(Results.Scoring,,3)),INDEX(Results.Scoring,,11)) -> 464 | G46: =IF(E46=0,0,F46/E46/2/(Results.Trav.NumLines-1)) -> 0.5272727273 | H46: =IF(ISNA(Q46),"Guest "&O46,INDEX(BBO.Realnames,Q46)) -> Guest E17 | I46: =IF(ISNA(R46),"Guest "&P46,INDEX(BBO.Realnames,R46)) -> Guest W17 | J46: =INDEX(BBO.EBU.Numbers,Q46) ->  | K46: =INDEX(BBO.EBU.Numbers,R46) ->  | L46: =RANK(G46,INDEX(IF(C46="NS",Session.NS,IF(C46="EW",Session.EW,Session.Ranking)),,6)) -> 9 | O46: E17 | P46: W17 | Q46: =MATCH(LOWER(O46),LOWER(BBO.Logins),0) ->  | R46: =MATCH(LOWER(P46),LOWER(BBO.Logins),0) -> 
B47: 41 | C47: =IF(Winners.Count=1,"",IF(B47>Tables.Count,"EW","NS")) -> EW | D47: =H47&" & "&I47 -> East Player-18 & Guest W18 | E47: =SIGN(C47<>"EW")*SUMPRODUCT(SIGN($B47=Results.NS),SIGN(LEN(Results.Contracts)>0))+SIGN(C47<>"NS")*SUMPRODUCT(SIGN($B47=Results.EW),SIGN(LEN(Results.Contracts)>0)) -> 20 | F47: =SIGN(C47<>"EW")*SUMPRODUCT(SIGN($B47=INDEX(Results.Scoring,,2)),INDEX(Results.Scoring,,10))+SIGN(C47<>"NS")*SUMPRODUCT(SIGN($B47=INDEX(Results.Scoring,,3)),INDEX(Results.Scoring,,11)) -> 544 | G47: =IF(E47=0,0,F47/E47/2/(Results.Trav.NumLines-1)) -> 0.6181818182 | H47: =IF(ISNA(Q47),"Guest "&O47,INDEX(BBO.Realnames,Q47)) -> East Player-18 | I47: =IF(ISNA(R47),"Guest "&P47,INDEX(BBO.Realnames,R47)) -> Guest W18 | J47: =INDEX(BBO.EBU.Numbers,Q47) ->  | K47: =INDEX(BBO.EBU.Numbers,R47) ->  | L47: =RANK(G47,INDEX(IF(C47="NS",Session.NS,IF(C47="EW",Session.EW,Session.Ranking)),,6)) -> 1 | M47: 80 | O47: E18 | P47: W18 | Q47: =MATCH(LOWER(O47),LOWER(BBO.Logins),0) -> 21 | R47: =MATCH(LOWER(P47),LOWER(BBO.Logins),0) -> 
B48: 42 | C48: =IF(Winners.Count=1,"",IF(B48>Tables.Count,"EW","NS")) -> EW | D48: =H48&" & "&I48 -> Guest E19 & Guest W19 | E48: =SIGN(C48<>"EW")*SUMPRODUCT(SIGN($B48=Results.NS),SIGN(LEN(Results.Contracts)>0))+SIGN(C48<>"NS")*SUMPRODUCT(SIGN($B48=Results.EW),SIGN(LEN(Results.Contracts)>0)) -> 20 | F48: =SIGN(C48<>"EW")*SUMPRODUCT(SIGN($B48=INDEX(Results.Scoring,,2)),INDEX(Results.Scoring,,10))+SIGN(C48<>"NS")*SUMPRODUCT(SIGN($B48=INDEX(Results.Scoring,,3)),INDEX(Results.Scoring,,11)) -> 521 | G48: =IF(E48=0,0,F48/E48/2/(Results.Trav.NumLines-1)) -> 0.5920454545 | H48: =IF(ISNA(Q48),"Guest "&O48,INDEX(BBO.Realnames,Q48)) -> Guest E19 | I48: =IF(ISNA(R48),"Guest "&P48,INDEX(BBO.Realnames,R48)) -> Guest W19 | J48: =INDEX(BBO.EBU.Numbers,Q48) ->  | K48: =INDEX(BBO.EBU.Numbers,R48) ->  | L48: =RANK(G48,INDEX(IF(C48="NS",Session.NS,IF(C48="EW",Session.EW,Session.Ranking)),,6)) -> 3 | M48: 60 | O48: E19 | P48: W19 | Q48: =MATCH(LOWER(O48),LOWER(BBO.Logins),0) ->  | R48: =MATCH(LOWER(P48),LOWER(BBO.Logins),0) -> 
B49: 43 | C49: EW | D49: =H49&" & "&I49 -> Guest E20 & West Player-20 | E49: =SIGN(C49<>"EW")*SUMPRODUCT(SIGN($B49=Results.NS),SIGN(LEN(Results.Contracts)>0))+SIGN(C49<>"NS")*SUMPRODUCT(SIGN($B49=Results.EW),SIGN(LEN(Results.Contracts)>0)) -> 20 | F49: =SIGN(C49<>"EW")*SUMPRODUCT(SIGN($B49=INDEX(Results.Scoring,,2)),INDEX(Results.Scoring,,10))+SIGN(C49<>"NS")*SUMPRODUCT(SIGN($B49=INDEX(Results.Scoring,,3)),INDEX(Results.Scoring,,11)) -> 483 | G49: =IF(E49=0,0,F49/E49/2/(Results.Trav.NumLines-1)) -> 0.5488636364 | H49: =IF(ISNA(Q49),"Guest "&O49,INDEX(BBO.Realnames,Q49)) -> Guest E20 | I49: =IF(ISNA(R49),"Guest "&P49,INDEX(BBO.Realnames,R49)) -> West Player-20 | J49: =INDEX(BBO.EBU.Numbers,Q49) ->  | K49: =INDEX(BBO.EBU.Numbers,R49) ->  | L49: =RANK(G49,INDEX(IF(C49="NS",Session.NS,IF(C49="EW",Session.EW,Session.Ranking)),,6)) -> 7 | M49: 20 | O49: E20 | P49: W20 | Q49: =MATCH(LOWER(O49),LOWER(BBO.Logins),0) ->  | R49: =MATCH(LOWER(P49),LOWER(BBO.Logins),0) -> 23
B50: 44 | C50: EW | D50: Guest E21 & Guest W21 | E50: =SIGN(C50<>"EW")*SUMPRODUCT(SIGN($B50=Results.NS),SIGN(LEN(Results.Contracts)>0))+SIGN(C50<>"NS")*SUMPRODUCT(SIGN($B50=Results.EW),SIGN(LEN(Results.Contracts)>0)) -> 20 | F50: =SIGN(C50<>"EW")*SUMPRODUCT(SIGN($B50=INDEX(Results.Scoring,,2)),INDEX(Results.Scoring,,10))+SIGN(C50<>"NS")*SUMPRODUCT(SIGN($B50=INDEX(Results.Scoring,,3)),INDEX(Results.Scoring,,11)) -> 335 | G50: 0.3806818182 | H50: =IF(ISNA(Q50),"Guest "&O50,INDEX(BBO.Realnames,Q50)) -> Guest E21 | I50: =IF(ISNA(R50),"Guest "&P50,INDEX(BBO.Realnames,R50)) -> Guest W21 | J50: =INDEX(BBO.EBU.Numbers,Q50) ->  | K50: =INDEX(BBO.EBU.Numbers,R50) ->  | L50: =RANK(G50,INDEX(IF(C50="NS",Session.NS,IF(C50="EW",Session.EW,Session.Ranking)),,6)) -> 22 | O50: E21 | P50: W21 | Q50: =MATCH(LOWER(O50),LOWER(BBO.Logins),0) ->  | R50: =MATCH(LOWER(P50),LOWER(BBO.Logins),0) -> 
B51: 45 | C51: EW | D51: East Player-22 & Guest W22 | E51: =SIGN(C51<>"EW")*SUMPRODUCT(SIGN($B51=Results.NS),SIGN(LEN(Results.Contracts)>0))+SIGN(C51<>"NS")*SUMPRODUCT(SIGN($B51=Results.EW),SIGN(LEN(Results.Contracts)>0)) -> 20 | F51: =SIGN(C51<>"EW")*SUMPRODUCT(SIGN($B51=INDEX(Results.Scoring,,2)),INDEX(Results.Scoring,,10))+SIGN(C51<>"NS")*SUMPRODUCT(SIGN($B51=INDEX(Results.Scoring,,3)),INDEX(Results.Scoring,,11)) -> 349 | G51: 0.3965909091 | H51: =IF(ISNA(Q51),"Guest "&O51,INDEX(BBO.Realnames,Q51)) -> East Player-22 | I51: =IF(ISNA(R51),"Guest "&P51,INDEX(BBO.Realnames,R51)) -> Guest W22 | J51: =INDEX(BBO.EBU.Numbers,Q51) ->  | K51: =INDEX(BBO.EBU.Numbers,R51) ->  | L51: =RANK(G51,INDEX(IF(C51="NS",Session.NS,IF(C51="EW",Session.EW,Session.Ranking)),,6)) -> 20 | O51: E22 | P51: W22 | Q51: =MATCH(LOWER(O51),LOWER(BBO.Logins),0) -> 25 | R51: =MATCH(LOWER(P51),LOWER(BBO.Logins),0) -> 
B52: 46 | C52: EW | D52: Guest E23 & Guest W23 | E52: =SIGN(C52<>"EW")*SUMPRODUCT(SIGN($B52=Results.NS),SIGN(LEN(Results.Contracts)>0))+SIGN(C52<>"NS")*SUMPRODUCT(SIGN($B52=Results.EW),SIGN(LEN(Results.Contracts)>0)) -> 20 | F52: =SIGN(C52<>"EW")*SUMPRODUCT(SIGN($B52=INDEX(Results.Scoring,,2)),INDEX(Results.Scoring,,10))+SIGN(C52<>"NS")*SUMPRODUCT(SIGN($B52=INDEX(Results.Scoring,,3)),INDEX(Results.Scoring,,11)) -> 395 | G52: 0.4488636364 | H52: =IF(ISNA(Q52),"Guest "&O52,INDEX(BBO.Realnames,Q52)) -> Guest E23 | I52: =IF(ISNA(R52),"Guest "&P52,INDEX(BBO.Realnames,R52)) -> Guest W23 | J52: =INDEX(BBO.EBU.Numbers,Q52) ->  | K52: =INDEX(BBO.EBU.Numbers,R52) ->  | L52: =RANK(G52,INDEX(IF(C52="NS",Session.NS,IF(C52="EW",Session.EW,Session.Ranking)),,6)) -> 19 | O52: E23 | P52: W23 | Q52: =MATCH(LOWER(O52),LOWER(BBO.Logins),0) ->  | R52: =MATCH(LOWER(P52),LOWER(BBO.Logins),0) -> 
D54: =IF(Winners.Count=2,"NS","Combined")&" Ranking" -> NS Ranking | E54: % | F54: =IF(Winners.Count=2,"NS","")&" Row #" -> NS Row # | H54: =IF(Winners.Count=2,"EW Ranking","Ignore...") -> EW Ranking | J54: % | K54: EW Row #
C55: =IF(E55=E54,IF(RIGHT(C54)="=",C54,C54&"="),ROW()-ROW(C$54)) -> 1 | D55: =INDEX(IF(Winners.Count=2,Session.NS,Session.Ranking),$F55,3) -> Guest N8 & Guest S8 | E55: =INDEX(IF(Winners.Count=2,Session.NS,Session.Ranking),$F55,6) -> 0.6488636364 | F55: =MATCH(LARGE(INDEX(IF(Winners.Count=2,Session.NS,Session.Ranking),,6)+ROW(IF(Winners.Count=2,Session.NS,Session.Ranking))/10^6,ROW()-ROW(F$54)),INDEX(IF(Winners.Count=2,Session.NS,Session.Ranking),,6)+ROW(IF(Winners.Count=2,Session.NS,Session.Ranking))/10^6,0) -> 8 | G55: =IF(J55=J54,IF(RIGHT(G54)="=",G54,G54&"="),ROW()-ROW(G$54)) -> 1 | H55: =INDEX(Session.EW,$K55,3) -> East Player-18 & Guest W18 | J55: =INDEX(Session.EW,$K55,6) -> 0.6181818182 | K55: =MATCH(LARGE(INDEX(Session.EW,,6)+ROW(Session.EW)/10^6,ROW()-ROW(K$54)),INDEX(Session.EW,,6)+ROW(Session.EW)/10^6,0) -> 18
C56: 2 | D56: =INDEX(IF(Winners.Count=2,Session.NS,Session.Ranking),$F56,3) -> Guest N12 & Guest S12 | E56: =INDEX(IF(Winners.Count=2,Session.NS,Session.Ranking),$F56,6) -> 0.6420454545 | F56: =MATCH(LARGE(INDEX(IF(Winners.Count=2,Session.NS,Session.Ranking),,6)+ROW(IF(Winners.Count=2,Session.NS,Session.Ranking))/10^6,ROW()-ROW(F$54)),INDEX(IF(Winners.Count=2,Session.NS,Session.Ranking),,6)+ROW(IF(Winners.Count=2,Session.NS,Session.Ranking))/10^6,0) -> 12 | G56: 2 | H56: =INDEX(Session.EW,$K56,3) -> East Player-10 & Guest W10 | J56: =INDEX(Session.EW,$K56,6) -> 0.6079545455 | K56: =MATCH(LARGE(INDEX(Session.EW,,6)+ROW(Session.EW)/10^6,ROW()-ROW(K$54)),INDEX(Session.EW,,6)+ROW(Session.EW)/10^6,0) -> 10
C57: 3 | D57: =INDEX(IF(Winners.Count=2,Session.NS,Session.Ranking),$F57,3) -> Guest N14 & Guest S14 | E57: =INDEX(IF(Winners.Count=2,Session.NS,Session.Ranking),$F57,6) -> 0.6238636364 | F57: =MATCH(LARGE(INDEX(IF(Winners.Count=2,Session.NS,Session.Ranking),,6)+ROW(IF(Winners.Count=2,Session.NS,Session.Ranking))/10^6,ROW()-ROW(F$54)),INDEX(IF(Winners.Count=2,Session.NS,Session.Ranking),,6)+ROW(IF(Winners.Count=2,Session.NS,Session.Ranking))/10^6,0) -> 14 | G57: 3 | H57: =INDEX(Session.EW,$K57,3) -> Guest E19 & Guest W19 | J57: =INDEX(Session.EW,$K57,6) -> 0.5920454545 | K57: =MATCH(LARGE(INDEX(Session.EW,,6)+ROW(Session.EW)/10^6,ROW()-ROW(K$54)),INDEX(Session.EW,,6)+ROW(Session.EW)/10^6,0) -> 19
C58: 4 | D58: =INDEX(IF(Winners.Count=2,Session.NS,Session.Ranking),$F58,3) -> North Player-1 & Guest S1 | E58: =INDEX(IF(Winners.Count=2,Session.NS,Session.Ranking),$F58,6) -> 0.5954545455 | F58: =MATCH(LARGE(INDEX(IF(Winners.Count=2,Session.NS,Session.Ranking),,6)+ROW(IF(Winners.Count=2,Session.NS,Session.Ranking))/10^6,ROW()-ROW(F$54)),INDEX(IF(Winners.Count=2,Session.NS,Session.Ranking),,6)+ROW(IF(Winners.Count=2,Session.NS,Session.Ranking))/10^6,0) -> 1 | G58: 4 | H58: =INDEX(Session.EW,$K58,3) -> Guest E13 & Guest W13 | J58: =INDEX(Session.EW,$K58,6) -> 0.5852272727 | K58: =MATCH(LARGE(INDEX(Session.EW,,6)+ROW(Session.EW)/10^6,ROW()-ROW(K$54)),INDEX(Session.EW,,6)+ROW(Session.EW)/10^6,0) -> 13
C59: 5 | D59: =INDEX(IF(Winners.Count=2,Session.NS,Session.Ranking),$F59,3) -> Guest N2 & Guest S2 | E59: =INDEX(IF(Winners.Count=2,Session.NS,Session.Ranking),$F59,6) -> 0.5795454545 | F59: =MATCH(LARGE(INDEX(IF(Winners.Count=2,Session.NS,Session.Ranking),,6)+ROW(IF(Winners.Count=2,Session.NS,Session.Ranking))/10^6,ROW()-ROW(F$54)),INDEX(IF(Winners.Count=2,Session.NS,Session.Ranking),,6)+ROW(IF(Winners.Count=2,Session.NS,Session.Ranking))/10^6,0) -> 2 | G59: 5 | H59: =INDEX(Session.EW,$K59,3) -> East Player-6 & Guest W6 | J59: =INDEX(Session.EW,$K59,6) -> 0.5715909091 | K59: =MATCH(LARGE(INDEX(Session.EW,,6)+ROW(Session.EW)/10^6,ROW()-ROW(K$54)),INDEX(Session.EW,,6)+ROW(Session.EW)/10^6,0) -> 6
C60: 6 | D60: =INDEX(IF(Winners.Count=2,Session.NS,Session.Ranking),$F60,3) -> Guest N16 & Guest S16 | E60: =INDEX(IF(Winners.Count=2,Session.NS,Session.Ranking),$F60,6) -> 0.5602272727 | F60: =MATCH(LARGE(INDEX(IF(Winners.Count=2,Session.NS,Session.Ranking),,6)+ROW(IF(Winners.Count=2,Session.NS,Session.Ranking))/10^6,ROW()-ROW(F$54)),INDEX(IF(Winners.Count=2,Session.NS,Session.Ranking),,6)+ROW(IF(Winners.Count=2,Session.NS,Session.Ranking))/10^6,0) -> 16 | G60: 6 | H60: =INDEX(Session.EW,$K60,3) -> Guest E11 & Guest W11 | J60: =INDEX(Session.EW,$K60,6) -> 0.5636363636 | K60: =MATCH(LARGE(INDEX(Session.EW,,6)+ROW(Session.EW)/10^6,ROW()-ROW(K$54)),INDEX(Session.EW,,6)+ROW(Session.EW)/10^6,0) -> 11
C61: 7 | D61: =INDEX(IF(Winners.Count=2,Session.NS,Session.Ranking),$F61,3) -> North Player-21 & Guest S21 | E61: =INDEX(IF(Winners.Count=2,Session.NS,Session.Ranking),$F61,6) -> 0.5568181818 | F61: =MATCH(LARGE(INDEX(IF(Winners.Count=2,Session.NS,Session.Ranking),,6)+ROW(IF(Winners.Count=2,Session.NS,Session.Ranking))/10^6,ROW()-ROW(F$54)),INDEX(IF(Winners.Count=2,Session.NS,Session.Ranking),,6)+ROW(IF(Winners.Count=2,Session.NS,Session.Ranking))/10^6,0) -> 21 | G61: 7 | H61: =INDEX(Session.EW,$K61,3) -> Guest E20 & West Player-20 | J61: =INDEX(Session.EW,$K61,6) -> 0.5488636364 | K61: =MATCH(LARGE(INDEX(Session.EW,,6)+ROW(Session.EW)/10^6,ROW()-ROW(K$54)),INDEX(Session.EW,,6)+ROW(Session.EW)/10^6,0) -> 20
C62: 8 | D62: =INDEX(IF(Winners.Count=2,Session.NS,Session.Ranking),$F62,3) -> North Player-9 & Guest S9 | E62: =INDEX(IF(Winners.Count=2,Session.NS,Session.Ranking),$F62,6) -> 0.5420454545 | F62: =MATCH(LARGE(INDEX(IF(Winners.Count=2,Session.NS,Session.Ranking),,6)+ROW(IF(Winners.Count=2,Session.NS,Session.Ranking))/10^6,ROW()-ROW(F$54)),INDEX(IF(Winners.Count=2,Session.NS,Session.Ranking),,6)+ROW(IF(Winners.Count=2,Session.NS,Session.Ranking))/10^6,0) -> 9 | G62: 8 | H62: =INDEX(Session.EW,$K62,3) -> East Player-14 & Guest W14 | J62: =INDEX(Session.EW,$K62,6) -> 0.5465909091 | K62: =MATCH(LARGE(INDEX(Session.EW,,6)+ROW(Session.EW)/10^6,ROW()-ROW(K$54)),INDEX(Session.EW,,6)+ROW(Session.EW)/10^6,0) -> 14
C63: 9 | D63: =INDEX(IF(Winners.Count=2,Session.NS,Session.Ranking),$F63,3) -> North Player-5 & Guest S5 | E63: =INDEX(IF(Winners.Count=2,Session.NS,Session.Ranking),$F63,6) -> 0.5386363636 | F63: =MATCH(LARGE(INDEX(IF(Winners.Count=2,Session.NS,Session.Ranking),,6)+ROW(IF(Winners.Count=2,Session.NS,Session.Ranking))/10^6,ROW()-ROW(F$54)),INDEX(IF(Winners.Count=2,Session.NS,Session.Ranking),,6)+ROW(IF(Winners.Count=2,Session.NS,Session.Ranking))/10^6,0) -> 5 | G63: 9 | H63: =INDEX(Session.EW,$K63,3) -> Guest E17 & Guest W17 | J63: =INDEX(Session.EW,$K63,6) -> 0.5272727273 | K63: =MATCH(LARGE(INDEX(Session.EW,,6)+ROW(Session.EW)/10^6,ROW()-ROW(K$54)),INDEX(Session.EW,,6)+ROW(Session.EW)/10^6,0) -> 17
C64: 10 | D64: =INDEX(IF(Winners.Count=2,Session.NS,Session.Ranking),$F64,3) -> Guest N18 & Guest S18 | E64: =INDEX(IF(Winners.Count=2,Session.NS,Session.Ranking),$F64,6) -> 0.5238636364 | F64: =MATCH(LARGE(INDEX(IF(Winners.Count=2,Session.NS,Session.Ranking),,6)+ROW(IF(Winners.Count=2,Session.NS,Session.Ranking))/10^6,ROW()-ROW(F$54)),INDEX(IF(Winners.Count=2,Session.NS,Session.Ranking),,6)+ROW(IF(Winners.Count=2,Session.NS,Session.Ranking))/10^6,0) -> 18 | G64: 10 | H64: =INDEX(Session.EW,$K64,3) -> Guest E12 & West Player-12 | J64: =INDEX(Session.EW,$K64,6) -> 0.5215909091 | K64: =MATCH(LARGE(INDEX(Session.EW,,6)+ROW(Session.EW)/10^6,ROW()-ROW(K$54)),INDEX(Session.EW,,6)+ROW(Session.EW)/10^6,0) -> 12
C65: 11 | D65: =INDEX(IF(Winners.Count=2,Session.NS,Session.Ranking),$F65,3) -> Guest N11 & South Player-11 | E65: =INDEX(IF(Winners.Count=2,Session.NS,Session.Ranking),$F65,6) -> 0.5159090909 | F65: =MATCH(LARGE(INDEX(IF(Winners.Count=2,Session.NS,Session.Ranking),,6)+ROW(IF(Winners.Count=2,Session.NS,Session.Ranking))/10^6,ROW()-ROW(F$54)),INDEX(IF(Winners.Count=2,Session.NS,Session.Ranking),,6)+ROW(IF(Winners.Count=2,Session.NS,Session.Ranking))/10^6,0) -> 11 | G65: 10= | H65: =INDEX(Session.EW,$K65,3) -> Guest E9 & Guest W9 | J65: =INDEX(Session.EW,$K65,6) -> 0.5215909091 | K65: =MATCH(LARGE(INDEX(Session.EW,,6)+ROW(Session.EW)/10^6,ROW()-ROW(K$54)),INDEX(Session.EW,,6)+ROW(Session.EW)/10^6,0) -> 9
C66: 12 | D66: =INDEX(IF(Winners.Count=2,Session.NS,Session.Ranking),$F66,3) -> Guest N10 & Guest S10 | E66: =INDEX(IF(Winners.Count=2,Session.NS,Session.Ranking),$F66,6) -> 0.4954545455 | F66: =MATCH(LARGE(INDEX(IF(Winners.Count=2,Session.NS,Session.Ranking),,6)+ROW(IF(Winners.Count=2,Session.NS,Session.Ranking))/10^6,ROW()-ROW(F$54)),INDEX(IF(Winners.Count=2,Session.NS,Session.Ranking),,6)+ROW(IF(Winners.Count=2,Session.NS,Session.Ranking))/10^6,0) -> 10 | G66: 12 | H66: =INDEX(Session.EW,$K66,3) -> Guest E4 & West Player-4 | J66: =INDEX(Session.EW,$K66,6) -> 0.5170454545 | K66: =MATCH(LARGE(INDEX(Session.EW,,6)+ROW(Session.EW)/10^6,ROW()-ROW(K$54)),INDEX(Session.EW,,6)+ROW(Session.EW)/10^6,0) -> 4
C67: =IF(E67=E66,IF(RIGHT(C66)="=",C66,C66&"="),ROW()-ROW(C$54)) -> 13 | D67: =INDEX(IF(Winners.Count=2,Session.NS,Session.Ranking),$F67,3) -> Guest N4 & Guest S4 | E67: =INDEX(IF(Winners.Count=2,Session.NS,Session.Ranking),$F67,6) -> 0.4886363636 | F67: =MATCH(LARGE(INDEX(IF(Winners.Count=2,Session.NS,Session.Ranking),,6)+ROW(IF(Winners.Count=2,Session.NS,Session.Ranking))/10^6,ROW()-ROW(F$54)),INDEX(IF(Winners.Count=2,Session.NS,Session.Ranking),,6)+ROW(IF(Winners.Count=2,Session.NS,Session.Ranking))/10^6,0) -> 4 | G67: =IF(J67=J66,IF(RIGHT(G66)="=",G66,G66&"="),ROW()-ROW(G$54)) -> 13 | H67: =INDEX(Session.EW,$K67,3) -> Guest E16 & West Player-16 | J67: =INDEX(Session.EW,$K67,6) -> 0.4988636364 | K67: =MATCH(LARGE(INDEX(Session.EW,,6)+ROW(Session.EW)/10^6,ROW()-ROW(K$54)),INDEX(Session.EW,,6)+ROW(Session.EW)/10^6,0) -> 16
C68: =IF(E68=E67,IF(RIGHT(C67)="=",C67,C67&"="),ROW()-ROW(C$54)) -> 14 | D68: =INDEX(IF(Winners.Count=2,Session.NS,Session.Ranking),$F68,3) -> North Player-17 & Guest S17 | E68: =INDEX(IF(Winners.Count=2,Session.NS,Session.Ranking),$F68,6) -> 0.4693181818 | F68: =MATCH(LARGE(INDEX(IF(Winners.Count=2,Session.NS,Session.Ranking),,6)+ROW(IF(Winners.Count=2,Session.NS,Session.Ranking))/10^6,ROW()-ROW(F$54)),INDEX(IF(Winners.Count=2,Session.NS,Session.Ranking),,6)+ROW(IF(Winners.Count=2,Session.NS,Session.Ranking))/10^6,0) -> 17 | G68: =IF(J68=J67,IF(RIGHT(G67)="=",G67,G67&"="),ROW()-ROW(G$54)) -> 14 | H68: =INDEX(Session.EW,$K68,3) -> Guest E7 & Guest W7 | J68: =INDEX(Session.EW,$K68,6) -> 0.4977272727 | K68: =MATCH(LARGE(INDEX(Session.EW,,6)+ROW(Session.EW)/10^6,ROW()-ROW(K$54)),INDEX(Session.EW,,6)+ROW(Session.EW)/10^6,0) -> 7
C69: 15 | D69: =INDEX(IF(Winners.Count=2,Session.NS,Session.Ranking),$F69,3) -> Guest N15 & South Player-15 | E69: =INDEX(IF(Winners.Count=2,Session.NS,Session.Ranking),$F69,6) -> 0.4568181818 | F69: =MATCH(LARGE(INDEX(IF(Winners.Count=2,Session.NS,Session.Ranking),,6)+ROW(IF(Winners.Count=2,Session.NS,Session.Ranking))/10^6,ROW()-ROW(F$54)),INDEX(IF(Winners.Count=2,Session.NS,Session.Ranking),,6)+ROW(IF(Winners.Count=2,Session.NS,Session.Ranking))/10^6,0) -> 15 | G69: 15 | H69: =INDEX(Session.EW,$K69,3) -> Guest E8 & West Player-8 | J69: =INDEX(Session.EW,$K69,6) -> 0.4772727273 | K69: =MATCH(LARGE(INDEX(Session.EW,,6)+ROW(Session.EW)/10^6,ROW()-ROW(K$54)),INDEX(Session.EW,,6)+ROW(Session.EW)/10^6,0) -> 8
C70: 16 | D70: =INDEX(IF(Winners.Count=2,Session.NS,Session.Ranking),$F70,3) -> Guest N23 & South Player-23 | E70: =INDEX(IF(Winners.Count=2,Session.NS,Session.Ranking),$F70,6) -> 0.4340909091 | F70: =MATCH(LARGE(INDEX(IF(Winners.Count=2,Session.NS,Session.Ranking),,6)+ROW(IF(Winners.Count=2,Session.NS,Session.Ranking))/10^6,ROW()-ROW(F$54)),INDEX(IF(Winners.Count=2,Session.NS,Session.Ranking),,6)+ROW(IF(Winners.Count=2,Session.NS,Session.Ranking))/10^6,0) -> 23 | G70: 16 | H70: =INDEX(Session.EW,$K70,3) -> Guest E5 & Guest W5 | J70: =INDEX(Session.EW,$K70,6) -> 0.4761363636 | K70: =MATCH(LARGE(INDEX(Session.EW,,6)+ROW(Session.EW)/10^6,ROW()-ROW(K$54)),INDEX(Session.EW,,6)+ROW(Session.EW)/10^6,0) -> 5
C71: 16= | D71: =INDEX(IF(Winners.Count=2,Session.NS,Session.Ranking),$F71,3) -> Guest N19 & South Player-19 | E71: =INDEX(IF(Winners.Count=2,Session.NS,Session.Ranking),$F71,6) -> 0.4340909091 | F71: =MATCH(LARGE(INDEX(IF(Winners.Count=2,Session.NS,Session.Ranking),,6)+ROW(IF(Winners.Count=2,Session.NS,Session.Ranking))/10^6,ROW()-ROW(F$54)),INDEX(IF(Winners.Count=2,Session.NS,Session.Ranking),,6)+ROW(IF(Winners.Count=2,Session.NS,Session.Ranking))/10^6,0) -> 19 | G71: 17 | H71: =INDEX(Session.EW,$K71,3) -> Guest E15 & Guest W15 | J71: =INDEX(Session.EW,$K71,6) -> 0.4681818182 | K71: =MATCH(LARGE(INDEX(Session.EW,,6)+ROW(Session.EW)/10^6,ROW()-ROW(K$54)),INDEX(Session.EW,,6)+ROW(Session.EW)/10^6,0) -> 15

Sheet Travellers
A2: Section | B2: =MAX(INDEX(Results.Scoring,,14)) -> 23 | C2: Lines/Travellers | G2: Boards | H2: =MAX(Results.Boards) -> 20 | J2: =ROWS(Results.Boards) -> 460 | K2: =Results.Trav.NumLines*H2 -> 460 | M2: Results.width | N2: =COUNTA(5:5) -> 23
B3: =MIN(INDEX(Results.Scoring,,14)) -> 23 | C3: Min entries
I4: ADJnn/nn | J4: 4 | K4: 7 | O4: Ave+ and Ave- adjustments | R4: Cols IDs | S4: 2 | T4: 3
A5: Board | B5: NS # | C5: EW # | D5: Contract | E5: By | F5: Lead | G5: NS | H5: EW | I5: NS Plus | J5: NS mps | K5: EW mps | L5: Sec. NS | M5: Sec. EW | N5: Results | O5: NS un% | P5: EW un% | Q5: NS OK? | R5: EW OK? | S5: NS % | T5: EW % | U5: NS Adj | V5: EW Adj | W5: BBO line
A6: 1 | B6: 1 | C6: 24 | D6: 3NxE-6 | E6: E | F6: SK | G6: =IF(I6>0,I6,"") -> 1400 | H6: =IF(I6>0,"",-I6) ->  | I6: =NSPlus -> 1400 | J6: =ROUND(IF(LEFT($D6,3)="ADJ",U6,O6),2) -> 44 | K6: =ROUND(IF(LEFT($D6,3)="ADJ",V6,P6),2) -> 0 | L6: =2*SUMPRODUCT(($I6>Results.NSPlus)*($A6=Results.Boards)*ISNUMBER(Results.NSPlus))+SUMPRODUCT(($I6=Results.NSPlus)*($A6=Results.Boards)*ISNUMBER(Results.NSPlus))-1 -> 44 | M6: =2*N6-2-L6 -> 0 | N6: =SUMPRODUCT(($A6=Results.Boards)*ISNUMBER(Results.NSPlus)*NOT(ISBLANK(Results.Contracts))) -> 23 | O6: =IF(LEFT($D6,3)="ADJ",IF(MID($D6,J$4,2)="50",Results.Trav.NumLines-1,0),Results.Trav.NumLines*(L6+1)/$N6-1) -> 44 | P6: =IF(LEFT($D6,3)="ADJ",IF(MID($D6,K$4,2)="50",Results.Trav.NumLines-1,0),Results.Trav.NumLines*(M6+1)/$N6-1) -> 0 | Q6: =SIGN(AND(MID($D6,J$4,2)<>"60",MID($D6,J$4,2)<>"40")) -> 1 | R6: =SIGN(AND(MID($D6,K$4,2)<>"60",MID($D6,K$4,2)<>"40")) -> 1 | S6: =(SUMPRODUCT(SIGN(B6=INDEX(Results.Entry,,S$4)),INDEX(Results.Scoring,,13+S$4))+(2-Winners.Count)*SUMPRODUCT(SIGN(B6=INDEX(Results.Entry,,5-S$4)),INDEX(Results.Scoring,,13+5-S$4)))/(SUMPRODUCT(SIGN(B6=INDEX(Results.Entry,,S$4)),INDEX(Results.Scoring,,15+S$4))+(2-Winners.Count)*SUMPRODUCT(SIGN(B6=INDEX(Results.Entry,,5-S$4)),INDEX(Results.Scoring,,15+5-S$4)))/(2*Results.Trav.NumLines-2) -> 0.5954545455 | T6: =(SUMPRODUCT(SIGN(C6=INDEX(Results.Entry,,T$4)),INDEX(Results.Scoring,,13+T$4))+(2-Winners.Count)*SUMPRODUCT(SIGN(C6=INDEX(Results.Entry,,5-T$4)),INDEX(Results.Scoring,,13+5-T$4)))/(SUMPRODUCT(SIGN(C6=INDEX(Results.Entry,,T$4)),INDEX(Results.Scoring,,15+T$4))+(2-Winners.Count)*SUMPRODUCT(SIGN(C6=INDEX(Results.Entry,,5-T$4)),INDEX(Results.Scoring,,15+5-T$4)))/(2*Results.Trav.NumLines-2) -> 0.3909090909 | U6: =IFERROR(CHOOSE(MID($D6,J$4,2)/10-3,MIN(S6,0.4),0.5,MAX(S6,0.6))*(Results.Trav.NumLines-1)*2,0) -> 0 | V6: =IFERROR(CHOOSE(MID($D6,K$4,2)/10-3,MIN(T6,0.4),0.5,MAX(T6,0.6))*(Results.Trav.NumLines-1)*2,0) -> 0 | W6: 1
A7: 1 | B7: 2 | C7: 25 | D7: 4SS+1 | E7: S | F7: CA | G7: =IF(I7>0,I7,"") -> 450 | H7: =IF(I7>0,"",-I7) ->  | I7: =NSPlus -> 450 | J7: =ROUND(IF(LEFT($D7,3)="ADJ",U7,O7),2) -> 42 | K7: =ROUND(IF(LEFT($D7,3)="ADJ",V7,P7),2) -> 2 | L7: =2*SUMPRODUCT(($I7>Results.NSPlus)*($A7=Results.Boards)*ISNUMBER(Results.NSPlus))+SUMPRODUCT(($I7=Results.NSPlus)*($A7=Results.Boards)*ISNUMBER(Results.NSPlus))-1 -> 42 | M7: =2*N7-2-L7 -> 2 | N7: =SUMPRODUCT(($A7=Results.Boards)*ISNUMBER(Results.NSPlus)*NOT(ISBLANK(Results.Contracts))) -> 23 | O7: =IF(LEFT($D7,3)="ADJ",IF(MID($D7,J$4,2)="50",Results.Trav.NumLines-1,0),Results.Trav.NumLines*(L7+1)/$N7-1) -> 42 | P7: =IF(LEFT($D7,3)="ADJ",IF(MID($D7,K$4,2)="50",Results.Trav.NumLines-1,0),Results.Trav.NumLines*(M7+1)/$N7-1) -> 2 | Q7: =SIGN(AND(MID($D7,J$4,2)<>"60",MID($D7,J$4,2)<>"40")) -> 1 | R7: =SIGN(AND(MID($D7,K$4,2)<>"60",MID($D7,K$4,2)<>"40")) -> 1 | S7: =(SUMPRODUCT(SIGN(B7=INDEX(Results.Entry,,S$4)),INDEX(Results.Scoring,,13+S$4))+(2-Winners.Count)*SUMPRODUCT(SIGN(B7=INDEX(Results.Entry,,5-S$4)),INDEX(Results.Scoring,,13+5-S$4)))/(SUMPRODUCT(SIGN(B7=INDEX(Results.Entry,,S$4)),INDEX(Results.Scoring,,15+S$4))+(2-Winners.Count)*SUMPRODUCT(SIGN(B7=INDEX(Results.Entry,,5-S$4)),INDEX(Results.Scoring,,15+5-S$4)))/(2*Results.Trav.NumLines-2) -> 0.5795454545 | T7: =(SUMPRODUCT(SIGN(C7=INDEX(Results.Entry,,T$4)),INDEX(Results.Scoring,,13+T$4))+(2-Winners.Count)*SUMPRODUCT(SIGN(C7=INDEX(Results.Entry,,5-T$4)),INDEX(Results.Scoring,,13+5-T$4)))/(SUMPRODUCT(SIGN(C7=INDEX(Results.Entry,,T$4)),INDEX(Results.Scoring,,15+T$4))+(2-Winners.Count)*SUMPRODUCT(SIGN(C7=INDEX(Results.Entry,,5-T$4)),INDEX(Results.Scoring,,15+5-T$4)))/(2*Results.Trav.NumLines-2) -> 0.2818181818 | U7: =IFERROR(CHOOSE(MID($D7,J$4,2)/10-3,MIN(S7,0.4),0.5,MAX(S7,0.6))*(Results.Trav.NumLines-1)*2,0) -> 0 | V7: =IFERROR(CHOOSE(MID($D7,K$4,2)/10-3,MIN(T7,0.4),0.5,MAX(T7,0.6))*(Results.Trav.NumLines-1)*2,0) -> 0 | W7: 2
A8: 1 | B8: 3 | C8: 26 | D8: 4SS= | E8: S | F8: CA | G8: 420 | I8: =NSPlus -> 420 | J8: 34 | K8: 10 | L8: =2*SUMPRODUCT(($I8>Results.NSPlus)*($A8=Results.Boards)*ISNUMBER(Results.NSPlus))+SUMPRODUCT(($I8=Results.NSPlus)*($A8=Results.Boards)*ISNUMBER(Results.NSPlus))-1 -> 34 | M8: 10 | N8: =SUMPRODUCT(($A8=Results.Boards)*ISNUMBER(Results.NSPlus)*NOT(ISBLANK(Results.Contracts))) -> 23 | O8: 34 | P8: 10 | Q8: 1 | R8: 1 | S8: =(SUMPRODUCT(SIGN(B8=INDEX(Results.Entry,,S$4)),INDEX(Results.Scoring,,13+S$4))+(2-Winners.Count)*SUMPRODUCT(SIGN(B8=INDEX(Results.Entry,,5-S$4)),INDEX(Results.Scoring,,13+5-S$4)))/(SUMPRODUCT(SIGN(B8=INDEX(Results.Entry,,S$4)),INDEX(Results.Scoring,,15+S$4))+(2-Winners.Count)*SUMPRODUCT(SIGN(B8=INDEX(Results.Entry,,5-S$4)),INDEX(Results.Scoring,,15+5-S$4)))/(2*Results.Trav.NumLines-2) -> 0.4034090909 | T8: =(SUMPRODUCT(SIGN(C8=INDEX(Results.Entry,,T$4)),INDEX(Results.Scoring,,13+T$4))+(2-Winners.Count)*SUMPRODUCT(SIGN(C8=INDEX(Results.Entry,,5-T$4)),INDEX(Results.Scoring,,13+5-T$4)))/(SUMPRODUCT(SIGN(C8=INDEX(Results.Entry,,T$4)),INDEX(Results.Scoring,,15+T$4))+(2-Winners.Count)*SUMPRODUCT(SIGN(C8=INDEX(Results.Entry,,5-T$4)),INDEX(Results.Scoring,,15+5-T$4)))/(2*Results.Trav.NumLines-2) -> 0.4613636364 | U8: 0 | V8: 0 | W8: 3
A9: 1 | B9: 4 | C9: 27 | D9: 4SS= | E9: S | F9: CA | G9: 420 | I9: =NSPlus -> 420 | J9: 34 | K9: 10 | L9: =2*SUMPRODUCT(($I9>Results.NSPlus)*($A9=Results.Boards)*ISNUMBER(Results.NSPlus))+SUMPRODUCT(($I9=Results.NSPlus)*($A9=Results.Boards)*ISNUMBER(Results.NSPlus))-1 -> 34 | M9: 10 | N9: =SUMPRODUCT(($A9=Results.Boards)*ISNUMBER(Results.NSPlus)*NOT(ISBLANK(Results.Contracts))) -> 23 | O9: 34 | P9: 10 | Q9: 1 | R9: 1 | S9: =(SUMPRODUCT(SIGN(B9=INDEX(Results.Entry,,S$4)),INDEX(Results.Scoring,,13+S$4))+(2-Winners.Count)*SUMPRODUCT(SIGN(B9=INDEX(Results.Entry,,5-S$4)),INDEX(Results.Scoring,,13+5-S$4)))/(SUMPRODUCT(SIGN(B9=INDEX(Results.Entry,,S$4)),INDEX(Results.Scoring,,15+S$4))+(2-Winners.Count)*SUMPRODUCT(SIGN(B9=INDEX(Results.Entry,,5-S$4)),INDEX(Results.Scoring,,15+5-S$4)))/(2*Results.Trav.NumLines-2) -> 0.4886363636 | T9: =(SUMPRODUCT(SIGN(C9=INDEX(Results.Entry,,T$4)),INDEX(Results.Scoring,,13+T$4))+(2-Winners.Count)*SUMPRODUCT(SIGN(C9=INDEX(Results.Entry,,5-T$4)),INDEX(Results.Scoring,,13+5-T$4)))/(SUMPRODUCT(SIGN(C9=INDEX(Results.Entry,,T$4)),INDEX(Results.Scoring,,15+T$4))+(2-Winners.Count)*SUMPRODUCT(SIGN(C9=INDEX(Results.Entry,,5-T$4)),INDEX(Results.Scoring,,15+5-T$4)))/(2*Results.Trav.NumLines-2) -> 0.5170454545 | U9: 0 | V9: 0 | W9: 4
A10: 1 | B10: 5 | C10: 28 | D10: 4SS= | E10: S | F10: CA | G10: 420 | I10: =NSPlus -> 420 | J10: 34 | K10: 10 | L10: =2*SUMPRODUCT(($I10>Results.NSPlus)*($A10=Results.Boards)*ISNUMBER(Results.NSPlus))+SUMPRODUCT(($I10=Results.NSPlus)*($A10=Results.Boards)*ISNUMBER(Results.NSPlus))-1 -> 34 | M10: 10 | N10: =SUMPRODUCT(($A10=Results.Boards)*ISNUMBER(Results.NSPlus)*NOT(ISBLANK(Results.Contracts))) -> 23 | O10: 34 | P10: 10 | Q10: 1 | R10: 1 | S10: =(SUMPRODUCT(SIGN(B10=INDEX(Results.Entry,,S$4)),INDEX(Results.Scoring,,13+S$4))+(2-Winners.Count)*SUMPRODUCT(SIGN(B10=INDEX(Results.Entry,,5-S$4)),INDEX(Results.Scoring,,13+5-S$4)))/(SUMPRODUCT(SIGN(B10=INDEX(Results.Entry,,S$4)),INDEX(Results.Scoring,,15+S$4))+(2-Winners.Count)*SUMPRODUCT(SIGN(B10=INDEX(Results.Entry,,5-S$4)),INDEX(Results.Scoring,,15+5-S$4)))/(2*Results.Trav.NumLines-2) -> 0.5386363636 | T10: =(SUMPRODUCT(SIGN(C10=INDEX(Results.Entry,,T$4)),INDEX(Results.Scoring,,13+T$4))+(2-Winners.Count)*SUMPRODUCT(SIGN(C10=INDEX(Results.Entry,,5-T$4)),INDEX(Results.Scoring,,13+5-T$4)))/(SUMPRODUCT(SIGN(C10=INDEX(Results.Entry,,T$4)),INDEX(Results.Scoring,,15+T$4))+(2-Winners.Count)*SUMPRODUCT(SIGN(C10=INDEX(Results.Entry,,5-T$4)),INDEX(Results.Scoring,,15+5-T$4)))/(2*Results.Trav.NumLines-2) -> 0.4761363636 | U10: 0 | V10: 0 | W10: 5
A11: 1 | B11: 6 | C11: 29 | D11: 4SN= | E11: N | F11: H3 | G11: 420 | I11: =NSPlus -> 420 | J11: 34 | K11: 10 | L11: =2*SUMPRODUCT(($I11>Results.NSPlus)*($A11=Results.Boards)*ISNUMBER(Results.NSPlus))+SUMPRODUCT(($I11=Results.NSPlus)*($A11=Results.Boards)*ISNUMBER(Results.NSPlus))-1 -> 34 | M11: 10 | N11: =SUMPRODUCT(($A11=Results.Boards)*ISNUMBER(Results.NSPlus)*NOT(ISBLANK(Results.Contracts))) -> 23 | O11: 34 | P11: 10 | Q11: 1 | R11: 1 | S11: =(SUMPRODUCT(SIGN(B11=INDEX(Results.Entry,,S$4)),INDEX(Results.Scoring,,13+S$4))+(2-Winners.Count)*SUMPRODUCT(SIGN(B11=INDEX(Results.Entry,,5-S$4)),INDEX(Results.Scoring,,13+5-S$4)))/(SUMPRODUCT(SIGN(B11=INDEX(Results.Entry,,S$4)),INDEX(Results.Scoring,,15+S$4))+(2-Winners.Count)*SUMPRODUCT(SIGN(B11=INDEX(Results.Entry,,5-S$4)),INDEX(Results.Scoring,,15+5-S$4)))/(2*Results.Trav.NumLines-2) -> 0.4079545455 | T11: =(SUMPRODUCT(SIGN(C11=INDEX(Results.Entry,,T$4)),INDEX(Results.Scoring,,13+T$4))+(2-Winners.Count)*SUMPRODUCT(SIGN(C11=INDEX(Results.Entry,,5-T$4)),INDEX(Results.Scoring,,13+5-T$4)))/(SUMPRODUCT(SIGN(C11=INDEX(Results.Entry,,T$4)),INDEX(Results.Scoring,,15+T$4))+(2-Winners.Count)*SUMPRODUCT(SIGN(C11=INDEX(Results.Entry,,5-T$4)),INDEX(Results.Scoring,,15+5-T$4)))/(2*Results.Trav.NumLines-2) -> 0.5715909091 | U11: 0 | V11: 0 | W11: 6
A12: 1 | B12: 7 | C12: 30 | D12: 4SS= | E12: S | F12: CA | G12: 420 | I12: =NSPlus -> 420 | J12: 34 | K12: 10 | L12: =2*SUMPRODUCT(($I12>Results.NSPlus)*($A12=Results.Boards)*ISNUMBER(Results.NSPlus))+SUMPRODUCT(($I12=Results.NSPlus)*($A12=Results.Boards)*ISNUMBER(Results.NSPlus))-1 -> 34 | M12: 10 | N12: =SUMPRODUCT(($A12=Results.Boards)*ISNUMBER(Results.NSPlus)*NOT(ISBLANK(Results.Contracts))) -> 23 | O12: 34 | P12: 10 | Q12: 1 | R12: 1 | S12: =(SUMPRODUCT(SIGN(B12=INDEX(Results.Entry,,S$4)),INDEX(Results.Scoring,,13+S$4))+(2-Winners.Count)*SUMPRODUCT(SIGN(B12=INDEX(Results.Entry,,5-S$4)),INDEX(Results.Scoring,,13+5-S$4)))/(SUMPRODUCT(SIGN(B12=INDEX(Results.Entry,,S$4)),INDEX(Results.Scoring,,15+S$4))+(2-Winners.Count)*SUMPRODUCT(SIGN(B12=INDEX(Results.Entry,,5-S$4)),INDEX(Results.Scoring,,15+5-S$4)))/(2*Results.Trav.NumLines-2) -> 0.4295454545 | T12: =(SUMPRODUCT(SIGN(C12=INDEX(Results.Entry,,T$4)),INDEX(Results.Scoring,,13+T$4))+(2-Winners.Count)*SUMPRODUCT(SIGN(C12=INDEX(Results.Entry,,5-T$4)),INDEX(Results.Scoring,,13+5-T$4)))/(SUMPRODUCT(SIGN(C12=INDEX(Results.Entry,,T$4)),INDEX(Results.Scoring,,15+T$4))+(2-Winners.Count)*SUMPRODUCT(SIGN(C12=INDEX(Results.Entry,,5-T$4)),INDEX(Results.Scoring,,15+5-T$4)))/(2*Results.Trav.NumLines-2) -> 0.4977272727 | U12: 0 | V12: 0 | W12: 7
A13: 1 | B13: 8 | C13: 31 | D13: 4SS= | E13: S | F13: CK | G13: 420 | I13: =NSPlus -> 420 | J13: 34 | K13: 10 | L13: =2*SUMPRODUCT(($I13>Results.NSPlus)*($A13=Results.Boards)*ISNUMBER(Results.NSPlus))+SUMPRODUCT(($I13=Results.NSPlus)*($A13=Results.Boards)*ISNUMBER(Results.NSPlus))-1 -> 34 | M13: 10 | N13: =SUMPRODUCT(($A13=Results.Boards)*ISNUMBER(Results.NSPlus)*NOT(ISBLANK(Results.Contracts))) -> 23 | O13: 34 | P13: 10 | Q13: 1 | R13: 1 | S13: =(SUMPRODUCT(SIGN(B13=INDEX(Results.Entry,,S$4)),INDEX(Results.Scoring,,13+S$4))+(2-Winners.Count)*SUMPRODUCT(SIGN(B13=INDEX(Results.Entry,,5-S$4)),INDEX(Results.Scoring,,13+5-S$4)))/(SUMPRODUCT(SIGN(B13=INDEX(Results.Entry,,S$4)),INDEX(Results.Scoring,,15+S$4))+(2-Winners.Count)*SUMPRODUCT(SIGN(B13=INDEX(Results.Entry,,5-S$4)),INDEX(Results.Scoring,,15+5-S$4)))/(2*Results.Trav.NumLines-2) -> 0.6488636364 | T13: =(SUMPRODUCT(SIGN(C13=INDEX(Results.Entry,,T$4)),INDEX(Results.Scoring,,13+T$4))+(2-Winners.Count)*SUMPRODUCT(SIGN(C13=INDEX(Results.Entry,,5-T$4)),INDEX(Results.Scoring,,13+5-T$4)))/(SUMPRODUCT(SIGN(C13=INDEX(Results.Entry,,T$4)),INDEX(Results.Scoring,,15+T$4))+(2-Winners.Count)*SUMPRODUCT(SIGN(C13=INDEX(Results.Entry,,5-T$4)),INDEX(Results.Scoring,,15+5-T$4)))/(2*Results.Trav.NumLines-2) -> 0.4772727273 | U13: 0 | V13: 0 | W13: 8
A14: 1 | B14: 9 | C14: 32 | D14: 4SN= | E14: N | F14: S3 | G14: 420 | I14: =NSPlus -> 420 | J14: 34 | K14: 10 | L14: =2*SUMPRODUCT(($I14>Results.NSPlus)*($A14=Results.Boards)*ISNUMBER(Results.NSPlus))+SUMPRODUCT(($I14=Results.NSPlus)*($A14=Results.Boards)*ISNUMBER(Results.NSPlus))-1 -> 34 | M14: 10 | N14: =SUMPRODUCT(($A14=Results.Boards)*ISNUMBER(Results.NSPlus)*NOT(ISBLANK(Results.Contracts))) -> 23 | O14: 34 | P14: 10 | Q14: 1 | R14: 1 | S14: =(SUMPRODUCT(SIGN(B14=INDEX(Results.Entry,,S$4)),INDEX(Results.Scoring,,13+S$4))+(2-Winners.Count)*SUMPRODUCT(SIGN(B14=INDEX(Results.Entry,,5-S$4)),INDEX(Results.Scoring,,13+5-S$4)))/(SUMPRODUCT(SIGN(B14=INDEX(Results.Entry,,S$4)),INDEX(Results.Scoring,,15+S$4))+(2-Winners.Count)*SUMPRODUCT(SIGN(B14=INDEX(Results.Entry,,5-S$4)),INDEX(Results.Scoring,,15+5-S$4)))/(2*Results.Trav.NumLines-2) -> 0.5420454545 | T14: =(SUMPRODUCT(SIGN(C14=INDEX(Results.Entry,,T$4)),INDEX(Results.Scoring,,13+T$4))+(2-Winners.Count)*SUMPRODUCT(SIGN(C14=INDEX(Results.Entry,,5-T$4)),INDEX(Results.Scoring,,13+5-T$4)))/(SUMPRODUCT(SIGN(C14=INDEX(Results.Entry,,T$4)),INDEX(Results.Scoring,,15+T$4))+(2-Winners.Count)*SUMPRODUCT(SIGN(C14=INDEX(Results.Entry,,5-T$4)),INDEX(Results.Scoring,,15+5-T$4)))/(2*Results.Trav.NumLines-2) -> 0.5215909091 | U14: 0 | V14: 0 | W14: 9
A15: 1 | B15: 10 | C15: 33 | D15: 2SS+3 | E15: S | F15: CA | G15: 200 | I15: =NSPlus -> 200 | J15: 23 | K15: 21 | L15: =2*SUMPRODUCT(($I15>Results.NSPlus)*($A15=Results.Boards)*ISNUMBER(Results.NSPlus))+SUMPRODUCT(($I15=Results.NSPlus)*($A15=Results.Boards)*ISNUMBER(Results.NSPlus))-1 -> 23 | M15: 21 | N15: =SUMPRODUCT(($A15=Results.Boards)*ISNUMBER(Results.NSPlus)*NOT(ISBLANK(Results.Contracts))) -> 23 | O15: 23 | P15: 21 | Q15: 1 | R15: 1 | S15: =(SUMPRODUCT(SIGN(B15=INDEX(Results.Entry,,S$4)),INDEX(Results.Scoring,,13+S$4))+(2-Winners.Count)*SUMPRODUCT(SIGN(B15=INDEX(Results.Entry,,5-S$4)),INDEX(Results.Scoring,,13+5-S$4)))/(SUMPRODUCT(SIGN(B15=INDEX(Results.Entry,,S$4)),INDEX(Results.Scoring,,15+S$4))+(2-Winners.Count)*SUMPRODUCT(SIGN(B15=INDEX(Results.Entry,,5-S$4)),INDEX(Results.Scoring,,15+5-S$4)))/(2*Results.Trav.NumLines-2) -> 0.4954545455 | T15: =(SUMPRODUCT(SIGN(C15=INDEX(Results.Entry,,T$4)),INDEX(Results.Scoring,,13+T$4))+(2-Winners.Count)*SUMPRODUCT(SIGN(C15=INDEX(Results.Entry,,5-T$4)),INDEX(Results.Scoring,,13+5-T$4)))/(SUMPRODUCT(SIGN(C15=INDEX(Results.Entry,,T$4)),INDEX(Results.Scoring,,15+T$4))+(2-Winners.Count)*SUMPRODUCT(SIGN(C15=INDEX(Results.Entry,,5-T$4)),INDEX(Results.Scoring,,15+5-T$4)))/(2*Results.Trav.NumLines-2) -> 0.6079545455 | U15: 0 | V15: 0 | W15: 10
A16: 1 | B16: 11 | C16: 34 | D16: 3SS+2 | E16: S | F16: CA | G16: 200 | I16: =NSPlus -> 200 | J16: 23 | K16: 21 | L16: =2*SUMPRODUCT(($I16>Results.NSPlus)*($A16=Results.Boards)*ISNUMBER(Results.NSPlus))+SUMPRODUCT(($I16=Results.NSPlus)*($A16=Results.Boards)*ISNUMBER(Results.NSPlus))-1 -> 23 | M16: 21 | N16: =SUMPRODUCT(($A16=Results.Boards)*ISNUMBER(Results.NSPlus)*NOT(ISBLANK(Results.Contracts))) -> 23 | O16: 23 | P16: 21 | Q16: 1 | R16: 1 | S16: =(SUMPRODUCT(SIGN(B16=INDEX(Results.Entry,,S$4)),INDEX(Results.Scoring,,13+S$4))+(2-Winners.Count)*SUMPRODUCT(SIGN(B16=INDEX(Results.Entry,,5-S$4)),INDEX(Results.Scoring,,13+5-S$4)))/(SUMPRODUCT(SIGN(B16=INDEX(Results.Entry,,S$4)),INDEX(Results.Scoring,,15+S$4))+(2-Winners.Count)*SUMPRODUCT(SIGN(B16=INDEX(Results.Entry,,5-S$4)),INDEX(Results.Scoring,,15+5-S$4)))/(2*Results.Trav.NumLines-2) -> 0.5159090909 | T16: =(SUMPRODUCT(SIGN(C16=INDEX(Results.Entry,,T$4)),INDEX(Results.Scoring,,13+T$4))+(2-Winners.Count)*SUMPRODUCT(SIGN(C16=INDEX(Results.Entry,,5-T$4)),INDEX(Results.Scoring,,13+5-T$4)))/(SUMPRODUCT(SIGN(C16=INDEX(Results.Entry,,T$4)),INDEX(Results.Scoring,,15+T$4))+(2-Winners.Count)*SUMPRODUCT(SIGN(C16=INDEX(Results.Entry,,5-T$4)),INDEX(Results.Scoring,,15+5-T$4)))/(2*Results.Trav.NumLines-2) -> 0.5636363636 | U16: 0 | V16: 0 | W16: 11
A17: 1 | B17: 12 | C17: 35 | D17: 2SS+3 | E17: S | F17: CA | G17: 200 | I17: =NSPlus -> 200 | J17: 23 | K17: 21 | L17: =2*SUMPRODUCT(($I17>Results.NSPlus)*($A17=Results.Boards)*ISNUMBER(Results.NSPlus))+SUMPRODUCT(($I17=Results.NSPlus)*($A17=Results.Boards)*ISNUMBER(Results.NSPlus))-1 -> 23 | M17: 21 | N17: =SUMPRODUCT(($A17=Results.Boards)*ISNUMBER(Results.NSPlus)*NOT(ISBLANK(Results.Contracts))) -> 23 | O17: 23 | P17: 21 | Q17: 1 | R17: 1 | S17: =(SUMPRODUCT(SIGN(B17=INDEX(Results.Entry,,S$4)),INDEX(Results.Scoring,,13+S$4))+(2-Winners.Count)*SUMPRODUCT(SIGN(B17=INDEX(Results.Entry,,5-S$4)),INDEX(Results.Scoring,,13+5-S$4)))/(SUMPRODUCT(SIGN(B17=INDEX(Results.Entry,,S$4)),INDEX(Results.Scoring,,15+S$4))+(2-Winners.Count)*SUMPRODUCT(SIGN(B17=INDEX(Results.Entry,,5-S$4)),INDEX(Results.Scoring,,15+5-S$4)))/(2*Results.Trav.NumLines-2) -> 0.6420454545 | T17: =(SUMPRODUCT(SIGN(C17=INDEX(Results.Entry,,T$4)),INDEX(Results.Scoring,,13+T$4))+(2-Winners.Count)*SUMPRODUCT(SIGN(C17=INDEX(Results.Entry,,5-T$4)),INDEX(Results.Scoring,,13+5-T$4)))/(SUMPRODUCT(SIGN(C17=INDEX(Results.Entry,,T$4)),INDEX(Results.Scoring,,15+T$4))+(2-Winners.Count)*SUMPRODUCT(SIGN(C17=INDEX(Results.Entry,,5-T$4)),INDEX(Results.Scoring,,15+5-T$4)))/(2*Results.Trav.NumLines-2) -> 0.5215909091 | U17: 0 | V17: 0 | W17: 12
A18: 1 | B18: 13 | C18: 36 | D18: 4CW-4 | E18: W | F18: S2 | G18: 200 | I18: =NSPlus -> 200 | J18: 23 | K18: 21 | L18: =2*SUMPRODUCT(($I18>Results.NSPlus)*($A18=Results.Boards)*ISNUMBER(Results.NSPlus))+SUMPRODUCT(($I18=Results.NSPlus)*($A18=Results.Boards)*ISNUMBER(Results.NSPlus))-1 -> 23 | M18: 21 | N18: =SUMPRODUCT(($A18=Results.Boards)*ISNUMBER(Results.NSPlus)*NOT(ISBLANK(Results.Contracts))) -> 23 | O18: 23 | P18: 21 | Q18: 1 | R18: 1 | S18: =(SUMPRODUCT(SIGN(B18=INDEX(Results.Entry,,S$4)),INDEX(Results.Scoring,,13+S$4))+(2-Winners.Count)*SUMPRODUCT(SIGN(B18=INDEX(Results.Entry,,5-S$4)),INDEX(Results.Scoring,,13+5-S$4)))/(SUMPRODUCT(SIGN(B18=INDEX(Results.Entry,,S$4)),INDEX(Results.Scoring,,15+S$4))+(2-Winners.Count)*SUMPRODUCT(SIGN(B18=INDEX(Results.Entry,,5-S$4)),INDEX(Results.Scoring,,15+5-S$4)))/(2*Results.Trav.NumLines-2) -> 0.425 | T18: =(SUMPRODUCT(SIGN(C18=INDEX(Results.Entry,,T$4)),INDEX(Results.Scoring,,13+T$4))+(2-Winners.Count)*SUMPRODUCT(SIGN(C18=INDEX(Results.Entry,,5-T$4)),INDEX(Results.Scoring,,13+5-T$4)))/(SUMPRODUCT(SIGN(C18=INDEX(Results.Entry,,T$4)),INDEX(Results.Scoring,,15+T$4))+(2-Winners.Count)*SUMPRODUCT(SIGN(C18=INDEX(Results.Entry,,5-T$4)),INDEX(Results.Scoring,,15+5-T$4)))/(2*Results.Trav.NumLines-2) -> 0.5852272727 | U18: 0 | V18: 0 | W18: 13
A19: 1 | B19: 14 | C19: 37 | D19: 2SS+2 | E19: S | F19: CK | G19: 170 | I19: =NSPlus -> 170 | J19: 16 | K19: 28 | L19: =2*SUMPRODUCT(($I19>Results.NSPlus)*($A19=Results.Boards)*ISNUMBER(Results.NSPlus))+SUMPRODUCT(($I19=Results.NSPlus)*($A19=Results.Boards)*ISNUMBER(Results.NSPlus))-1 -> 16 | M19: 28 | N19: =SUMPRODUCT(($A19=Results.Boards)*ISNUMBER(Results.NSPlus)*NOT(ISBLANK(Results.Contracts))) -> 23 | O19: 16 | P19: 28 | Q19: 1 | R19: 1 | S19: =(SUMPRODUCT(SIGN(B19=INDEX(Results.Entry,,S$4)),INDEX(Results.Scoring,,13+S$4))+(2-Winners.Count)*SUMPRODUCT(SIGN(B19=INDEX(Results.Entry,,5-S$4)),INDEX(Results.Scoring,,13+5-S$4)))/(SUMPRODUCT(SIGN(B19=INDEX(Results.Entry,,S$4)),INDEX(Results.Scoring,,15+S$4))+(2-Winners.Count)*SUMPRODUCT(SIGN(B19=INDEX(Results.Entry,,5-S$4)),INDEX(Results.Scoring,,15+5-S$4)))/(2*Results.Trav.NumLines-2) -> 0.6238636364 | T19: =(SUMPRODUCT(SIGN(C19=INDEX(Results.Entry,,T$4)),INDEX(Results.Scoring,,13+T$4))+(2-Winners.Count)*SUMPRODUCT(SIGN(C19=INDEX(Results.Entry,,5-T$4)),INDEX(Results.Scoring,,13+5-T$4)))/(SUMPRODUCT(SIGN(C19=INDEX(Results.Entry,,T$4)),INDEX(Results.Scoring,,15+T$4))+(2-Winners.Count)*SUMPRODUCT(SIGN(C19=INDEX(Results.Entry,,5-T$4)),INDEX(Results.Scoring,,15+5-T$4)))/(2*Results.Trav.NumLines-2) -> 0.5465909091 | U19: 0 | V19: 0 | W19: 14
A20: 1 | B20: 15 | C20: 38 | D20: 3SS+1 | E20: S | F20: CA | G20: 170 | I20: =NSPlus -> 170 | J20: 16 | K20: 28 | L20: =2*SUMPRODUCT(($I20>Results.NSPlus)*($A20=Results.Boards)*ISNUMBER(Results.NSPlus))+SUMPRODUCT(($I20=Results.NSPlus)*($A20=Results.Boards)*ISNUMBER(Results.NSPlus))-1 -> 16 | M20: 28 | N20: =SUMPRODUCT(($A20=Results.Boards)*ISNUMBER(Results.NSPlus)*NOT(ISBLANK(Results.Contracts))) -> 23 | O20: 16 | P20: 28 | Q20: 1 | R20: 1 | S20: =(SUMPRODUCT(SIGN(B20=INDEX(Results.Entry,,S$4)),INDEX(Results.Scoring,,13+S$4))+(2-Winners.Count)*SUMPRODUCT(SIGN(B20=INDEX(Results.Entry,,5-S$4)),INDEX(Results.Scoring,,13+5-S$4)))/(SUMPRODUCT(SIGN(B20=INDEX(Results.Entry,,S$4)),INDEX(Results.Scoring,,15+S$4))+(2-Winners.Count)*SUMPRODUCT(SIGN(B20=INDEX(Results.Entry,,5-S$4)),INDEX(Results.Scoring,,15+5-S$4)))/(2*Results.Trav.NumLines-2) -> 0.4568181818 | T20: =(SUMPRODUCT(SIGN(C20=INDEX(Results.Entry,,T$4)),INDEX(Results.Scoring,,13+T$4))+(2-Winners.Count)*SUMPRODUCT(SIGN(C20=INDEX(Results.Entry,,5-T$4)),INDEX(Results.Scoring,,13+5-T$4)))/(SUMPRODUCT(SIGN(C20=INDEX(Results.Entry,,T$4)),INDEX(Results.Scoring,,15+T$4))+(2-Winners.Count)*SUMPRODUCT(SIGN(C20=INDEX(Results.Entry,,5-T$4)),INDEX(Results.Scoring,,15+5-T$4)))/(2*Results.Trav.NumLines-2) -> 0.4681818182 | U20: 0 | V20: 0 | W20: 15
A21: 1 | B21: 16 | C21: 39 | D21: 3SS+1 | E21: S | F21: S8 | G21: 170 | I21: =NSPlus -> 170 | J21: 16 | K21: 28 | L21: =2*SUMPRODUCT(($I21>Results.NSPlus)*($A21=Results.Boards)*ISNUMBER(Results.NSPlus))+SUMPRODUCT(($I21=Results.NSPlus)*($A21=Results.Boards)*ISNUMBER(Results.NSPlus))-1 -> 16 | M21: 28 | N21: =SUMPRODUCT(($A21=Results.Boards)*ISNUMBER(Results.NSPlus)*NOT(ISBLANK(Results.Contracts))) -> 23 | O21: 16 | P21: 28 | Q21: 1 | R21: 1 | S21: =(SUMPRODUCT(SIGN(B21=INDEX(Results.Entry,,S$4)),INDEX(Results.Scoring,,13+S$4))+(2-Winners.Count)*SUMPRODUCT(SIGN(B21=INDEX(Results.Entry,,5-S$4)),INDEX(Results.Scoring,,13+5-S$4)))/(SUMPRODUCT(SIGN(B21=INDEX(Results.Entry,,S$4)),INDEX(Results.Scoring,,15+S$4))+(2-Winners.Count)*SUMPRODUCT(SIGN(B21=INDEX(Results.Entry,,5-S$4)),INDEX(Results.Scoring,,15+5-S$4)))/(2*Results.Trav.NumLines-2) -> 0.5602272727 | T21: =(SUMPRODUCT(SIGN(C21=INDEX(Results.Entry,,T$4)),INDEX(Results.Scoring,,13+T$4))+(2-Winners.Count)*SUMPRODUCT(SIGN(C21=INDEX(Results.Entry,,5-T$4)),INDEX(Results.Scoring,,13+5-T$4)))/(SUMPRODUCT(SIGN(C21=INDEX(Results.Entry,,T$4)),INDEX(Results.Scoring,,15+T$4))+(2-Winners.Count)*SUMPRODUCT(SIGN(C21=INDEX(Results.Entry,,5-T$4)),INDEX(Results.Scoring,,15+5-T$4)))/(2*Results.Trav.NumLines-2) -> 0.4988636364 | U21: 0 | V21: 0 | W21: 16
A22: 1 | B22: 17 | C22: 40 | D22: 2SS+1 | E22: S | F22: CA | G22: 140 | I22: =NSPlus -> 140 | J22: 11 | K22: 33 | L22: =2*SUMPRODUCT(($I22>Results.NSPlus)*($A22=Results.Boards)*ISNUMBER(Results.NSPlus))+SUMPRODUCT(($I22=Results.NSPlus)*($A22=Results.Boards)*ISNUMBER(Results.NSPlus))-1 -> 11 | M22: 33 | N22: =SUMPRODUCT(($A22=Results.Boards)*ISNUMBER(Results.NSPlus)*NOT(ISBLANK(Results.Contracts))) -> 23 | O22: 11 | P22: 33 | Q22: 1 | R22: 1 | S22: =(SUMPRODUCT(SIGN(B22=INDEX(Results.Entry,,S$4)),INDEX(Results.Scoring,,13+S$4))+(2-Winners.Count)*SUMPRODUCT(SIGN(B22=INDEX(Results.Entry,,5-S$4)),INDEX(Results.Scoring,,13+5-S$4)))/(SUMPRODUCT(SIGN(B22=INDEX(Results.Entry,,S$4)),INDEX(Results.Scoring,,15+S$4))+(2-Winners.Count)*SUMPRODUCT(SIGN(B22=INDEX(Results.Entry,,5-S$4)),INDEX(Results.Scoring,,15+5-S$4)))/(2*Results.Trav.NumLines-2) -> 0.4693181818 | T22: =(SUMPRODUCT(SIGN(C22=INDEX(Results.Entry,,T$4)),INDEX(Results.Scoring,,13+T$4))+(2-Winners.Count)*SUMPRODUCT(SIGN(C22=INDEX(Results.Entry,,5-T$4)),INDEX(Results.Scoring,,13+5-T$4)))/(SUMPRODUCT(SIGN(C22=INDEX(Results.Entry,,T$4)),INDEX(Results.Scoring,,15+T$4))+(2-Winners.Count)*SUMPRODUCT(SIGN(C22=INDEX(Results.Entry,,5-T$4)),INDEX(Results.Scoring,,15+5-T$4)))/(2*Results.Trav.NumLines-2) -> 0.5272727273 | U22: 0 | V22: 0 | W22: 17
A23: 1 | B23: 18 | C23: 41 | D23: 3SN= | E23: N | F23: HQ | G23: 140 | I23: =NSPlus -> 140 | J23: 11 | K23: 33 | L23: =2*SUMPRODUCT(($I23>Results.NSPlus)*($A23=Results.Boards)*ISNUMBER(Results.NSPlus))+SUMPRODUCT(($I23=Results.NSPlus)*($A23=Results.Boards)*ISNUMBER(Results.NSPlus))-1 -> 11 | M23: 33 | N23: =SUMPRODUCT(($A23=Results.Boards)*ISNUMBER(Results.NSPlus)*NOT(ISBLANK(Results.Contracts))) -> 23 | O23: 11 | P23: 33 | Q23: 1 | R23: 1 | S23: =(SUMPRODUCT(SIGN(B23=INDEX(Results.Entry,,S$4)),INDEX(Results.Scoring,,13+S$4))+(2-Winners.Count)*SUMPRODUCT(SIGN(B23=INDEX(Results.Entry,,5-S$4)),INDEX(Results.Scoring,,13+5-S$4)))/(SUMPRODUCT(SIGN(B23=INDEX(Results.Entry,,S$4)),INDEX(Results.Scoring,,15+S$4))+(2-Winners.Count)*SUMPRODUCT(SIGN(B23=INDEX(Results.Entry,,5-S$4)),INDEX(Results.Scoring,,15+5-S$4)))/(2*Results.Trav.NumLines-2) -> 0.5238636364 | T23: =(SUMPRODUCT(SIGN(C23=INDEX(Results.Entry,,T$4)),INDEX(Results.Scoring,,13+T$4))+(2-Winners.Count)*SUMPRODUCT(SIGN(C23=INDEX(Results.Entry,,5-T$4)),INDEX(Results.Scoring,,13+5-T$4)))/(SUMPRODUCT(SIGN(C23=INDEX(Results.Entry,,T$4)),INDEX(Results.Scoring,,15+T$4))+(2-Winners.Count)*SUMPRODUCT(SIGN(C23=INDEX(Results.Entry,,5-T$4)),INDEX(Results.Scoring,,15+5-T$4)))/(2*Results.Trav.NumLines-2) -> 0.6181818182 | U23: 0 | V23: 0 | W23: 18
A24: 1 | B24: 19 | C24: 42 | D24: 3CE-2 | E24: E | F24: SA | G24: 100 | I24: =NSPlus -> 100 | J24: 8 | K24: 36 | L24: =2*SUMPRODUCT(($I24>Results.NSPlus)*($A24=Results.Boards)*ISNUMBER(Results.NSPlus))+SUMPRODUCT(($I24=Results.NSPlus)*($A24=Results.Boards)*ISNUMBER(Results.NSPlus))-1 -> 8 | M24: 36 | N24: =SUMPRODUCT(($A24=Results.Boards)*ISNUMBER(Results.NSPlus)*NOT(ISBLANK(Results.Contracts))) -> 23 | O24: 8 | P24: 36 | Q24: 1 | R24: 1 | S24: =(SUMPRODUCT(SIGN(B24=INDEX(Results.Entry,,S$4)),INDEX(Results.Scoring,,13+S$4))+(2-Winners.Count)*SUMPRODUCT(SIGN(B24=INDEX(Results.Entry,,5-S$4)),INDEX(Results.Scoring,,13+5-S$4)))/(SUMPRODUCT(SIGN(B24=INDEX(Results.Entry,,S$4)),INDEX(Results.Scoring,,15+S$4))+(2-Winners.Count)*SUMPRODUCT(SIGN(B24=INDEX(Results.Entry,,5-S$4)),INDEX(Results.Scoring,,15+5-S$4)))/(2*Results.Trav.NumLines-2) -> 0.4340909091 | T24: =(SUMPRODUCT(SIGN(C24=INDEX(Results.Entry,,T$4)),INDEX(Results.Scoring,,13+T$4))+(2-Winners.Count)*SUMPRODUCT(SIGN(C24=INDEX(Results.Entry,,5-T$4)),INDEX(Results.Scoring,,13+5-T$4)))/(SUMPRODUCT(SIGN(C24=INDEX(Results.Entry,,T$4)),INDEX(Results.Scoring,,15+T$4))+(2-Winners.Count)*SUMPRODUCT(SIGN(C24=INDEX(Results.Entry,,5-T$4)),INDEX(Results.Scoring,,15+5-T$4)))/(2*Results.Trav.NumLines-2) -> 0.5920454545 | U24: 0 | V24: 0 | W24: 19
A25: 1 | B25: 20 | C25: 43 | D25: 4SS-1 | E25: S | F25: CA | H25: 50 | I25: =NSPlus -> -50 | J25: 3 | K25: 41 | L25: =2*SUMPRODUCT(($I25>Results.NSPlus)*($A25=Results.Boards)*ISNUMBER(Results.NSPlus))+SUMPRODUCT(($I25=Results.NSPlus)*($A25=Results.Boards)*ISNUMBER(Results.NSPlus))-1 -> 3 | M25: 41 | N25: =SUMPRODUCT(($A25=Results.Boards)*ISNUMBER(Results.NSPlus)*NOT(ISBLANK(Results.Contracts))) -> 23 | O25: 3 | P25: 41 | Q25: 1 | R25: 1 | S25: =(SUMPRODUCT(SIGN(B25=INDEX(Results.Entry,,S$4)),INDEX(Results.Scoring,,13+S$4))+(2-Winners.Count)*SUMPRODUCT(SIGN(B25=INDEX(Results.Entry,,5-S$4)),INDEX(Results.Scoring,,13+5-S$4)))/(SUMPRODUCT(SIGN(B25=INDEX(Results.Entry,,S$4)),INDEX(Results.Scoring,,15+S$4))+(2-Winners.Count)*SUMPRODUCT(SIGN(B25=INDEX(Results.Entry,,5-S$4)),INDEX(Results.Scoring,,15+5-S$4)))/(2*Results.Trav.NumLines-2) -> 0.375 | T25: =(SUMPRODUCT(SIGN(C25=INDEX(Results.Entry,,T$4)),INDEX(Results.Scoring,,13+T$4))+(2-Winners.Count)*SUMPRODUCT(SIGN(C25=INDEX(Results.Entry,,5-T$4)),INDEX(Results.Scoring,,13+5-T$4)))/(SUMPRODUCT(SIGN(C25=INDEX(Results.Entry,,T$4)),INDEX(Results.Scoring,,15+T$4))+(2-Winners.Count)*SUMPRODUCT(SIGN(C25=INDEX(Results.Entry,,5-T$4)),INDEX(Results.Scoring,,15+5-T$4)))/(2*Results.Trav.NumLines-2) -> 0.5488636364 | U25: 0 | V25: 0 | W25: 20
A26: 1 | B26: 21 | C26: 44 | D26: 4SN-1 | E26: N | F26: C5 | H26: 50 | I26: =NSPlus -> -50 | J26: 3 | K26: 41 | L26: =2*SUMPRODUCT(($I26>Results.NSPlus)*($A26=Results.Boards)*ISNUMBER(Results.NSPlus))+SUMPRODUCT(($I26=Results.NSPlus)*($A26=Results.Boards)*ISNUMBER(Results.NSPlus))-1 -> 3 | M26: 41 | N26: =SUMPRODUCT(($A26=Results.Boards)*ISNUMBER(Results.NSPlus)*NOT(ISBLANK(Results.Contracts))) -> 23 | O26: 3 | P26: 41 | Q26: 1 | R26: 1 | S26: =(SUMPRODUCT(SIGN(B26=INDEX(Results.Entry,,S$4)),INDEX(Results.Scoring,,13+S$4))+(2-Winners.Count)*SUMPRODUCT(SIGN(B26=INDEX(Results.Entry,,5-S$4)),INDEX(Results.Scoring,,13+5-S$4)))/(SUMPRODUCT(SIGN(B26=INDEX(Results.Entry,,S$4)),INDEX(Results.Scoring,,15+S$4))+(2-Winners.Count)*SUMPRODUCT(SIGN(B26=INDEX(Results.Entry,,5-S$4)),INDEX(Results.Scoring,,15+5-S$4)))/(2*Results.Trav.NumLines-2) -> 0.5568181818 | T26: =(SUMPRODUCT(SIGN(C26=INDEX(Results.Entry,,T$4)),INDEX(Results.Scoring,,13+T$4))+(2-Winners.Count)*SUMPRODUCT(SIGN(C26=INDEX(Results.Entry,,5-T$4)),INDEX(Results.Scoring,,13+5-T$4)))/(SUMPRODUCT(SIGN(C26=INDEX(Results.Entry,,T$4)),INDEX(Results.Scoring,,15+T$4))+(2-Winners.Count)*SUMPRODUCT(SIGN(C26=INDEX(Results.Entry,,5-T$4)),INDEX(Results.Scoring,,15+5-T$4)))/(2*Results.Trav.NumLines-2) -> 0.3806818182 | U26: 0 | V26: 0 | W26: 21
A27: 1 | B27: 22 | C27: 45 | D27: 4SN-1 | E27: N | F27: CJ | H27: 50 | I27: =NSPlus -> -50 | J27: 3 | K27: 41 | L27: =2*SUMPRODUCT(($I27>Results.NSPlus)*($A27=Results.Boards)*ISNUMBER(Results.NSPlus))+SUMPRODUCT(($I27=Results.NSPlus)*($A27=Results.Boards)*ISNUMBER(Results.NSPlus))-1 -> 3 | M27: 41 | N27: =SUMPRODUCT(($A27=Results.Boards)*ISNUMBER(Results.NSPlus)*NOT(ISBLANK(Results.Contracts))) -> 23 | O27: 3 | P27: 41 | Q27: 1 | R27: 1 | S27: =(SUMPRODUCT(SIGN(B27=INDEX(Results.Entry,,S$4)),INDEX(Results.Scoring,,13+S$4))+(2-Winners.Count)*SUMPRODUCT(SIGN(B27=INDEX(Results.Entry,,5-S$4)),INDEX(Results.Scoring,,13+5-S$4)))/(SUMPRODUCT(SIGN(B27=INDEX(Results.Entry,,S$4)),INDEX(Results.Scoring,,15+S$4))+(2-Winners.Count)*SUMPRODUCT(SIGN(B27=INDEX(Results.Entry,,5-S$4)),INDEX(Results.Scoring,,15+5-S$4)))/(2*Results.Trav.NumLines-2) -> 0.3534090909 | T27: =(SUMPRODUCT(SIGN(C27=INDEX(Results.Entry,,T$4)),INDEX(Results.Scoring,,13+T$4))+(2-Winners.Count)*SUMPRODUCT(SIGN(C27=INDEX(Results.Entry,,5-T$4)),INDEX(Results.Scoring,,13+5-T$4)))/(SUMPRODUCT(SIGN(C27=INDEX(Results.Entry,,T$4)),INDEX(Results.Scoring,,15+T$4))+(2-Winners.Count)*SUMPRODUCT(SIGN(C27=INDEX(Results.Entry,,5-T$4)),INDEX(Results.Scoring,,15+5-T$4)))/(2*Results.Trav.NumLines-2) -> 0.3965909091 | U27: 0 | V27: 0 | W27: 22
A28: 1 | B28: 23 | C28: 46 | D28: 4SS-1 | E28: S | F28: CA | H28: 50 | I28: =NSPlus -> -50 | J28: 3 | K28: 41 | L28: =2*SUMPRODUCT(($I28>Results.NSPlus)*($A28=Results.Boards)*ISNUMBER(Results.NSPlus))+SUMPRODUCT(($I28=Results.NSPlus)*($A28=Results.Boards)*ISNUMBER(Results.NSPlus))-1 -> 3 | M28: 41 | N28: =SUMPRODUCT(($A28=Results.Boards)*ISNUMBER(Results.NSPlus)*NOT(ISBLANK(Results.Contracts))) -> 23 | O28: 3 | P28: 41 | Q28: 1 | R28: 1 | S28: =(SUMPRODUCT(SIGN(B28=INDEX(Results.Entry,,S$4)),INDEX(Results.Scoring,,13+S$4))+(2-Winners.Count)*SUMPRODUCT(SIGN(B28=INDEX(Results.Entry,,5-S$4)),INDEX(Results.Scoring,,13+5-S$4)))/(SUMPRODUCT(SIGN(B28=INDEX(Results.Entry,,S$4)),INDEX(Results.Scoring,,15+S$4))+(2-Winners.Count)*SUMPRODUCT(SIGN(B28=INDEX(Results.Entry,,5-S$4)),INDEX(Results.Scoring,,15+5-S$4)))/(2*Results.Trav.NumLines-2) -> 0.4340909091 | T28: =(SUMPRODUCT(SIGN(C28=INDEX(Results.Entry,,T$4)),INDEX(Results.Scoring,,13+T$4))+(2-Winners.Count)*SUMPRODUCT(SIGN(C28=INDEX(Results.Entry,,5-T$4)),INDEX(Results.Scoring,,13+5-T$4)))/(SUMPRODUCT(SIGN(C28=INDEX(Results.Entry,,T$4)),INDEX(Results.Scoring,,15+T$4))+(2-Winners.Count)*SUMPRODUCT(SIGN(C28=INDEX(Results.Entry,,5-T$4)),INDEX(Results.Scoring,,15+5-T$4)))/(2*Results.Trav.NumLines-2) -> 0.4488636364 | U28: 0 | V28: 0 | W28: 23
A29: 2 | B29: 1 | C29: 24 | D29: 4SE-2 | E29: E | F29: HK | G29: 100 | I29: =NSPlus -> 100 | J29: 42 | K29: 2 | L29: =2*SUMPRODUCT(($I29>Results.NSPlus)*($A29=Results.Boards)*ISNUMBER(Results.NSPlus))+SUMPRODUCT(($I29=Results.NSPlus)*($A29=Results.Boards)*ISNUMBER(Results.NSPlus))-1 -> 42 | M29: 2 | N29: =SUMPRODUCT(($A29=Results.Boards)*ISNUMBER(Results.NSPlus)*NOT(ISBLANK(Results.Contracts))) -> 23 | O29: 42 | P29: 2 | Q29: 1 | R29: 1 | S29: =(SUMPRODUCT(SIGN(B29=INDEX(Results.Entry,,S$4)),INDEX(Results.Scoring,,13+S$4))+(2-Winners.Count)*SUMPRODUCT(SIGN(B29=INDEX(Results.Entry,,5-S$4)),INDEX(Results.Scoring,,13+5-S$4)))/(SUMPRODUCT(SIGN(B29=INDEX(Results.Entry,,S$4)),INDEX(Results.Scoring,,15+S$4))+(2-Winners.Count)*SUMPRODUCT(SIGN(B29=INDEX(Results.Entry,,5-S$4)),INDEX(Results.Scoring,,15+5-S$4)))/(2*Results.Trav.NumLines-2) -> 0.5954545455 | T29: =(SUMPRODUCT(SIGN(C29=INDEX(Results.Entry,,T$4)),INDEX(Results.Scoring,,13+T$4))+(2-Winners.Count)*SUMPRODUCT(SIGN(C29=INDEX(Results.Entry,,5-T$4)),INDEX(Results.Scoring,,13+5-T$4)))/(SUMPRODUCT(SIGN(C29=INDEX(Results.Entry,,T$4)),INDEX(Results.Scoring,,15+T$4))+(2-Winners.Count)*SUMPRODUCT(SIGN(C29=INDEX(Results.Entry,,5-T$4)),INDEX(Results.Scoring,,15+5-T$4)))/(2*Results.Trav.NumLines-2) -> 0.3909090909 | U29: 0 | V29: 0 | W29: 3
A30: 2 | B30: 2 | C30: 25 | D30: 4SE-2 | E30: E | F30: HA | G30: 100 | I30: =NSPlus -> 100 | J30: 42 | K30: 2 | L30: =2*SUMPRODUCT(($I30>Results.NSPlus)*($A30=Results.Boards)*ISNUMBER(Results.NSPlus))+SUMPRODUCT(($I30=Results.NSPlus)*($A30=Results.Boards)*ISNUMBER(Results.NSPlus))-1 -> 42 | M30: 2 | N30: =SUMPRODUCT(($A30=Results.Boards)*ISNUMBER(Results.NSPlus)*NOT(ISBLANK(Results.Contracts))) -> 23 | O30: 42 | P30: 2 | Q30: 1 | R30: 1 | S30: =(SUMPRODUCT(SIGN(B30=INDEX(Results.Entry,,S$4)),INDEX(Results.Scoring,,13+S$4))+(2-Winners.Count)*SUMPRODUCT(SIGN(B30=INDEX(Results.Entry,,5-S$4)),INDEX(Results.Scoring,,13+5-S$4)))/(SUMPRODUCT(SIGN(B30=INDEX(Results.Entry,,S$4)),INDEX(Results.Scoring,,15+S$4))+(2-Winners.Count)*SUMPRODUCT(SIGN(B30=INDEX(Results.Entry,,5-S$4)),INDEX(Results.Scoring,,15+5-S$4)))/(2*Results.Trav.NumLines-2) -> 0.5795454545 | T30: =(SUMPRODUCT(SIGN(C30=INDEX(Results.Entry,,T$4)),INDEX(Results.Scoring,,13+T$4))+(2-Winners.Count)*SUMPRODUCT(SIGN(C30=INDEX(Results.Entry,,5-T$4)),INDEX(Results.Scoring,,13+5-T$4)))/(SUMPRODUCT(SIGN(C30=INDEX(Results.Entry,,T$4)),INDEX(Results.Scoring,,15+T$4))+(2-Winners.Count)*SUMPRODUCT(SIGN(C30=INDEX(Results.Entry,,5-T$4)),INDEX(Results.Scoring,,15+5-T$4)))/(2*Results.Trav.NumLines-2) -> 0.2818181818 | U30: 0 | V30: 0 | W30: 1
A31: 2 | B31: 3 | C31: 26 | D31: 3SE+1 | E31: E | F31: HA | H31: 170 | I31: =NSPlus -> -170 | J31: 8 | K31: 36 | L31: =2*SUMPRODUCT(($I31>Results.NSPlus)*($A31=Results.Boards)*ISNUMBER(Results.NSPlus))+SUMPRODUCT(($I31=Results.NSPlus)*($A31=Results.Boards)*ISNUMBER(Results.NSPlus))-1 -> 8 | M31: 36 | N31: =SUMPRODUCT(($A31=Results.Boards)*ISNUMBER(Results.NSPlus)*NOT(ISBLANK(Results.Contracts))) -> 23 | O31: 8 | P31: 36 | Q31: 1 | R31: 1 | S31: =(SUMPRODUCT(SIGN(B31=INDEX(Results.Entry,,S$4)),INDEX(Results.Scoring,,13+S$4))+(2-Winners.Count)*SUMPRODUCT(SIGN(B31=INDEX(Results.Entry,,5-S$4)),INDEX(Results.Scoring,,13+5-S$4)))/(SUMPRODUCT(SIGN(B31=INDEX(Results.Entry,,S$4)),INDEX(Results.Scoring,,15+S$4))+(2-Winners.Count)*SUMPRODUCT(SIGN(B31=INDEX(Results.Entry,,5-S$4)),INDEX(Results.Scoring,,15+5-S$4)))/(2*Results.Trav.NumLines-2) -> 0.4034090909 | T31: =(SUMPRODUCT(SIGN(C31=INDEX(Results.Entry,,T$4)),INDEX(Results.Scoring,,13+T$4))+(2-Winners.Count)*SUMPRODUCT(SIGN(C31=INDEX(Results.Entry,,5-T$4)),INDEX(Results.Scoring,,13+5-T$4)))/(SUMPRODUCT(SIGN(C31=INDEX(Results.Entry,,T$4)),INDEX(Results.Scoring,,15+T$4))+(2-Winners.Count)*SUMPRODUCT(SIGN(C31=INDEX(Results.Entry,,5-T$4)),INDEX(Results.Scoring,,15+5-T$4)))/(2*Results.Trav.NumLines-2) -> 0.4613636364 | U31: 0 | V31: 0 | W31: 16
A32: 2 | B32: 4 | C32: 27 | D32: 4SE-1 | E32: E | F32: HA | G32: 50 | I32: =NSPlus -> 50 | J32: 35 | K32: 9 | L32: =2*SUMPRODUCT(($I32>Results.NSPlus)*($A32=Results.Boards)*ISNUMBER(Results.NSPlus))+SUMPRODUCT(($I32=Results.NSPlus)*($A32=Results.Boards)*ISNUMBER(Results.NSPlus))-1 -> 35 | M32: 9 | N32: =SUMPRODUCT(($A32=Results.Boards)*ISNUMBER(Results.NSPlus)*NOT(ISBLANK(Results.Contracts))) -> 23 | O32: 35 | P32: 9 | Q32: 1 | R32: 1 | S32: =(SUMPRODUCT(SIGN(B32=INDEX(Results.Entry,,S$4)),INDEX(Results.Scoring,,13+S$4))+(2-Winners.Count)*SUMPRODUCT(SIGN(B32=INDEX(Results.Entry,,5-S$4)),INDEX(Results.Scoring,,13+5-S$4)))/(SUMPRODUCT(SIGN(B32=INDEX(Results.Entry,,S$4)),INDEX(Results.Scoring,,15+S$4))+(2-Winners.Count)*SUMPRODUCT(SIGN(B32=INDEX(Results.Entry,,5-S$4)),INDEX(Results.Scoring,,15+5-S$4)))/(2*Results.Trav.NumLines-2) -> 0.4886363636 | T32: =(SUMPRODUCT(SIGN(C32=INDEX(Results.Entry,,T$4)),INDEX(Results.Scoring,,13+T$4))+(2-Winners.Count)*SUMPRODUCT(SIGN(C32=INDEX(Results.Entry,,5-T$4)),INDEX(Results.Scoring,,13+5-T$4)))/(SUMPRODUCT(SIGN(C32=INDEX(Results.Entry,,T$4)),INDEX(Results.Scoring,,15+T$4))+(2-Winners.Count)*SUMPRODUCT(SIGN(C32=INDEX(Results.Entry,,5-T$4)),INDEX(Results.Scoring,,15+5-T$4)))/(2*Results.Trav.NumLines-2) -> 0.5170454545 | U32: 0 | V32: 0 | W32: 4
A33: 2 | B33: 5 | C33: 28 | D33: 3SE= | E33: E | F33: HA | H33: 140 | I33: =NSPlus -> -140 | J33: 23 | K33: 21 | L33: =2*SUMPRODUCT(($I33>Results.NSPlus)*($A33=Results.Boards)*ISNUMBER(Results.NSPlus))+SUMPRODUCT(($I33=Results.NSPlus)*($A33=Results.Boards)*ISNUMBER(Results.NSPlus))-1 -> 23 | M33: 21 | N33: =SUMPRODUCT(($A33=Results.Boards)*ISNUMBER(Results.NSPlus)*NOT(ISBLANK(Results.Contracts))) -> 23 | O33: 23 | P33: 21 | Q33: 1 | R33: 1 | S33: =(SUMPRODUCT(SIGN(B33=INDEX(Results.Entry,,S$4)),INDEX(Results.Scoring,,13+S$4))+(2-Winners.Count)*SUMPRODUCT(SIGN(B33=INDEX(Results.Entry,,5-S$4)),INDEX(Results.Scoring,,13+5-S$4)))/(SUMPRODUCT(SIGN(B33=INDEX(Results.Entry,,S$4)),INDEX(Results.Scoring,,15+S$4))+(2-Winners.Count)*SUMPRODUCT(SIGN(B33=INDEX(Results.Entry,,5-S$4)),INDEX(Results.Scoring,,15+5-S$4)))/(2*Results.Trav.NumLines-2) -> 0.5386363636 | T33: =(SUMPRODUCT(SIGN(C33=INDEX(Results.Entry,,T$4)),INDEX(Results.Scoring,,13+T$4))+(2-Winners.Count)*SUMPRODUCT(SIGN(C33=INDEX(Results.Entry,,5-T$4)),INDEX(Results.Scoring,,13+5-T$4)))/(SUMPRODUCT(SIGN(C33=INDEX(Results.Entry,,T$4)),INDEX(Results.Scoring,,15+T$4))+(2-Winners.Count)*SUMPRODUCT(SIGN(C33=INDEX(Results.Entry,,5-T$4)),INDEX(Results.Scoring,,15+5-T$4)))/(2*Results.Trav.NumLines-2) -> 0.4761363636 | U33: 0 | V33: 0 | W33: 9
A34: 2 | B34: 6 | C34: 29 | D34: 3SE= | E34: E | F34: HA | H34: 140 | I34: =NSPlus -> -140 | J34: 23 | K34: 21 | L34: =2*SUMPRODUCT(($I34>Results.NSPlus)*($A34=Results.Boards)*ISNUMBER(Results.NSPlus))+SUMPRODUCT(($I34=Results.NSPlus)*($A34=Results.Boards)*ISNUMBER(Results.NSPlus))-1 -> 23 | M34: 21 | N34: =SUMPRODUCT(($A34=Results.Boards)*ISNUMBER(Results.NSPlus)*NOT(ISBLANK(Results.Contracts))) -> 23 | O34: 23 | P34: 21 | Q34: 1 | R34: 1 | S34: =(SUMPRODUCT(SIGN(B34=INDEX(Results.Entry,,S$4)),INDEX(Results.Scoring,,13+S$4))+(2-Winners.Count)*SUMPRODUCT(SIGN(B34=INDEX(Results.Entry,,5-S$4)),INDEX(Results.Scoring,,13+5-S$4)))/(SUMPRODUCT(SIGN(B34=INDEX(Results.Entry,,S$4)),INDEX(Results.Scoring,,15+S$4))+(2-Winners.Count)*SUMPRODUCT(SIGN(B34=INDEX(Results.Entry,,5-S$4)),INDEX(Results.Scoring,,15+5-S$4)))/(2*Results.Trav.NumLines-2) -> 0.4079545455 | T34: =(SUMPRODUCT(SIGN(C34=INDEX(Results.Entry,,T$4)),INDEX(Results.Scoring,,13+T$4))+(2-Winners.Count)*SUMPRODUCT(SIGN(C34=INDEX(Results.Entry,,5-T$4)),INDEX(Results.Scoring,,13+5-T$4)))/(SUMPRODUCT(SIGN(C34=INDEX(Results.Entry,,T$4)),INDEX(Results.Scoring,,15+T$4))+(2-Winners.Count)*SUMPRODUCT(SIGN(C34=INDEX(Results.Entry,,5-T$4)),INDEX(Results.Scoring,,15+5-T$4)))/(2*Results.Trav.NumLines-2) -> 0.5715909091 | U34: 0 | V34: 0 | W34: 12
A35: 2 | B35: 7 | C35: 30 | D35: 3SE+1 | E35: E | F35: HA | H35: 170 | I35: =NSPlus -> -170 | J35: 8 | K35: 36 | L35: =2*SUMPRODUCT(($I35>Results.NSPlus)*($A35=Results.Boards)*ISNUMBER(Results.NSPlus))+SUMPRODUCT(($I35=Results.NSPlus)*($A35=Results.Boards)*ISNUMBER(Results.NSPlus))-1 -> 8 | M35: 36 | N35: =SUMPRODUCT(($A35=Results.Boards)*ISNUMBER(Results.NSPlus)*NOT(ISBLANK(Results.Contracts))) -> 23 | O35: 8 | P35: 36 | Q35: 1 | R35: 1 | S35: =(SUMPRODUCT(SIGN(B35=INDEX(Results.Entry,,S$4)),INDEX(Results.Scoring,,13+S$4))+(2-Winners.Count)*SUMPRODUCT(SIGN(B35=INDEX(Results.Entry,,5-S$4)),INDEX(Results.Scoring,,13+5-S$4)))/(SUMPRODUCT(SIGN(B35=INDEX(Results.Entry,,S$4)),INDEX(Results.Scoring,,15+S$4))+(2-Winners.Count)*SUMPRODUCT(SIGN(B35=INDEX(Results.Entry,,5-S$4)),INDEX(Results.Scoring,,15+5-S$4)))/(2*Results.Trav.NumLines-2) -> 0.4295454545 | T35: =(SUMPRODUCT(SIGN(C35=INDEX(Results.Entry,,T$4)),INDEX(Results.Scoring,,13+T$4))+(2-Winners.Count)*SUMPRODUCT(SIGN(C35=INDEX(Results.Entry,,5-T$4)),INDEX(Results.Scoring,,13+5-T$4)))/(SUMPRODUCT(SIGN(C35=INDEX(Results.Entry,,T$4)),INDEX(Results.Scoring,,15+T$4))+(2-Winners.Count)*SUMPRODUCT(SIGN(C35=INDEX(Results.Entry,,5-T$4)),INDEX(Results.Scoring,,15+5-T$4)))/(2*Results.Trav.NumLines-2) -> 0.4977272727 | U35: 0 | V35: 0 | W35: 22
A36: 2 | B36: 8 | C36: 31 | D36: 3SE= | E36: E | F36: HA | H36: 140 | I36: =NSPlus -> -140 | J36: 23 | K36: 21 | L36: =2*SUMPRODUCT(($I36>Results.NSPlus)*($A36=Results.Boards)*ISNUMBER(Results.NSPlus))+SUMPRODUCT(($I36=Results.NSPlus)*($A36=Results.Boards)*ISNUMBER(Results.NSPlus))-1 -> 23 | M36: 21 | N36: =SUMPRODUCT(($A36=Results.Boards)*ISNUMBER(Results.NSPlus)*NOT(ISBLANK(Results.Contracts))) -> 23 | O36: 23 | P36: 21 | Q36: 1 | R36: 1 | S36: =(SUMPRODUCT(SIGN(B36=INDEX(Results.Entry,,S$4)),INDEX(Results.Scoring,,13+S$4))+(2-Winners.Count)*SUMPRODUCT(SIGN(B36=INDEX(Results.Entry,,5-S$4)),INDEX(Results.Scoring,,13+5-S$4)))/(SUMPRODUCT(SIGN(B36=INDEX(Results.Entry,,S$4)),INDEX(Results.Scoring,,15+S$4))+(2-Winners.Count)*SUMPRODUCT(SIGN(B36=INDEX(Results.Entry,,5-S$4)),INDEX(Results.Scoring,,15+5-S$4)))/(2*Results.Trav.NumLines-2) -> 0.6488636364 | T36: =(SUMPRODUCT(SIGN(C36=INDEX(Results.Entry,,T$4)),INDEX(Results.Scoring,,13+T$4))+(2-Winners.Count)*SUMPRODUCT(SIGN(C36=INDEX(Results.Entry,,5-T$4)),INDEX(Results.Scoring,,13+5-T$4)))/(SUMPRODUCT(SIGN(C36=INDEX(Results.Entry,,T$4)),INDEX(Results.Scoring,,15+T$4))+(2-Winners.Count)*SUMPRODUCT(SIGN(C36=INDEX(Results.Entry,,5-T$4)),INDEX(Results.Scoring,,15+5-T$4)))/(2*Results.Trav.NumLines-2) -> 0.4772727273 | U36: 0 | V36: 0 | W36: 13
A37: 2 | B37: 9 | C37: 32 | D37: 3SE+1 | E37: E | F37: HA | H37: 170 | I37: =NSPlus -> -170 | J37: 8 | K37: 36 | L37: =2*SUMPRODUCT(($I37>Results.NSPlus)*($A37=Results.Boards)*ISNUMBER(Results.NSPlus))+SUMPRODUCT(($I37=Results.NSPlus)*($A37=Results.Boards)*ISNUMBER(Results.NSPlus))-1 -> 8 | M37: 36 | N37: =SUMPRODUCT(($A37=Results.Boards)*ISNUMBER(Results.NSPlus)*NOT(ISBLANK(Results.Contracts))) -> 23 | O37: 8 | P37: 36 | Q37: 1 | R37: 1 | S37: =(SUMPRODUCT(SIGN(B37=INDEX(Results.Entry,,S$4)),INDEX(Results.Scoring,,13+S$4))+(2-Winners.Count)*SUMPRODUCT(SIGN(B37=INDEX(Results.Entry,,5-S$4)),INDEX(Results.Scoring,,13+5-S$4)))/(SUMPRODUCT(SIGN(B37=INDEX(Results.Entry,,S$4)),INDEX(Results.Scoring,,15+S$4))+(2-Winners.Count)*SUMPRODUCT(SIGN(B37=INDEX(Results.Entry,,5-S$4)),INDEX(Results.Scoring,,15+5-S$4)))/(2*Results.Trav.NumLines-2) -> 0.5420454545 | T37: =(SUMPRODUCT(SIGN(C37=INDEX(Results.Entry,,T$4)),INDEX(Results.Scoring,,13+T$4))+(2-Winners.Count)*SUMPRODUCT(SIGN(C37=INDEX(Results.Entry,,5-T$4)),INDEX(Results.Scoring,,13+5-T$4)))/(SUMPRODUCT(SIGN(C37=INDEX(Results.Entry,,T$4)),INDEX(Results.Scoring,,15+T$4))+(2-Winners.Count)*SUMPRODUCT(SIGN(C37=INDEX(Results.Entry,,5-T$4)),INDEX(Results.Scoring,,15+5-T$4)))/(2*Results.Trav.NumLines-2) -> 0.5215909091 | U37: 0 | V37: 0 | W37: 21
A38: 2 | B38: 10 | C38: 33 | D38: 2SE+1 | E38: E | F38: HA | H38: 140 | I38: =NSPlus -> -140 | J38: 23 | K38: 21 | L38: =2*SUMPRODUCT(($I38>Results.NSPlus)*($A38=Results.Boards)*ISNUMBER(Results.NSPlus))+SUMPRODUCT(($I38=Results.NSPlus)*($A38=Results.Boards)*ISNUMBER(Results.NSPlus))-1 -> 23 | M38: 21 | N38: =SUMPRODUCT(($A38=Results.Boards)*ISNUMBER(Results.NSPlus)*NOT(ISBLANK(Results.Contracts))) -> 23 | O38: 23 | P38: 21 | Q38: 1 | R38: 1 | S38: =(SUMPRODUCT(SIGN(B38=INDEX(Results.Entry,,S$4)),INDEX(Results.Scoring,,13+S$4))+(2-Winners.Count)*SUMPRODUCT(SIGN(B38=INDEX(Results.Entry,,5-S$4)),INDEX(Results.Scoring,,13+5-S$4)))/(SUMPRODUCT(SIGN(B38=INDEX(Results.Entry,,S$4)),INDEX(Results.Scoring,,15+S$4))+(2-Winners.Count)*SUMPRODUCT(SIGN(B38=INDEX(Results.Entry,,5-S$4)),INDEX(Results.Scoring,,15+5-S$4)))/(2*Results.Trav.NumLines-2) -> 0.4954545455 | T38: =(SUMPRODUCT(SIGN(C38=INDEX(Results.Entry,,T$4)),INDEX(Results.Scoring,,13+T$4))+(2-Winners.Count)*SUMPRODUCT(SIGN(C38=INDEX(Results.Entry,,5-T$4)),INDEX(Results.Scoring,,13+5-T$4)))/(SUMPRODUCT(SIGN(C38=INDEX(Results.Entry,,T$4)),INDEX(Results.Scoring,,15+T$4))+(2-Winners.Count)*SUMPRODUCT(SIGN(C38=INDEX(Results.Entry,,5-T$4)),INDEX(Results.Scoring,,15+5-T$4)))/(2*Results.Trav.NumLines-2) -> 0.6079545455 | U38: 0 | V38: 0 | W38: 11
A39: 2 | B39: 11 | C39: 34 | D39: 3SE= | E39: E | F39: HK | H39: 140 | I39: =NSPlus -> -140 | J39: 23 | K39: 21 | L39: =2*SUMPRODUCT(($I39>Results.NSPlus)*($A39=Results.Boards)*ISNUMBER(Results.NSPlus))+SUMPRODUCT(($I39=Results.NSPlus)*($A39=Results.Boards)*ISNUMBER(Results.NSPlus))-1 -> 23 | M39: 21 | N39: =SUMPRODUCT(($A39=Results.Boards)*ISNUMBER(Results.NSPlus)*NOT(ISBLANK(Results.Contracts))) -> 23 | O39: 23 | P39: 21 | Q39: 1 | R39: 1 | S39: =(SUMPRODUCT(SIGN(B39=INDEX(Results.Entry,,S$4)),INDEX(Results.Scoring,,13+S$4))+(2-Winners.Count)*SUMPRODUCT(SIGN(B39=INDEX(Results.Entry,,5-S$4)),INDEX(Results.Scoring,,13+5-S$4)))/(SUMPRODUCT(SIGN(B39=INDEX(Results.Entry,,S$4)),INDEX(Results.Scoring,,15+S$4))+(2-Winners.Count)*SUMPRODUCT(SIGN(B39=INDEX(Results.Entry,,5-S$4)),INDEX(Results.Scoring,,15+5-S$4)))/(2*Results.Trav.NumLines-2) -> 0.5159090909 | T39: =(SUMPRODUCT(SIGN(C39=INDEX(Results.Entry,,T$4)),INDEX(Results.Scoring,,13+T$4))+(2-Winners.Count)*SUMPRODUCT(SIGN(C39=INDEX(Results.Entry,,5-T$4)),INDEX(Results.Scoring,,13+5-T$4)))/(SUMPRODUCT(SIGN(C39=INDEX(Results.Entry,,T$4)),INDEX(Results.Scoring,,15+T$4))+(2-Winners.Count)*SUMPRODUCT(SIGN(C39=INDEX(Results.Entry,,5-T$4)),INDEX(Results.Scoring,,15+5-T$4)))/(2*Results.Trav.NumLines-2) -> 0.5636363636 | U39: 0 | V39: 0 | W39: 14
A40: 2 | B40: 12 | C40: 35 | D40: 3SE= | E40: E | F40: HK | H40: 140 | I40: =NSPlus -> -140 | J40: 23 | K40: 21 | L40: =2*SUMPRODUCT(($I40>Results.NSPlus)*($A40=Results.Boards)*ISNUMBER(Results.NSPlus))+SUMPRODUCT(($I40=Results.NSPlus)*($A40=Results.Boards)*ISNUMBER(Results.NSPlus))-1 -> 23 | M40: 21 | N40: =SUMPRODUCT(($A40=Results.Boards)*ISNUMBER(Results.NSPlus)*NOT(ISBLANK(Results.Contracts))) -> 23 | O40: 23 | P40: 21 | Q40: 1 | R40: 1 | S40: =(SUMPRODUCT(SIGN(B40=INDEX(Results.Entry,,S$4)),INDEX(Results.Scoring,,13+S$4))+(2-Winners.Count)*SUMPRODUCT(SIGN(B40=INDEX(Results.Entry,,5-S$4)),INDEX(Results.Scoring,,13+5-S$4)))/(SUMPRODUCT(SIGN(B40=INDEX(Results.Entry,,S$4)),INDEX(Results.Scoring,,15+S$4))+(2-Winners.Count)*SUMPRODUCT(SIGN(B40=INDEX(Results.Entry,,5-S$4)),INDEX(Results.Scoring,,15+5-S$4)))/(2*Results.Trav.NumLines-2) -> 0.6420454545 | T40: =(SUMPRODUCT(SIGN(C40=INDEX(Results.Entry,,T$4)),INDEX(Results.Scoring,,13+T$4))+(2-Winners.Count)*SUMPRODUCT(SIGN(C40=INDEX(Results.Entry,,5-T$4)),INDEX(Results.Scoring,,13+5-T$4)))/(SUMPRODUCT(SIGN(C40=INDEX(Results.Entry,,T$4)),INDEX(Results.Scoring,,15+T$4))+(2-Winners.Count)*SUMPRODUCT(SIGN(C40=INDEX(Results.Entry,,5-T$4)),INDEX(Results.Scoring,,15+5-T$4)))/(2*Results.Trav.NumLines-2) -> 0.5215909091 | U40: 0 | V40: 0 | W40: 15
A41: 2 | B41: 13 | C41: 36 | D41: 4SE= | E41: E | F41: HK | H41: 420 | I41: =NSPlus -> -420 | J41: 0 | K41: 44 | L41: =2*SUMPRODUCT(($I41>Results.NSPlus)*($A41=Results.Boards)*ISNUMBER(Results.NSPlus))+SUMPRODUCT(($I41=Results.NSPlus)*($A41=Results.Boards)*ISNUMBER(Results.NSPlus))-1 -> 0 | M41: 44 | N41: =SUMPRODUCT(($A41=Results.Boards)*ISNUMBER(Results.NSPlus)*NOT(ISBLANK(Results.Contracts))) -> 23 | O41: 0 | P41: 44 | Q41: 1 | R41: 1 | S41: =(SUMPRODUCT(SIGN(B41=INDEX(Results.Entry,,S$4)),INDEX(Results.Scoring,,13+S$4))+(2-Winners.Count)*SUMPRODUCT(SIGN(B41=INDEX(Results.Entry,,5-S$4)),INDEX(Results.Scoring,,13+5-S$4)))/(SUMPRODUCT(SIGN(B41=INDEX(Results.Entry,,S$4)),INDEX(Results.Scoring,,15+S$4))+(2-Winners.Count)*SUMPRODUCT(SIGN(B41=INDEX(Results.Entry,,5-S$4)),INDEX(Results.Scoring,,15+5-S$4)))/(2*Results.Trav.NumLines-2) -> 0.425 | T41: =(SUMPRODUCT(SIGN(C41=INDEX(Results.Entry,,T$4)),INDEX(Results.Scoring,,13+T$4))+(2-Winners.Count)*SUMPRODUCT(SIGN(C41=INDEX(Results.Entry,,5-T$4)),INDEX(Results.Scoring,,13+5-T$4)))/(SUMPRODUCT(SIGN(C41=INDEX(Results.Entry,,T$4)),INDEX(Results.Scoring,,15+T$4))+(2-Winners.Count)*SUMPRODUCT(SIGN(C41=INDEX(Results.Entry,,5-T$4)),INDEX(Results.Scoring,,15+5-T$4)))/(2*Results.Trav.NumLines-2) -> 0.5852272727 | U41: 0 | V41: 0 | W41: 23
A42: 2 | B42: 14 | C42: 37 | D42: 3SE+1 | E42: E | F42: HA | H42: 170 | I42: =NSPlus -> -170 | J42: 8 | K42: 36 | L42: =2*SUMPRODUCT(($I42>Results.NSPlus)*($A42=Results.Boards)*ISNUMBER(Results.NSPlus))+SUMPRODUCT(($I42=Results.NSPlus)*($A42=Results.Boards)*ISNUMBER(Results.NSPlus))-1 -> 8 | M42: 36 | N42: =SUMPRODUCT(($A42=Results.Boards)*ISNUMBER(Results.NSPlus)*NOT(ISBLANK(Results.Contracts))) -> 23 | O42: 8 | P42: 36 | Q42: 1 | R42: 1 | S42: =(SUMPRODUCT(SIGN(B42=INDEX(Results.Entry,,S$4)),INDEX(Results.Scoring,,13+S$4))+(2-Winners.Count)*SUMPRODUCT(SIGN(B42=INDEX(Results.Entry,,5-S$4)),INDEX(Results.Scoring,,13+5-S$4)))/(SUMPRODUCT(SIGN(B42=INDEX(Results.Entry,,S$4)),INDEX(Results.Scoring,,15+S$4))+(2-Winners.Count)*SUMPRODUCT(SIGN(B42=INDEX(Results.Entry,,5-S$4)),INDEX(Results.Scoring,,15+5-S$4)))/(2*Results.Trav.NumLines-2) -> 0.6238636364 | T42: =(SUMPRODUCT(SIGN(C42=INDEX(Results.Entry,,T$4)),INDEX(Results.Scoring,,13+T$4))+(2-Winners.Count)*SUMPRODUCT(SIGN(C42=INDEX(Results.Entry,,5-T$4)),INDEX(Results.Scoring,,13+5-T$4)))/(SUMPRODUCT(SIGN(C42=INDEX(Results.Entry,,T$4)),INDEX(Results.Scoring,,15+T$4))+(2-Winners.Count)*SUMPRODUCT(SIGN(C42=INDEX(Results.Entry,,5-T$4)),INDEX(Results.Scoring,,15+5-T$4)))/(2*Results.Trav.NumLines-2) -> 0.5465909091 | U42: 0 | V42: 0 | W42: 19
A43: 2 | B43: 15 | C43: 38 | D43: 3SE+1 | E43: E | F43: HK | H43: 170 | I43: =NSPlus -> -170 | J43: 8 | K43: 36 | L43: =2*SUMPRODUCT(($I43>Results.NSPlus)*($A43=Results.Boards)*ISNUMBER(Results.NSPlus))+SUMPRODUCT(($I43=Results.NSPlus)*($A43=Results.Boards)*ISNUMBER(Results.NSPlus))-1 -> 8 | M43: 36 | N43: =SUMPRODUCT(($A43=Results.Boards)*ISNUMBER(Results.NSPlus)*NOT(ISBLANK(Results.Contracts))) -> 23 | O43: 8 | P43: 36 | Q43: 1 | R43: 1 | S43: =(SUMPRODUCT(SIGN(B43=INDEX(Results.Entry,,S$4)),INDEX(Results.Scoring,,13+S$4))+(2-Winners.Count)*SUMPRODUCT(SIGN(B43=INDEX(Results.Entry,,5-S$4)),INDEX(Results.Scoring,,13+5-S$4)))/(SUMPRODUCT(SIGN(B43=INDEX(Results.Entry,,S$4)),INDEX(Results.Scoring,,15+S$4))+(2-Winners.Count)*SUMPRODUCT(SIGN(B43=INDEX(Results.Entry,,5-S$4)),INDEX(Results.Scoring,,15+5-S$4)))/(2*Results.Trav.NumLines-2) -> 0.4568181818 | T43: =(SUMPRODUCT(SIGN(C43=INDEX(Results.Entry,,T$4)),INDEX(Results.Scoring,,13+T$4))+(2-Winners.Count)*SUMPRODUCT(SIGN(C43=INDEX(Results.Entry,,5-T$4)),INDEX(Results.Scoring,,13+5-T$4)))/(SUMPRODUCT(SIGN(C43=INDEX(Results.Entry,,T$4)),INDEX(Results.Scoring,,15+T$4))+(2-Winners.Count)*SUMPRODUCT(SIGN(C43=INDEX(Results.Entry,,5-T$4)),INDEX(Results.Scoring,,15+5-T$4)))/(2*Results.Trav.NumLines-2) -> 0.4681818182 | U43: 0 | V43: 0 | W43: 18
A44: 2 | B44: 16 | C44: 39 | D44: 3SE+1 | E44: E | F44: HK | H44: 170 | I44: =NSPlus -> -170 | J44: 8 | K44: 36 | L44: =2*SUMPRODUCT(($I44>Results.NSPlus)*($A44=Results.Boards)*ISNUMBER(Results.NSPlus))+SUMPRODUCT(($I44=Results.NSPlus)*($A44=Results.Boards)*ISNUMBER(Results.NSPlus))-1 -> 8 | M44: 36 | N44: =SUMPRODUCT(($A44=Results.Boards)*ISNUMBER(Results.NSPlus)*NOT(ISBLANK(Results.Contracts))) -> 23 | O44: 8 | P44: 36 | Q44: 1 | R44: 1 | S44: =(SUMPRODUCT(SIGN(B44=INDEX(Results.Entry,,S$4)),INDEX(Results.Scoring,,13+S$4))+(2-Winners.Count)*SUMPRODUCT(SIGN(B44=INDEX(Results.Entry,,5-S$4)),INDEX(Results.Scoring,,13+5-S$4)))/(SUMPRODUCT(SIGN(B44=INDEX(Results.Entry,,S$4)),INDEX(Results.Scoring,,15+S$4))+(2-Winners.Count)*SUMPRODUCT(SIGN(B44=INDEX(Results.Entry,,5-S$4)),INDEX(Results.Scoring,,15+5-S$4)))/(2*Results.Trav.NumLines-2) -> 0.5602272727 | T44: =(SUMPRODUCT(SIGN(C44=INDEX(Results.Entry,,T$4)),INDEX(Results.Scoring,,13+T$4))+(2-Winners.Count)*SUMPRODUCT(SIGN(C44=INDEX(Results.Entry,,5-T$4)),INDEX(Results.Scoring,,13+5-T$4)))/(SUMPRODUCT(SIGN(C44=INDEX(Results.Entry,,T$4)),INDEX(Results.Scoring,,15+T$4))+(2-Winners.Count)*SUMPRODUCT(SIGN(C44=INDEX(Results.Entry,,5-T$4)),INDEX(Results.Scoring,,15+5-T$4)))/(2*Results.Trav.NumLines-2) -> 0.4988636364 | U44: 0 | V44: 0 | W44: 20
A45: 2 | B45: 17 | C45: 40 | D45: 3SE= | E45: E | F45: HA | H45: 140 | I45: =NSPlus -> -140 | J45: 23 | K45: 21 | L45: =2*SUMPRODUCT(($I45>Results.NSPlus)*($A45=Results.Boards)*ISNUMBER(Results.NSPlus))+SUMPRODUCT(($I45=Results.NSPlus)*($A45=Results.Boards)*ISNUMBER(Results.NSPlus))-1 -> 23 | M45: 21 | N45: =SUMPRODUCT(($A45=Results.Boards)*ISNUMBER(Results.NSPlus)*NOT(ISBLANK(Results.Contracts))) -> 23 | O45: 23 | P45: 21 | Q45: 1 | R45: 1 | S45: =(SUMPRODUCT(SIGN(B45=INDEX(Results.Entry,,S$4)),INDEX(Results.Scoring,,13+S$4))+(2-Winners.Count)*SUMPRODUCT(SIGN(B45=INDEX(Results.Entry,,5-S$4)),INDEX(Results.Scoring,,13+5-S$4)))/(SUMPRODUCT(SIGN(B45=INDEX(Results.Entry,,S$4)),INDEX(Results.Scoring,,15+S$4))+(2-Winners.Count)*SUMPRODUCT(SIGN(B45=INDEX(Results.Entry,,5-S$4)),INDEX(Results.Scoring,,15+5-S$4)))/(2*Results.Trav.NumLines-2) -> 0.4693181818 | T45: =(SUMPRODUCT(SIGN(C45=INDEX(Results.Entry,,T$4)),INDEX(Results.Scoring,,13+T$4))+(2-Winners.Count)*SUMPRODUCT(SIGN(C45=INDEX(Results.Entry,,5-T$4)),INDEX(Results.Scoring,,13+5-T$4)))/(SUMPRODUCT(SIGN(C45=INDEX(Results.Entry,,T$4)),INDEX(Results.Scoring,,15+T$4))+(2-Winners.Count)*SUMPRODUCT(SIGN(C45=INDEX(Results.Entry,,5-T$4)),INDEX(Results.Scoring,,15+5-T$4)))/(2*Results.Trav.NumLines-2) -> 0.5272727273 | U45: 0 | V45: 0 | W45: 8
A46: 2 | B46: 18 | C46: 41 | D46: 4SE-1 | E46: E | F46: HA | G46: 50 | I46: =NSPlus -> 50 | J46: 35 | K46: 9 | L46: =2*SUMPRODUCT(($I46>Results.NSPlus)*($A46=Results.Boards)*ISNUMBER(Results.NSPlus))+SUMPRODUCT(($I46=Results.NSPlus)*($A46=Results.Boards)*ISNUMBER(Results.NSPlus))-1 -> 35 | M46: 9 | N46: =SUMPRODUCT(($A46=Results.Boards)*ISNUMBER(Results.NSPlus)*NOT(ISBLANK(Results.Contracts))) -> 23 | O46: 35 | P46: 9 | Q46: 1 | R46: 1 | S46: =(SUMPRODUCT(SIGN(B46=INDEX(Results.Entry,,S$4)),INDEX(Results.Scoring,,13+S$4))+(2-Winners.Count)*SUMPRODUCT(SIGN(B46=INDEX(Results.Entry,,5-S$4)),INDEX(Results.Scoring,,13+5-S$4)))/(SUMPRODUCT(SIGN(B46=INDEX(Results.Entry,,S$4)),INDEX(Results.Scoring,,15+S$4))+(2-Winners.Count)*SUMPRODUCT(SIGN(B46=INDEX(Results.Entry,,5-S$4)),INDEX(Results.Scoring,,15+5-S$4)))/(2*Results.Trav.NumLines-2) -> 0.5238636364 | T46: =(SUMPRODUCT(SIGN(C46=INDEX(Results.Entry,,T$4)),INDEX(Results.Scoring,,13+T$4))+(2-Winners.Count)*SUMPRODUCT(SIGN(C46=INDEX(Results.Entry,,5-T$4)),INDEX(Results.Scoring,,13+5-T$4)))/(SUMPRODUCT(SIGN(C46=INDEX(Results.Entry,,T$4)),INDEX(Results.Scoring,,15+T$4))+(2-Winners.Count)*SUMPRODUCT(SIGN(C46=INDEX(Results.Entry,,5-T$4)),INDEX(Results.Scoring,,15+5-T$4)))/(2*Results.Trav.NumLines-2) -> 0.6181818182 | U46: 0 | V46: 0 | W46: 7
A47: 2 | B47: 19 | C47: 42 | D47: 3SE= | E47: E | F47: HA | H47: 140 | I47: =NSPlus -> -140 | J47: 23 | K47: 21 | L47: =2*SUMPRODUCT(($I47>Results.NSPlus)*($A47=Results.Boards)*ISNUMBER(Results.NSPlus))+SUMPRODUCT(($I47=Results.NSPlus)*($A47=Results.Boards)*ISNUMBER(Results.NSPlus))-1 -> 23 | M47: 21 | N47: =SUMPRODUCT(($A47=Results.Boards)*ISNUMBER(Results.NSPlus)*NOT(ISBLANK(Results.Contracts))) -> 23 | O47: 23 | P47: 21 | Q47: 1 | R47: 1 | S47: =(SUMPRODUCT(SIGN(B47=INDEX(Results.Entry,,S$4)),INDEX(Results.Scoring,,13+S$4))+(2-Winners.Count)*SUMPRODUCT(SIGN(B47=INDEX(Results.Entry,,5-S$4)),INDEX(Results.Scoring,,13+5-S$4)))/(SUMPRODUCT(SIGN(B47=INDEX(Results.Entry,,S$4)),INDEX(Results.Scoring,,15+S$4))+(2-Winners.Count)*SUMPRODUCT(SIGN(B47=INDEX(Results.Entry,,5-S$4)),INDEX(Results.Scoring,,15+5-S$4)))/(2*Results.Trav.NumLines-2) -> 0.4340909091 | T47: =(SUMPRODUCT(SIGN(C47=INDEX(Results.Entry,,T$4)),INDEX(Results.Scoring,,13+T$4))+(2-Winners.Count)*SUMPRODUCT(SIGN(C47=INDEX(Results.Entry,,5-T$4)),INDEX(Results.Scoring,,13+5-T$4)))/(SUMPRODUCT(SIGN(C47=INDEX(Results.Entry,,T$4)),INDEX(Results.Scoring,,15+T$4))+(2-Winners.Count)*SUMPRODUCT(SIGN(C47=INDEX(Results.Entry,,5-T$4)),INDEX(Results.Scoring,,15+5-T$4)))/(2*Results.Trav.NumLines-2) -> 0.5920454545 | U47: 0 | V47: 0 | W47: 10
A48: 2 | B48: 20 | C48: 43 | D48: 3SE+1 | E48: E | F48: HA | H48: 170 | I48: =NSPlus -> -170 | J48: 8 | K48: 36 | L48: =2*SUMPRODUCT(($I48>Results.NSPlus)*($A48=Results.Boards)*ISNUMBER(Results.NSPlus))+SUMPRODUCT(($I48=Results.NSPlus)*($A48=Results.Boards)*ISNUMBER(Results.NSPlus))-1 -> 8 | M48: 36 | N48: =SUMPRODUCT(($A48=Results.Boards)*ISNUMBER(Results.NSPlus)*NOT(ISBLANK(Results.Contracts))) -> 23 | O48: 8 | P48: 36 | Q48: 1 | R48: 1 | S48: =(SUMPRODUCT(SIGN(B48=INDEX(Results.Entry,,S$4)),INDEX(Results.Scoring,,13+S$4))+(2-Winners.Count)*SUMPRODUCT(SIGN(B48=INDEX(Results.Entry,,5-S$4)),INDEX(Results.Scoring,,13+5-S$4)))/(SUMPRODUCT(SIGN(B48=INDEX(Results.Entry,,S$4)),INDEX(Results.Scoring,,15+S$4))+(2-Winners.Count)*SUMPRODUCT(SIGN(B48=INDEX(Results.Entry,,5-S$4)),INDEX(Results.Scoring,,15+5-S$4)))/(2*Results.Trav.NumLines-2) -> 0.375 | T48: =(SUMPRODUCT(SIGN(C48=INDEX(Results.Entry,,T$4)),INDEX(Results.Scoring,,13+T$4))+(2-Winners.Count)*SUMPRODUCT(SIGN(C48=INDEX(Results.Entry,,5-T$4)),INDEX(Results.Scoring,,13+5-T$4)))/(SUMPRODUCT(SIGN(C48=INDEX(Results.Entry,,T$4)),INDEX(Results.Scoring,,15+T$4))+(2-Winners.Count)*SUMPRODUCT(SIGN(C48=INDEX(Results.Entry,,5-T$4)),INDEX(Results.Scoring,,15+5-T$4)))/(2*Results.Trav.NumLines-2) -> 0.5488636364 | U48: 0 | V48: 0 | W48: 17
A49: 2 | B49: 21 | C49: 44 | D49: 3SE-2 | E49: E | F49: HA | G49: 100 | I49: =NSPlus -> 100 | J49: 42 | K49: 2 | L49: =2*SUMPRODUCT(($I49>Results.NSPlus)*($A49=Results.Boards)*ISNUMBER(Results.NSPlus))+SUMPRODUCT(($I49=Results.NSPlus)*($A49=Results.Boards)*ISNUMBER(Results.NSPlus))-1 -> 42 | M49: 2 | N49: =SUMPRODUCT(($A49=Results.Boards)*ISNUMBER(Results.NSPlus)*NOT(ISBLANK(Results.Contracts))) -> 23 | O49: 42 | P49: 2 | Q49: 1 | R49: 1 | S49: =(SUMPRODUCT(SIGN(B49=INDEX(Results.Entry,,S$4)),INDEX(Results.Scoring,,13+S$4))+(2-Winners.Count)*SUMPRODUCT(SIGN(B49=INDEX(Results.Entry,,5-S$4)),INDEX(Results.Scoring,,13+5-S$4)))/(SUMPRODUCT(SIGN(B49=INDEX(Results.Entry,,S$4)),INDEX(Results.Scoring,,15+S$4))+(2-Winners.Count)*SUMPRODUCT(SIGN(B49=INDEX(Results.Entry,,5-S$4)),INDEX(Results.Scoring,,15+5-S$4)))/(2*Results.Trav.NumLines-2) -> 0.5568181818 | T49: =(SUMPRODUCT(SIGN(C49=INDEX(Results.Entry,,T$4)),INDEX(Results.Scoring,,13+T$4))+(2-Winners.Count)*SUMPRODUCT(SIGN(C49=INDEX(Results.Entry,,5-T$4)),INDEX(Results.Scoring,,13+5-T$4)))/(SUMPRODUCT(SIGN(C49=INDEX(Results.Entry,,T$4)),INDEX(Results.Scoring,,15+T$4))+(2-Winners.Count)*SUMPRODUCT(SIGN(C49=INDEX(Results.Entry,,5-T$4)),INDEX(Results.Scoring,,15+5-T$4)))/(2*Results.Trav.NumLines-2) -> 0.3806818182 | U49: 0 | V49: 0 | W49: 2
A50: 2 | B50: 22 | C50: 45 | D50: 4SE-1 | E50: E | F50: HK | G50: 50 | I50: =NSPlus -> 50 | J50: 35 | K50: 9 | L50: =2*SUMPRODUCT(($I50>Results.NSPlus)*($A50=Results.Boards)*ISNUMBER(Results.NSPlus))+SUMPRODUCT(($I50=Results.NSPlus)*($A50=Results.Boards)*ISNUMBER(Results.NSPlus))-1 -> 35 | M50: 9 | N50: =SUMPRODUCT(($A50=Results.Boards)*ISNUMBER(Results.NSPlus)*NOT(ISBLANK(Results.Contracts))) -> 23 | O50: 35 | P50: 9 | Q50: 1 | R50: 1 | S50: =(SUMPRODUCT(SIGN(B50=INDEX(Results.Entry,,S$4)),INDEX(Results.Scoring,,13+S$4))+(2-Winners.Count)*SUMPRODUCT(SIGN(B50=INDEX(Results.Entry,,5-S$4)),INDEX(Results.Scoring,,13+5-S$4)))/(SUMPRODUCT(SIGN(B50=INDEX(Results.Entry,,S$4)),INDEX(Results.Scoring,,15+S$4))+(2-Winners.Count)*SUMPRODUCT(SIGN(B50=INDEX(Results.Entry,,5-S$4)),INDEX(Results.Scoring,,15+5-S$4)))/(2*Results.Trav.NumLines-2) -> 0.3534090909 | T50: =(SUMPRODUCT(SIGN(C50=INDEX(Results.Entry,,T$4)),INDEX(Results.Scoring,,13+T$4))+(2-Winners.Count)*SUMPRODUCT(SIGN(C50=INDEX(Results.Entry,,5-T$4)),INDEX(Results.Scoring,,13+5-T$4)))/(SUMPRODUCT(SIGN(C50=INDEX(Results.Entry,,T$4)),INDEX(Results.Scoring,,15+T$4))+(2-Winners.Count)*SUMPRODUCT(SIGN(C50=INDEX(Results.Entry,,5-T$4)),INDEX(Results.Scoring,,15+5-T$4)))/(2*Results.Trav.NumLines-2) -> 0.3965909091 | U50: 0 | V50: 0 | W50: 5
A51: 2 | B51: 23 | C51: 46 | D51: 4SE-1 | E51: E | F51: HA | G51: 50 | I51: =NSPlus -> 50 | J51: 35 | K51: 9 | L51: =2*SUMPRODUCT(($I51>Results.NSPlus)*($A51=Results.Boards)*ISNUMBER(Results.NSPlus))+SUMPRODUCT(($I51=Results.NSPlus)*($A51=Results.Boards)*ISNUMBER(Results.NSPlus))-1 -> 35 | M51: 9 | N51: =SUMPRODUCT(($A51=Results.Boards)*ISNUMBER(Results.NSPlus)*NOT(ISBLANK(Results.Contracts))) -> 23 | O51: 35 | P51: 9 | Q51: 1 | R51: 1 | S51: =(SUMPRODUCT(SIGN(B51=INDEX(Results.Entry,,S$4)),INDEX(Results.Scoring,,13+S$4))+(2-Winners.Count)*SUMPRODUCT(SIGN(B51=INDEX(Results.Entry,,5-S$4)),INDEX(Results.Scoring,,13+5-S$4)))/(SUMPRODUCT(SIGN(B51=INDEX(Results.Entry,,S$4)),INDEX(Results.Scoring,,15+S$4))+(2-Winners.Count)*SUMPRODUCT(SIGN(B51=INDEX(Results.Entry,,5-S$4)),INDEX(Results.Scoring,,15+5-S$4)))/(2*Results.Trav.NumLines-2) -> 0.4340909091 | T51: =(SUMPRODUCT(SIGN(C51=INDEX(Results.Entry,,T$4)),INDEX(Results.Scoring,,13+T$4))+(2-Winners.Count)*SUMPRODUCT(SIGN(C51=INDEX(Results.Entry,,5-T$4)),INDEX(Results.Scoring,,13+5-T$4)))/(SUMPRODUCT(SIGN(C51=INDEX(Results.Entry,,T$4)),INDEX(Results.Scoring,,15+T$4))+(2-Winners.Count)*SUMPRODUCT(SIGN(C51=INDEX(Results.Entry,,5-T$4)),INDEX(Results.Scoring,,15+5-T$4)))/(2*Results.Trav.NumLines-2) -> 0.4488636364 | U51: 0 | V51: 0 | W51: 6
A52: 3 | B52: 1 | C52: 45 | D52: 3SS= | E52: S | F52: CA | G52: 140 | I52: =NSPlus -> 140 | J52: 34 | K52: 10 | L52: =2*SUMPRODUCT(($I52>Results.NSPlus)*($A52=Results.Boards)*ISNUMBER(Results.NSPlus))+SUMPRODUCT(($I52=Results.NSPlus)*($A52=Results.Boards)*ISNUMBER(Results.NSPlus))-1 -> 34 | M52: 10 | N52: =SUMPRODUCT(($A52=Results.Boards)*ISNUMBER(Results.NSPlus)*NOT(ISBLANK(Results.Contracts))) -> 23 | O52: 34 | P52: 10 | Q52: 1 | R52: 1 | S52: =(SUMPRODUCT(SIGN(B52=INDEX(Results.Entry,,S$4)),INDEX(Results.Scoring,,13+S$4))+(2-Winners.Count)*SUMPRODUCT(SIGN(B52=INDEX(Results.Entry,,5-S$4)),INDEX(Results.Scoring,,13+5-S$4)))/(SUMPRODUCT(SIGN(B52=INDEX(Results.Entry,,S$4)),INDEX(Results.Scoring,,15+S$4))+(2-Winners.Count)*SUMPRODUCT(SIGN(B52=INDEX(Results.Entry,,5-S$4)),INDEX(Results.Scoring,,15+5-S$4)))/(2*Results.Trav.NumLines-2) -> 0.5954545455 | T52: =(SUMPRODUCT(SIGN(C52=INDEX(Results.Entry,,T$4)),INDEX(Results.Scoring,,13+T$4))+(2-Winners.Count)*SUMPRODUCT(SIGN(C52=INDEX(Results.Entry,,5-T$4)),INDEX(Results.Scoring,,13+5-T$4)))/(SUMPRODUCT(SIGN(C52=INDEX(Results.Entry,,T$4)),INDEX(Results.Scoring,,15+T$4))+(2-Winners.Count)*SUMPRODUCT(SIGN(C52=INDEX(Results.Entry,,5-T$4)),INDEX(Results.Scoring,,15+5-T$4)))/(2*Results.Trav.NumLines-2) -> 0.3965909091 | U52: 0 | V52: 0 | W52: 6
A53: 3 | B53: 2 | C53: 40 | D53: 3CE+2 | E53: E | F53: SK | H53: 150 | I53: =NSPlus -> -150 | J53: 6 | K53: 38 | L53: =2*SUMPRODUCT(($I53>Results.NSPlus)*($A53=Results.Boards)*ISNUMBER(Results.NSPlus))+SUMPRODUCT(($I53=Results.NSPlus)*($A53=Results.Boards)*ISNUMBER(Results.NSPlus))-1 -> 6 | M53: 38 | N53: =SUMPRODUCT(($A53=Results.Boards)*ISNUMBER(Results.NSPlus)*NOT(ISBLANK(Results.Contracts))) -> 23 | O53: 6 | P53: 38 | Q53: 1 | R53: 1 | S53: =(SUMPRODUCT(SIGN(B53=INDEX(Results.Entry,,S$4)),INDEX(Results.Scoring,,13+S$4))+(2-Winners.Count)*SUMPRODUCT(SIGN(B53=INDEX(Results.Entry,,5-S$4)),INDEX(Results.Scoring,,13+5-S$4)))/(SUMPRODUCT(SIGN(B53=INDEX(Results.Entry,,S$4)),INDEX(Results.Scoring,,15+S$4))+(2-Winners.Count)*SUMPRODUCT(SIGN(B53=INDEX(Results.Entry,,5-S$4)),INDEX(Results.Scoring,,15+5-S$4)))/(2*Results.Trav.NumLines-2) -> 0.5795454545 | T53: =(SUMPRODUCT(SIGN(C53=INDEX(Results.Entry,,T$4)),INDEX(Results.Scoring,,13+T$4))+(2-Winners.Count)*SUMPRODUCT(SIGN(C53=INDEX(Results.Entry,,5-T$4)),INDEX(Results.Scoring,,13+5-T$4)))/(SUMPRODUCT(SIGN(C53=INDEX(Results.Entry,,T$4)),INDEX(Results.Scoring,,15+T$4))+(2-Winners.Count)*SUMPRODUCT(SIGN(C53=INDEX(Results.Entry,,5-T$4)),INDEX(Results.Scoring,,15+5-T$4)))/(2*Results.Trav.NumLines-2) -> 0.5272727273 | U53: 0 | V53: 0 | W53: 20
A54: 3 | B54: 3 | C54: 46 | D54: 3SS+1 | E54: S | F54: CA | G54: 170 | I54: =NSPlus -> 170 | J54: 43 | K54: 1 | L54: =2*SUMPRODUCT(($I54>Results.NSPlus)*($A54=Results.Boards)*ISNUMBER(Results.NSPlus))+SUMPRODUCT(($I54=Results.NSPlus)*($A54=Results.Boards)*ISNUMBER(Results.NSPlus))-1 -> 43 | M54: 1 | N54: =SUMPRODUCT(($A54=Results.Boards)*ISNUMBER(Results.NSPlus)*NOT(ISBLANK(Results.Contracts))) -> 23 | O54: 43 | P54: 1 | Q54: 1 | R54: 1 | S54: =(SUMPRODUCT(SIGN(B54=INDEX(Results.Entry,,S$4)),INDEX(Results.Scoring,,13+S$4))+(2-Winners.Count)*SUMPRODUCT(SIGN(B54=INDEX(Results.Entry,,5-S$4)),INDEX(Results.Scoring,,13+5-S$4)))/(SUMPRODUCT(SIGN(B54=INDEX(Results.Entry,,S$4)),INDEX(Results.Scoring,,15+S$4))+(2-Winners.Count)*SUMPRODUCT(SIGN(B54=INDEX(Results.Entry,,5-S$4)),INDEX(Results.Scoring,,15+5-S$4)))/(2*Results.Trav.NumLines-2) -> 0.4034090909 | T54: =(SUMPRODUCT(SIGN(C54=INDEX(Results.Entry,,T$4)),INDEX(Results.Scoring,,13+T$4))+(2-Winners.Count)*SUMPRODUCT(SIGN(C54=INDEX(Results.Entry,,5-T$4)),INDEX(Results.Scoring,,13+5-T$4)))/(SUMPRODUCT(SIGN(C54=INDEX(Results.Entry,,T$4)),INDEX(Results.Scoring,,15+T$4))+(2-Winners.Count)*SUMPRODUCT(SIGN(C54=INDEX(Results.Entry,,5-T$4)),INDEX(Results.Scoring,,15+5-T$4)))/(2*Results.Trav.NumLines-2) -> 0.4488636364 | U54: 0 | V54: 0 | W54: 1
A55: 3 | B55: 4 | C55: 42 | D55: 3SS-1 | E55: S | F55: D5 | H55: 50 | I55: =NSPlus -> -50 | J55: 15 | K55: 29 | L55: =2*SUMPRODUCT(($I55>Results.NSPlus)*($A55=Results.Boards)*ISNUMBER(Results.NSPlus))+SUMPRODUCT(($I55=Results.NSPlus)*($A55=Results.Boards)*ISNUMBER(Results.NSPlus))-1 -> 15 | M55: 29 | N55: =SUMPRODUCT(($A55=Results.Boards)*ISNUMBER(Results.NSPlus)*NOT(ISBLANK(Results.Contracts))) -> 23 | O55: 15 | P55: 29 | Q55: 1 | R55: 1 | S55: =(SUMPRODUCT(SIGN(B55=INDEX(Results.Entry,,S$4)),INDEX(Results.Scoring,,13+S$4))+(2-Winners.Count)*SUMPRODUCT(SIGN(B55=INDEX(Results.Entry,,5-S$4)),INDEX(Results.Scoring,,13+5-S$4)))/(SUMPRODUCT(SIGN(B55=INDEX(Results.Entry,,S$4)),INDEX(Results.Scoring,,15+S$4))+(2-Winners.Count)*SUMPRODUCT(SIGN(B55=INDEX(Results.Entry,,5-S$4)),INDEX(Results.Scoring,,15+5-S$4)))/(2*Results.Trav.NumLines-2) -> 0.4886363636 | T55: =(SUMPRODUCT(SIGN(C55=INDEX(Results.Entry,,T$4)),INDEX(Results.Scoring,,13+T$4))+(2-Winners.Count)*SUMPRODUCT(SIGN(C55=INDEX(Results.Entry,,5-T$4)),INDEX(Results.Scoring,,13+5-T$4)))/(SUMPRODUCT(SIGN(C55=INDEX(Results.Entry,,T$4)),INDEX(Results.Scoring,,15+T$4))+(2-Winners.Count)*SUMPRODUCT(SIGN(C55=INDEX(Results.Entry,,5-T$4)),INDEX(Results.Scoring,,15+5-T$4)))/(2*Results.Trav.NumLines-2) -> 0.5920454545 | U55: 0 | V55: 0 | W55: 18
A56: 3 | B56: 5 | C56: 34 | D56: 3SS= | E56: S | F56: CA | G56: 140 | I56: =NSPlus -> 140 | J56: 34 | K56: 10 | L56: =2*SUMPRODUCT(($I56>Results.NSPlus)*($A56=Results.Boards)*ISNUMBER(Results.NSPlus))+SUMPRODUCT(($I56=Results.NSPlus)*($A56=Results.Boards)*ISNUMBER(Results.NSPlus))-1 -> 34 | M56: 10 | N56: =SUMPRODUCT(($A56=Results.Boards)*ISNUMBER(Results.NSPlus)*NOT(ISBLANK(Results.Contracts))) -> 23 | O56: 34 | P56: 10 | Q56: 1 | R56: 1 | S56: =(SUMPRODUCT(SIGN(B56=INDEX(Results.Entry,,S$4)),INDEX(Results.Scoring,,13+S$4))+(2-Winners.Count)*SUMPRODUCT(SIGN(B56=INDEX(Results.Entry,,5-S$4)),INDEX(Results.Scoring,,13+5-S$4)))/(SUMPRODUCT(SIGN(B56=INDEX(Results.Entry,,S$4)),INDEX(Results.Scoring,,15+S$4))+(2-Winners.Count)*SUMPRODUCT(SIGN(B56=INDEX(Results.Entry,,5-S$4)),INDEX(Results.Scoring,,15+5-S$4)))/(2*Results.Trav.NumLines-2) -> 0.5386363636 | T56: =(SUMPRODUCT(SIGN(C56=INDEX(Results.Entry,,T$4)),INDEX(Results.Scoring,,13+T$4))+(2-Winners.Count)*SUMPRODUCT(SIGN(C56=INDEX(Results.Entry,,5-T$4)),INDEX(Results.Scoring,,13+5-T$4)))/(SUMPRODUCT(SIGN(C56=INDEX(Results.Entry,,T$4)),INDEX(Results.Scoring,,15+T$4))+(2-Winners.Count)*SUMPRODUCT(SIGN(C56=INDEX(Results.Entry,,5-T$4)),INDEX(Results.Scoring,,15+5-T$4)))/(2*Results.Trav.NumLines-2) -> 0.5636363636 | U56: 0 | V56: 0 | W56: 9
A57: 3 | B57: 6 | C57: 35 | D57: 3SS-1 | E57: S | F57: D3 | H57: 50 | I57: =NSPlus -> -50 | J57: 15 | K57: 29 | L57: =2*SUMPRODUCT(($I57>Results.NSPlus)*($A57=Results.Boards)*ISNUMBER(Results.NSPlus))+SUMPRODUCT(($I57=Results.NSPlus)*($A57=Results.Boards)*ISNUMBER(Results.NSPlus))-1 -> 15 | M57: 29 | N57: =SUMPRODUCT(($A57=Results.Boards)*ISNUMBER(Results.NSPlus)*NOT(ISBLANK(Results.Contracts))) -> 23 | O57: 15 | P57: 29 | Q57: 1 | R57: 1 | S57: =(SUMPRODUCT(SIGN(B57=INDEX(Results.Entry,,S$4)),INDEX(Results.Scoring,,13+S$4))+(2-Winners.Count)*SUMPRODUCT(SIGN(B57=INDEX(Results.Entry,,5-S$4)),INDEX(Results.Scoring,,13+5-S$4)))/(SUMPRODUCT(SIGN(B57=INDEX(Results.Entry,,S$4)),INDEX(Results.Scoring,,15+S$4))+(2-Winners.Count)*SUMPRODUCT(SIGN(B57=INDEX(Results.Entry,,5-S$4)),INDEX(Results.Scoring,,15+5-S$4)))/(2*Results.Trav.NumLines-2) -> 0.4079545455 | T57: =(SUMPRODUCT(SIGN(C57=INDEX(Results.Entry,,T$4)),INDEX(Results.Scoring,,13+T$4))+(2-Winners.Count)*SUMPRODUCT(SIGN(C57=INDEX(Results.Entry,,5-T$4)),INDEX(Results.Scoring,,13+5-T$4)))/(SUMPRODUCT(SIGN(C57=INDEX(Results.Entry,,T$4)),INDEX(Results.Scoring,,15+T$4))+(2-Winners.Count)*SUMPRODUCT(SIGN(C57=INDEX(Results.Entry,,5-T$4)),INDEX(Results.Scoring,,15+5-T$4)))/(2*Results.Trav.NumLines-2) -> 0.5215909091 | U57: 0 | V57: 0 | W57: 16
A58: 3 | B58: 7 | C58: 33 | D58: 4CE-1 | E58: E | F58: SK | G58: 100 | I58: =NSPlus -> 100 | J58: 22 | K58: 22 | L58: =2*SUMPRODUCT(($I58>Results.NSPlus)*($A58=Results.Boards)*ISNUMBER(Results.NSPlus))+SUMPRODUCT(($I58=Results.NSPlus)*($A58=Results.Boards)*ISNUMBER(Results.NSPlus))-1 -> 22 | M58: 22 | N58: =SUMPRODUCT(($A58=Results.Boards)*ISNUMBER(Results.NSPlus)*NOT(ISBLANK(Results.Contracts))) -> 23 | O58: 22 | P58: 22 | Q58: 1 | R58: 1 | S58: =(SUMPRODUCT(SIGN(B58=INDEX(Results.Entry,,S$4)),INDEX(Results.Scoring,,13+S$4))+(2-Winners.Count)*SUMPRODUCT(SIGN(B58=INDEX(Results.Entry,,5-S$4)),INDEX(Results.Scoring,,13+5-S$4)))/(SUMPRODUCT(SIGN(B58=INDEX(Results.Entry,,S$4)),INDEX(Results.Scoring,,15+S$4))+(2-Winners.Count)*SUMPRODUCT(SIGN(B58=INDEX(Results.Entry,,5-S$4)),INDEX(Results.Scoring,,15+5-S$4)))/(2*Results.Trav.NumLines-2) -> 0.4295454545 | T58: =(SUMPRODUCT(SIGN(C58=INDEX(Results.Entry,,T$4)),INDEX(Results.Scoring,,13+T$4))+(2-Winners.Count)*SUMPRODUCT(SIGN(C58=INDEX(Results.Entry,,5-T$4)),INDEX(Results.Scoring,,13+5-T$4)))/(SUMPRODUCT(SIGN(C58=INDEX(Results.Entry,,T$4)),INDEX(Results.Scoring,,15+T$4))+(2-Winners.Count)*SUMPRODUCT(SIGN(C58=INDEX(Results.Entry,,5-T$4)),INDEX(Results.Scoring,,15+5-T$4)))/(2*Results.Trav.NumLines-2) -> 0.6079545455 | U58: 0 | V58: 0 | W58: 12
A59: 3 | B59: 8 | C59: 39 | D59: 3SS= | E59: S | F59: D3 | G59: 140 | I59: =NSPlus -> 140 | J59: 34 | K59: 10 | L59: =2*SUMPRODUCT(($I59>Results.NSPlus)*($A59=Results.Boards)*ISNUMBER(Results.NSPlus))+SUMPRODUCT(($I59=Results.NSPlus)*($A59=Results.Boards)*ISNUMBER(Results.NSPlus))-1 -> 34 | M59: 10 | N59: =SUMPRODUCT(($A59=Results.Boards)*ISNUMBER(Results.NSPlus)*NOT(ISBLANK(Results.Contracts))) -> 23 | O59: 34 | P59: 10 | Q59: 1 | R59: 1 | S59: =(SUMPRODUCT(SIGN(B59=INDEX(Results.Entry,,S$4)),INDEX(Results.Scoring,,13+S$4))+(2-Winners.Count)*SUMPRODUCT(SIGN(B59=INDEX(Results.Entry,,5-S$4)),INDEX(Results.Scoring,,13+5-S$4)))/(SUMPRODUCT(SIGN(B59=INDEX(Results.Entry,,S$4)),INDEX(Results.Scoring,,15+S$4))+(2-Winners.Count)*SUMPRODUCT(SIGN(B59=INDEX(Results.Entry,,5-S$4)),INDEX(Results.Scoring,,15+5-S$4)))/(2*Results.Trav.NumLines-2) -> 0.6488636364 | T59: =(SUMPRODUCT(SIGN(C59=INDEX(Results.Entry,,T$4)),INDEX(Results.Scoring,,13+T$4))+(2-Winners.Count)*SUMPRODUCT(SIGN(C59=INDEX(Results.Entry,,5-T$4)),INDEX(Results.Scoring,,13+5-T$4)))/(SUMPRODUCT(SIGN(C59=INDEX(Results.Entry,,T$4)),INDEX(Results.Scoring,,15+T$4))+(2-Winners.Count)*SUMPRODUCT(SIGN(C59=INDEX(Results.Entry,,5-T$4)),INDEX(Results.Scoring,,15+5-T$4)))/(2*Results.Trav.NumLines-2) -> 0.4988636364 | U59: 0 | V59: 0 | W59: 5
A60: 3 | B60: 9 | C60: 38 | D60: 2SS= | E60: S | F60: D9 | G60: 110 | I60: =NSPlus -> 110 | J60: 25 | K60: 19 | L60: =2*SUMPRODUCT(($I60>Results.NSPlus)*($A60=Results.Boards)*ISNUMBER(Results.NSPlus))+SUMPRODUCT(($I60=Results.NSPlus)*($A60=Results.Boards)*ISNUMBER(Results.NSPlus))-1 -> 25 | M60: 19 | N60: =SUMPRODUCT(($A60=Results.Boards)*ISNUMBER(Results.NSPlus)*NOT(ISBLANK(Results.Contracts))) -> 23 | O60: 25 | P60: 19 | Q60: 1 | R60: 1 | S60: =(SUMPRODUCT(SIGN(B60=INDEX(Results.Entry,,S$4)),INDEX(Results.Scoring,,13+S$4))+(2-Winners.Count)*SUMPRODUCT(SIGN(B60=INDEX(Results.Entry,,5-S$4)),INDEX(Results.Scoring,,13+5-S$4)))/(SUMPRODUCT(SIGN(B60=INDEX(Results.Entry,,S$4)),INDEX(Results.Scoring,,15+S$4))+(2-Winners.Count)*SUMPRODUCT(SIGN(B60=INDEX(Results.Entry,,5-S$4)),INDEX(Results.Scoring,,15+5-S$4)))/(2*Results.Trav.NumLines-2) -> 0.5420454545 | T60: =(SUMPRODUCT(SIGN(C60=INDEX(Results.Entry,,T$4)),INDEX(Results.Scoring,,13+T$4))+(2-Winners.Count)*SUMPRODUCT(SIGN(C60=INDEX(Results.Entry,,5-T$4)),INDEX(Results.Scoring,,13+5-T$4)))/(SUMPRODUCT(SIGN(C60=INDEX(Results.Entry,,T$4)),INDEX(Results.Scoring,,15+T$4))+(2-Winners.Count)*SUMPRODUCT(SIGN(C60=INDEX(Results.Entry,,5-T$4)),INDEX(Results.Scoring,,15+5-T$4)))/(2*Results.Trav.NumLines-2) -> 0.4681818182 | U60: 0 | V60: 0 | W60: 10
A61: 3 | B61: 10 | C61: 37 | D61: 2SS= | E61: S | F61: D5 | G61: 110 | I61: =NSPlus -> 110 | J61: 25 | K61: 19 | L61: =2*SUMPRODUCT(($I61>Results.NSPlus)*($A61=Results.Boards)*ISNUMBER(Results.NSPlus))+SUMPRODUCT(($I61=Results.NSPlus)*($A61=Results.Boards)*ISNUMBER(Results.NSPlus))-1 -> 25 | M61: 19 | N61: =SUMPRODUCT(($A61=Results.Boards)*ISNUMBER(Results.NSPlus)*NOT(ISBLANK(Results.Contracts))) -> 23 | O61: 25 | P61: 19 | Q61: 1 | R61: 1 | S61: =(SUMPRODUCT(SIGN(B61=INDEX(Results.Entry,,S$4)),INDEX(Results.Scoring,,13+S$4))+(2-Winners.Count)*SUMPRODUCT(SIGN(B61=INDEX(Results.Entry,,5-S$4)),INDEX(Results.Scoring,,13+5-S$4)))/(SUMPRODUCT(SIGN(B61=INDEX(Results.Entry,,S$4)),INDEX(Results.Scoring,,15+S$4))+(2-Winners.Count)*SUMPRODUCT(SIGN(B61=INDEX(Results.Entry,,5-S$4)),INDEX(Results.Scoring,,15+5-S$4)))/(2*Results.Trav.NumLines-2) -> 0.4954545455 | T61: =(SUMPRODUCT(SIGN(C61=INDEX(Results.Entry,,T$4)),INDEX(Results.Scoring,,13+T$4))+(2-Winners.Count)*SUMPRODUCT(SIGN(C61=INDEX(Results.Entry,,5-T$4)),INDEX(Results.Scoring,,13+5-T$4)))/(SUMPRODUCT(SIGN(C61=INDEX(Results.Entry,,T$4)),INDEX(Results.Scoring,,15+T$4))+(2-Winners.Count)*SUMPRODUCT(SIGN(C61=INDEX(Results.Entry,,5-T$4)),INDEX(Results.Scoring,,15+5-T$4)))/(2*Results.Trav.NumLines-2) -> 0.5465909091 | U61: 0 | V61: 0 | W61: 11
A62: 3 | B62: 11 | C62: 41 | D62: 4CE= | E62: E | F62: SK | H62: 130 | I62: =NSPlus -> -130 | J62: 8 | K62: 36 | L62: =2*SUMPRODUCT(($I62>Results.NSPlus)*($A62=Results.Boards)*ISNUMBER(Results.NSPlus))+SUMPRODUCT(($I62=Results.NSPlus)*($A62=Results.Boards)*ISNUMBER(Results.NSPlus))-1 -> 8 | M62: 36 | N62: =SUMPRODUCT(($A62=Results.Boards)*ISNUMBER(Results.NSPlus)*NOT(ISBLANK(Results.Contracts))) -> 23 | O62: 8 | P62: 36 | Q62: 1 | R62: 1 | S62: =(SUMPRODUCT(SIGN(B62=INDEX(Results.Entry,,S$4)),INDEX(Results.Scoring,,13+S$4))+(2-Winners.Count)*SUMPRODUCT(SIGN(B62=INDEX(Results.Entry,,5-S$4)),INDEX(Results.Scoring,,13+5-S$4)))/(SUMPRODUCT(SIGN(B62=INDEX(Results.Entry,,S$4)),INDEX(Results.Scoring,,15+S$4))+(2-Winners.Count)*SUMPRODUCT(SIGN(B62=INDEX(Results.Entry,,5-S$4)),INDEX(Results.Scoring,,15+5-S$4)))/(2*Results.Trav.NumLines-2) -> 0.5159090909 | T62: =(SUMPRODUCT(SIGN(C62=INDEX(Results.Entry,,T$4)),INDEX(Results.Scoring,,13+T$4))+(2-Winners.Count)*SUMPRODUCT(SIGN(C62=INDEX(Results.Entry,,5-T$4)),INDEX(Results.Scoring,,13+5-T$4)))/(SUMPRODUCT(SIGN(C62=INDEX(Results.Entry,,T$4)),INDEX(Results.Scoring,,15+T$4))+(2-Winners.Count)*SUMPRODUCT(SIGN(C62=INDEX(Results.Entry,,5-T$4)),INDEX(Results.Scoring,,15+5-T$4)))/(2*Results.Trav.NumLines-2) -> 0.6181818182 | U62: 0 | V62: 0 | W62: 19
A63: 3 | B63: 12 | C63: 28 | D63: 4SS-1 | E63: S | F63: H2 | H63: 50 | I63: =NSPlus -> -50 | J63: 15 | K63: 29 | L63: =2*SUMPRODUCT(($I63>Results.NSPlus)*($A63=Results.Boards)*ISNUMBER(Results.NSPlus))+SUMPRODUCT(($I63=Results.NSPlus)*($A63=Results.Boards)*ISNUMBER(Results.NSPlus))-1 -> 15 | M63: 29 | N63: =SUMPRODUCT(($A63=Results.Boards)*ISNUMBER(Results.NSPlus)*NOT(ISBLANK(Results.Contracts))) -> 23 | O63: 15 | P63: 29 | Q63: 1 | R63: 1 | S63: =(SUMPRODUCT(SIGN(B63=INDEX(Results.Entry,,S$4)),INDEX(Results.Scoring,,13+S$4))+(2-Winners.Count)*SUMPRODUCT(SIGN(B63=INDEX(Results.Entry,,5-S$4)),INDEX(Results.Scoring,,13+5-S$4)))/(SUMPRODUCT(SIGN(B63=INDEX(Results.Entry,,S$4)),INDEX(Results.Scoring,,15+S$4))+(2-Winners.Count)*SUMPRODUCT(SIGN(B63=INDEX(Results.Entry,,5-S$4)),INDEX(Results.Scoring,,15+5-S$4)))/(2*Results.Trav.NumLines-2) -> 0.6420454545 | T63: =(SUMPRODUCT(SIGN(C63=INDEX(Results.Entry,,T$4)),INDEX(Results.Scoring,,13+T$4))+(2-Winners.Count)*SUMPRODUCT(SIGN(C63=INDEX(Results.Entry,,5-T$4)),INDEX(Results.Scoring,,13+5-T$4)))/(SUMPRODUCT(SIGN(C63=INDEX(Results.Entry,,T$4)),INDEX(Results.Scoring,,15+T$4))+(2-Winners.Count)*SUMPRODUCT(SIGN(C63=INDEX(Results.Entry,,5-T$4)),INDEX(Results.Scoring,,15+5-T$4)))/(2*Results.Trav.NumLines-2) -> 0.4761363636 | U63: 0 | V63: 0 | W63: 15
A64: 3 | B64: 13 | C64: 30 | D64: 3SS= | E64: S | F64: CA | G64: 140 | I64: =NSPlus -> 140 | J64: 34 | K64: 10 | L64: =2*SUMPRODUCT(($I64>Results.NSPlus)*($A64=Results.Boards)*ISNUMBER(Results.NSPlus))+SUMPRODUCT(($I64=Results.NSPlus)*($A64=Results.Boards)*ISNUMBER(Results.NSPlus))-1 -> 34 | M64: 10 | N64: =SUMPRODUCT(($A64=Results.Boards)*ISNUMBER(Results.NSPlus)*NOT(ISBLANK(Results.Contracts))) -> 23 | O64: 34 | P64: 10 | Q64: 1 | R64: 1 | S64: =(SUMPRODUCT(SIGN(B64=INDEX(Results.Entry,,S$4)),INDEX(Results.Scoring,,13+S$4))+(2-Winners.Count)*SUMPRODUCT(SIGN(B64=INDEX(Results.Entry,,5-S$4)),INDEX(Results.Scoring,,13+5-S$4)))/(SUMPRODUCT(SIGN(B64=INDEX(Results.Entry,,S$4)),INDEX(Results.Scoring,,15+S$4))+(2-Winners.Count)*SUMPRODUCT(SIGN(B64=INDEX(Results.Entry,,5-S$4)),INDEX(Results.Scoring,,15+5-S$4)))/(2*Results.Trav.NumLines-2) -> 0.425 | T64: =(SUMPRODUCT(SIGN(C64=INDEX(Results.Entry,,T$4)),INDEX(Results.Scoring,,13+T$4))+(2-Winners.Count)*SUMPRODUCT(SIGN(C64=INDEX(Results.Entry,,5-T$4)),INDEX(Results.Scoring,,13+5-T$4)))/(SUMPRODUCT(SIGN(C64=INDEX(Results.Entry,,T$4)),INDEX(Results.Scoring,,15+T$4))+(2-Winners.Count)*SUMPRODUCT(SIGN(C64=INDEX(Results.Entry,,5-T$4)),INDEX(Results.Scoring,,15+5-T$4)))/(2*Results.Trav.NumLines-2) -> 0.4977272727 | U64: 0 | V64: 0 | W64: 8
A65: 3 | B65: 14 | C65: 43 | D65: 3SS= | E65: S | F65: CA | G65: 140 | I65: =NSPlus -> 140 | J65: 34 | K65: 10 | L65: =2*SUMPRODUCT(($I65>Results.NSPlus)*($A65=Results.Boards)*ISNUMBER(Results.NSPlus))+SUMPRODUCT(($I65=Results.NSPlus)*($A65=Results.Boards)*ISNUMBER(Results.NSPlus))-1 -> 34 | M65: 10 | N65: =SUMPRODUCT(($A65=Results.Boards)*ISNUMBER(Results.NSPlus)*NOT(ISBLANK(Results.Contracts))) -> 23 | O65: 34 | P65: 10 | Q65: 1 | R65: 1 | S65: =(SUMPRODUCT(SIGN(B65=INDEX(Results.Entry,,S$4)),INDEX(Results.Scoring,,13+S$4))+(2-Winners.Count)*SUMPRODUCT(SIGN(B65=INDEX(Results.Entry,,5-S$4)),INDEX(Results.Scoring,,13+5-S$4)))/(SUMPRODUCT(SIGN(B65=INDEX(Results.Entry,,S$4)),INDEX(Results.Scoring,,15+S$4))+(2-Winners.Count)*SUMPRODUCT(SIGN(B65=INDEX(Results.Entry,,5-S$4)),INDEX(Results.Scoring,,15+5-S$4)))/(2*Results.Trav.NumLines-2) -> 0.6238636364 | T65: =(SUMPRODUCT(SIGN(C65=INDEX(Results.Entry,,T$4)),INDEX(Results.Scoring,,13+T$4))+(2-Winners.Count)*SUMPRODUCT(SIGN(C65=INDEX(Results.Entry,,5-T$4)),INDEX(Results.Scoring,,13+5-T$4)))/(SUMPRODUCT(SIGN(C65=INDEX(Results.Entry,,T$4)),INDEX(Results.Scoring,,15+T$4))+(2-Winners.Count)*SUMPRODUCT(SIGN(C65=INDEX(Results.Entry,,5-T$4)),INDEX(Results.Scoring,,15+5-T$4)))/(2*Results.Trav.NumLines-2) -> 0.5488636364 | U65: 0 | V65: 0 | W65: 7
A66: 3 | B66: 15 | C66: 29 | D66: 3SS-1 | E66: S | F66: CA | H66: 50 | I66: =NSPlus -> -50 | J66: 15 | K66: 29 | L66: =2*SUMPRODUCT(($I66>Results.NSPlus)*($A66=Results.Boards)*ISNUMBER(Results.NSPlus))+SUMPRODUCT(($I66=Results.NSPlus)*($A66=Results.Boards)*ISNUMBER(Results.NSPlus))-1 -> 15 | M66: 29 | N66: =SUMPRODUCT(($A66=Results.Boards)*ISNUMBER(Results.NSPlus)*NOT(ISBLANK(Results.Contracts))) -> 23 | O66: 15 | P66: 29 | Q66: 1 | R66: 1 | S66: =(SUMPRODUCT(SIGN(B66=INDEX(Results.Entry,,S$4)),INDEX(Results.Scoring,,13+S$4))+(2-Winners.Count)*SUMPRODUCT(SIGN(B66=INDEX(Results.Entry,,5-S$4)),INDEX(Results.Scoring,,13+5-S$4)))/(SUMPRODUCT(SIGN(B66=INDEX(Results.Entry,,S$4)),INDEX(Results.Scoring,,15+S$4))+(2-Winners.Count)*SUMPRODUCT(SIGN(B66=INDEX(Results.Entry,,5-S$4)),INDEX(Results.Scoring,,15+5-S$4)))/(2*Results.Trav.NumLines-2) -> 0.4568181818 | T66: =(SUMPRODUCT(SIGN(C66=INDEX(Results.Entry,,T$4)),INDEX(Results.Scoring,,13+T$4))+(2-Winners.Count)*SUMPRODUCT(SIGN(C66=INDEX(Results.Entry,,5-T$4)),INDEX(Results.Scoring,,13+5-T$4)))/(SUMPRODUCT(SIGN(C66=INDEX(Results.Entry,,T$4)),INDEX(Results.Scoring,,15+T$4))+(2-Winners.Count)*SUMPRODUCT(SIGN(C66=INDEX(Results.Entry,,5-T$4)),INDEX(Results.Scoring,,15+5-T$4)))/(2*Results.Trav.NumLines-2) -> 0.5715909091 | U66: 0 | V66: 0 | W66: 17
A67: 3 | B67: 16 | C67: 24 | D67: 4SS-1 | E67: S | F67: H7 | H67: 50 | I67: =NSPlus -> -50 | J67: 15 | K67: 29 | L67: =2*SUMPRODUCT(($I67>Results.NSPlus)*($A67=Results.Boards)*ISNUMBER(Results.NSPlus))+SUMPRODUCT(($I67=Results.NSPlus)*($A67=Results.Boards)*ISNUMBER(Results.NSPlus))-1 -> 15 | M67: 29 | N67: =SUMPRODUCT(($A67=Results.Boards)*ISNUMBER(Results.NSPlus)*NOT(ISBLANK(Results.Contracts))) -> 23 | O67: 15 | P67: 29 | Q67: 1 | R67: 1 | S67: =(SUMPRODUCT(SIGN(B67=INDEX(Results.Entry,,S$4)),INDEX(Results.Scoring,,13+S$4))+(2-Winners.Count)*SUMPRODUCT(SIGN(B67=INDEX(Results.Entry,,5-S$4)),INDEX(Results.Scoring,,13+5-S$4)))/(SUMPRODUCT(SIGN(B67=INDEX(Results.Entry,,S$4)),INDEX(Results.Scoring,,15+S$4))+(2-Winners.Count)*SUMPRODUCT(SIGN(B67=INDEX(Results.Entry,,5-S$4)),INDEX(Results.Scoring,,15+5-S$4)))/(2*Results.Trav.NumLines-2) -> 0.5602272727 | T67: =(SUMPRODUCT(SIGN(C67=INDEX(Results.Entry,,T$4)),INDEX(Results.Scoring,,13+T$4))+(2-Winners.Count)*SUMPRODUCT(SIGN(C67=INDEX(Results.Entry,,5-T$4)),INDEX(Results.Scoring,,13+5-T$4)))/(SUMPRODUCT(SIGN(C67=INDEX(Results.Entry,,T$4)),INDEX(Results.Scoring,,15+T$4))+(2-Winners.Count)*SUMPRODUCT(SIGN(C67=INDEX(Results.Entry,,5-T$4)),INDEX(Results.Scoring,,15+5-T$4)))/(2*Results.Trav.NumLines-2) -> 0.3909090909 | U67: 0 | V67: 0 | W67: 13
A68: 3 | B68: 17 | C68: 31 | D68: 3SS-1 | E68: S | F68: H2 | H68: 50 | I68: =NSPlus -> -50 | J68: 15 | K68: 29 | L68: =2*SUMPRODUCT(($I68>Results.NSPlus)*($A68=Results.Boards)*ISNUMBER(Results.NSPlus))+SUMPRODUCT(($I68=Results.NSPlus)*($A68=Results.Boards)*ISNUMBER(Results.NSPlus))-1 -> 15 | M68: 29 | N68: =SUMPRODUCT(($A68=Results.Boards)*ISNUMBER(Results.NSPlus)*NOT(ISBLANK(Results.Contracts))) -> 23 | O68: 15 | P68: 29 | Q68: 1 | R68: 1 | S68: =(SUMPRODUCT(SIGN(B68=INDEX(Results.Entry,,S$4)),INDEX(Results.Scoring,,13+S$4))+(2-Winners.Count)*SUMPRODUCT(SIGN(B68=INDEX(Results.Entry,,5-S$4)),INDEX(Results.Scoring,,13+5-S$4)))/(SUMPRODUCT(SIGN(B68=INDEX(Results.Entry,,S$4)),INDEX(Results.Scoring,,15+S$4))+(2-Winners.Count)*SUMPRODUCT(SIGN(B68=INDEX(Results.Entry,,5-S$4)),INDEX(Results.Scoring,,15+5-S$4)))/(2*Results.Trav.NumLines-2) -> 0.4693181818 | T68: =(SUMPRODUCT(SIGN(C68=INDEX(Results.Entry,,T$4)),INDEX(Results.Scoring,,13+T$4))+(2-Winners.Count)*SUMPRODUCT(SIGN(C68=INDEX(Results.Entry,,5-T$4)),INDEX(Results.Scoring,,13+5-T$4)))/(SUMPRODUCT(SIGN(C68=INDEX(Results.Entry,,T$4)),INDEX(Results.Scoring,,15+T$4))+(2-Winners.Count)*SUMPRODUCT(SIGN(C68=INDEX(Results.Entry,,5-T$4)),INDEX(Results.Scoring,,15+5-T$4)))/(2*Results.Trav.NumLines-2) -> 0.4772727273 | U68: 0 | V68: 0 | W68: 14
A69: 3 | B69: 18 | C69: 25 | D69: 2SS+2 | E69: S | F69: D5 | G69: 170 | I69: =NSPlus -> 170 | J69: 43 | K69: 1 | L69: =2*SUMPRODUCT(($I69>Results.NSPlus)*($A69=Results.Boards)*ISNUMBER(Results.NSPlus))+SUMPRODUCT(($I69=Results.NSPlus)*($A69=Results.Boards)*ISNUMBER(Results.NSPlus))-1 -> 43 | M69: 1 | N69: =SUMPRODUCT(($A69=Results.Boards)*ISNUMBER(Results.NSPlus)*NOT(ISBLANK(Results.Contracts))) -> 23 | O69: 43 | P69: 1 | Q69: 1 | R69: 1 | S69: =(SUMPRODUCT(SIGN(B69=INDEX(Results.Entry,,S$4)),INDEX(Results.Scoring,,13+S$4))+(2-Winners.Count)*SUMPRODUCT(SIGN(B69=INDEX(Results.Entry,,5-S$4)),INDEX(Results.Scoring,,13+5-S$4)))/(SUMPRODUCT(SIGN(B69=INDEX(Results.Entry,,S$4)),INDEX(Results.Scoring,,15+S$4))+(2-Winners.Count)*SUMPRODUCT(SIGN(B69=INDEX(Results.Entry,,5-S$4)),INDEX(Results.Scoring,,15+5-S$4)))/(2*Results.Trav.NumLines-2) -> 0.5238636364 | T69: =(SUMPRODUCT(SIGN(C69=INDEX(Results.Entry,,T$4)),INDEX(Results.Scoring,,13+T$4))+(2-Winners.Count)*SUMPRODUCT(SIGN(C69=INDEX(Results.Entry,,5-T$4)),INDEX(Results.Scoring,,13+5-T$4)))/(SUMPRODUCT(SIGN(C69=INDEX(Results.Entry,,T$4)),INDEX(Results.Scoring,,15+T$4))+(2-Winners.Count)*SUMPRODUCT(SIGN(C69=INDEX(Results.Entry,,5-T$4)),INDEX(Results.Scoring,,15+5-T$4)))/(2*Results.Trav.NumLines-2) -> 0.2818181818 | U69: 0 | V69: 0 | W69: 2
A70: 3 | B70: 19 | C70: 44 | D70: 3SS= | E70: S | F70: D9 | G70: 140 | I70: =NSPlus -> 140 | J70: 34 | K70: 10 | L70: =2*SUMPRODUCT(($I70>Results.NSPlus)*($A70=Results.Boards)*ISNUMBER(Results.NSPlus))+SUMPRODUCT(($I70=Results.NSPlus)*($A70=Results.Boards)*ISNUMBER(Results.NSPlus))-1 -> 34 | M70: 10 | N70: =SUMPRODUCT(($A70=Results.Boards)*ISNUMBER(Results.NSPlus)*NOT(ISBLANK(Results.Contracts))) -> 23 | O70: 34 | P70: 10 | Q70: 1 | R70: 1 | S70: =(SUMPRODUCT(SIGN(B70=INDEX(Results.Entry,,S$4)),INDEX(Results.Scoring,,13+S$4))+(2-Winners.Count)*SUMPRODUCT(SIGN(B70=INDEX(Results.Entry,,5-S$4)),INDEX(Results.Scoring,,13+5-S$4)))/(SUMPRODUCT(SIGN(B70=INDEX(Results.Entry,,S$4)),INDEX(Results.Scoring,,15+S$4))+(2-Winners.Count)*SUMPRODUCT(SIGN(B70=INDEX(Results.Entry,,5-S$4)),INDEX(Results.Scoring,,15+5-S$4)))/(2*Results.Trav.NumLines-2) -> 0.4340909091 | T70: =(SUMPRODUCT(SIGN(C70=INDEX(Results.Entry,,T$4)),INDEX(Results.Scoring,,13+T$4))+(2-Winners.Count)*SUMPRODUCT(SIGN(C70=INDEX(Results.Entry,,5-T$4)),INDEX(Results.Scoring,,13+5-T$4)))/(SUMPRODUCT(SIGN(C70=INDEX(Results.Entry,,T$4)),INDEX(Results.Scoring,,15+T$4))+(2-Winners.Count)*SUMPRODUCT(SIGN(C70=INDEX(Results.Entry,,5-T$4)),INDEX(Results.Scoring,,15+5-T$4)))/(2*Results.Trav.NumLines-2) -> 0.3806818182 | U70: 0 | V70: 0 | W70: 3
A71: 3 | B71: 20 | C71: 32 | D71: 4SxS-2 | E71: S | F71: H2 | G71: =IF(I71>0,I71,"") ->  | H71: =IF(I71>0,"",-I71) -> 300 | I71: =NSPlus -> -300 | J71: =ROUND(IF(LEFT($D71,3)="ADJ",U71,O71),2) -> 3 | K71: =ROUND(IF(LEFT($D71,3)="ADJ",V71,P71),2) -> 41 | L71: =2*SUMPRODUCT(($I71>Results.NSPlus)*($A71=Results.Boards)*ISNUMBER(Results.NSPlus))+SUMPRODUCT(($I71=Results.NSPlus)*($A71=Results.Boards)*ISNUMBER(Results.NSPlus))-1 -> 3 | M71: =2*N71-2-L71 -> 41 | N71: =SUMPRODUCT(($A71=Results.Boards)*ISNUMBER(Results.NSPlus)*NOT(ISBLANK(Results.Contracts))) -> 23 | O71: =IF(LEFT($D71,3)="ADJ",IF(MID($D71,J$4,2)="50",Results.Trav.NumLines-1,0),Results.Trav.NumLines*(L71+1)/$N71-1) -> 3 | P71: =IF(LEFT($D71,3)="ADJ",IF(MID($D71,K$4,2)="50",Results.Trav.NumLines-1,0),Results.Trav.NumLines*(M71+1)/$N71-1) -> 41 | Q71: =SIGN(AND(MID($D71,J$4,2)<>"60",MID($D71,J$4,2)<>"40")) -> 1 | R71: =SIGN(AND(MID($D71,K$4,2)<>"60",MID($D71,K$4,2)<>"40")) -> 1 | S71: =(SUMPRODUCT(SIGN(B71=INDEX(Results.Entry,,S$4)),INDEX(Results.Scoring,,13+S$4))+(2-Winners.Count)*SUMPRODUCT(SIGN(B71=INDEX(Results.Entry,,5-S$4)),INDEX(Results.Scoring,,13+5-S$4)))/(SUMPRODUCT(SIGN(B71=INDEX(Results.Entry,,S$4)),INDEX(Results.Scoring,,15+S$4))+(2-Winners.Count)*SUMPRODUCT(SIGN(B71=INDEX(Results.Entry,,5-S$4)),INDEX(Results.Scoring,,15+5-S$4)))/(2*Results.Trav.NumLines-2) -> 0.375 | T71: =(SUMPRODUCT(SIGN(C71=INDEX(Results.Entry,,T$4)),INDEX(Results.Scoring,,13+T$4))+(2-Winners.Count)*SUMPRODUCT(SIGN(C71=INDEX(Results.Entry,,5-T$4)),INDEX(Results.Scoring,,13+5-T$4)))/(SUMPRODUCT(SIGN(C71=INDEX(Results.Entry,,T$4)),INDEX(Results.Scoring,,15+T$4))+(2-Winners.Count)*SUMPRODUCT(SIGN(C71=INDEX(Results.Entry,,5-T$4)),INDEX(Results.Scoring,,15+5-T$4)))/(2*Results.Trav.NumLines-2) -> 0.5215909091 | U71: =IFERROR(CHOOSE(MID($D71,J$4,2)/10-3,MIN(S71,0.4),0.5,MAX(S71,0.6))*(Results.Trav.NumLines-1)*2,0) -> 0 | V71: =IFERROR(CHOOSE(MID($D71,K$4,2)/10-3,MIN(T71,0.4),0.5,MAX(T71,0.6))*(Results.Trav.NumLines-1)*2,0) -> 0 | W71: 21
A72: 3 | B72: 21 | C72: 26 | D72: 3SS= | E72: S | F72: H2 | G72: 140 | I72: =NSPlus -> 140 | J72: 34 | K72: 10 | L72: =2*SUMPRODUCT(($I72>Results.NSPlus)*($A72=Results.Boards)*ISNUMBER(Results.NSPlus))+SUMPRODUCT(($I72=Results.NSPlus)*($A72=Results.Boards)*ISNUMBER(Results.NSPlus))-1 -> 34 | M72: 10 | N72: =SUMPRODUCT(($A72=Results.Boards)*ISNUMBER(Results.NSPlus)*NOT(ISBLANK(Results.Contracts))) -> 23 | O72: 34 | P72: 10 | Q72: 1 | R72: 1 | S72: =(SUMPRODUCT(SIGN(B72=INDEX(Results.Entry,,S$4)),INDEX(Results.Scoring,,13+S$4))+(2-Winners.Count)*SUMPRODUCT(SIGN(B72=INDEX(Results.Entry,,5-S$4)),INDEX(Results.Scoring,,13+5-S$4)))/(SUMPRODUCT(SIGN(B72=INDEX(Results.Entry,,S$4)),INDEX(Results.Scoring,,15+S$4))+(2-Winners.Count)*SUMPRODUCT(SIGN(B72=INDEX(Results.Entry,,5-S$4)),INDEX(Results.Scoring,,15+5-S$4)))/(2*Results.Trav.NumLines-2) -> 0.5568181818 | T72: =(SUMPRODUCT(SIGN(C72=INDEX(Results.Entry,,T$4)),INDEX(Results.Scoring,,13+T$4))+(2-Winners.Count)*SUMPRODUCT(SIGN(C72=INDEX(Results.Entry,,5-T$4)),INDEX(Results.Scoring,,13+5-T$4)))/(SUMPRODUCT(SIGN(C72=INDEX(Results.Entry,,T$4)),INDEX(Results.Scoring,,15+T$4))+(2-Winners.Count)*SUMPRODUCT(SIGN(C72=INDEX(Results.Entry,,5-T$4)),INDEX(Results.Scoring,,15+5-T$4)))/(2*Results.Trav.NumLines-2) -> 0.4613636364 | U72: 0 | V72: 0 | W72: 4
A73: 3 | B73: 22 | C73: 27 | D73: 5CE= | E73: E | F73: C8 | H73: 600 | I73: =NSPlus -> -600 | J73: 0 | K73: 44 | L73: =2*SUMPRODUCT(($I73>Results.NSPlus)*($A73=Results.Boards)*ISNUMBER(Results.NSPlus))+SUMPRODUCT(($I73=Results.NSPlus)*($A73=Results.Boards)*ISNUMBER(Results.NSPlus))-1 -> 0 | M73: 44 | N73: =SUMPRODUCT(($A73=Results.Boards)*ISNUMBER(Results.NSPlus)*NOT(ISBLANK(Results.Contracts))) -> 23 | O73: 0 | P73: 44 | Q73: 1 | R73: 1 | S73: =(SUMPRODUCT(SIGN(B73=INDEX(Results.Entry,,S$4)),INDEX(Results.Scoring,,13+S$4))+(2-Winners.Count)*SUMPRODUCT(SIGN(B73=INDEX(Results.Entry,,5-S$4)),INDEX(Results.Scoring,,13+5-S$4)))/(SUMPRODUCT(SIGN(B73=INDEX(Results.Entry,,S$4)),INDEX(Results.Scoring,,15+S$4))+(2-Winners.Count)*SUMPRODUCT(SIGN(B73=INDEX(Results.Entry,,5-S$4)),INDEX(Results.Scoring,,15+5-S$4)))/(2*Results.Trav.NumLines-2) -> 0.3534090909 | T73: =(SUMPRODUCT(SIGN(C73=INDEX(Results.Entry,,T$4)),INDEX(Results.Scoring,,13+T$4))+(2-Winners.Count)*SUMPRODUCT(SIGN(C73=INDEX(Results.Entry,,5-T$4)),INDEX(Results.Scoring,,13+5-T$4)))/(SUMPRODUCT(SIGN(C73=INDEX(Results.Entry,,T$4)),INDEX(Results.Scoring,,15+T$4))+(2-Winners.Count)*SUMPRODUCT(SIGN(C73=INDEX(Results.Entry,,5-T$4)),INDEX(Results.Scoring,,15+5-T$4)))/(2*Results.Trav.NumLines-2) -> 0.5170454545 | U73: 0 | V73: 0 | W73: 23
A74: 3 | B74: 23 | C74: 36 | D74: 4SxS-2 | E74: S | F74: CA | H74: 300 | I74: =NSPlus -> -300 | J74: 3 | K74: 41 | L74: =2*SUMPRODUCT(($I74>Results.NSPlus)*($A74=Results.Boards)*ISNUMBER(Results.NSPlus))+SUMPRODUCT(($I74=Results.NSPlus)*($A74=Results.Boards)*ISNUMBER(Results.NSPlus))-1 -> 3 | M74: 41 | N74: =SUMPRODUCT(($A74=Results.Boards)*ISNUMBER(Results.NSPlus)*NOT(ISBLANK(Results.Contracts))) -> 23 | O74: 3 | P74: 41 | Q74: 1 | R74: 1 | S74: =(SUMPRODUCT(SIGN(B74=INDEX(Results.Entry,,S$4)),INDEX(Results.Scoring,,13+S$4))+(2-Winners.Count)*SUMPRODUCT(SIGN(B74=INDEX(Results.Entry,,5-S$4)),INDEX(Results.Scoring,,13+5-S$4)))/(SUMPRODUCT(SIGN(B74=INDEX(Results.Entry,,S$4)),INDEX(Results.Scoring,,15+S$4))+(2-Winners.Count)*SUMPRODUCT(SIGN(B74=INDEX(Results.Entry,,5-S$4)),INDEX(Results.Scoring,,15+5-S$4)))/(2*Results.Trav.NumLines-2) -> 0.4340909091 | T74: =(SUMPRODUCT(SIGN(C74=INDEX(Results.Entry,,T$4)),INDEX(Results.Scoring,,13+T$4))+(2-Winners.Count)*SUMPRODUCT(SIGN(C74=INDEX(Results.Entry,,5-T$4)),INDEX(Results.Scoring,,13+5-T$4)))/(SUMPRODUCT(SIGN(C74=INDEX(Results.Entry,,T$4)),INDEX(Results.Scoring,,15+T$4))+(2-Winners.Count)*SUMPRODUCT(SIGN(C74=INDEX(Results.Entry,,5-T$4)),INDEX(Results.Scoring,,15+5-T$4)))/(2*Results.Trav.NumLines-2) -> 0.5852272727 | U74: 0 | V74: 0 | W74: 22
A75: 4 | B75: 1 | C75: 45 | D75: 5HxW-3 | E75: W | F75: DK | G75: 800 | I75: =NSPlus -> 800 | J75: 44 | K75: 0 | L75: =2*SUMPRODUCT(($I75>Results.NSPlus)*($A75=Results.Boards)*ISNUMBER(Results.NSPlus))+SUMPRODUCT(($I75=Results.NSPlus)*($A75=Results.Boards)*ISNUMBER(Results.NSPlus))-1 -> 44 | M75: 0 | N75: =SUMPRODUCT(($A75=Results.Boards)*ISNUMBER(Results.NSPlus)*NOT(ISBLANK(Results.Contracts))) -> 23 | O75: 44 | P75: 0 | Q75: 1 | R75: 1 | S75: =(SUMPRODUCT(SIGN(B75=INDEX(Results.Entry,,S$4)),INDEX(Results.Scoring,,13+S$4))+(2-Winners.Count)*SUMPRODUCT(SIGN(B75=INDEX(Results.Entry,,5-S$4)),INDEX(Results.Scoring,,13+5-S$4)))/(SUMPRODUCT(SIGN(B75=INDEX(Results.Entry,,S$4)),INDEX(Results.Scoring,,15+S$4))+(2-Winners.Count)*SUMPRODUCT(SIGN(B75=INDEX(Results.Entry,,5-S$4)),INDEX(Results.Scoring,,15+5-S$4)))/(2*Results.Trav.NumLines-2) -> 0.5954545455 | T75: =(SUMPRODUCT(SIGN(C75=INDEX(Results.Entry,,T$4)),INDEX(Results.Scoring,,13+T$4))+(2-Winners.Count)*SUMPRODUCT(SIGN(C75=INDEX(Results.Entry,,5-T$4)),INDEX(Results.Scoring,,13+5-T$4)))/(SUMPRODUCT(SIGN(C75=INDEX(Results.Entry,,T$4)),INDEX(Results.Scoring,,15+T$4))+(2-Winners.Count)*SUMPRODUCT(SIGN(C75=INDEX(Results.Entry,,5-T$4)),INDEX(Results.Scoring,,15+5-T$4)))/(2*Results.Trav.NumLines-2) -> 0.3965909091 | U75: 0 | V75: 0 | W75: 1
A76: 4 | B76: 2 | C76: 40 | D76: 5CS= | E76: S | F76: HA | G76: 600 | I76: =NSPlus -> 600 | J76: 41 | K76: 3 | L76: =2*SUMPRODUCT(($I76>Results.NSPlus)*($A76=Results.Boards)*ISNUMBER(Results.NSPlus))+SUMPRODUCT(($I76=Results.NSPlus)*($A76=Results.Boards)*ISNUMBER(Results.NSPlus))-1 -> 41 | M76: 3 | N76: =SUMPRODUCT(($A76=Results.Boards)*ISNUMBER(Results.NSPlus)*NOT(ISBLANK(Results.Contracts))) -> 23 | O76: 41 | P76: 3 | Q76: 1 | R76: 1 | S76: =(SUMPRODUCT(SIGN(B76=INDEX(Results.Entry,,S$4)),INDEX(Results.Scoring,,13+S$4))+(2-Winners.Count)*SUMPRODUCT(SIGN(B76=INDEX(Results.Entry,,5-S$4)),INDEX(Results.Scoring,,13+5-S$4)))/(SUMPRODUCT(SIGN(B76=INDEX(Results.Entry,,S$4)),INDEX(Results.Scoring,,15+S$4))+(2-Winners.Count)*SUMPRODUCT(SIGN(B76=INDEX(Results.Entry,,5-S$4)),INDEX(Results.Scoring,,15+5-S$4)))/(2*Results.Trav.NumLines-2) -> 0.5795454545 | T76: =(SUMPRODUCT(SIGN(C76=INDEX(Results.Entry,,T$4)),INDEX(Results.Scoring,,13+T$4))+(2-Winners.Count)*SUMPRODUCT(SIGN(C76=INDEX(Results.Entry,,5-T$4)),INDEX(Results.Scoring,,13+5-T$4)))/(SUMPRODUCT(SIGN(C76=INDEX(Results.Entry,,T$4)),INDEX(Results.Scoring,,15+T$4))+(2-Winners.Count)*SUMPRODUCT(SIGN(C76=INDEX(Results.Entry,,5-T$4)),INDEX(Results.Scoring,,15+5-T$4)))/(2*Results.Trav.NumLines-2) -> 0.5272727273 | U76: 0 | V76: 0 | W76: 3
A77: 4 | B77: 3 | C77: 46 | D77: 4CS= | E77: S | F77: S3 | G77: 130 | I77: =NSPlus -> 130 | J77: 24 | K77: 20 | L77: =2*SUMPRODUCT(($I77>Results.NSPlus)*($A77=Results.Boards)*ISNUMBER(Results.NSPlus))+SUMPRODUCT(($I77=Results.NSPlus)*($A77=Results.Boards)*ISNUMBER(Results.NSPlus))-1 -> 24 | M77: 20 | N77: =SUMPRODUCT(($A77=Results.Boards)*ISNUMBER(Results.NSPlus)*NOT(ISBLANK(Results.Contracts))) -> 23 | O77: 24 | P77: 20 | Q77: 1 | R77: 1 | S77: =(SUMPRODUCT(SIGN(B77=INDEX(Results.Entry,,S$4)),INDEX(Results.Scoring,,13+S$4))+(2-Winners.Count)*SUMPRODUCT(SIGN(B77=INDEX(Results.Entry,,5-S$4)),INDEX(Results.Scoring,,13+5-S$4)))/(SUMPRODUCT(SIGN(B77=INDEX(Results.Entry,,S$4)),INDEX(Results.Scoring,,15+S$4))+(2-Winners.Count)*SUMPRODUCT(SIGN(B77=INDEX(Results.Entry,,5-S$4)),INDEX(Results.Scoring,,15+5-S$4)))/(2*Results.Trav.NumLines-2) -> 0.4034090909 | T77: =(SUMPRODUCT(SIGN(C77=INDEX(Results.Entry,,T$4)),INDEX(Results.Scoring,,13+T$4))+(2-Winners.Count)*SUMPRODUCT(SIGN(C77=INDEX(Results.Entry,,5-T$4)),INDEX(Results.Scoring,,13+5-T$4)))/(SUMPRODUCT(SIGN(C77=INDEX(Results.Entry,,T$4)),INDEX(Results.Scoring,,15+T$4))+(2-Winners.Count)*SUMPRODUCT(SIGN(C77=INDEX(Results.Entry,,5-T$4)),INDEX(Results.Scoring,,15+5-T$4)))/(2*Results.Trav.NumLines-2) -> 0.4488636364 | U77: 0 | V77: 0 | W77: 10
A78: 4 | B78: 4 | C78: 42 | D78: 5SxS-4 | E78: S | F78: HA | H78: 1100 | I78: =NSPlus -> -1100 | J78: 0 | K78: 44 | L78: =2*SUMPRODUCT(($I78>Results.NSPlus)*($A78=Results.Boards)*ISNUMBER(Results.NSPlus))+SUMPRODUCT(($I78=Results.NSPlus)*($A78=Results.Boards)*ISNUMBER(Results.NSPlus))-1 -> 0 | M78: 44 | N78: =SUMPRODUCT(($A78=Results.Boards)*ISNUMBER(Results.NSPlus)*NOT(ISBLANK(Results.Contracts))) -> 23 | O78: 0 | P78: 44 | Q78: 1 | R78: 1 | S78: =(SUMPRODUCT(SIGN(B78=INDEX(Results.Entry,,S$4)),INDEX(Results.Scoring,,13+S$4))+(2-Winners.Count)*SUMPRODUCT(SIGN(B78=INDEX(Results.Entry,,5-S$4)),INDEX(Results.Scoring,,13+5-S$4)))/(SUMPRODUCT(SIGN(B78=INDEX(Results.Entry,,S$4)),INDEX(Results.Scoring,,15+S$4))+(2-Winners.Count)*SUMPRODUCT(SIGN(B78=INDEX(Results.Entry,,5-S$4)),INDEX(Results.Scoring,,15+5-S$4)))/(2*Results.Trav.NumLines-2) -> 0.4886363636 | T78: =(SUMPRODUCT(SIGN(C78=INDEX(Results.Entry,,T$4)),INDEX(Results.Scoring,,13+T$4))+(2-Winners.Count)*SUMPRODUCT(SIGN(C78=INDEX(Results.Entry,,5-T$4)),INDEX(Results.Scoring,,13+5-T$4)))/(SUMPRODUCT(SIGN(C78=INDEX(Results.Entry,,T$4)),INDEX(Results.Scoring,,15+T$4))+(2-Winners.Count)*SUMPRODUCT(SIGN(C78=INDEX(Results.Entry,,5-T$4)),INDEX(Results.Scoring,,15+5-T$4)))/(2*Results.Trav.NumLines-2) -> 0.5920454545 | U78: 0 | V78: 0 | W78: 23
A79: 4 | B79: 5 | C79: 34 | D79: 4HW= | E79: W | F79: DK | H79: 620 | I79: =NSPlus -> -620 | J79: 4 | K79: 40 | L79: =2*SUMPRODUCT(($I79>Results.NSPlus)*($A79=Results.Boards)*ISNUMBER(Results.NSPlus))+SUMPRODUCT(($I79=Results.NSPlus)*($A79=Results.Boards)*ISNUMBER(Results.NSPlus))-1 -> 4 | M79: 40 | N79: =SUMPRODUCT(($A79=Results.Boards)*ISNUMBER(Results.NSPlus)*NOT(ISBLANK(Results.Contracts))) -> 23 | O79: 4 | P79: 40 | Q79: 1 | R79: 1 | S79: =(SUMPRODUCT(SIGN(B79=INDEX(Results.Entry,,S$4)),INDEX(Results.Scoring,,13+S$4))+(2-Winners.Count)*SUMPRODUCT(SIGN(B79=INDEX(Results.Entry,,5-S$4)),INDEX(Results.Scoring,,13+5-S$4)))/(SUMPRODUCT(SIGN(B79=INDEX(Results.Entry,,S$4)),INDEX(Results.Scoring,,15+S$4))+(2-Winners.Count)*SUMPRODUCT(SIGN(B79=INDEX(Results.Entry,,5-S$4)),INDEX(Results.Scoring,,15+5-S$4)))/(2*Results.Trav.NumLines-2) -> 0.5386363636 | T79: =(SUMPRODUCT(SIGN(C79=INDEX(Results.Entry,,T$4)),INDEX(Results.Scoring,,13+T$4))+(2-Winners.Count)*SUMPRODUCT(SIGN(C79=INDEX(Results.Entry,,5-T$4)),INDEX(Results.Scoring,,13+5-T$4)))/(SUMPRODUCT(SIGN(C79=INDEX(Results.Entry,,T$4)),INDEX(Results.Scoring,,15+T$4))+(2-Winners.Count)*SUMPRODUCT(SIGN(C79=INDEX(Results.Entry,,5-T$4)),INDEX(Results.Scoring,,15+5-T$4)))/(2*Results.Trav.NumLines-2) -> 0.5636363636 | U79: 0 | V79: 0 | W79: 21
A80: 4 | B80: 6 | C80: 35 | D80: 4HW-1 | E80: W | F80: DA | G80: 100 | I80: =NSPlus -> 100 | J80: 15 | K80: 29 | L80: =2*SUMPRODUCT(($I80>Results.NSPlus)*($A80=Results.Boards)*ISNUMBER(Results.NSPlus))+SUMPRODUCT(($I80=Results.NSPlus)*($A80=Results.Boards)*ISNUMBER(Results.NSPlus))-1 -> 15 | M80: 29 | N80: =SUMPRODUCT(($A80=Results.Boards)*ISNUMBER(Results.NSPlus)*NOT(ISBLANK(Results.Contracts))) -> 23 | O80: 15 | P80: 29 | Q80: 1 | R80: 1 | S80: =(SUMPRODUCT(SIGN(B80=INDEX(Results.Entry,,S$4)),INDEX(Results.Scoring,,13+S$4))+(2-Winners.Count)*SUMPRODUCT(SIGN(B80=INDEX(Results.Entry,,5-S$4)),INDEX(Results.Scoring,,13+5-S$4)))/(SUMPRODUCT(SIGN(B80=INDEX(Results.Entry,,S$4)),INDEX(Results.Scoring,,15+S$4))+(2-Winners.Count)*SUMPRODUCT(SIGN(B80=INDEX(Results.Entry,,5-S$4)),INDEX(Results.Scoring,,15+5-S$4)))/(2*Results.Trav.NumLines-2) -> 0.4079545455 | T80: =(SUMPRODUCT(SIGN(C80=INDEX(Results.Entry,,T$4)),INDEX(Results.Scoring,,13+T$4))+(2-Winners.Count)*SUMPRODUCT(SIGN(C80=INDEX(Results.Entry,,5-T$4)),INDEX(Results.Scoring,,13+5-T$4)))/(SUMPRODUCT(SIGN(C80=INDEX(Results.Entry,,T$4)),INDEX(Results.Scoring,,15+T$4))+(2-Winners.Count)*SUMPRODUCT(SIGN(C80=INDEX(Results.Entry,,5-T$4)),INDEX(Results.Scoring,,15+5-T$4)))/(2*Results.Trav.NumLines-2) -> 0.5215909091 | U80: 0 | V80: 0 | W80: 13
A81: 4 | B81: 7 | C81: 33 | D81: 4HW-1 | E81: W | F81: DA | G81: 100 | I81: =NSPlus -> 100 | J81: 15 | K81: 29 | L81: =2*SUMPRODUCT(($I81>Results.NSPlus)*($A81=Results.Boards)*ISNUMBER(Results.NSPlus))+SUMPRODUCT(($I81=Results.NSPlus)*($A81=Results.Boards)*ISNUMBER(Results.NSPlus))-1 -> 15 | M81: 29 | N81: =SUMPRODUCT(($A81=Results.Boards)*ISNUMBER(Results.NSPlus)*NOT(ISBLANK(Results.Contracts))) -> 23 | O81: 15 | P81: 29 | Q81: 1 | R81: 1 | S81: =(SUMPRODUCT(SIGN(B81=INDEX(Results.Entry,,S$4)),INDEX(Results.Scoring,,13+S$4))+(2-Winners.Count)*SUMPRODUCT(SIGN(B81=INDEX(Results.Entry,,5-S$4)),INDEX(Results.Scoring,,13+5-S$4)))/(SUMPRODUCT(SIGN(B81=INDEX(Results.Entry,,S$4)),INDEX(Results.Scoring,,15+S$4))+(2-Winners.Count)*SUMPRODUCT(SIGN(B81=INDEX(Results.Entry,,5-S$4)),INDEX(Results.Scoring,,15+5-S$4)))/(2*Results.Trav.NumLines-2) -> 0.4295454545 | T81: =(SUMPRODUCT(SIGN(C81=INDEX(Results.Entry,,T$4)),INDEX(Results.Scoring,,13+T$4))+(2-Winners.Count)*SUMPRODUCT(SIGN(C81=INDEX(Results.Entry,,5-T$4)),INDEX(Results.Scoring,,13+5-T$4)))/(SUMPRODUCT(SIGN(C81=INDEX(Results.Entry,,T$4)),INDEX(Results.Scoring,,15+T$4))+(2-Winners.Count)*SUMPRODUCT(SIGN(C81=INDEX(Results.Entry,,5-T$4)),INDEX(Results.Scoring,,15+5-T$4)))/(2*Results.Trav.NumLines-2) -> 0.6079545455 | U81: 0 | V81: 0 | W81: 17
A82: 4 | B82: 8 | C82: 39 | D82: 5HW-2 | E82: W | F82: DA | G82: 200 | I82: =NSPlus -> 200 | J82: 29 | K82: 15 | L82: =2*SUMPRODUCT(($I82>Results.NSPlus)*($A82=Results.Boards)*ISNUMBER(Results.NSPlus))+SUMPRODUCT(($I82=Results.NSPlus)*($A82=Results.Boards)*ISNUMBER(Results.NSPlus))-1 -> 29 | M82: 15 | N82: =SUMPRODUCT(($A82=Results.Boards)*ISNUMBER(Results.NSPlus)*NOT(ISBLANK(Results.Contracts))) -> 23 | O82: 29 | P82: 15 | Q82: 1 | R82: 1 | S82: =(SUMPRODUCT(SIGN(B82=INDEX(Results.Entry,,S$4)),INDEX(Results.Scoring,,13+S$4))+(2-Winners.Count)*SUMPRODUCT(SIGN(B82=INDEX(Results.Entry,,5-S$4)),INDEX(Results.Scoring,,13+5-S$4)))/(SUMPRODUCT(SIGN(B82=INDEX(Results.Entry,,S$4)),INDEX(Results.Scoring,,15+S$4))+(2-Winners.Count)*SUMPRODUCT(SIGN(B82=INDEX(Results.Entry,,5-S$4)),INDEX(Results.Scoring,,15+5-S$4)))/(2*Results.Trav.NumLines-2) -> 0.6488636364 | T82: =(SUMPRODUCT(SIGN(C82=INDEX(Results.Entry,,T$4)),INDEX(Results.Scoring,,13+T$4))+(2-Winners.Count)*SUMPRODUCT(SIGN(C82=INDEX(Results.Entry,,5-T$4)),INDEX(Results.Scoring,,13+5-T$4)))/(SUMPRODUCT(SIGN(C82=INDEX(Results.Entry,,T$4)),INDEX(Results.Scoring,,15+T$4))+(2-Winners.Count)*SUMPRODUCT(SIGN(C82=INDEX(Results.Entry,,5-T$4)),INDEX(Results.Scoring,,15+5-T$4)))/(2*Results.Trav.NumLines-2) -> 0.4988636364 | U82: 0 | V82: 0 | W82: 9
A83: 4 | B83: 9 | C83: 38 | D83: 4HW-1 | E83: W | F83: DA | G83: 100 | I83: =NSPlus -> 100 | J83: 15 | K83: 29 | L83: =2*SUMPRODUCT(($I83>Results.NSPlus)*($A83=Results.Boards)*ISNUMBER(Results.NSPlus))+SUMPRODUCT(($I83=Results.NSPlus)*($A83=Results.Boards)*ISNUMBER(Results.NSPlus))-1 -> 15 | M83: 29 | N83: =SUMPRODUCT(($A83=Results.Boards)*ISNUMBER(Results.NSPlus)*NOT(ISBLANK(Results.Contracts))) -> 23 | O83: 15 | P83: 29 | Q83: 1 | R83: 1 | S83: =(SUMPRODUCT(SIGN(B83=INDEX(Results.Entry,,S$4)),INDEX(Results.Scoring,,13+S$4))+(2-Winners.Count)*SUMPRODUCT(SIGN(B83=INDEX(Results.Entry,,5-S$4)),INDEX(Results.Scoring,,13+5-S$4)))/(SUMPRODUCT(SIGN(B83=INDEX(Results.Entry,,S$4)),INDEX(Results.Scoring,,15+S$4))+(2-Winners.Count)*SUMPRODUCT(SIGN(B83=INDEX(Results.Entry,,5-S$4)),INDEX(Results.Scoring,,15+5-S$4)))/(2*Results.Trav.NumLines-2) -> 0.5420454545 | T83: =(SUMPRODUCT(SIGN(C83=INDEX(Results.Entry,,T$4)),INDEX(Results.Scoring,,13+T$4))+(2-Winners.Count)*SUMPRODUCT(SIGN(C83=INDEX(Results.Entry,,5-T$4)),INDEX(Results.Scoring,,13+5-T$4)))/(SUMPRODUCT(SIGN(C83=INDEX(Results.Entry,,T$4)),INDEX(Results.Scoring,,15+T$4))+(2-Winners.Count)*SUMPRODUCT(SIGN(C83=INDEX(Results.Entry,,5-T$4)),INDEX(Results.Scoring,,15+5-T$4)))/(2*Results.Trav.NumLines-2) -> 0.4681818182 | U83: 0 | V83: 0 | W83: 16
A84: 4 | B84: 10 | C84: 37 | D84: 6HW-4 | E84: W | F84: DA | G84: 400 | I84: =NSPlus -> 400 | J84: 32 | K84: 12 | L84: =2*SUMPRODUCT(($I84>Results.NSPlus)*($A84=Results.Boards)*ISNUMBER(Results.NSPlus))+SUMPRODUCT(($I84=Results.NSPlus)*($A84=Results.Boards)*ISNUMBER(Results.NSPlus))-1 -> 32 | M84: 12 | N84: =SUMPRODUCT(($A84=Results.Boards)*ISNUMBER(Results.NSPlus)*NOT(ISBLANK(Results.Contracts))) -> 23 | O84: 32 | P84: 12 | Q84: 1 | R84: 1 | S84: =(SUMPRODUCT(SIGN(B84=INDEX(Results.Entry,,S$4)),INDEX(Results.Scoring,,13+S$4))+(2-Winners.Count)*SUMPRODUCT(SIGN(B84=INDEX(Results.Entry,,5-S$4)),INDEX(Results.Scoring,,13+5-S$4)))/(SUMPRODUCT(SIGN(B84=INDEX(Results.Entry,,S$4)),INDEX(Results.Scoring,,15+S$4))+(2-Winners.Count)*SUMPRODUCT(SIGN(B84=INDEX(Results.Entry,,5-S$4)),INDEX(Results.Scoring,,15+5-S$4)))/(2*Results.Trav.NumLines-2) -> 0.4954545455 | T84: =(SUMPRODUCT(SIGN(C84=INDEX(Results.Entry,,T$4)),INDEX(Results.Scoring,,13+T$4))+(2-Winners.Count)*SUMPRODUCT(SIGN(C84=INDEX(Results.Entry,,5-T$4)),INDEX(Results.Scoring,,13+5-T$4)))/(SUMPRODUCT(SIGN(C84=INDEX(Results.Entry,,T$4)),INDEX(Results.Scoring,,15+T$4))+(2-Winners.Count)*SUMPRODUCT(SIGN(C84=INDEX(Results.Entry,,5-T$4)),INDEX(Results.Scoring,,15+5-T$4)))/(2*Results.Trav.NumLines-2) -> 0.5465909091 | U84: 0 | V84: 0 | W84: 7
A85: 4 | B85: 11 | C85: 41 | D85: 3HW= | E85: W | F85: S10 | H85: 140 | I85: =NSPlus -> -140 | J85: 6 | K85: 38 | L85: =2*SUMPRODUCT(($I85>Results.NSPlus)*($A85=Results.Boards)*ISNUMBER(Results.NSPlus))+SUMPRODUCT(($I85=Results.NSPlus)*($A85=Results.Boards)*ISNUMBER(Results.NSPlus))-1 -> 6 | M85: 38 | N85: =SUMPRODUCT(($A85=Results.Boards)*ISNUMBER(Results.NSPlus)*NOT(ISBLANK(Results.Contracts))) -> 23 | O85: 6 | P85: 38 | Q85: 1 | R85: 1 | S85: =(SUMPRODUCT(SIGN(B85=INDEX(Results.Entry,,S$4)),INDEX(Results.Scoring,,13+S$4))+(2-Winners.Count)*SUMPRODUCT(SIGN(B85=INDEX(Results.Entry,,5-S$4)),INDEX(Results.Scoring,,13+5-S$4)))/(SUMPRODUCT(SIGN(B85=INDEX(Results.Entry,,S$4)),INDEX(Results.Scoring,,15+S$4))+(2-Winners.Count)*SUMPRODUCT(SIGN(B85=INDEX(Results.Entry,,5-S$4)),INDEX(Results.Scoring,,15+5-S$4)))/(2*Results.Trav.NumLines-2) -> 0.5159090909 | T85: =(SUMPRODUCT(SIGN(C85=INDEX(Results.Entry,,T$4)),INDEX(Results.Scoring,,13+T$4))+(2-Winners.Count)*SUMPRODUCT(SIGN(C85=INDEX(Results.Entry,,5-T$4)),INDEX(Results.Scoring,,13+5-T$4)))/(SUMPRODUCT(SIGN(C85=INDEX(Results.Entry,,T$4)),INDEX(Results.Scoring,,15+T$4))+(2-Winners.Count)*SUMPRODUCT(SIGN(C85=INDEX(Results.Entry,,5-T$4)),INDEX(Results.Scoring,,15+5-T$4)))/(2*Results.Trav.NumLines-2) -> 0.6181818182 | U85: 0 | V85: 0 | W85: 20
A86: 4 | B86: 12 | C86: 28 | D86: 5CS= | E86: S | F86: HA | G86: 600 | I86: =NSPlus -> 600 | J86: 41 | K86: 3 | L86: =2*SUMPRODUCT(($I86>Results.NSPlus)*($A86=Results.Boards)*ISNUMBER(Results.NSPlus))+SUMPRODUCT(($I86=Results.NSPlus)*($A86=Results.Boards)*ISNUMBER(Results.NSPlus))-1 -> 41 | M86: 3 | N86: =SUMPRODUCT(($A86=Results.Boards)*ISNUMBER(Results.NSPlus)*NOT(ISBLANK(Results.Contracts))) -> 23 | O86: 41 | P86: 3 | Q86: 1 | R86: 1 | S86: =(SUMPRODUCT(SIGN(B86=INDEX(Results.Entry,,S$4)),INDEX(Results.Scoring,,13+S$4))+(2-Winners.Count)*SUMPRODUCT(SIGN(B86=INDEX(Results.Entry,,5-S$4)),INDEX(Results.Scoring,,13+5-S$4)))/(SUMPRODUCT(SIGN(B86=INDEX(Results.Entry,,S$4)),INDEX(Results.Scoring,,15+S$4))+(2-Winners.Count)*SUMPRODUCT(SIGN(B86=INDEX(Results.Entry,,5-S$4)),INDEX(Results.Scoring,,15+5-S$4)))/(2*Results.Trav.NumLines-2) -> 0.6420454545 | T86: =(SUMPRODUCT(SIGN(C86=INDEX(Results.Entry,,T$4)),INDEX(Results.Scoring,,13+T$4))+(2-Winners.Count)*SUMPRODUCT(SIGN(C86=INDEX(Results.Entry,,5-T$4)),INDEX(Results.Scoring,,13+5-T$4)))/(SUMPRODUCT(SIGN(C86=INDEX(Results.Entry,,T$4)),INDEX(Results.Scoring,,15+T$4))+(2-Winners.Count)*SUMPRODUCT(SIGN(C86=INDEX(Results.Entry,,5-T$4)),INDEX(Results.Scoring,,15+5-T$4)))/(2*Results.Trav.NumLines-2) -> 0.4761363636 | U86: 0 | V86: 0 | W86: 2
A87: 4 | B87: 13 | C87: 30 | D87: 3HxW= | E87: W | F87: DA | H87: 730 | I87: =NSPlus -> -730 | J87: 2 | K87: 42 | L87: =2*SUMPRODUCT(($I87>Results.NSPlus)*($A87=Results.Boards)*ISNUMBER(Results.NSPlus))+SUMPRODUCT(($I87=Results.NSPlus)*($A87=Results.Boards)*ISNUMBER(Results.NSPlus))-1 -> 2 | M87: 42 | N87: =SUMPRODUCT(($A87=Results.Boards)*ISNUMBER(Results.NSPlus)*NOT(ISBLANK(Results.Contracts))) -> 23 | O87: 2 | P87: 42 | Q87: 1 | R87: 1 | S87: =(SUMPRODUCT(SIGN(B87=INDEX(Results.Entry,,S$4)),INDEX(Results.Scoring,,13+S$4))+(2-Winners.Count)*SUMPRODUCT(SIGN(B87=INDEX(Results.Entry,,5-S$4)),INDEX(Results.Scoring,,13+5-S$4)))/(SUMPRODUCT(SIGN(B87=INDEX(Results.Entry,,S$4)),INDEX(Results.Scoring,,15+S$4))+(2-Winners.Count)*SUMPRODUCT(SIGN(B87=INDEX(Results.Entry,,5-S$4)),INDEX(Results.Scoring,,15+5-S$4)))/(2*Results.Trav.NumLines-2) -> 0.425 | T87: =(SUMPRODUCT(SIGN(C87=INDEX(Results.Entry,,T$4)),INDEX(Results.Scoring,,13+T$4))+(2-Winners.Count)*SUMPRODUCT(SIGN(C87=INDEX(Results.Entry,,5-T$4)),INDEX(Results.Scoring,,13+5-T$4)))/(SUMPRODUCT(SIGN(C87=INDEX(Results.Entry,,T$4)),INDEX(Results.Scoring,,15+T$4))+(2-Winners.Count)*SUMPRODUCT(SIGN(C87=INDEX(Results.Entry,,5-T$4)),INDEX(Results.Scoring,,15+5-T$4)))/(2*Results.Trav.NumLines-2) -> 0.4977272727 | U87: 0 | V87: 0 | W87: 22
A88: 4 | B88: 14 | C88: 43 | D88: 5HxW-2 | E88: W | F88: DA | G88: 500 | I88: =NSPlus -> 500 | J88: 36 | K88: 8 | L88: =2*SUMPRODUCT(($I88>Results.NSPlus)*($A88=Results.Boards)*ISNUMBER(Results.NSPlus))+SUMPRODUCT(($I88=Results.NSPlus)*($A88=Results.Boards)*ISNUMBER(Results.NSPlus))-1 -> 36 | M88: 8 | N88: =SUMPRODUCT(($A88=Results.Boards)*ISNUMBER(Results.NSPlus)*NOT(ISBLANK(Results.Contracts))) -> 23 | O88: 36 | P88: 8 | Q88: 1 | R88: 1 | S88: =(SUMPRODUCT(SIGN(B88=INDEX(Results.Entry,,S$4)),INDEX(Results.Scoring,,13+S$4))+(2-Winners.Count)*SUMPRODUCT(SIGN(B88=INDEX(Results.Entry,,5-S$4)),INDEX(Results.Scoring,,13+5-S$4)))/(SUMPRODUCT(SIGN(B88=INDEX(Results.Entry,,S$4)),INDEX(Results.Scoring,,15+S$4))+(2-Winners.Count)*SUMPRODUCT(SIGN(B88=INDEX(Results.Entry,,5-S$4)),INDEX(Results.Scoring,,15+5-S$4)))/(2*Results.Trav.NumLines-2) -> 0.6238636364 | T88: =(SUMPRODUCT(SIGN(C88=INDEX(Results.Entry,,T$4)),INDEX(Results.Scoring,,13+T$4))+(2-Winners.Count)*SUMPRODUCT(SIGN(C88=INDEX(Results.Entry,,5-T$4)),INDEX(Results.Scoring,,13+5-T$4)))/(SUMPRODUCT(SIGN(C88=INDEX(Results.Entry,,T$4)),INDEX(Results.Scoring,,15+T$4))+(2-Winners.Count)*SUMPRODUCT(SIGN(C88=INDEX(Results.Entry,,5-T$4)),INDEX(Results.Scoring,,15+5-T$4)))/(2*Results.Trav.NumLines-2) -> 0.5488636364 | U88: 0 | V88: 0 | W88: 5
A89: 4 | B89: 15 | C89: 29 | D89: 4HW-1 | E89: W | F89: CK | G89: 100 | I89: =NSPlus -> 100 | J89: 15 | K89: 29 | L89: =2*SUMPRODUCT(($I89>Results.NSPlus)*($A89=Results.Boards)*ISNUMBER(Results.NSPlus))+SUMPRODUCT(($I89=Results.NSPlus)*($A89=Results.Boards)*ISNUMBER(Results.NSPlus))-1 -> 15 | M89: 29 | N89: =SUMPRODUCT(($A89=Results.Boards)*ISNUMBER(Results.NSPlus)*NOT(ISBLANK(Results.Contracts))) -> 23 | O89: 15 | P89: 29 | Q89: 1 | R89: 1 | S89: =(SUMPRODUCT(SIGN(B89=INDEX(Results.Entry,,S$4)),INDEX(Results.Scoring,,13+S$4))+(2-Winners.Count)*SUMPRODUCT(SIGN(B89=INDEX(Results.Entry,,5-S$4)),INDEX(Results.Scoring,,13+5-S$4)))/(SUMPRODUCT(SIGN(B89=INDEX(Results.Entry,,S$4)),INDEX(Results.Scoring,,15+S$4))+(2-Winners.Count)*SUMPRODUCT(SIGN(B89=INDEX(Results.Entry,,5-S$4)),INDEX(Results.Scoring,,15+5-S$4)))/(2*Results.Trav.NumLines-2) -> 0.4568181818 | T89: =(SUMPRODUCT(SIGN(C89=INDEX(Results.Entry,,T$4)),INDEX(Results.Scoring,,13+T$4))+(2-Winners.Count)*SUMPRODUCT(SIGN(C89=INDEX(Results.Entry,,5-T$4)),INDEX(Results.Scoring,,13+5-T$4)))/(SUMPRODUCT(SIGN(C89=INDEX(Results.Entry,,T$4)),INDEX(Results.Scoring,,15+T$4))+(2-Winners.Count)*SUMPRODUCT(SIGN(C89=INDEX(Results.Entry,,5-T$4)),INDEX(Results.Scoring,,15+5-T$4)))/(2*Results.Trav.NumLines-2) -> 0.5715909091 | U89: 0 | V89: 0 | W89: 15
A90: 4 | B90: 16 | C90: 24 | D90: 4CS= | E90: S | F90: HA | G90: 130 | I90: =NSPlus -> 130 | J90: 24 | K90: 20 | L90: =2*SUMPRODUCT(($I90>Results.NSPlus)*($A90=Results.Boards)*ISNUMBER(Results.NSPlus))+SUMPRODUCT(($I90=Results.NSPlus)*($A90=Results.Boards)*ISNUMBER(Results.NSPlus))-1 -> 24 | M90: 20 | N90: =SUMPRODUCT(($A90=Results.Boards)*ISNUMBER(Results.NSPlus)*NOT(ISBLANK(Results.Contracts))) -> 23 | O90: 24 | P90: 20 | Q90: 1 | R90: 1 | S90: =(SUMPRODUCT(SIGN(B90=INDEX(Results.Entry,,S$4)),INDEX(Results.Scoring,,13+S$4))+(2-Winners.Count)*SUMPRODUCT(SIGN(B90=INDEX(Results.Entry,,5-S$4)),INDEX(Results.Scoring,,13+5-S$4)))/(SUMPRODUCT(SIGN(B90=INDEX(Results.Entry,,S$4)),INDEX(Results.Scoring,,15+S$4))+(2-Winners.Count)*SUMPRODUCT(SIGN(B90=INDEX(Results.Entry,,5-S$4)),INDEX(Results.Scoring,,15+5-S$4)))/(2*Results.Trav.NumLines-2) -> 0.5602272727 | T90: =(SUMPRODUCT(SIGN(C90=INDEX(Results.Entry,,T$4)),INDEX(Results.Scoring,,13+T$4))+(2-Winners.Count)*SUMPRODUCT(SIGN(C90=INDEX(Results.Entry,,5-T$4)),INDEX(Results.Scoring,,13+5-T$4)))/(SUMPRODUCT(SIGN(C90=INDEX(Results.Entry,,T$4)),INDEX(Results.Scoring,,15+T$4))+(2-Winners.Count)*SUMPRODUCT(SIGN(C90=INDEX(Results.Entry,,5-T$4)),INDEX(Results.Scoring,,15+5-T$4)))/(2*Results.Trav.NumLines-2) -> 0.3909090909 | U90: 0 | V90: 0 | W90: 11
A91: 4 | B91: 17 | C91: 31 | D91: 5HxW-2 | E91: W | F91: DA | G91: 500 | I91: =NSPlus -> 500 | J91: 36 | K91: 8 | L91: =2*SUMPRODUCT(($I91>Results.NSPlus)*($A91=Results.Boards)*ISNUMBER(Results.NSPlus))+SUMPRODUCT(($I91=Results.NSPlus)*($A91=Results.Boards)*ISNUMBER(Results.NSPlus))-1 -> 36 | M91: 8 | N91: =SUMPRODUCT(($A91=Results.Boards)*ISNUMBER(Results.NSPlus)*NOT(ISBLANK(Results.Contracts))) -> 23 | O91: 36 | P91: 8 | Q91: 1 | R91: 1 | S91: =(SUMPRODUCT(SIGN(B91=INDEX(Results.Entry,,S$4)),INDEX(Results.Scoring,,13+S$4))+(2-Winners.Count)*SUMPRODUCT(SIGN(B91=INDEX(Results.Entry,,5-S$4)),INDEX(Results.Scoring,,13+5-S$4)))/(SUMPRODUCT(SIGN(B91=INDEX(Results.Entry,,S$4)),INDEX(Results.Scoring,,15+S$4))+(2-Winners.Count)*SUMPRODUCT(SIGN(B91=INDEX(Results.Entry,,5-S$4)),INDEX(Results.Scoring,,15+5-S$4)))/(2*Results.Trav.NumLines-2) -> 0.4693181818 | T91: =(SUMPRODUCT(SIGN(C91=INDEX(Results.Entry,,T$4)),INDEX(Results.Scoring,,13+T$4))+(2-Winners.Count)*SUMPRODUCT(SIGN(C91=INDEX(Results.Entry,,5-T$4)),INDEX(Results.Scoring,,13+5-T$4)))/(SUMPRODUCT(SIGN(C91=INDEX(Results.Entry,,T$4)),INDEX(Results.Scoring,,15+T$4))+(2-Winners.Count)*SUMPRODUCT(SIGN(C91=INDEX(Results.Entry,,5-T$4)),INDEX(Results.Scoring,,15+5-T$4)))/(2*Results.Trav.NumLines-2) -> 0.4772727273 | U91: 0 | V91: 0 | W91: 6
A92: 4 | B92: 18 | C92: 25 | D92: 4CS= | E92: S | F92: HA | G92: 130 | I92: =NSPlus -> 130 | J92: 24 | K92: 20 | L92: =2*SUMPRODUCT(($I92>Results.NSPlus)*($A92=Results.Boards)*ISNUMBER(Results.NSPlus))+SUMPRODUCT(($I92=Results.NSPlus)*($A92=Results.Boards)*ISNUMBER(Results.NSPlus))-1 -> 24 | M92: 20 | N92: =SUMPRODUCT(($A92=Results.Boards)*ISNUMBER(Results.NSPlus)*NOT(ISBLANK(Results.Contracts))) -> 23 | O92: 24 | P92: 20 | Q92: 1 | R92: 1 | S92: =(SUMPRODUCT(SIGN(B92=INDEX(Results.Entry,,S$4)),INDEX(Results.Scoring,,13+S$4))+(2-Winners.Count)*SUMPRODUCT(SIGN(B92=INDEX(Results.Entry,,5-S$4)),INDEX(Results.Scoring,,13+5-S$4)))/(SUMPRODUCT(SIGN(B92=INDEX(Results.Entry,,S$4)),INDEX(Results.Scoring,,15+S$4))+(2-Winners.Count)*SUMPRODUCT(SIGN(B92=INDEX(Results.Entry,,5-S$4)),INDEX(Results.Scoring,,15+5-S$4)))/(2*Results.Trav.NumLines-2) -> 0.5238636364 | T92: =(SUMPRODUCT(SIGN(C92=INDEX(Results.Entry,,T$4)),INDEX(Results.Scoring,,13+T$4))+(2-Winners.Count)*SUMPRODUCT(SIGN(C92=INDEX(Results.Entry,,5-T$4)),INDEX(Results.Scoring,,13+5-T$4)))/(SUMPRODUCT(SIGN(C92=INDEX(Results.Entry,,T$4)),INDEX(Results.Scoring,,15+T$4))+(2-Winners.Count)*SUMPRODUCT(SIGN(C92=INDEX(Results.Entry,,5-T$4)),INDEX(Results.Scoring,,15+5-T$4)))/(2*Results.Trav.NumLines-2) -> 0.2818181818 | U92: 0 | V92: 0 | W92: 12
A93: 4 | B93: 19 | C93: 44 | D93: 5CS-1 | E93: S | F93: S3 | H93: 100 | I93: =NSPlus -> -100 | J93: 8 | K93: 36 | L93: =2*SUMPRODUCT(($I93>Results.NSPlus)*($A93=Results.Boards)*ISNUMBER(Results.NSPlus))+SUMPRODUCT(($I93=Results.NSPlus)*($A93=Results.Boards)*ISNUMBER(Results.NSPlus))-1 -> 8 | M93: 36 | N93: =SUMPRODUCT(($A93=Results.Boards)*ISNUMBER(Results.NSPlus)*NOT(ISBLANK(Results.Contracts))) -> 23 | O93: 8 | P93: 36 | Q93: 1 | R93: 1 | S93: =(SUMPRODUCT(SIGN(B93=INDEX(Results.Entry,,S$4)),INDEX(Results.Scoring,,13+S$4))+(2-Winners.Count)*SUMPRODUCT(SIGN(B93=INDEX(Results.Entry,,5-S$4)),INDEX(Results.Scoring,,13+5-S$4)))/(SUMPRODUCT(SIGN(B93=INDEX(Results.Entry,,S$4)),INDEX(Results.Scoring,,15+S$4))+(2-Winners.Count)*SUMPRODUCT(SIGN(B93=INDEX(Results.Entry,,5-S$4)),INDEX(Results.Scoring,,15+5-S$4)))/(2*Results.Trav.NumLines-2) -> 0.4340909091 | T93: =(SUMPRODUCT(SIGN(C93=INDEX(Results.Entry,,T$4)),INDEX(Results.Scoring,,13+T$4))+(2-Winners.Count)*SUMPRODUCT(SIGN(C93=INDEX(Results.Entry,,5-T$4)),INDEX(Results.Scoring,,13+5-T$4)))/(SUMPRODUCT(SIGN(C93=INDEX(Results.Entry,,T$4)),INDEX(Results.Scoring,,15+T$4))+(2-Winners.Count)*SUMPRODUCT(SIGN(C93=INDEX(Results.Entry,,5-T$4)),INDEX(Results.Scoring,,15+5-T$4)))/(2*Results.Trav.NumLines-2) -> 0.3806818182 | U93: 0 | V93: 0 | W93: 19
A94: 4 | B94: 20 | C94: 32 | D94: 5HW-2 | E94: W | F94: DA | G94: 200 | I94: =NSPlus -> 200 | J94: 29 | K94: 15 | L94: =2*SUMPRODUCT(($I94>Results.NSPlus)*($A94=Results.Boards)*ISNUMBER(Results.NSPlus))+SUMPRODUCT(($I94=Results.NSPlus)*($A94=Results.Boards)*ISNUMBER(Results.NSPlus))-1 -> 29 | M94: 15 | N94: =SUMPRODUCT(($A94=Results.Boards)*ISNUMBER(Results.NSPlus)*NOT(ISBLANK(Results.Contracts))) -> 23 | O94: 29 | P94: 15 | Q94: 1 | R94: 1 | S94: =(SUMPRODUCT(SIGN(B94=INDEX(Results.Entry,,S$4)),INDEX(Results.Scoring,,13+S$4))+(2-Winners.Count)*SUMPRODUCT(SIGN(B94=INDEX(Results.Entry,,5-S$4)),INDEX(Results.Scoring,,13+5-S$4)))/(SUMPRODUCT(SIGN(B94=INDEX(Results.Entry,,S$4)),INDEX(Results.Scoring,,15+S$4))+(2-Winners.Count)*SUMPRODUCT(SIGN(B94=INDEX(Results.Entry,,5-S$4)),INDEX(Results.Scoring,,15+5-S$4)))/(2*Results.Trav.NumLines-2) -> 0.375 | T94: =(SUMPRODUCT(SIGN(C94=INDEX(Results.Entry,,T$4)),INDEX(Results.Scoring,,13+T$4))+(2-Winners.Count)*SUMPRODUCT(SIGN(C94=INDEX(Results.Entry,,5-T$4)),INDEX(Results.Scoring,,13+5-T$4)))/(SUMPRODUCT(SIGN(C94=INDEX(Results.Entry,,T$4)),INDEX(Results.Scoring,,15+T$4))+(2-Winners.Count)*SUMPRODUCT(SIGN(C94=INDEX(Results.Entry,,5-T$4)),INDEX(Results.Scoring,,15+5-T$4)))/(2*Results.Trav.NumLines-2) -> 0.5215909091 | U94: 0 | V94: 0 | W94: 8
A95: 4 | B95: 21 | C95: 26 | D95: 5HxW-2 | E95: W | F95: DA | G95: 500 | I95: =NSPlus -> 500 | J95: 36 | K95: 8 | L95: =2*SUMPRODUCT(($I95>Results.NSPlus)*($A95=Results.Boards)*ISNUMBER(Results.NSPlus))+SUMPRODUCT(($I95=Results.NSPlus)*($A95=Results.Boards)*ISNUMBER(Results.NSPlus))-1 -> 36 | M95: 8 | N95: =SUMPRODUCT(($A95=Results.Boards)*ISNUMBER(Results.NSPlus)*NOT(ISBLANK(Results.Contracts))) -> 23 | O95: 36 | P95: 8 | Q95: 1 | R95: 1 | S95: =(SUMPRODUCT(SIGN(B95=INDEX(Results.Entry,,S$4)),INDEX(Results.Scoring,,13+S$4))+(2-Winners.Count)*SUMPRODUCT(SIGN(B95=INDEX(Results.Entry,,5-S$4)),INDEX(Results.Scoring,,13+5-S$4)))/(SUMPRODUCT(SIGN(B95=INDEX(Results.Entry,,S$4)),INDEX(Results.Scoring,,15+S$4))+(2-Winners.Count)*SUMPRODUCT(SIGN(B95=INDEX(Results.Entry,,5-S$4)),INDEX(Results.Scoring,,15+5-S$4)))/(2*Results.Trav.NumLines-2) -> 0.5568181818 | T95: =(SUMPRODUCT(SIGN(C95=INDEX(Results.Entry,,T$4)),INDEX(Results.Scoring,,13+T$4))+(2-Winners.Count)*SUMPRODUCT(SIGN(C95=INDEX(Results.Entry,,5-T$4)),INDEX(Results.Scoring,,13+5-T$4)))/(SUMPRODUCT(SIGN(C95=INDEX(Results.Entry,,T$4)),INDEX(Results.Scoring,,15+T$4))+(2-Winners.Count)*SUMPRODUCT(SIGN(C95=INDEX(Results.Entry,,5-T$4)),INDEX(Results.Scoring,,15+5-T$4)))/(2*Results.Trav.NumLines-2) -> 0.4613636364 | U95: 0 | V95: 0 | W95: 4
A96: 4 | B96: 22 | C96: 27 | D96: 4HW-1 | E96: W | F96: DK | G96: 100 | I96: =NSPlus -> 100 | J96: 15 | K96: 29 | L96: =2*SUMPRODUCT(($I96>Results.NSPlus)*($A96=Results.Boards)*ISNUMBER(Results.NSPlus))+SUMPRODUCT(($I96=Results.NSPlus)*($A96=Results.Boards)*ISNUMBER(Results.NSPlus))-1 -> 15 | M96: 29 | N96: =SUMPRODUCT(($A96=Results.Boards)*ISNUMBER(Results.NSPlus)*NOT(ISBLANK(Results.Contracts))) -> 23 | O96: 15 | P96: 29 | Q96: 1 | R96: 1 | S96: =(SUMPRODUCT(SIGN(B96=INDEX(Results.Entry,,S$4)),INDEX(Results.Scoring,,13+S$4))+(2-Winners.Count)*SUMPRODUCT(SIGN(B96=INDEX(Results.Entry,,5-S$4)),INDEX(Results.Scoring,,13+5-S$4)))/(SUMPRODUCT(SIGN(B96=INDEX(Results.Entry,,S$4)),INDEX(Results.Scoring,,15+S$4))+(2-Winners.Count)*SUMPRODUCT(SIGN(B96=INDEX(Results.Entry,,5-S$4)),INDEX(Results.Scoring,,15+5-S$4)))/(2*Results.Trav.NumLines-2) -> 0.3534090909 | T96: =(SUMPRODUCT(SIGN(C96=INDEX(Results.Entry,,T$4)),INDEX(Results.Scoring,,13+T$4))+(2-Winners.Count)*SUMPRODUCT(SIGN(C96=INDEX(Results.Entry,,5-T$4)),INDEX(Results.Scoring,,13+5-T$4)))/(SUMPRODUCT(SIGN(C96=INDEX(Results.Entry,,T$4)),INDEX(Results.Scoring,,15+T$4))+(2-Winners.Count)*SUMPRODUCT(SIGN(C96=INDEX(Results.Entry,,5-T$4)),INDEX(Results.Scoring,,15+5-T$4)))/(2*Results.Trav.NumLines-2) -> 0.5170454545 | U96: 0 | V96: 0 | W96: 14
A97: 4 | B97: 23 | C97: 36 | D97: 4HW-1 | E97: W | F97: DA | G97: 100 | I97: =NSPlus -> 100 | J97: 15 | K97: 29 | L97: =2*SUMPRODUCT(($I97>Results.NSPlus)*($A97=Results.Boards)*ISNUMBER(Results.NSPlus))+SUMPRODUCT(($I97=Results.NSPlus)*($A97=Results.Boards)*ISNUMBER(Results.NSPlus))-1 -> 15 | M97: 29 | N97: =SUMPRODUCT(($A97=Results.Boards)*ISNUMBER(Results.NSPlus)*NOT(ISBLANK(Results.Contracts))) -> 23 | O97: 15 | P97: 29 | Q97: 1 | R97: 1 | S97: =(SUMPRODUCT(SIGN(B97=INDEX(Results.Entry,,S$4)),INDEX(Results.Scoring,,13+S$4))+(2-Winners.Count)*SUMPRODUCT(SIGN(B97=INDEX(Results.Entry,,5-S$4)),INDEX(Results.Scoring,,13+5-S$4)))/(SUMPRODUCT(SIGN(B97=INDEX(Results.Entry,,S$4)),INDEX(Results.Scoring,,15+S$4))+(2-Winners.Count)*SUMPRODUCT(SIGN(B97=INDEX(Results.Entry,,5-S$4)),INDEX(Results.Scoring,,15+5-S$4)))/(2*Results.Trav.NumLines-2) -> 0.4340909091 | T97: =(SUMPRODUCT(SIGN(C97=INDEX(Results.Entry,,T$4)),INDEX(Results.Scoring,,13+T$4))+(2-Winners.Count)*SUMPRODUCT(SIGN(C97=INDEX(Results.Entry,,5-T$4)),INDEX(Results.Scoring,,13+5-T$4)))/(SUMPRODUCT(SIGN(C97=INDEX(Results.Entry,,T$4)),INDEX(Results.Scoring,,15+T$4))+(2-Winners.Count)*SUMPRODUCT(SIGN(C97=INDEX(Results.Entry,,5-T$4)),INDEX(Results.Scoring,,15+5-T$4)))/(2*Results.Trav.NumLines-2) -> 0.5852272727 | U97: 0 | V97: 0 | W97: 18
A98: 5 | B98: 1 | C98: 27 | D98: 3HN+1 | E98: N | F98: S2 | G98: 170 | I98: =NSPlus -> 170 | J98: 8 | K98: 36 | L98: =2*SUMPRODUCT(($I98>Results.NSPlus)*($A98=Results.Boards)*ISNUMBER(Results.NSPlus))+SUMPRODUCT(($I98=Results.NSPlus)*($A98=Results.Boards)*ISNUMBER(Results.NSPlus))-1 -> 8 | M98: 36 | N98: =SUMPRODUCT(($A98=Results.Boards)*ISNUMBER(Results.NSPlus)*NOT(ISBLANK(Results.Contracts))) -> 23 | O98: 8 | P98: 36 | Q98: 1 | R98: 1 | S98: =(SUMPRODUCT(SIGN(B98=INDEX(Results.Entry,,S$4)),INDEX(Results.Scoring,,13+S$4))+(2-Winners.Count)*SUMPRODUCT(SIGN(B98=INDEX(Results.Entry,,5-S$4)),INDEX(Results.Scoring,,13+5-S$4)))/(SUMPRODUCT(SIGN(B98=INDEX(Results.Entry,,S$4)),INDEX(Results.Scoring,,15+S$4))+(2-Winners.Count)*SUMPRODUCT(SIGN(B98=INDEX(Results.Entry,,5-S$4)),INDEX(Results.Scoring,,15+5-S$4)))/(2*Results.Trav.NumLines-2) -> 0.5954545455 | T98: =(SUMPRODUCT(SIGN(C98=INDEX(Results.Entry,,T$4)),INDEX(Results.Scoring,,13+T$4))+(2-Winners.Count)*SUMPRODUCT(SIGN(C98=INDEX(Results.Entry,,5-T$4)),INDEX(Results.Scoring,,13+5-T$4)))/(SUMPRODUCT(SIGN(C98=INDEX(Results.Entry,,T$4)),INDEX(Results.Scoring,,15+T$4))+(2-Winners.Count)*SUMPRODUCT(SIGN(C98=INDEX(Results.Entry,,5-T$4)),INDEX(Results.Scoring,,15+5-T$4)))/(2*Results.Trav.NumLines-2) -> 0.5170454545 | U98: 0 | V98: 0 | W98: 18
A99: 5 | B99: 2 | C99: 31 | D99: 4HN= | E99: N | F99: C2 | G99: 620 | I99: =NSPlus -> 620 | J99: 26 | K99: 18 | L99: =2*SUMPRODUCT(($I99>Results.NSPlus)*($A99=Results.Boards)*ISNUMBER(Results.NSPlus))+SUMPRODUCT(($I99=Results.NSPlus)*($A99=Results.Boards)*ISNUMBER(Results.NSPlus))-1 -> 26 | M99: 18 | N99: =SUMPRODUCT(($A99=Results.Boards)*ISNUMBER(Results.NSPlus)*NOT(ISBLANK(Results.Contracts))) -> 23 | O99: 26 | P99: 18 | Q99: 1 | R99: 1 | S99: =(SUMPRODUCT(SIGN(B99=INDEX(Results.Entry,,S$4)),INDEX(Results.Scoring,,13+S$4))+(2-Winners.Count)*SUMPRODUCT(SIGN(B99=INDEX(Results.Entry,,5-S$4)),INDEX(Results.Scoring,,13+5-S$4)))/(SUMPRODUCT(SIGN(B99=INDEX(Results.Entry,,S$4)),INDEX(Results.Scoring,,15+S$4))+(2-Winners.Count)*SUMPRODUCT(SIGN(B99=INDEX(Results.Entry,,5-S$4)),INDEX(Results.Scoring,,15+5-S$4)))/(2*Results.Trav.NumLines-2) -> 0.5795454545 | T99: =(SUMPRODUCT(SIGN(C99=INDEX(Results.Entry,,T$4)),INDEX(Results.Scoring,,13+T$4))+(2-Winners.Count)*SUMPRODUCT(SIGN(C99=INDEX(Results.Entry,,5-T$4)),INDEX(Results.Scoring,,13+5-T$4)))/(SUMPRODUCT(SIGN(C99=INDEX(Results.Entry,,T$4)),INDEX(Results.Scoring,,15+T$4))+(2-Winners.Count)*SUMPRODUCT(SIGN(C99=INDEX(Results.Entry,,5-T$4)),INDEX(Results.Scoring,,15+5-T$4)))/(2*Results.Trav.NumLines-2) -> 0.4772727273 | U99: 0 | V99: 0 | W99: 8
A100: 5 | B100: 3 | C100: 36 | D100: 2NS+3 | E100: S | F100: SJ | G100: 210 | I100: =NSPlus -> 210 | J100: 16 | K100: 28 | L100: =2*SUMPRODUCT(($I100>Results.NSPlus)*($A100=Results.Boards)*ISNUMBER(Results.NSPlus))+SUMPRODUCT(($I100=Results.NSPlus)*($A100=Results.Boards)*ISNUMBER(Results.NSPlus))-1 -> 16 | M100: 28 | N100: =SUMPRODUCT(($A100=Results.Boards)*ISNUMBER(Results.NSPlus)*NOT(ISBLANK(Results.Contracts))) -> 23 | O100: 16 | P100: 28 | Q100: 1 | R100: 1 | S100: =(SUMPRODUCT(SIGN(B100=INDEX(Results.Entry,,S$4)),INDEX(Results.Scoring,,13+S$4))+(2-Winners.Count)*SUMPRODUCT(SIGN(B100=INDEX(Results.Entry,,5-S$4)),INDEX(Results.Scoring,,13+5-S$4)))/(SUMPRODUCT(SIGN(B100=INDEX(Results.Entry,,S$4)),INDEX(Results.Scoring,,15+S$4))+(2-Winners.Count)*SUMPRODUCT(SIGN(B100=INDEX(Results.Entry,,5-S$4)),INDEX(Results.Scoring,,15+5-S$4)))/(2*Results.Trav.NumLines-2) -> 0.4034090909 | T100: =(SUMPRODUCT(SIGN(C100=INDEX(Results.Entry,,T$4)),INDEX(Results.Scoring,,13+T$4))+(2-Winners.Count)*SUMPRODUCT(SIGN(C100=INDEX(Results.Entry,,5-T$4)),INDEX(Results.Scoring,,13+5-T$4)))/(SUMPRODUCT(SIGN(C100=INDEX(Results.Entry,,T$4)),INDEX(Results.Scoring,,15+T$4))+(2-Winners.Count)*SUMPRODUCT(SIGN(C100=INDEX(Results.Entry,,5-T$4)),INDEX(Results.Scoring,,15+5-T$4)))/(2*Results.Trav.NumLines-2) -> 0.5852272727 | U100: 0 | V100: 0 | W100: 15
A101: 5 | B101: 4 | C101: 44 | D101: 3NN+2 | E101: N | F101: D2 | G101: 660 | I101: =NSPlus -> 660 | J101: 42 | K101: 2 | L101: =2*SUMPRODUCT(($I101>Results.NSPlus)*($A101=Results.Boards)*ISNUMBER(Results.NSPlus))+SUMPRODUCT(($I101=Results.NSPlus)*($A101=Results.Boards)*ISNUMBER(Results.NSPlus))-1 -> 42 | M101: 2 | N101: =SUMPRODUCT(($A101=Results.Boards)*ISNUMBER(Results.NSPlus)*NOT(ISBLANK(Results.Contracts))) -> 23 | O101: 42 | P101: 2 | Q101: 1 | R101: 1 | S101: =(SUMPRODUCT(SIGN(B101=INDEX(Results.Entry,,S$4)),INDEX(Results.Scoring,,13+S$4))+(2-Winners.Count)*SUMPRODUCT(SIGN(B101=INDEX(Results.Entry,,5-S$4)),INDEX(Results.Scoring,,13+5-S$4)))/(SUMPRODUCT(SIGN(B101=INDEX(Results.Entry,,S$4)),INDEX(Results.Scoring,,15+S$4))+(2-Winners.Count)*SUMPRODUCT(SIGN(B101=INDEX(Results.Entry,,5-S$4)),INDEX(Results.Scoring,,15+5-S$4)))/(2*Results.Trav.NumLines-2) -> 0.4886363636 | T101: =(SUMPRODUCT(SIGN(C101=INDEX(Results.Entry,,T$4)),INDEX(Results.Scoring,,13+T$4))+(2-Winners.Count)*SUMPRODUCT(SIGN(C101=INDEX(Results.Entry,,5-T$4)),INDEX(Results.Scoring,,13+5-T$4)))/(SUMPRODUCT(SIGN(C101=INDEX(Results.Entry,,T$4)),INDEX(Results.Scoring,,15+T$4))+(2-Winners.Count)*SUMPRODUCT(SIGN(C101=INDEX(Results.Entry,,5-T$4)),INDEX(Results.Scoring,,15+5-T$4)))/(2*Results.Trav.NumLines-2) -> 0.3806818182 | U101: 0 | V101: 0 | W101: 1
A102: 5 | B102: 5 | C102: 41 | D102: 4HN= | E102: N | F102: D10 | G102: 620 | I102: =NSPlus -> 620 | J102: 26 | K102: 18 | L102: =2*SUMPRODUCT(($I102>Results.NSPlus)*($A102=Results.Boards)*ISNUMBER(Results.NSPlus))+SUMPRODUCT(($I102=Results.NSPlus)*($A102=Results.Boards)*ISNUMBER(Results.NSPlus))-1 -> 26 | M102: 18 | N102: =SUMPRODUCT(($A102=Results.Boards)*ISNUMBER(Results.NSPlus)*NOT(ISBLANK(Results.Contracts))) -> 23 | O102: 26 | P102: 18 | Q102: 1 | R102: 1 | S102: =(SUMPRODUCT(SIGN(B102=INDEX(Results.Entry,,S$4)),INDEX(Results.Scoring,,13+S$4))+(2-Winners.Count)*SUMPRODUCT(SIGN(B102=INDEX(Results.Entry,,5-S$4)),INDEX(Results.Scoring,,13+5-S$4)))/(SUMPRODUCT(SIGN(B102=INDEX(Results.Entry,,S$4)),INDEX(Results.Scoring,,15+S$4))+(2-Winners.Count)*SUMPRODUCT(SIGN(B102=INDEX(Results.Entry,,5-S$4)),INDEX(Results.Scoring,,15+5-S$4)))/(2*Results.Trav.NumLines-2) -> 0.5386363636 | T102: =(SUMPRODUCT(SIGN(C102=INDEX(Results.Entry,,T$4)),INDEX(Results.Scoring,,13+T$4))+(2-Winners.Count)*SUMPRODUCT(SIGN(C102=INDEX(Results.Entry,,5-T$4)),INDEX(Results.Scoring,,13+5-T$4)))/(SUMPRODUCT(SIGN(C102=INDEX(Results.Entry,,T$4)),INDEX(Results.Scoring,,15+T$4))+(2-Winners.Count)*SUMPRODUCT(SIGN(C102=INDEX(Results.Entry,,5-T$4)),INDEX(Results.Scoring,,15+5-T$4)))/(2*Results.Trav.NumLines-2) -> 0.6181818182 | U102: 0 | V102: 0 | W102: 13
A103: 5 | B103: 6 | C103: 28 | D103: 3HN+1 | E103: N | F103: S5 | G103: 170 | I103: =NSPlus -> 170 | J103: 8 | K103: 36 | L103: =2*SUMPRODUCT(($I103>Results.NSPlus)*($A103=Results.Boards)*ISNUMBER(Results.NSPlus))+SUMPRODUCT(($I103=Results.NSPlus)*($A103=Results.Boards)*ISNUMBER(Results.NSPlus))-1 -> 8 | M103: 36 | N103: =SUMPRODUCT(($A103=Results.Boards)*ISNUMBER(Results.NSPlus)*NOT(ISBLANK(Results.Contracts))) -> 23 | O103: 8 | P103: 36 | Q103: 1 | R103: 1 | S103: =(SUMPRODUCT(SIGN(B103=INDEX(Results.Entry,,S$4)),INDEX(Results.Scoring,,13+S$4))+(2-Winners.Count)*SUMPRODUCT(SIGN(B103=INDEX(Results.Entry,,5-S$4)),INDEX(Results.Scoring,,13+5-S$4)))/(SUMPRODUCT(SIGN(B103=INDEX(Results.Entry,,S$4)),INDEX(Results.Scoring,,15+S$4))+(2-Winners.Count)*SUMPRODUCT(SIGN(B103=INDEX(Results.Entry,,5-S$4)),INDEX(Results.Scoring,,15+5-S$4)))/(2*Results.Trav.NumLines-2) -> 0.4079545455 | T103: =(SUMPRODUCT(SIGN(C103=INDEX(Results.Entry,,T$4)),INDEX(Results.Scoring,,13+T$4))+(2-Winners.Count)*SUMPRODUCT(SIGN(C103=INDEX(Results.Entry,,5-T$4)),INDEX(Results.Scoring,,13+5-T$4)))/(SUMPRODUCT(SIGN(C103=INDEX(Results.Entry,,T$4)),INDEX(Results.Scoring,,15+T$4))+(2-Winners.Count)*SUMPRODUCT(SIGN(C103=INDEX(Results.Entry,,5-T$4)),INDEX(Results.Scoring,,15+5-T$4)))/(2*Results.Trav.NumLines-2) -> 0.4761363636 | U103: 0 | V103: 0 | W103: 20
A104: 5 | B104: 7 | C104: 37 | D104: 3HN+1 | E104: N | F104: H8 | G104: 170 | I104: =NSPlus -> 170 | J104: 8 | K104: 36 | L104: =2*SUMPRODUCT(($I104>Results.NSPlus)*($A104=Results.Boards)*ISNUMBER(Results.NSPlus))+SUMPRODUCT(($I104=Results.NSPlus)*($A104=Results.Boards)*ISNUMBER(Results.NSPlus))-1 -> 8 | M104: 36 | N104: =SUMPRODUCT(($A104=Results.Boards)*ISNUMBER(Results.NSPlus)*NOT(ISBLANK(Results.Contracts))) -> 23 | O104: 8 | P104: 36 | Q104: 1 | R104: 1 | S104: =(SUMPRODUCT(SIGN(B104=INDEX(Results.Entry,,S$4)),INDEX(Results.Scoring,,13+S$4))+(2-Winners.Count)*SUMPRODUCT(SIGN(B104=INDEX(Results.Entry,,5-S$4)),INDEX(Results.Scoring,,13+5-S$4)))/(SUMPRODUCT(SIGN(B104=INDEX(Results.Entry,,S$4)),INDEX(Results.Scoring,,15+S$4))+(2-Winners.Count)*SUMPRODUCT(SIGN(B104=INDEX(Results.Entry,,5-S$4)),INDEX(Results.Scoring,,15+5-S$4)))/(2*Results.Trav.NumLines-2) -> 0.4295454545 | T104: =(SUMPRODUCT(SIGN(C104=INDEX(Results.Entry,,T$4)),INDEX(Results.Scoring,,13+T$4))+(2-Winners.Count)*SUMPRODUCT(SIGN(C104=INDEX(Results.Entry,,5-T$4)),INDEX(Results.Scoring,,13+5-T$4)))/(SUMPRODUCT(SIGN(C104=INDEX(Results.Entry,,T$4)),INDEX(Results.Scoring,,15+T$4))+(2-Winners.Count)*SUMPRODUCT(SIGN(C104=INDEX(Results.Entry,,5-T$4)),INDEX(Results.Scoring,,15+5-T$4)))/(2*Results.Trav.NumLines-2) -> 0.5465909091 | U104: 0 | V104: 0 | W104: 19
A105: 5 | B105: 8 | C105: 24 | D105: 4HN= | E105: N | F105: S2 | G105: 620 | I105: =NSPlus -> 620 | J105: 26 | K105: 18 | L105: =2*SUMPRODUCT(($I105>Results.NSPlus)*($A105=Results.Boards)*ISNUMBER(Results.NSPlus))+SUMPRODUCT(($I105=Results.NSPlus)*($A105=Results.Boards)*ISNUMBER(Results.NSPlus))-1 -> 26 | M105: 18 | N105: =SUMPRODUCT(($A105=Results.Boards)*ISNUMBER(Results.NSPlus)*NOT(ISBLANK(Results.Contracts))) -> 23 | O105: 26 | P105: 18 | Q105: 1 | R105: 1 | S105: =(SUMPRODUCT(SIGN(B105=INDEX(Results.Entry,,S$4)),INDEX(Results.Scoring,,13+S$4))+(2-Winners.Count)*SUMPRODUCT(SIGN(B105=INDEX(Results.Entry,,5-S$4)),INDEX(Results.Scoring,,13+5-S$4)))/(SUMPRODUCT(SIGN(B105=INDEX(Results.Entry,,S$4)),INDEX(Results.Scoring,,15+S$4))+(2-Winners.Count)*SUMPRODUCT(SIGN(B105=INDEX(Results.Entry,,5-S$4)),INDEX(Results.Scoring,,15+5-S$4)))/(2*Results.Trav.NumLines-2) -> 0.6488636364 | T105: =(SUMPRODUCT(SIGN(C105=INDEX(Results.Entry,,T$4)),INDEX(Results.Scoring,,13+T$4))+(2-Winners.Count)*SUMPRODUCT(SIGN(C105=INDEX(Results.Entry,,5-T$4)),INDEX(Results.Scoring,,13+5-T$4)))/(SUMPRODUCT(SIGN(C105=INDEX(Results.Entry,,T$4)),INDEX(Results.Scoring,,15+T$4))+(2-Winners.Count)*SUMPRODUCT(SIGN(C105=INDEX(Results.Entry,,5-T$4)),INDEX(Results.Scoring,,15+5-T$4)))/(2*Results.Trav.NumLines-2) -> 0.3909090909 | U105: 0 | V105: 0 | W105: 9
A106: 5 | B106: 9 | C106: 29 | D106: 4HN= | E106: N | F106: D5 | G106: 620 | I106: =NSPlus -> 620 | J106: 26 | K106: 18 | L106: =2*SUMPRODUCT(($I106>Results.NSPlus)*($A106=Results.Boards)*ISNUMBER(Results.NSPlus))+SUMPRODUCT(($I106=Results.NSPlus)*($A106=Results.Boards)*ISNUMBER(Results.NSPlus))-1 -> 26 | M106: 18 | N106: =SUMPRODUCT(($A106=Results.Boards)*ISNUMBER(Results.NSPlus)*NOT(ISBLANK(Results.Contracts))) -> 23 | O106: 26 | P106: 18 | Q106: 1 | R106: 1 | S106: =(SUMPRODUCT(SIGN(B106=INDEX(Results.Entry,,S$4)),INDEX(Results.Scoring,,13+S$4))+(2-Winners.Count)*SUMPRODUCT(SIGN(B106=INDEX(Results.Entry,,5-S$4)),INDEX(Results.Scoring,,13+5-S$4)))/(SUMPRODUCT(SIGN(B106=INDEX(Results.Entry,,S$4)),INDEX(Results.Scoring,,15+S$4))+(2-Winners.Count)*SUMPRODUCT(SIGN(B106=INDEX(Results.Entry,,5-S$4)),INDEX(Results.Scoring,,15+5-S$4)))/(2*Results.Trav.NumLines-2) -> 0.5420454545 | T106: =(SUMPRODUCT(SIGN(C106=INDEX(Results.Entry,,T$4)),INDEX(Results.Scoring,,13+T$4))+(2-Winners.Count)*SUMPRODUCT(SIGN(C106=INDEX(Results.Entry,,5-T$4)),INDEX(Results.Scoring,,13+5-T$4)))/(SUMPRODUCT(SIGN(C106=INDEX(Results.Entry,,T$4)),INDEX(Results.Scoring,,15+T$4))+(2-Winners.Count)*SUMPRODUCT(SIGN(C106=INDEX(Results.Entry,,5-T$4)),INDEX(Results.Scoring,,15+5-T$4)))/(2*Results.Trav.NumLines-2) -> 0.5715909091 | U106: 0 | V106: 0 | W106: 12
A107: 5 | B107: 10 | C107: 43 | D107: 4HN= | E107: N | F107: S5 | G107: 620 | I107: =NSPlus -> 620 | J107: 26 | K107: 18 | L107: =2*SUMPRODUCT(($I107>Results.NSPlus)*($A107=Results.Boards)*ISNUMBER(Results.NSPlus))+SUMPRODUCT(($I107=Results.NSPlus)*($A107=Results.Boards)*ISNUMBER(Results.NSPlus))-1 -> 26 | M107: 18 | N107: =SUMPRODUCT(($A107=Results.Boards)*ISNUMBER(Results.NSPlus)*NOT(ISBLANK(Results.Contracts))) -> 23 | O107: 26 | P107: 18 | Q107: 1 | R107: 1 | S107: =(SUMPRODUCT(SIGN(B107=INDEX(Results.Entry,,S$4)),INDEX(Results.Scoring,,13+S$4))+(2-Winners.Count)*SUMPRODUCT(SIGN(B107=INDEX(Results.Entry,,5-S$4)),INDEX(Results.Scoring,,13+5-S$4)))/(SUMPRODUCT(SIGN(B107=INDEX(Results.Entry,,S$4)),INDEX(Results.Scoring,,15+S$4))+(2-Winners.Count)*SUMPRODUCT(SIGN(B107=INDEX(Results.Entry,,5-S$4)),INDEX(Results.Scoring,,15+5-S$4)))/(2*Results.Trav.NumLines-2) -> 0.4954545455 | T107: =(SUMPRODUCT(SIGN(C107=INDEX(Results.Entry,,T$4)),INDEX(Results.Scoring,,13+T$4))+(2-Winners.Count)*SUMPRODUCT(SIGN(C107=INDEX(Results.Entry,,5-T$4)),INDEX(Results.Scoring,,13+5-T$4)))/(SUMPRODUCT(SIGN(C107=INDEX(Results.Entry,,T$4)),INDEX(Results.Scoring,,15+T$4))+(2-Winners.Count)*SUMPRODUCT(SIGN(C107=INDEX(Results.Entry,,5-T$4)),INDEX(Results.Scoring,,15+5-T$4)))/(2*Results.Trav.NumLines-2) -> 0.5488636364 | U107: 0 | V107: 0 | W107: 7
A108: 5 | B108: 11 | C108: 25 | D108: 3NS+2 | E108: S | F108: S7 | G108: 660 | I108: =NSPlus -> 660 | J108: 42 | K108: 2 | L108: =2*SUMPRODUCT(($I108>Results.NSPlus)*($A108=Results.Boards)*ISNUMBER(Results.NSPlus))+SUMPRODUCT(($I108=Results.NSPlus)*($A108=Results.Boards)*ISNUMBER(Results.NSPlus))-1 -> 42 | M108: 2 | N108: =SUMPRODUCT(($A108=Results.Boards)*ISNUMBER(Results.NSPlus)*NOT(ISBLANK(Results.Contracts))) -> 23 | O108: 42 | P108: 2 | Q108: 1 | R108: 1 | S108: =(SUMPRODUCT(SIGN(B108=INDEX(Results.Entry,,S$4)),INDEX(Results.Scoring,,13+S$4))+(2-Winners.Count)*SUMPRODUCT(SIGN(B108=INDEX(Results.Entry,,5-S$4)),INDEX(Results.Scoring,,13+5-S$4)))/(SUMPRODUCT(SIGN(B108=INDEX(Results.Entry,,S$4)),INDEX(Results.Scoring,,15+S$4))+(2-Winners.Count)*SUMPRODUCT(SIGN(B108=INDEX(Results.Entry,,5-S$4)),INDEX(Results.Scoring,,15+5-S$4)))/(2*Results.Trav.NumLines-2) -> 0.5159090909 | T108: =(SUMPRODUCT(SIGN(C108=INDEX(Results.Entry,,T$4)),INDEX(Results.Scoring,,13+T$4))+(2-Winners.Count)*SUMPRODUCT(SIGN(C108=INDEX(Results.Entry,,5-T$4)),INDEX(Results.Scoring,,13+5-T$4)))/(SUMPRODUCT(SIGN(C108=INDEX(Results.Entry,,T$4)),INDEX(Results.Scoring,,15+T$4))+(2-Winners.Count)*SUMPRODUCT(SIGN(C108=INDEX(Results.Entry,,5-T$4)),INDEX(Results.Scoring,,15+5-T$4)))/(2*Results.Trav.NumLines-2) -> 0.2818181818 | U108: 0 | V108: 0 | W108: 3
A109: 5 | B109: 12 | C109: 34 | D109: 4HN+1 | E109: N | F109: S5 | G109: 650 | I109: =NSPlus -> 650 | J109: 36 | K109: 8 | L109: =2*SUMPRODUCT(($I109>Results.NSPlus)*($A109=Results.Boards)*ISNUMBER(Results.NSPlus))+SUMPRODUCT(($I109=Results.NSPlus)*($A109=Results.Boards)*ISNUMBER(Results.NSPlus))-1 -> 36 | M109: 8 | N109: =SUMPRODUCT(($A109=Results.Boards)*ISNUMBER(Results.NSPlus)*NOT(ISBLANK(Results.Contracts))) -> 23 | O109: 36 | P109: 8 | Q109: 1 | R109: 1 | S109: =(SUMPRODUCT(SIGN(B109=INDEX(Results.Entry,,S$4)),INDEX(Results.Scoring,,13+S$4))+(2-Winners.Count)*SUMPRODUCT(SIGN(B109=INDEX(Results.Entry,,5-S$4)),INDEX(Results.Scoring,,13+5-S$4)))/(SUMPRODUCT(SIGN(B109=INDEX(Results.Entry,,S$4)),INDEX(Results.Scoring,,15+S$4))+(2-Winners.Count)*SUMPRODUCT(SIGN(B109=INDEX(Results.Entry,,5-S$4)),INDEX(Results.Scoring,,15+5-S$4)))/(2*Results.Trav.NumLines-2) -> 0.6420454545 | T109: =(SUMPRODUCT(SIGN(C109=INDEX(Results.Entry,,T$4)),INDEX(Results.Scoring,,13+T$4))+(2-Winners.Count)*SUMPRODUCT(SIGN(C109=INDEX(Results.Entry,,5-T$4)),INDEX(Results.Scoring,,13+5-T$4)))/(SUMPRODUCT(SIGN(C109=INDEX(Results.Entry,,T$4)),INDEX(Results.Scoring,,15+T$4))+(2-Winners.Count)*SUMPRODUCT(SIGN(C109=INDEX(Results.Entry,,5-T$4)),INDEX(Results.Scoring,,15+5-T$4)))/(2*Results.Trav.NumLines-2) -> 0.5636363636 | U109: 0 | V109: 0 | W109: 6
A110: 5 | B110: 13 | C110: 33 | D110: 3HN+2 | E110: N | F110: H3 | G110: 200 | I110: =NSPlus -> 200 | J110: 14 | K110: 30 | L110: =2*SUMPRODUCT(($I110>Results.NSPlus)*($A110=Results.Boards)*ISNUMBER(Results.NSPlus))+SUMPRODUCT(($I110=Results.NSPlus)*($A110=Results.Boards)*ISNUMBER(Results.NSPlus))-1 -> 14 | M110: 30 | N110: =SUMPRODUCT(($A110=Results.Boards)*ISNUMBER(Results.NSPlus)*NOT(ISBLANK(Results.Contracts))) -> 23 | O110: 14 | P110: 30 | Q110: 1 | R110: 1 | S110: =(SUMPRODUCT(SIGN(B110=INDEX(Results.Entry,,S$4)),INDEX(Results.Scoring,,13+S$4))+(2-Winners.Count)*SUMPRODUCT(SIGN(B110=INDEX(Results.Entry,,5-S$4)),INDEX(Results.Scoring,,13+5-S$4)))/(SUMPRODUCT(SIGN(B110=INDEX(Results.Entry,,S$4)),INDEX(Results.Scoring,,15+S$4))+(2-Winners.Count)*SUMPRODUCT(SIGN(B110=INDEX(Results.Entry,,5-S$4)),INDEX(Results.Scoring,,15+5-S$4)))/(2*Results.Trav.NumLines-2) -> 0.425 | T110: =(SUMPRODUCT(SIGN(C110=INDEX(Results.Entry,,T$4)),INDEX(Results.Scoring,,13+T$4))+(2-Winners.Count)*SUMPRODUCT(SIGN(C110=INDEX(Results.Entry,,5-T$4)),INDEX(Results.Scoring,,13+5-T$4)))/(SUMPRODUCT(SIGN(C110=INDEX(Results.Entry,,T$4)),INDEX(Results.Scoring,,15+T$4))+(2-Winners.Count)*SUMPRODUCT(SIGN(C110=INDEX(Results.Entry,,5-T$4)),INDEX(Results.Scoring,,15+5-T$4)))/(2*Results.Trav.NumLines-2) -> 0.6079545455 | U110: 0 | V110: 0 | W110: 16
A111: 5 | B111: 14 | C111: 32 | D111: 4HN+1 | E111: N | F111: H9 | G111: 650 | I111: =NSPlus -> 650 | J111: 36 | K111: 8 | L111: =2*SUMPRODUCT(($I111>Results.NSPlus)*($A111=Results.Boards)*ISNUMBER(Results.NSPlus))+SUMPRODUCT(($I111=Results.NSPlus)*($A111=Results.Boards)*ISNUMBER(Results.NSPlus))-1 -> 36 | M111: 8 | N111: =SUMPRODUCT(($A111=Results.Boards)*ISNUMBER(Results.NSPlus)*NOT(ISBLANK(Results.Contracts))) -> 23 | O111: 36 | P111: 8 | Q111: 1 | R111: 1 | S111: =(SUMPRODUCT(SIGN(B111=INDEX(Results.Entry,,S$4)),INDEX(Results.Scoring,,13+S$4))+(2-Winners.Count)*SUMPRODUCT(SIGN(B111=INDEX(Results.Entry,,5-S$4)),INDEX(Results.Scoring,,13+5-S$4)))/(SUMPRODUCT(SIGN(B111=INDEX(Results.Entry,,S$4)),INDEX(Results.Scoring,,15+S$4))+(2-Winners.Count)*SUMPRODUCT(SIGN(B111=INDEX(Results.Entry,,5-S$4)),INDEX(Results.Scoring,,15+5-S$4)))/(2*Results.Trav.NumLines-2) -> 0.6238636364 | T111: =(SUMPRODUCT(SIGN(C111=INDEX(Results.Entry,,T$4)),INDEX(Results.Scoring,,13+T$4))+(2-Winners.Count)*SUMPRODUCT(SIGN(C111=INDEX(Results.Entry,,5-T$4)),INDEX(Results.Scoring,,13+5-T$4)))/(SUMPRODUCT(SIGN(C111=INDEX(Results.Entry,,T$4)),INDEX(Results.Scoring,,15+T$4))+(2-Winners.Count)*SUMPRODUCT(SIGN(C111=INDEX(Results.Entry,,5-T$4)),INDEX(Results.Scoring,,15+5-T$4)))/(2*Results.Trav.NumLines-2) -> 0.5215909091 | U111: 0 | V111: 0 | W111: 4
A112: 5 | B112: 15 | C112: 35 | D112: 3NS= | E112: S | F112: C7 | G112: 600 | I112: =NSPlus -> 600 | J112: 18 | K112: 26 | L112: =2*SUMPRODUCT(($I112>Results.NSPlus)*($A112=Results.Boards)*ISNUMBER(Results.NSPlus))+SUMPRODUCT(($I112=Results.NSPlus)*($A112=Results.Boards)*ISNUMBER(Results.NSPlus))-1 -> 18 | M112: 26 | N112: =SUMPRODUCT(($A112=Results.Boards)*ISNUMBER(Results.NSPlus)*NOT(ISBLANK(Results.Contracts))) -> 23 | O112: 18 | P112: 26 | Q112: 1 | R112: 1 | S112: =(SUMPRODUCT(SIGN(B112=INDEX(Results.Entry,,S$4)),INDEX(Results.Scoring,,13+S$4))+(2-Winners.Count)*SUMPRODUCT(SIGN(B112=INDEX(Results.Entry,,5-S$4)),INDEX(Results.Scoring,,13+5-S$4)))/(SUMPRODUCT(SIGN(B112=INDEX(Results.Entry,,S$4)),INDEX(Results.Scoring,,15+S$4))+(2-Winners.Count)*SUMPRODUCT(SIGN(B112=INDEX(Results.Entry,,5-S$4)),INDEX(Results.Scoring,,15+5-S$4)))/(2*Results.Trav.NumLines-2) -> 0.4568181818 | T112: =(SUMPRODUCT(SIGN(C112=INDEX(Results.Entry,,T$4)),INDEX(Results.Scoring,,13+T$4))+(2-Winners.Count)*SUMPRODUCT(SIGN(C112=INDEX(Results.Entry,,5-T$4)),INDEX(Results.Scoring,,13+5-T$4)))/(SUMPRODUCT(SIGN(C112=INDEX(Results.Entry,,T$4)),INDEX(Results.Scoring,,15+T$4))+(2-Winners.Count)*SUMPRODUCT(SIGN(C112=INDEX(Results.Entry,,5-T$4)),INDEX(Results.Scoring,,15+5-T$4)))/(2*Results.Trav.NumLines-2) -> 0.5215909091 | U112: 0 | V112: 0 | W112: 14
A113: 5 | B113: 16 | C113: 45 | D113: 4HN= | E113: N | F113: S5 | G113: 620 | I113: =NSPlus -> 620 | J113: 26 | K113: 18 | L113: =2*SUMPRODUCT(($I113>Results.NSPlus)*($A113=Results.Boards)*ISNUMBER(Results.NSPlus))+SUMPRODUCT(($I113=Results.NSPlus)*($A113=Results.Boards)*ISNUMBER(Results.NSPlus))-1 -> 26 | M113: 18 | N113: =SUMPRODUCT(($A113=Results.Boards)*ISNUMBER(Results.NSPlus)*NOT(ISBLANK(Results.Contracts))) -> 23 | O113: 26 | P113: 18 | Q113: 1 | R113: 1 | S113: =(SUMPRODUCT(SIGN(B113=INDEX(Results.Entry,,S$4)),INDEX(Results.Scoring,,13+S$4))+(2-Winners.Count)*SUMPRODUCT(SIGN(B113=INDEX(Results.Entry,,5-S$4)),INDEX(Results.Scoring,,13+5-S$4)))/(SUMPRODUCT(SIGN(B113=INDEX(Results.Entry,,S$4)),INDEX(Results.Scoring,,15+S$4))+(2-Winners.Count)*SUMPRODUCT(SIGN(B113=INDEX(Results.Entry,,5-S$4)),INDEX(Results.Scoring,,15+5-S$4)))/(2*Results.Trav.NumLines-2) -> 0.5602272727 | T113: =(SUMPRODUCT(SIGN(C113=INDEX(Results.Entry,,T$4)),INDEX(Results.Scoring,,13+T$4))+(2-Winners.Count)*SUMPRODUCT(SIGN(C113=INDEX(Results.Entry,,5-T$4)),INDEX(Results.Scoring,,13+5-T$4)))/(SUMPRODUCT(SIGN(C113=INDEX(Results.Entry,,T$4)),INDEX(Results.Scoring,,15+T$4))+(2-Winners.Count)*SUMPRODUCT(SIGN(C113=INDEX(Results.Entry,,5-T$4)),INDEX(Results.Scoring,,15+5-T$4)))/(2*Results.Trav.NumLines-2) -> 0.3965909091 | U113: 0 | V113: 0 | W113: 10
A114: 5 | B114: 17 | C114: 39 | D114: 3HN= | E114: N | F114: S5 | G114: 140 | I114: =NSPlus -> 140 | J114: 4 | K114: 40 | L114: =2*SUMPRODUCT(($I114>Results.NSPlus)*($A114=Results.Boards)*ISNUMBER(Results.NSPlus))+SUMPRODUCT(($I114=Results.NSPlus)*($A114=Results.Boards)*ISNUMBER(Results.NSPlus))-1 -> 4 | M114: 40 | N114: =SUMPRODUCT(($A114=Results.Boards)*ISNUMBER(Results.NSPlus)*NOT(ISBLANK(Results.Contracts))) -> 23 | O114: 4 | P114: 40 | Q114: 1 | R114: 1 | S114: =(SUMPRODUCT(SIGN(B114=INDEX(Results.Entry,,S$4)),INDEX(Results.Scoring,,13+S$4))+(2-Winners.Count)*SUMPRODUCT(SIGN(B114=INDEX(Results.Entry,,5-S$4)),INDEX(Results.Scoring,,13+5-S$4)))/(SUMPRODUCT(SIGN(B114=INDEX(Results.Entry,,S$4)),INDEX(Results.Scoring,,15+S$4))+(2-Winners.Count)*SUMPRODUCT(SIGN(B114=INDEX(Results.Entry,,5-S$4)),INDEX(Results.Scoring,,15+5-S$4)))/(2*Results.Trav.NumLines-2) -> 0.4693181818 | T114: =(SUMPRODUCT(SIGN(C114=INDEX(Results.Entry,,T$4)),INDEX(Results.Scoring,,13+T$4))+(2-Winners.Count)*SUMPRODUCT(SIGN(C114=INDEX(Results.Entry,,5-T$4)),INDEX(Results.Scoring,,13+5-T$4)))/(SUMPRODUCT(SIGN(C114=INDEX(Results.Entry,,T$4)),INDEX(Results.Scoring,,15+T$4))+(2-Winners.Count)*SUMPRODUCT(SIGN(C114=INDEX(Results.Entry,,5-T$4)),INDEX(Results.Scoring,,15+5-T$4)))/(2*Results.Trav.NumLines-2) -> 0.4988636364 | U114: 0 | V114: 0 | W114: 21
A115: 5 | B115: 18 | C115: 40 | D115: 4HN-1 | E115: N | F115: S5 | H115: 100 | I115: =NSPlus -> -100 | J115: 1 | K115: 43 | L115: =2*SUMPRODUCT(($I115>Results.NSPlus)*($A115=Results.Boards)*ISNUMBER(Results.NSPlus))+SUMPRODUCT(($I115=Results.NSPlus)*($A115=Results.Boards)*ISNUMBER(Results.NSPlus))-1 -> 1 | M115: 43 | N115: =SUMPRODUCT(($A115=Results.Boards)*ISNUMBER(Results.NSPlus)*NOT(ISBLANK(Results.Contracts))) -> 23 | O115: 1 | P115: 43 | Q115: 1 | R115: 1 | S115: =(SUMPRODUCT(SIGN(B115=INDEX(Results.Entry,,S$4)),INDEX(Results.Scoring,,13+S$4))+(2-Winners.Count)*SUMPRODUCT(SIGN(B115=INDEX(Results.Entry,,5-S$4)),INDEX(Results.Scoring,,13+5-S$4)))/(SUMPRODUCT(SIGN(B115=INDEX(Results.Entry,,S$4)),INDEX(Results.Scoring,,15+S$4))+(2-Winners.Count)*SUMPRODUCT(SIGN(B115=INDEX(Results.Entry,,5-S$4)),INDEX(Results.Scoring,,15+5-S$4)))/(2*Results.Trav.NumLines-2) -> 0.5238636364 | T115: =(SUMPRODUCT(SIGN(C115=INDEX(Results.Entry,,T$4)),INDEX(Results.Scoring,,13+T$4))+(2-Winners.Count)*SUMPRODUCT(SIGN(C115=INDEX(Results.Entry,,5-T$4)),INDEX(Results.Scoring,,13+5-T$4)))/(SUMPRODUCT(SIGN(C115=INDEX(Results.Entry,,T$4)),INDEX(Results.Scoring,,15+T$4))+(2-Winners.Count)*SUMPRODUCT(SIGN(C115=INDEX(Results.Entry,,5-T$4)),INDEX(Results.Scoring,,15+5-T$4)))/(2*Results.Trav.NumLines-2) -> 0.5272727273 | U115: 0 | V115: 0 | W115: 22
A116: 5 | B116: 19 | C116: 26 | D116: 2NN+2 | E116: N | F116: H9 | G116: 180 | I116: =NSPlus -> 180 | J116: 12 | K116: 32 | L116: =2*SUMPRODUCT(($I116>Results.NSPlus)*($A116=Results.Boards)*ISNUMBER(Results.NSPlus))+SUMPRODUCT(($I116=Results.NSPlus)*($A116=Results.Boards)*ISNUMBER(Results.NSPlus))-1 -> 12 | M116: 32 | N116: =SUMPRODUCT(($A116=Results.Boards)*ISNUMBER(Results.NSPlus)*NOT(ISBLANK(Results.Contracts))) -> 23 | O116: 12 | P116: 32 | Q116: 1 | R116: 1 | S116: =(SUMPRODUCT(SIGN(B116=INDEX(Results.Entry,,S$4)),INDEX(Results.Scoring,,13+S$4))+(2-Winners.Count)*SUMPRODUCT(SIGN(B116=INDEX(Results.Entry,,5-S$4)),INDEX(Results.Scoring,,13+5-S$4)))/(SUMPRODUCT(SIGN(B116=INDEX(Results.Entry,,S$4)),INDEX(Results.Scoring,,15+S$4))+(2-Winners.Count)*SUMPRODUCT(SIGN(B116=INDEX(Results.Entry,,5-S$4)),INDEX(Results.Scoring,,15+5-S$4)))/(2*Results.Trav.NumLines-2) -> 0.4340909091 | T116: =(SUMPRODUCT(SIGN(C116=INDEX(Results.Entry,,T$4)),INDEX(Results.Scoring,,13+T$4))+(2-Winners.Count)*SUMPRODUCT(SIGN(C116=INDEX(Results.Entry,,5-T$4)),INDEX(Results.Scoring,,13+5-T$4)))/(SUMPRODUCT(SIGN(C116=INDEX(Results.Entry,,T$4)),INDEX(Results.Scoring,,15+T$4))+(2-Winners.Count)*SUMPRODUCT(SIGN(C116=INDEX(Results.Entry,,5-T$4)),INDEX(Results.Scoring,,15+5-T$4)))/(2*Results.Trav.NumLines-2) -> 0.4613636364 | U116: 0 | V116: 0 | W116: 17
A117: 5 | B117: 20 | C117: 38 | D117: 4HN+1 | E117: N | F117: H9 | G117: 650 | I117: =NSPlus -> 650 | J117: 36 | K117: 8 | L117: =2*SUMPRODUCT(($I117>Results.NSPlus)*($A117=Results.Boards)*ISNUMBER(Results.NSPlus))+SUMPRODUCT(($I117=Results.NSPlus)*($A117=Results.Boards)*ISNUMBER(Results.NSPlus))-1 -> 36 | M117: 8 | N117: =SUMPRODUCT(($A117=Results.Boards)*ISNUMBER(Results.NSPlus)*NOT(ISBLANK(Results.Contracts))) -> 23 | O117: 36 | P117: 8 | Q117: 1 | R117: 1 | S117: =(SUMPRODUCT(SIGN(B117=INDEX(Results.Entry,,S$4)),INDEX(Results.Scoring,,13+S$4))+(2-Winners.Count)*SUMPRODUCT(SIGN(B117=INDEX(Results.Entry,,5-S$4)),INDEX(Results.Scoring,,13+5-S$4)))/(SUMPRODUCT(SIGN(B117=INDEX(Results.Entry,,S$4)),INDEX(Results.Scoring,,15+S$4))+(2-Winners.Count)*SUMPRODUCT(SIGN(B117=INDEX(Results.Entry,,5-S$4)),INDEX(Results.Scoring,,15+5-S$4)))/(2*Results.Trav.NumLines-2) -> 0.375 | T117: =(SUMPRODUCT(SIGN(C117=INDEX(Results.Entry,,T$4)),INDEX(Results.Scoring,,13+T$4))+(2-Winners.Count)*SUMPRODUCT(SIGN(C117=INDEX(Results.Entry,,5-T$4)),INDEX(Results.Scoring,,13+5-T$4)))/(SUMPRODUCT(SIGN(C117=INDEX(Results.Entry,,T$4)),INDEX(Results.Scoring,,15+T$4))+(2-Winners.Count)*SUMPRODUCT(SIGN(C117=INDEX(Results.Entry,,5-T$4)),INDEX(Results.Scoring,,15+5-T$4)))/(2*Results.Trav.NumLines-2) -> 0.4681818182 | U117: 0 | V117: 0 | W117: 5
A118: 5 | B118: 21 | C118: 46 | D118: 3NS+2 | E118: S | F118: SJ | G118: 660 | I118: =NSPlus -> 660 | J118: 42 | K118: 2 | L118: =2*SUMPRODUCT(($I118>Results.NSPlus)*($A118=Results.Boards)*ISNUMBER(Results.NSPlus))+SUMPRODUCT(($I118=Results.NSPlus)*($A118=Results.Boards)*ISNUMBER(Results.NSPlus))-1 -> 42 | M118: 2 | N118: =SUMPRODUCT(($A118=Results.Boards)*ISNUMBER(Results.NSPlus)*NOT(ISBLANK(Results.Contracts))) -> 23 | O118: 42 | P118: 2 | Q118: 1 | R118: 1 | S118: =(SUMPRODUCT(SIGN(B118=INDEX(Results.Entry,,S$4)),INDEX(Results.Scoring,,13+S$4))+(2-Winners.Count)*SUMPRODUCT(SIGN(B118=INDEX(Results.Entry,,5-S$4)),INDEX(Results.Scoring,,13+5-S$4)))/(SUMPRODUCT(SIGN(B118=INDEX(Results.Entry,,S$4)),INDEX(Results.Scoring,,15+S$4))+(2-Winners.Count)*SUMPRODUCT(SIGN(B118=INDEX(Results.Entry,,5-S$4)),INDEX(Results.Scoring,,15+5-S$4)))/(2*Results.Trav.NumLines-2) -> 0.5568181818 | T118: =(SUMPRODUCT(SIGN(C118=INDEX(Results.Entry,,T$4)),INDEX(Results.Scoring,,13+T$4))+(2-Winners.Count)*SUMPRODUCT(SIGN(C118=INDEX(Results.Entry,,5-T$4)),INDEX(Results.Scoring,,13+5-T$4)))/(SUMPRODUCT(SIGN(C118=INDEX(Results.Entry,,T$4)),INDEX(Results.Scoring,,15+T$4))+(2-Winners.Count)*SUMPRODUCT(SIGN(C118=INDEX(Results.Entry,,5-T$4)),INDEX(Results.Scoring,,15+5-T$4)))/(2*Results.Trav.NumLines-2) -> 0.4488636364 | U118: 0 | V118: 0 | W118: 2
A119: 5 | B119: 22 | C119: 42 | D119: 4HN= | E119: N | F119: S5 | G119: 620 | I119: =NSPlus -> 620 | J119: 26 | K119: 18 | L119: =2*SUMPRODUCT(($I119>Results.NSPlus)*($A119=Results.Boards)*ISNUMBER(Results.NSPlus))+SUMPRODUCT(($I119=Results.NSPlus)*($A119=Results.Boards)*ISNUMBER(Results.NSPlus))-1 -> 26 | M119: 18 | N119: =SUMPRODUCT(($A119=Results.Boards)*ISNUMBER(Results.NSPlus)*NOT(ISBLANK(Results.Contracts))) -> 23 | O119: 26 | P119: 18 | Q119: 1 | R119: 1 | S119: =(SUMPRODUCT(SIGN(B119=INDEX(Results.Entry,,S$4)),INDEX(Results.Scoring,,13+S$4))+(2-Winners.Count)*SUMPRODUCT(SIGN(B119=INDEX(Results.Entry,,5-S$4)),INDEX(Results.Scoring,,13+5-S$4)))/(SUMPRODUCT(SIGN(B119=INDEX(Results.Entry,,S$4)),INDEX(Results.Scoring,,15+S$4))+(2-Winners.Count)*SUMPRODUCT(SIGN(B119=INDEX(Results.Entry,,5-S$4)),INDEX(Results.Scoring,,15+5-S$4)))/(2*Results.Trav.NumLines-2) -> 0.3534090909 | T119: =(SUMPRODUCT(SIGN(C119=INDEX(Results.Entry,,T$4)),INDEX(Results.Scoring,,13+T$4))+(2-Winners.Count)*SUMPRODUCT(SIGN(C119=INDEX(Results.Entry,,5-T$4)),INDEX(Results.Scoring,,13+5-T$4)))/(SUMPRODUCT(SIGN(C119=INDEX(Results.Entry,,T$4)),INDEX(Results.Scoring,,15+T$4))+(2-Winners.Count)*SUMPRODUCT(SIGN(C119=INDEX(Results.Entry,,5-T$4)),INDEX(Results.Scoring,,15+5-T$4)))/(2*Results.Trav.NumLines-2) -> 0.5920454545 | U119: 0 | V119: 0 | W119: 11
A120: 5 | B120: 23 | C120: 30 | D120: 4HN-1 | E120: N | F120: D3 | H120: 100 | I120: =NSPlus -> -100 | J120: 1 | K120: 43 | L120: =2*SUMPRODUCT(($I120>Results.NSPlus)*($A120=Results.Boards)*ISNUMBER(Results.NSPlus))+SUMPRODUCT(($I120=Results.NSPlus)*($A120=Results.Boards)*ISNUMBER(Results.NSPlus))-1 -> 1 | M120: 43 | N120: =SUMPRODUCT(($A120=Results.Boards)*ISNUMBER(Results.NSPlus)*NOT(ISBLANK(Results.Contracts))) -> 23 | O120: 1 | P120: 43 | Q120: 1 | R120: 1 | S120: =(SUMPRODUCT(SIGN(B120=INDEX(Results.Entry,,S$4)),INDEX(Results.Scoring,,13+S$4))+(2-Winners.Count)*SUMPRODUCT(SIGN(B120=INDEX(Results.Entry,,5-S$4)),INDEX(Results.Scoring,,13+5-S$4)))/(SUMPRODUCT(SIGN(B120=INDEX(Results.Entry,,S$4)),INDEX(Results.Scoring,,15+S$4))+(2-Winners.Count)*SUMPRODUCT(SIGN(B120=INDEX(Results.Entry,,5-S$4)),INDEX(Results.Scoring,,15+5-S$4)))/(2*Results.Trav.NumLines-2) -> 0.4340909091 | T120: =(SUMPRODUCT(SIGN(C120=INDEX(Results.Entry,,T$4)),INDEX(Results.Scoring,,13+T$4))+(2-Winners.Count)*SUMPRODUCT(SIGN(C120=INDEX(Results.Entry,,5-T$4)),INDEX(Results.Scoring,,13+5-T$4)))/(SUMPRODUCT(SIGN(C120=INDEX(Results.Entry,,T$4)),INDEX(Results.Scoring,,15+T$4))+(2-Winners.Count)*SUMPRODUCT(SIGN(C120=INDEX(Results.Entry,,5-T$4)),INDEX(Results.Scoring,,15+5-T$4)))/(2*Results.Trav.NumLines-2) -> 0.4977272727 | U120: 0 | V120: 0 | W120: 23
A121: 6 | B121: 1 | C121: 27 | D121: 2NS+2 | E121: S | F121: C5 | G121: 180 | I121: =NSPlus -> 180 | J121: 18 | K121: 26 | L121: =2*SUMPRODUCT(($I121>Results.NSPlus)*($A121=Results.Boards)*ISNUMBER(Results.NSPlus))+SUMPRODUCT(($I121=Results.NSPlus)*($A121=Results.Boards)*ISNUMBER(Results.NSPlus))-1 -> 18 | M121: 26 | N121: =SUMPRODUCT(($A121=Results.Boards)*ISNUMBER(Results.NSPlus)*NOT(ISBLANK(Results.Contracts))) -> 23 | O121: 18 | P121: 26 | Q121: 1 | R121: 1 | S121: =(SUMPRODUCT(SIGN(B121=INDEX(Results.Entry,,S$4)),INDEX(Results.Scoring,,13+S$4))+(2-Winners.Count)*SUMPRODUCT(SIGN(B121=INDEX(Results.Entry,,5-S$4)),INDEX(Results.Scoring,,13+5-S$4)))/(SUMPRODUCT(SIGN(B121=INDEX(Results.Entry,,S$4)),INDEX(Results.Scoring,,15+S$4))+(2-Winners.Count)*SUMPRODUCT(SIGN(B121=INDEX(Results.Entry,,5-S$4)),INDEX(Results.Scoring,,15+5-S$4)))/(2*Results.Trav.NumLines-2) -> 0.5954545455 | T121: =(SUMPRODUCT(SIGN(C121=INDEX(Results.Entry,,T$4)),INDEX(Results.Scoring,,13+T$4))+(2-Winners.Count)*SUMPRODUCT(SIGN(C121=INDEX(Results.Entry,,5-T$4)),INDEX(Results.Scoring,,13+5-T$4)))/(SUMPRODUCT(SIGN(C121=INDEX(Results.Entry,,T$4)),INDEX(Results.Scoring,,15+T$4))+(2-Winners.Count)*SUMPRODUCT(SIGN(C121=INDEX(Results.Entry,,5-T$4)),INDEX(Results.Scoring,,15+5-T$4)))/(2*Results.Trav.NumLines-2) -> 0.5170454545 | U121: 0 | V121: 0 | W121: 14
A122: 6 | B122: 2 | C122: 31 | D122: 2NS+2 | E122: S | F122: C2 | G122: 180 | I122: =NSPlus -> 180 | J122: 18 | K122: 26 | L122: =2*SUMPRODUCT(($I122>Results.NSPlus)*($A122=Results.Boards)*ISNUMBER(Results.NSPlus))+SUMPRODUCT(($I122=Results.NSPlus)*($A122=Results.Boards)*ISNUMBER(Results.NSPlus))-1 -> 18 | M122: 26 | N122: =SUMPRODUCT(($A122=Results.Boards)*ISNUMBER(Results.NSPlus)*NOT(ISBLANK(Results.Contracts))) -> 23 | O122: 18 | P122: 26 | Q122: 1 | R122: 1 | S122: =(SUMPRODUCT(SIGN(B122=INDEX(Results.Entry,,S$4)),INDEX(Results.Scoring,,13+S$4))+(2-Winners.Count)*SUMPRODUCT(SIGN(B122=INDEX(Results.Entry,,5-S$4)),INDEX(Results.Scoring,,13+5-S$4)))/(SUMPRODUCT(SIGN(B122=INDEX(Results.Entry,,S$4)),INDEX(Results.Scoring,,15+S$4))+(2-Winners.Count)*SUMPRODUCT(SIGN(B122=INDEX(Results.Entry,,5-S$4)),INDEX(Results.Scoring,,15+5-S$4)))/(2*Results.Trav.NumLines-2) -> 0.5795454545 | T122: =(SUMPRODUCT(SIGN(C122=INDEX(Results.Entry,,T$4)),INDEX(Results.Scoring,,13+T$4))+(2-Winners.Count)*SUMPRODUCT(SIGN(C122=INDEX(Results.Entry,,5-T$4)),INDEX(Results.Scoring,,13+5-T$4)))/(SUMPRODUCT(SIGN(C122=INDEX(Results.Entry,,T$4)),INDEX(Results.Scoring,,15+T$4))+(2-Winners.Count)*SUMPRODUCT(SIGN(C122=INDEX(Results.Entry,,5-T$4)),INDEX(Results.Scoring,,15+5-T$4)))/(2*Results.Trav.NumLines-2) -> 0.4772727273 | U122: 0 | V122: 0 | W122: 15
A123: 6 | B123: 3 | C123: 36 | D123: 2NS+2 | E123: S | F123: C2 | G123: 180 | I123: =NSPlus -> 180 | J123: 18 | K123: 26 | L123: =2*SUMPRODUCT(($I123>Results.NSPlus)*($A123=Results.Boards)*ISNUMBER(Results.NSPlus))+SUMPRODUCT(($I123=Results.NSPlus)*($A123=Results.Boards)*ISNUMBER(Results.NSPlus))-1 -> 18 | M123: 26 | N123: =SUMPRODUCT(($A123=Results.Boards)*ISNUMBER(Results.NSPlus)*NOT(ISBLANK(Results.Contracts))) -> 23 | O123: 18 | P123: 26 | Q123: 1 | R123: 1 | S123: =(SUMPRODUCT(SIGN(B123=INDEX(Results.Entry,,S$4)),INDEX(Results.Scoring,,13+S$4))+(2-Winners.Count)*SUMPRODUCT(SIGN(B123=INDEX(Results.Entry,,5-S$4)),INDEX(Results.Scoring,,13+5-S$4)))/(SUMPRODUCT(SIGN(B123=INDEX(Results.Entry,,S$4)),INDEX(Results.Scoring,,15+S$4))+(2-Winners.Count)*SUMPRODUCT(SIGN(B123=INDEX(Results.Entry,,5-S$4)),INDEX(Results.Scoring,,15+5-S$4)))/(2*Results.Trav.NumLines-2) -> 0.4034090909 | T123: =(SUMPRODUCT(SIGN(C123=INDEX(Results.Entry,,T$4)),INDEX(Results.Scoring,,13+T$4))+(2-Winners.Count)*SUMPRODUCT(SIGN(C123=INDEX(Results.Entry,,5-T$4)),INDEX(Results.Scoring,,13+5-T$4)))/(SUMPRODUCT(SIGN(C123=INDEX(Results.Entry,,T$4)),INDEX(Results.Scoring,,15+T$4))+(2-Winners.Count)*SUMPRODUCT(SIGN(C123=INDEX(Results.Entry,,5-T$4)),INDEX(Results.Scoring,,15+5-T$4)))/(2*Results.Trav.NumLines-2) -> 0.5852272727 | U123: 0 | V123: 0 | W123: 13
A124: 6 | B124: 4 | C124: 44 | D124: 1NE-3 | E124: E | F124: C6 | G124: 300 | I124: =NSPlus -> 300 | J124: 24 | K124: 20 | L124: =2*SUMPRODUCT(($I124>Results.NSPlus)*($A124=Results.Boards)*ISNUMBER(Results.NSPlus))+SUMPRODUCT(($I124=Results.NSPlus)*($A124=Results.Boards)*ISNUMBER(Results.NSPlus))-1 -> 24 | M124: 20 | N124: =SUMPRODUCT(($A124=Results.Boards)*ISNUMBER(Results.NSPlus)*NOT(ISBLANK(Results.Contracts))) -> 23 | O124: 24 | P124: 20 | Q124: 1 | R124: 1 | S124: =(SUMPRODUCT(SIGN(B124=INDEX(Results.Entry,,S$4)),INDEX(Results.Scoring,,13+S$4))+(2-Winners.Count)*SUMPRODUCT(SIGN(B124=INDEX(Results.Entry,,5-S$4)),INDEX(Results.Scoring,,13+5-S$4)))/(SUMPRODUCT(SIGN(B124=INDEX(Results.Entry,,S$4)),INDEX(Results.Scoring,,15+S$4))+(2-Winners.Count)*SUMPRODUCT(SIGN(B124=INDEX(Results.Entry,,5-S$4)),INDEX(Results.Scoring,,15+5-S$4)))/(2*Results.Trav.NumLines-2) -> 0.4886363636 | T124: =(SUMPRODUCT(SIGN(C124=INDEX(Results.Entry,,T$4)),INDEX(Results.Scoring,,13+T$4))+(2-Winners.Count)*SUMPRODUCT(SIGN(C124=INDEX(Results.Entry,,5-T$4)),INDEX(Results.Scoring,,13+5-T$4)))/(SUMPRODUCT(SIGN(C124=INDEX(Results.Entry,,T$4)),INDEX(Results.Scoring,,15+T$4))+(2-Winners.Count)*SUMPRODUCT(SIGN(C124=INDEX(Results.Entry,,5-T$4)),INDEX(Results.Scoring,,15+5-T$4)))/(2*Results.Trav.NumLines-2) -> 0.3806818182 | U124: 0 | V124: 0 | W124: 11
A125: 6 | B125: 5 | C125: 41 | D125: 2NS= | E125: S | F125: C9 | G125: 120 | I125: =NSPlus -> 120 | J125: 4 | K125: 40 | L125: =2*SUMPRODUCT(($I125>Results.NSPlus)*($A125=Results.Boards)*ISNUMBER(Results.NSPlus))+SUMPRODUCT(($I125=Results.NSPlus)*($A125=Results.Boards)*ISNUMBER(Results.NSPlus))-1 -> 4 | M125: 40 | N125: =SUMPRODUCT(($A125=Results.Boards)*ISNUMBER(Results.NSPlus)*NOT(ISBLANK(Results.Contracts))) -> 23 | O125: 4 | P125: 40 | Q125: 1 | R125: 1 | S125: =(SUMPRODUCT(SIGN(B125=INDEX(Results.Entry,,S$4)),INDEX(Results.Scoring,,13+S$4))+(2-Winners.Count)*SUMPRODUCT(SIGN(B125=INDEX(Results.Entry,,5-S$4)),INDEX(Results.Scoring,,13+5-S$4)))/(SUMPRODUCT(SIGN(B125=INDEX(Results.Entry,,S$4)),INDEX(Results.Scoring,,15+S$4))+(2-Winners.Count)*SUMPRODUCT(SIGN(B125=INDEX(Results.Entry,,5-S$4)),INDEX(Results.Scoring,,15+5-S$4)))/(2*Results.Trav.NumLines-2) -> 0.5386363636 | T125: =(SUMPRODUCT(SIGN(C125=INDEX(Results.Entry,,T$4)),INDEX(Results.Scoring,,13+T$4))+(2-Winners.Count)*SUMPRODUCT(SIGN(C125=INDEX(Results.Entry,,5-T$4)),INDEX(Results.Scoring,,13+5-T$4)))/(SUMPRODUCT(SIGN(C125=INDEX(Results.Entry,,T$4)),INDEX(Results.Scoring,,15+T$4))+(2-Winners.Count)*SUMPRODUCT(SIGN(C125=INDEX(Results.Entry,,5-T$4)),INDEX(Results.Scoring,,15+5-T$4)))/(2*Results.Trav.NumLines-2) -> 0.6181818182 | U125: 0 | V125: 0 | W125: 21
A126: 6 | B126: 6 | C126: 28 | D126: 2CS+1 | E126: S | F126: D2 | G126: 110 | I126: =NSPlus -> 110 | J126: 2 | K126: 42 | L126: =2*SUMPRODUCT(($I126>Results.NSPlus)*($A126=Results.Boards)*ISNUMBER(Results.NSPlus))+SUMPRODUCT(($I126=Results.NSPlus)*($A126=Results.Boards)*ISNUMBER(Results.NSPlus))-1 -> 2 | M126: 42 | N126: =SUMPRODUCT(($A126=Results.Boards)*ISNUMBER(Results.NSPlus)*NOT(ISBLANK(Results.Contracts))) -> 23 | O126: 2 | P126: 42 | Q126: 1 | R126: 1 | S126: =(SUMPRODUCT(SIGN(B126=INDEX(Results.Entry,,S$4)),INDEX(Results.Scoring,,13+S$4))+(2-Winners.Count)*SUMPRODUCT(SIGN(B126=INDEX(Results.Entry,,5-S$4)),INDEX(Results.Scoring,,13+5-S$4)))/(SUMPRODUCT(SIGN(B126=INDEX(Results.Entry,,S$4)),INDEX(Results.Scoring,,15+S$4))+(2-Winners.Count)*SUMPRODUCT(SIGN(B126=INDEX(Results.Entry,,5-S$4)),INDEX(Results.Scoring,,15+5-S$4)))/(2*Results.Trav.NumLines-2) -> 0.4079545455 | T126: =(SUMPRODUCT(SIGN(C126=INDEX(Results.Entry,,T$4)),INDEX(Results.Scoring,,13+T$4))+(2-Winners.Count)*SUMPRODUCT(SIGN(C126=INDEX(Results.Entry,,5-T$4)),INDEX(Results.Scoring,,13+5-T$4)))/(SUMPRODUCT(SIGN(C126=INDEX(Results.Entry,,T$4)),INDEX(Results.Scoring,,15+T$4))+(2-Winners.Count)*SUMPRODUCT(SIGN(C126=INDEX(Results.Entry,,5-T$4)),INDEX(Results.Scoring,,15+5-T$4)))/(2*Results.Trav.NumLines-2) -> 0.4761363636 | U126: 0 | V126: 0 | W126: 22
A127: 6 | B127: 8 | C127: 24 | D127: 3NS+1 | E127: S | F127: C2 | G127: 430 | I127: =NSPlus -> 430 | J127: 39 | K127: 5 | L127: =2*SUMPRODUCT(($I127>Results.NSPlus)*($A127=Results.Boards)*ISNUMBER(Results.NSPlus))+SUMPRODUCT(($I127=Results.NSPlus)*($A127=Results.Boards)*ISNUMBER(Results.NSPlus))-1 -> 39 | M127: 5 | N127: =SUMPRODUCT(($A127=Results.Boards)*ISNUMBER(Results.NSPlus)*NOT(ISBLANK(Results.Contracts))) -> 23 | O127: 39 | P127: 5 | Q127: 1 | R127: 1 | S127: =(SUMPRODUCT(SIGN(B127=INDEX(Results.Entry,,S$4)),INDEX(Results.Scoring,,13+S$4))+(2-Winners.Count)*SUMPRODUCT(SIGN(B127=INDEX(Results.Entry,,5-S$4)),INDEX(Results.Scoring,,13+5-S$4)))/(SUMPRODUCT(SIGN(B127=INDEX(Results.Entry,,S$4)),INDEX(Results.Scoring,,15+S$4))+(2-Winners.Count)*SUMPRODUCT(SIGN(B127=INDEX(Results.Entry,,5-S$4)),INDEX(Results.Scoring,,15+5-S$4)))/(2*Results.Trav.NumLines-2) -> 0.6488636364 | T127: =(SUMPRODUCT(SIGN(C127=INDEX(Results.Entry,,T$4)),INDEX(Results.Scoring,,13+T$4))+(2-Winners.Count)*SUMPRODUCT(SIGN(C127=INDEX(Results.Entry,,5-T$4)),INDEX(Results.Scoring,,13+5-T$4)))/(SUMPRODUCT(SIGN(C127=INDEX(Results.Entry,,T$4)),INDEX(Results.Scoring,,15+T$4))+(2-Winners.Count)*SUMPRODUCT(SIGN(C127=INDEX(Results.Entry,,5-T$4)),INDEX(Results.Scoring,,15+5-T$4)))/(2*Results.Trav.NumLines-2) -> 0.3909090909 | U127: 0 | V127: 0 | W127: 2
A128: 6 | B128: 9 | C128: 29 | D128: 2NS+1 | E128: S | F128: D2 | G128: 150 | I128: =NSPlus -> 150 | J128: 10 | K128: 34 | L128: =2*SUMPRODUCT(($I128>Results.NSPlus)*($A128=Results.Boards)*ISNUMBER(Results.NSPlus))+SUMPRODUCT(($I128=Results.NSPlus)*($A128=Results.Boards)*ISNUMBER(Results.NSPlus))-1 -> 10 | M128: 34 | N128: =SUMPRODUCT(($A128=Results.Boards)*ISNUMBER(Results.NSPlus)*NOT(ISBLANK(Results.Contracts))) -> 23 | O128: 10 | P128: 34 | Q128: 1 | R128: 1 | S128: =(SUMPRODUCT(SIGN(B128=INDEX(Results.Entry,,S$4)),INDEX(Results.Scoring,,13+S$4))+(2-Winners.Count)*SUMPRODUCT(SIGN(B128=INDEX(Results.Entry,,5-S$4)),INDEX(Results.Scoring,,13+5-S$4)))/(SUMPRODUCT(SIGN(B128=INDEX(Results.Entry,,S$4)),INDEX(Results.Scoring,,15+S$4))+(2-Winners.Count)*SUMPRODUCT(SIGN(B128=INDEX(Results.Entry,,5-S$4)),INDEX(Results.Scoring,,15+5-S$4)))/(2*Results.Trav.NumLines-2) -> 0.5420454545 | T128: =(SUMPRODUCT(SIGN(C128=INDEX(Results.Entry,,T$4)),INDEX(Results.Scoring,,13+T$4))+(2-Winners.Count)*SUMPRODUCT(SIGN(C128=INDEX(Results.Entry,,5-T$4)),INDEX(Results.Scoring,,13+5-T$4)))/(SUMPRODUCT(SIGN(C128=INDEX(Results.Entry,,T$4)),INDEX(Results.Scoring,,15+T$4))+(2-Winners.Count)*SUMPRODUCT(SIGN(C128=INDEX(Results.Entry,,5-T$4)),INDEX(Results.Scoring,,15+5-T$4)))/(2*Results.Trav.NumLines-2) -> 0.5715909091 | U128: 0 | V128: 0 | W128: 19
A129: 6 | B129: 10 | C129: 43 | D129: 3NS= | E129: S | F129: C8 | G129: 400 | I129: =NSPlus -> 400 | J129: 27 | K129: 17 | L129: =2*SUMPRODUCT(($I129>Results.NSPlus)*($A129=Results.Boards)*ISNUMBER(Results.NSPlus))+SUMPRODUCT(($I129=Results.NSPlus)*($A129=Results.Boards)*ISNUMBER(Results.NSPlus))-1 -> 27 | M129: 17 | N129: =SUMPRODUCT(($A129=Results.Boards)*ISNUMBER(Results.NSPlus)*NOT(ISBLANK(Results.Contracts))) -> 23 | O129: 27 | P129: 17 | Q129: 1 | R129: 1 | S129: =(SUMPRODUCT(SIGN(B129=INDEX(Results.Entry,,S$4)),INDEX(Results.Scoring,,13+S$4))+(2-Winners.Count)*SUMPRODUCT(SIGN(B129=INDEX(Results.Entry,,5-S$4)),INDEX(Results.Scoring,,13+5-S$4)))/(SUMPRODUCT(SIGN(B129=INDEX(Results.Entry,,S$4)),INDEX(Results.Scoring,,15+S$4))+(2-Winners.Count)*SUMPRODUCT(SIGN(B129=INDEX(Results.Entry,,5-S$4)),INDEX(Results.Scoring,,15+5-S$4)))/(2*Results.Trav.NumLines-2) -> 0.4954545455 | T129: =(SUMPRODUCT(SIGN(C129=INDEX(Results.Entry,,T$4)),INDEX(Results.Scoring,,13+T$4))+(2-Winners.Count)*SUMPRODUCT(SIGN(C129=INDEX(Results.Entry,,5-T$4)),INDEX(Results.Scoring,,13+5-T$4)))/(SUMPRODUCT(SIGN(C129=INDEX(Results.Entry,,T$4)),INDEX(Results.Scoring,,15+T$4))+(2-Winners.Count)*SUMPRODUCT(SIGN(C129=INDEX(Results.Entry,,5-T$4)),INDEX(Results.Scoring,,15+5-T$4)))/(2*Results.Trav.NumLines-2) -> 0.5488636364 | U129: 0 | V129: 0 | W129: 9
A130: 6 | B130: 11 | C130: 25 | D130: 4HS= | E130: S | F130: C8 | G130: 420 | I130: =NSPlus -> 420 | J130: 31 | K130: 13 | L130: =2*SUMPRODUCT(($I130>Results.NSPlus)*($A130=Results.Boards)*ISNUMBER(Results.NSPlus))+SUMPRODUCT(($I130=Results.NSPlus)*($A130=Results.Boards)*ISNUMBER(Results.NSPlus))-1 -> 31 | M130: 13 | N130: =SUMPRODUCT(($A130=Results.Boards)*ISNUMBER(Results.NSPlus)*NOT(ISBLANK(Results.Contracts))) -> 23 | O130: 31 | P130: 13 | Q130: 1 | R130: 1 | S130: =(SUMPRODUCT(SIGN(B130=INDEX(Results.Entry,,S$4)),INDEX(Results.Scoring,,13+S$4))+(2-Winners.Count)*SUMPRODUCT(SIGN(B130=INDEX(Results.Entry,,5-S$4)),INDEX(Results.Scoring,,13+5-S$4)))/(SUMPRODUCT(SIGN(B130=INDEX(Results.Entry,,S$4)),INDEX(Results.Scoring,,15+S$4))+(2-Winners.Count)*SUMPRODUCT(SIGN(B130=INDEX(Results.Entry,,5-S$4)),INDEX(Results.Scoring,,15+5-S$4)))/(2*Results.Trav.NumLines-2) -> 0.5159090909 | T130: =(SUMPRODUCT(SIGN(C130=INDEX(Results.Entry,,T$4)),INDEX(Results.Scoring,,13+T$4))+(2-Winners.Count)*SUMPRODUCT(SIGN(C130=INDEX(Results.Entry,,5-T$4)),INDEX(Results.Scoring,,13+5-T$4)))/(SUMPRODUCT(SIGN(C130=INDEX(Results.Entry,,T$4)),INDEX(Results.Scoring,,15+T$4))+(2-Winners.Count)*SUMPRODUCT(SIGN(C130=INDEX(Results.Entry,,5-T$4)),INDEX(Results.Scoring,,15+5-T$4)))/(2*Results.Trav.NumLines-2) -> 0.2818181818 | U130: 0 | V130: 0 | W130: 7
A131: 6 | B131: 12 | C131: 34 | D131: 3NS+1 | E131: S | F131: C8 | G131: 430 | I131: =NSPlus -> 430 | J131: 39 | K131: 5 | L131: =2*SUMPRODUCT(($I131>Results.NSPlus)*($A131=Results.Boards)*ISNUMBER(Results.NSPlus))+SUMPRODUCT(($I131=Results.NSPlus)*($A131=Results.Boards)*ISNUMBER(Results.NSPlus))-1 -> 39 | M131: 5 | N131: =SUMPRODUCT(($A131=Results.Boards)*ISNUMBER(Results.NSPlus)*NOT(ISBLANK(Results.Contracts))) -> 23 | O131: 39 | P131: 5 | Q131: 1 | R131: 1 | S131: =(SUMPRODUCT(SIGN(B131=INDEX(Results.Entry,,S$4)),INDEX(Results.Scoring,,13+S$4))+(2-Winners.Count)*SUMPRODUCT(SIGN(B131=INDEX(Results.Entry,,5-S$4)),INDEX(Results.Scoring,,13+5-S$4)))/(SUMPRODUCT(SIGN(B131=INDEX(Results.Entry,,S$4)),INDEX(Results.Scoring,,15+S$4))+(2-Winners.Count)*SUMPRODUCT(SIGN(B131=INDEX(Results.Entry,,5-S$4)),INDEX(Results.Scoring,,15+5-S$4)))/(2*Results.Trav.NumLines-2) -> 0.6420454545 | T131: =(SUMPRODUCT(SIGN(C131=INDEX(Results.Entry,,T$4)),INDEX(Results.Scoring,,13+T$4))+(2-Winners.Count)*SUMPRODUCT(SIGN(C131=INDEX(Results.Entry,,5-T$4)),INDEX(Results.Scoring,,13+5-T$4)))/(SUMPRODUCT(SIGN(C131=INDEX(Results.Entry,,T$4)),INDEX(Results.Scoring,,15+T$4))+(2-Winners.Count)*SUMPRODUCT(SIGN(C131=INDEX(Results.Entry,,5-T$4)),INDEX(Results.Scoring,,15+5-T$4)))/(2*Results.Trav.NumLines-2) -> 0.5636363636 | U131: 0 | V131: 0 | W131: 6
A132: 6 | B132: 13 | C132: 33 | D132: 4CS-1 | E132: S | F132: C5 | H132: 50 | I132: =NSPlus -> -50 | J132: 0 | K132: 44 | L132: =2*SUMPRODUCT(($I132>Results.NSPlus)*($A132=Results.Boards)*ISNUMBER(Results.NSPlus))+SUMPRODUCT(($I132=Results.NSPlus)*($A132=Results.Boards)*ISNUMBER(Results.NSPlus))-1 -> 0 | M132: 44 | N132: =SUMPRODUCT(($A132=Results.Boards)*ISNUMBER(Results.NSPlus)*NOT(ISBLANK(Results.Contracts))) -> 23 | O132: 0 | P132: 44 | Q132: 1 | R132: 1 | S132: =(SUMPRODUCT(SIGN(B132=INDEX(Results.Entry,,S$4)),INDEX(Results.Scoring,,13+S$4))+(2-Winners.Count)*SUMPRODUCT(SIGN(B132=INDEX(Results.Entry,,5-S$4)),INDEX(Results.Scoring,,13+5-S$4)))/(SUMPRODUCT(SIGN(B132=INDEX(Results.Entry,,S$4)),INDEX(Results.Scoring,,15+S$4))+(2-Winners.Count)*SUMPRODUCT(SIGN(B132=INDEX(Results.Entry,,5-S$4)),INDEX(Results.Scoring,,15+5-S$4)))/(2*Results.Trav.NumLines-2) -> 0.425 | T132: =(SUMPRODUCT(SIGN(C132=INDEX(Results.Entry,,T$4)),INDEX(Results.Scoring,,13+T$4))+(2-Winners.Count)*SUMPRODUCT(SIGN(C132=INDEX(Results.Entry,,5-T$4)),INDEX(Results.Scoring,,13+5-T$4)))/(SUMPRODUCT(SIGN(C132=INDEX(Results.Entry,,T$4)),INDEX(Results.Scoring,,15+T$4))+(2-Winners.Count)*SUMPRODUCT(SIGN(C132=INDEX(Results.Entry,,5-T$4)),INDEX(Results.Scoring,,15+5-T$4)))/(2*Results.Trav.NumLines-2) -> 0.6079545455 | U132: 0 | V132: 0 | W132: 23
A133: 6 | B133: 14 | C133: 32 | D133: 3NS+1 | E133: S | F133: C9 | G133: 430 | I133: =NSPlus -> 430 | J133: 39 | K133: 5 | L133: =2*SUMPRODUCT(($I133>Results.NSPlus)*($A133=Results.Boards)*ISNUMBER(Results.NSPlus))+SUMPRODUCT(($I133=Results.NSPlus)*($A133=Results.Boards)*ISNUMBER(Results.NSPlus))-1 -> 39 | M133: 5 | N133: =SUMPRODUCT(($A133=Results.Boards)*ISNUMBER(Results.NSPlus)*NOT(ISBLANK(Results.Contracts))) -> 23 | O133: 39 | P133: 5 | Q133: 1 | R133: 1 | S133: =(SUMPRODUCT(SIGN(B133=INDEX(Results.Entry,,S$4)),INDEX(Results.Scoring,,13+S$4))+(2-Winners.Count)*SUMPRODUCT(SIGN(B133=INDEX(Results.Entry,,5-S$4)),INDEX(Results.Scoring,,13+5-S$4)))/(SUMPRODUCT(SIGN(B133=INDEX(Results.Entry,,S$4)),INDEX(Results.Scoring,,15+S$4))+(2-Winners.Count)*SUMPRODUCT(SIGN(B133=INDEX(Results.Entry,,5-S$4)),INDEX(Results.Scoring,,15+5-S$4)))/(2*Results.Trav.NumLines-2) -> 0.6238636364 | T133: =(SUMPRODUCT(SIGN(C133=INDEX(Results.Entry,,T$4)),INDEX(Results.Scoring,,13+T$4))+(2-Winners.Count)*SUMPRODUCT(SIGN(C133=INDEX(Results.Entry,,5-T$4)),INDEX(Results.Scoring,,13+5-T$4)))/(SUMPRODUCT(SIGN(C133=INDEX(Results.Entry,,T$4)),INDEX(Results.Scoring,,15+T$4))+(2-Winners.Count)*SUMPRODUCT(SIGN(C133=INDEX(Results.Entry,,5-T$4)),INDEX(Results.Scoring,,15+5-T$4)))/(2*Results.Trav.NumLines-2) -> 0.5215909091 | U133: 0 | V133: 0 | W133: 1
A134: 6 | B134: 15 | C134: 35 | D134: 2HN+3 | E134: N | F134: D3 | G134: 200 | I134: =NSPlus -> 200 | J134: 22 | K134: 22 | L134: =2*SUMPRODUCT(($I134>Results.NSPlus)*($A134=Results.Boards)*ISNUMBER(Results.NSPlus))+SUMPRODUCT(($I134=Results.NSPlus)*($A134=Results.Boards)*ISNUMBER(Results.NSPlus))-1 -> 22 | M134: 22 | N134: =SUMPRODUCT(($A134=Results.Boards)*ISNUMBER(Results.NSPlus)*NOT(ISBLANK(Results.Contracts))) -> 23 | O134: 22 | P134: 22 | Q134: 1 | R134: 1 | S134: =(SUMPRODUCT(SIGN(B134=INDEX(Results.Entry,,S$4)),INDEX(Results.Scoring,,13+S$4))+(2-Winners.Count)*SUMPRODUCT(SIGN(B134=INDEX(Results.Entry,,5-S$4)),INDEX(Results.Scoring,,13+5-S$4)))/(SUMPRODUCT(SIGN(B134=INDEX(Results.Entry,,S$4)),INDEX(Results.Scoring,,15+S$4))+(2-Winners.Count)*SUMPRODUCT(SIGN(B134=INDEX(Results.Entry,,5-S$4)),INDEX(Results.Scoring,,15+5-S$4)))/(2*Results.Trav.NumLines-2) -> 0.4568181818 | T134: =(SUMPRODUCT(SIGN(C134=INDEX(Results.Entry,,T$4)),INDEX(Results.Scoring,,13+T$4))+(2-Winners.Count)*SUMPRODUCT(SIGN(C134=INDEX(Results.Entry,,5-T$4)),INDEX(Results.Scoring,,13+5-T$4)))/(SUMPRODUCT(SIGN(C134=INDEX(Results.Entry,,T$4)),INDEX(Results.Scoring,,15+T$4))+(2-Winners.Count)*SUMPRODUCT(SIGN(C134=INDEX(Results.Entry,,5-T$4)),INDEX(Results.Scoring,,15+5-T$4)))/(2*Results.Trav.NumLines-2) -> 0.5215909091 | U134: 0 | V134: 0 | W134: 12
A135: 6 | B135: 16 | C135: 45 | D135: 3NS+1 | E135: S | F135: C8 | G135: =IF(I135>0,I135,"") -> 430 | H135: =IF(I135>0,"",-I135) ->  | I135: =NSPlus -> 430 | J135: =ROUND(IF(LEFT($D135,3)="ADJ",U135,O135),2) -> 39 | K135: =ROUND(IF(LEFT($D135,3)="ADJ",V135,P135),2) -> 5 | L135: =2*SUMPRODUCT(($I135>Results.NSPlus)*($A135=Results.Boards)*ISNUMBER(Results.NSPlus))+SUMPRODUCT(($I135=Results.NSPlus)*($A135=Results.Boards)*ISNUMBER(Results.NSPlus))-1 -> 39 | M135: =2*N135-2-L135 -> 5 | N135: =SUMPRODUCT(($A135=Results.Boards)*ISNUMBER(Results.NSPlus)*NOT(ISBLANK(Results.Contracts))) -> 23 | O135: =IF(LEFT($D135,3)="ADJ",IF(MID($D135,J$4,2)="50",Results.Trav.NumLines-1,0),Results.Trav.NumLines*(L135+1)/$N135-1) -> 39 | P135: =IF(LEFT($D135,3)="ADJ",IF(MID($D135,K$4,2)="50",Results.Trav.NumLines-1,0),Results.Trav.NumLines*(M135+1)/$N135-1) -> 5 | Q135: =SIGN(AND(MID($D135,J$4,2)<>"60",MID($D135,J$4,2)<>"40")) -> 1 | R135: =SIGN(AND(MID($D135,K$4,2)<>"60",MID($D135,K$4,2)<>"40")) -> 1 | S135: =(SUMPRODUCT(SIGN(B135=INDEX(Results.Entry,,S$4)),INDEX(Results.Scoring,,13+S$4))+(2-Winners.Count)*SUMPRODUCT(SIGN(B135=INDEX(Results.Entry,,5-S$4)),INDEX(Results.Scoring,,13+5-S$4)))/(SUMPRODUCT(SIGN(B135=INDEX(Results.Entry,,S$4)),INDEX(Results.Scoring,,15+S$4))+(2-Winners.Count)*SUMPRODUCT(SIGN(B135=INDEX(Results.Entry,,5-S$4)),INDEX(Results.Scoring,,15+5-S$4)))/(2*Results.Trav.NumLines-2) -> 0.5602272727 | T135: =(SUMPRODUCT(SIGN(C135=INDEX(Results.Entry,,T$4)),INDEX(Results.Scoring,,13+T$4))+(2-Winners.Count)*SUMPRODUCT(SIGN(C135=INDEX(Results.Entry,,5-T$4)),INDEX(Results.Scoring,,13+5-T$4)))/(SUMPRODUCT(SIGN(C135=INDEX(Results.Entry,,T$4)),INDEX(Results.Scoring,,15+T$4))+(2-Winners.Count)*SUMPRODUCT(SIGN(C135=INDEX(Results.Entry,,5-T$4)),INDEX(Results.Scoring,,15+5-T$4)))/(2*Results.Trav.NumLines-2) -> 0.3965909091 | U135: =IFERROR(CHOOSE(MID($D135,J$4,2)/10-3,MIN(S135,0.4),0.5,MAX(S135,0.6))*(Results.Trav.NumLines-1)*2,0) -> 0 | V135: =IFERROR(CHOOSE(MID($D135,K$4,2)/10-3,MIN(T135,0.4),0.5,MAX(T135,0.6))*(Results.Trav.NumLines-1)*2,0) -> 0 | W135: 4
A136: 6 | B136: 17 | C136: 39 | D136: 2NS+1 | E136: S | F136: C2 | G136: 150 | I136: =NSPlus -> 150 | J136: 10 | K136: 34 | L136: =2*SUMPRODUCT(($I136>Results.NSPlus)*($A136=Results.Boards)*ISNUMBER(Results.NSPlus))+SUMPRODUCT(($I136=Results.NSPlus)*($A136=Results.Boards)*ISNUMBER(Results.NSPlus))-1 -> 10 | M136: 34 | N136: =SUMPRODUCT(($A136=Results.Boards)*ISNUMBER(Results.NSPlus)*NOT(ISBLANK(Results.Contracts))) -> 23 | O136: 10 | P136: 34 | Q136: 1 | R136: 1 | S136: =(SUMPRODUCT(SIGN(B136=INDEX(Results.Entry,,S$4)),INDEX(Results.Scoring,,13+S$4))+(2-Winners.Count)*SUMPRODUCT(SIGN(B136=INDEX(Results.Entry,,5-S$4)),INDEX(Results.Scoring,,13+5-S$4)))/(SUMPRODUCT(SIGN(B136=INDEX(Results.Entry,,S$4)),INDEX(Results.Scoring,,15+S$4))+(2-Winners.Count)*SUMPRODUCT(SIGN(B136=INDEX(Results.Entry,,5-S$4)),INDEX(Results.Scoring,,15+5-S$4)))/(2*Results.Trav.NumLines-2) -> 0.4693181818 | T136: =(SUMPRODUCT(SIGN(C136=INDEX(Results.Entry,,T$4)),INDEX(Results.Scoring,,13+T$4))+(2-Winners.Count)*SUMPRODUCT(SIGN(C136=INDEX(Results.Entry,,5-T$4)),INDEX(Results.Scoring,,13+5-T$4)))/(SUMPRODUCT(SIGN(C136=INDEX(Results.Entry,,T$4)),INDEX(Results.Scoring,,15+T$4))+(2-Winners.Count)*SUMPRODUCT(SIGN(C136=INDEX(Results.Entry,,5-T$4)),INDEX(Results.Scoring,,15+5-T$4)))/(2*Results.Trav.NumLines-2) -> 0.4988636364 | U136: 0 | V136: 0 | W136: 18
A137: 6 | B137: 18 | C137: 40 | D137: 3NS+1 | E137: S | F137: C2 | G137: 430 | I137: =NSPlus -> 430 | J137: 39 | K137: 5 | L137: =2*SUMPRODUCT(($I137>Results.NSPlus)*($A137=Results.Boards)*ISNUMBER(Results.NSPlus))+SUMPRODUCT(($I137=Results.NSPlus)*($A137=Results.Boards)*ISNUMBER(Results.NSPlus))-1 -> 39 | M137: 5 | N137: =SUMPRODUCT(($A137=Results.Boards)*ISNUMBER(Results.NSPlus)*NOT(ISBLANK(Results.Contracts))) -> 23 | O137: 39 | P137: 5 | Q137: 1 | R137: 1 | S137: =(SUMPRODUCT(SIGN(B137=INDEX(Results.Entry,,S$4)),INDEX(Results.Scoring,,13+S$4))+(2-Winners.Count)*SUMPRODUCT(SIGN(B137=INDEX(Results.Entry,,5-S$4)),INDEX(Results.Scoring,,13+5-S$4)))/(SUMPRODUCT(SIGN(B137=INDEX(Results.Entry,,S$4)),INDEX(Results.Scoring,,15+S$4))+(2-Winners.Count)*SUMPRODUCT(SIGN(B137=INDEX(Results.Entry,,5-S$4)),INDEX(Results.Scoring,,15+5-S$4)))/(2*Results.Trav.NumLines-2) -> 0.5238636364 | T137: =(SUMPRODUCT(SIGN(C137=INDEX(Results.Entry,,T$4)),INDEX(Results.Scoring,,13+T$4))+(2-Winners.Count)*SUMPRODUCT(SIGN(C137=INDEX(Results.Entry,,5-T$4)),INDEX(Results.Scoring,,13+5-T$4)))/(SUMPRODUCT(SIGN(C137=INDEX(Results.Entry,,T$4)),INDEX(Results.Scoring,,15+T$4))+(2-Winners.Count)*SUMPRODUCT(SIGN(C137=INDEX(Results.Entry,,5-T$4)),INDEX(Results.Scoring,,15+5-T$4)))/(2*Results.Trav.NumLines-2) -> 0.5272727273 | U137: 0 | V137: 0 | W137: 3
A138: 6 | B138: 19 | C138: 26 | D138: 3NS+1 | E138: S | F138: C8 | G138: 430 | I138: =NSPlus -> 430 | J138: 39 | K138: 5 | L138: =2*SUMPRODUCT(($I138>Results.NSPlus)*($A138=Results.Boards)*ISNUMBER(Results.NSPlus))+SUMPRODUCT(($I138=Results.NSPlus)*($A138=Results.Boards)*ISNUMBER(Results.NSPlus))-1 -> 39 | M138: 5 | N138: =SUMPRODUCT(($A138=Results.Boards)*ISNUMBER(Results.NSPlus)*NOT(ISBLANK(Results.Contracts))) -> 23 | O138: 39 | P138: 5 | Q138: 1 | R138: 1 | S138: =(SUMPRODUCT(SIGN(B138=INDEX(Results.Entry,,S$4)),INDEX(Results.Scoring,,13+S$4))+(2-Winners.Count)*SUMPRODUCT(SIGN(B138=INDEX(Results.Entry,,5-S$4)),INDEX(Results.Scoring,,13+5-S$4)))/(SUMPRODUCT(SIGN(B138=INDEX(Results.Entry,,S$4)),INDEX(Results.Scoring,,15+S$4))+(2-Winners.Count)*SUMPRODUCT(SIGN(B138=INDEX(Results.Entry,,5-S$4)),INDEX(Results.Scoring,,15+5-S$4)))/(2*Results.Trav.NumLines-2) -> 0.4340909091 | T138: =(SUMPRODUCT(SIGN(C138=INDEX(Results.Entry,,T$4)),INDEX(Results.Scoring,,13+T$4))+(2-Winners.Count)*SUMPRODUCT(SIGN(C138=INDEX(Results.Entry,,5-T$4)),INDEX(Results.Scoring,,13+5-T$4)))/(SUMPRODUCT(SIGN(C138=INDEX(Results.Entry,,T$4)),INDEX(Results.Scoring,,15+T$4))+(2-Winners.Count)*SUMPRODUCT(SIGN(C138=INDEX(Results.Entry,,5-T$4)),INDEX(Results.Scoring,,15+5-T$4)))/(2*Results.Trav.NumLines-2) -> 0.4613636364 | U138: 0 | V138: 0 | W138: 5
A139: 6 | B139: 20 | C139: 38 | D139: 2HN+1 | E139: N | F139: DJ | G139: 140 | I139: =NSPlus -> 140 | J139: 6 | K139: 38 | L139: =2*SUMPRODUCT(($I139>Results.NSPlus)*($A139=Results.Boards)*ISNUMBER(Results.NSPlus))+SUMPRODUCT(($I139=Results.NSPlus)*($A139=Results.Boards)*ISNUMBER(Results.NSPlus))-1 -> 6 | M139: 38 | N139: =SUMPRODUCT(($A139=Results.Boards)*ISNUMBER(Results.NSPlus)*NOT(ISBLANK(Results.Contracts))) -> 23 | O139: 6 | P139: 38 | Q139: 1 | R139: 1 | S139: =(SUMPRODUCT(SIGN(B139=INDEX(Results.Entry,,S$4)),INDEX(Results.Scoring,,13+S$4))+(2-Winners.Count)*SUMPRODUCT(SIGN(B139=INDEX(Results.Entry,,5-S$4)),INDEX(Results.Scoring,,13+5-S$4)))/(SUMPRODUCT(SIGN(B139=INDEX(Results.Entry,,S$4)),INDEX(Results.Scoring,,15+S$4))+(2-Winners.Count)*SUMPRODUCT(SIGN(B139=INDEX(Results.Entry,,5-S$4)),INDEX(Results.Scoring,,15+5-S$4)))/(2*Results.Trav.NumLines-2) -> 0.375 | T139: =(SUMPRODUCT(SIGN(C139=INDEX(Results.Entry,,T$4)),INDEX(Results.Scoring,,13+T$4))+(2-Winners.Count)*SUMPRODUCT(SIGN(C139=INDEX(Results.Entry,,5-T$4)),INDEX(Results.Scoring,,13+5-T$4)))/(SUMPRODUCT(SIGN(C139=INDEX(Results.Entry,,T$4)),INDEX(Results.Scoring,,15+T$4))+(2-Winners.Count)*SUMPRODUCT(SIGN(C139=INDEX(Results.Entry,,5-T$4)),INDEX(Results.Scoring,,15+5-T$4)))/(2*Results.Trav.NumLines-2) -> 0.4681818182 | U139: 0 | V139: 0 | W139: 20
A140: 6 | B140: 21 | C140: 46 | D140: 2HN+2 | E140: N | F140: CQ | G140: 170 | I140: =NSPlus -> 170 | J140: 14 | K140: 30 | L140: =2*SUMPRODUCT(($I140>Results.NSPlus)*($A140=Results.Boards)*ISNUMBER(Results.NSPlus))+SUMPRODUCT(($I140=Results.NSPlus)*($A140=Results.Boards)*ISNUMBER(Results.NSPlus))-1 -> 14 | M140: 30 | N140: =SUMPRODUCT(($A140=Results.Boards)*ISNUMBER(Results.NSPlus)*NOT(ISBLANK(Results.Contracts))) -> 23 | O140: 14 | P140: 30 | Q140: 1 | R140: 1 | S140: =(SUMPRODUCT(SIGN(B140=INDEX(Results.Entry,,S$4)),INDEX(Results.Scoring,,13+S$4))+(2-Winners.Count)*SUMPRODUCT(SIGN(B140=INDEX(Results.Entry,,5-S$4)),INDEX(Results.Scoring,,13+5-S$4)))/(SUMPRODUCT(SIGN(B140=INDEX(Results.Entry,,S$4)),INDEX(Results.Scoring,,15+S$4))+(2-Winners.Count)*SUMPRODUCT(SIGN(B140=INDEX(Results.Entry,,5-S$4)),INDEX(Results.Scoring,,15+5-S$4)))/(2*Results.Trav.NumLines-2) -> 0.5568181818 | T140: =(SUMPRODUCT(SIGN(C140=INDEX(Results.Entry,,T$4)),INDEX(Results.Scoring,,13+T$4))+(2-Winners.Count)*SUMPRODUCT(SIGN(C140=INDEX(Results.Entry,,5-T$4)),INDEX(Results.Scoring,,13+5-T$4)))/(SUMPRODUCT(SIGN(C140=INDEX(Results.Entry,,T$4)),INDEX(Results.Scoring,,15+T$4))+(2-Winners.Count)*SUMPRODUCT(SIGN(C140=INDEX(Results.Entry,,5-T$4)),INDEX(Results.Scoring,,15+5-T$4)))/(2*Results.Trav.NumLines-2) -> 0.4488636364 | U140: 0 | V140: 0 | W140: 16
A141: 6 | B141: 22 | C141: 42 | D141: 3NN= | E141: N | F141: S5 | G141: 400 | I141: =NSPlus -> 400 | J141: 27 | K141: 17 | L141: =2*SUMPRODUCT(($I141>Results.NSPlus)*($A141=Results.Boards)*ISNUMBER(Results.NSPlus))+SUMPRODUCT(($I141=Results.NSPlus)*($A141=Results.Boards)*ISNUMBER(Results.NSPlus))-1 -> 27 | M141: 17 | N141: =SUMPRODUCT(($A141=Results.Boards)*ISNUMBER(Results.NSPlus)*NOT(ISBLANK(Results.Contracts))) -> 23 | O141: 27 | P141: 17 | Q141: 1 | R141: 1 | S141: =(SUMPRODUCT(SIGN(B141=INDEX(Results.Entry,,S$4)),INDEX(Results.Scoring,,13+S$4))+(2-Winners.Count)*SUMPRODUCT(SIGN(B141=INDEX(Results.Entry,,5-S$4)),INDEX(Results.Scoring,,13+5-S$4)))/(SUMPRODUCT(SIGN(B141=INDEX(Results.Entry,,S$4)),INDEX(Results.Scoring,,15+S$4))+(2-Winners.Count)*SUMPRODUCT(SIGN(B141=INDEX(Results.Entry,,5-S$4)),INDEX(Results.Scoring,,15+5-S$4)))/(2*Results.Trav.NumLines-2) -> 0.3534090909 | T141: =(SUMPRODUCT(SIGN(C141=INDEX(Results.Entry,,T$4)),INDEX(Results.Scoring,,13+T$4))+(2-Winners.Count)*SUMPRODUCT(SIGN(C141=INDEX(Results.Entry,,5-T$4)),INDEX(Results.Scoring,,13+5-T$4)))/(SUMPRODUCT(SIGN(C141=INDEX(Results.Entry,,T$4)),INDEX(Results.Scoring,,15+T$4))+(2-Winners.Count)*SUMPRODUCT(SIGN(C141=INDEX(Results.Entry,,5-T$4)),INDEX(Results.Scoring,,15+5-T$4)))/(2*Results.Trav.NumLines-2) -> 0.5920454545 | U141: 0 | V141: 0 | W141: 10
A142: 6 | B142: 23 | C142: 30 | D142: 4HN= | E142: N | F142: SQ | G142: 420 | I142: =NSPlus -> 420 | J142: 31 | K142: 13 | L142: =2*SUMPRODUCT(($I142>Results.NSPlus)*($A142=Results.Boards)*ISNUMBER(Results.NSPlus))+SUMPRODUCT(($I142=Results.NSPlus)*($A142=Results.Boards)*ISNUMBER(Results.NSPlus))-1 -> 31 | M142: 13 | N142: =SUMPRODUCT(($A142=Results.Boards)*ISNUMBER(Results.NSPlus)*NOT(ISBLANK(Results.Contracts))) -> 23 | O142: 31 | P142: 13 | Q142: 1 | R142: 1 | S142: =(SUMPRODUCT(SIGN(B142=INDEX(Results.Entry,,S$4)),INDEX(Results.Scoring,,13+S$4))+(2-Winners.Count)*SUMPRODUCT(SIGN(B142=INDEX(Results.Entry,,5-S$4)),INDEX(Results.Scoring,,13+5-S$4)))/(SUMPRODUCT(SIGN(B142=INDEX(Results.Entry,,S$4)),INDEX(Results.Scoring,,15+S$4))+(2-Winners.Count)*SUMPRODUCT(SIGN(B142=INDEX(Results.Entry,,5-S$4)),INDEX(Results.Scoring,,15+5-S$4)))/(2*Results.Trav.NumLines-2) -> 0.4340909091 | T142: =(SUMPRODUCT(SIGN(C142=INDEX(Results.Entry,,T$4)),INDEX(Results.Scoring,,13+T$4))+(2-Winners.Count)*SUMPRODUCT(SIGN(C142=INDEX(Results.Entry,,5-T$4)),INDEX(Results.Scoring,,13+5-T$4)))/(SUMPRODUCT(SIGN(C142=INDEX(Results.Entry,,T$4)),INDEX(Results.Scoring,,15+T$4))+(2-Winners.Count)*SUMPRODUCT(SIGN(C142=INDEX(Results.Entry,,5-T$4)),INDEX(Results.Scoring,,15+5-T$4)))/(2*Results.Trav.NumLines-2) -> 0.4977272727 | U142: 0 | V142: 0 | W142: 8
A143: 6 | B143: 7 | C143: 37 | D143: 2NS+1 | E143: S | F143: S2 | G143: 150 | I143: =NSPlus -> 150 | J143: 10 | K143: 34 | L143: =2*SUMPRODUCT(($I143>Results.NSPlus)*($A143=Results.Boards)*ISNUMBER(Results.NSPlus))+SUMPRODUCT(($I143=Results.NSPlus)*($A143=Results.Boards)*ISNUMBER(Results.NSPlus))-1 -> 10 | M143: 34 | N143: =SUMPRODUCT(($A143=Results.Boards)*ISNUMBER(Results.NSPlus)*NOT(ISBLANK(Results.Contracts))) -> 23 | O143: 10 | P143: 34 | Q143: 1 | R143: 1 | S143: =(SUMPRODUCT(SIGN(B143=INDEX(Results.Entry,,S$4)),INDEX(Results.Scoring,,13+S$4))+(2-Winners.Count)*SUMPRODUCT(SIGN(B143=INDEX(Results.Entry,,5-S$4)),INDEX(Results.Scoring,,13+5-S$4)))/(SUMPRODUCT(SIGN(B143=INDEX(Results.Entry,,S$4)),INDEX(Results.Scoring,,15+S$4))+(2-Winners.Count)*SUMPRODUCT(SIGN(B143=INDEX(Results.Entry,,5-S$4)),INDEX(Results.Scoring,,15+5-S$4)))/(2*Results.Trav.NumLines-2) -> 0.4295454545 | T143: =(SUMPRODUCT(SIGN(C143=INDEX(Results.Entry,,T$4)),INDEX(Results.Scoring,,13+T$4))+(2-Winners.Count)*SUMPRODUCT(SIGN(C143=INDEX(Results.Entry,,5-T$4)),INDEX(Results.Scoring,,13+5-T$4)))/(SUMPRODUCT(SIGN(C143=INDEX(Results.Entry,,T$4)),INDEX(Results.Scoring,,15+T$4))+(2-Winners.Count)*SUMPRODUCT(SIGN(C143=INDEX(Results.Entry,,5-T$4)),INDEX(Results.Scoring,,15+5-T$4)))/(2*Results.Trav.NumLines-2) -> 0.5465909091 | U143: 0 | V143: 0 | W143: 17
A144: 7 | B144: 1 | C144: 42 | D144: 4HE+1 | E144: E | F144: H7 | H144: 650 | I144: =NSPlus -> -650 | J144: 3 | K144: 41 | L144: =2*SUMPRODUCT(($I144>Results.NSPlus)*($A144=Results.Boards)*ISNUMBER(Results.NSPlus))+SUMPRODUCT(($I144=Results.NSPlus)*($A144=Results.Boards)*ISNUMBER(Results.NSPlus))-1 -> 3 | M144: 41 | N144: =SUMPRODUCT(($A144=Results.Boards)*ISNUMBER(Results.NSPlus)*NOT(ISBLANK(Results.Contracts))) -> 23 | O144: 3 | P144: 41 | Q144: 1 | R144: 1 | S144: =(SUMPRODUCT(SIGN(B144=INDEX(Results.Entry,,S$4)),INDEX(Results.Scoring,,13+S$4))+(2-Winners.Count)*SUMPRODUCT(SIGN(B144=INDEX(Results.Entry,,5-S$4)),INDEX(Results.Scoring,,13+5-S$4)))/(SUMPRODUCT(SIGN(B144=INDEX(Results.Entry,,S$4)),INDEX(Results.Scoring,,15+S$4))+(2-Winners.Count)*SUMPRODUCT(SIGN(B144=INDEX(Results.Entry,,5-S$4)),INDEX(Results.Scoring,,15+5-S$4)))/(2*Results.Trav.NumLines-2) -> 0.5954545455 | T144: =(SUMPRODUCT(SIGN(C144=INDEX(Results.Entry,,T$4)),INDEX(Results.Scoring,,13+T$4))+(2-Winners.Count)*SUMPRODUCT(SIGN(C144=INDEX(Results.Entry,,5-T$4)),INDEX(Results.Scoring,,13+5-T$4)))/(SUMPRODUCT(SIGN(C144=INDEX(Results.Entry,,T$4)),INDEX(Results.Scoring,,15+T$4))+(2-Winners.Count)*SUMPRODUCT(SIGN(C144=INDEX(Results.Entry,,5-T$4)),INDEX(Results.Scoring,,15+5-T$4)))/(2*Results.Trav.NumLines-2) -> 0.5920454545 | U144: 0 | V144: 0 | W144: 22
A145: 7 | B145: 2 | C145: 39 | D145: 3NW+1 | E145: W | F145: CQ | H145: 630 | I145: =NSPlus -> -630 | J145: 6 | K145: 38 | L145: =2*SUMPRODUCT(($I145>Results.NSPlus)*($A145=Results.Boards)*ISNUMBER(Results.NSPlus))+SUMPRODUCT(($I145=Results.NSPlus)*($A145=Results.Boards)*ISNUMBER(Results.NSPlus))-1 -> 6 | M145: 38 | N145: =SUMPRODUCT(($A145=Results.Boards)*ISNUMBER(Results.NSPlus)*NOT(ISBLANK(Results.Contracts))) -> 23 | O145: 6 | P145: 38 | Q145: 1 | R145: 1 | S145: =(SUMPRODUCT(SIGN(B145=INDEX(Results.Entry,,S$4)),INDEX(Results.Scoring,,13+S$4))+(2-Winners.Count)*SUMPRODUCT(SIGN(B145=INDEX(Results.Entry,,5-S$4)),INDEX(Results.Scoring,,13+5-S$4)))/(SUMPRODUCT(SIGN(B145=INDEX(Results.Entry,,S$4)),INDEX(Results.Scoring,,15+S$4))+(2-Winners.Count)*SUMPRODUCT(SIGN(B145=INDEX(Results.Entry,,5-S$4)),INDEX(Results.Scoring,,15+5-S$4)))/(2*Results.Trav.NumLines-2) -> 0.5795454545 | T145: =(SUMPRODUCT(SIGN(C145=INDEX(Results.Entry,,T$4)),INDEX(Results.Scoring,,13+T$4))+(2-Winners.Count)*SUMPRODUCT(SIGN(C145=INDEX(Results.Entry,,5-T$4)),INDEX(Results.Scoring,,13+5-T$4)))/(SUMPRODUCT(SIGN(C145=INDEX(Results.Entry,,T$4)),INDEX(Results.Scoring,,15+T$4))+(2-Winners.Count)*SUMPRODUCT(SIGN(C145=INDEX(Results.Entry,,5-T$4)),INDEX(Results.Scoring,,15+5-T$4)))/(2*Results.Trav.NumLines-2) -> 0.4988636364 | U145: 0 | V145: 0 | W145: 20
A146: 7 | B146: 3 | C146: 30 | D146: 3HE+3 | E146: E | F146: C3 | H146: 230 | I146: =NSPlus -> -230 | J146: 12 | K146: 32 | L146: =2*SUMPRODUCT(($I146>Results.NSPlus)*($A146=Results.Boards)*ISNUMBER(Results.NSPlus))+SUMPRODUCT(($I146=Results.NSPlus)*($A146=Results.Boards)*ISNUMBER(Results.NSPlus))-1 -> 12 | M146: 32 | N146: =SUMPRODUCT(($A146=Results.Boards)*ISNUMBER(Results.NSPlus)*NOT(ISBLANK(Results.Contracts))) -> 23 | O146: 12 | P146: 32 | Q146: 1 | R146: 1 | S146: =(SUMPRODUCT(SIGN(B146=INDEX(Results.Entry,,S$4)),INDEX(Results.Scoring,,13+S$4))+(2-Winners.Count)*SUMPRODUCT(SIGN(B146=INDEX(Results.Entry,,5-S$4)),INDEX(Results.Scoring,,13+5-S$4)))/(SUMPRODUCT(SIGN(B146=INDEX(Results.Entry,,S$4)),INDEX(Results.Scoring,,15+S$4))+(2-Winners.Count)*SUMPRODUCT(SIGN(B146=INDEX(Results.Entry,,5-S$4)),INDEX(Results.Scoring,,15+5-S$4)))/(2*Results.Trav.NumLines-2) -> 0.4034090909 | T146: =(SUMPRODUCT(SIGN(C146=INDEX(Results.Entry,,T$4)),INDEX(Results.Scoring,,13+T$4))+(2-Winners.Count)*SUMPRODUCT(SIGN(C146=INDEX(Results.Entry,,5-T$4)),INDEX(Results.Scoring,,13+5-T$4)))/(SUMPRODUCT(SIGN(C146=INDEX(Results.Entry,,T$4)),INDEX(Results.Scoring,,15+T$4))+(2-Winners.Count)*SUMPRODUCT(SIGN(C146=INDEX(Results.Entry,,5-T$4)),INDEX(Results.Scoring,,15+5-T$4)))/(2*Results.Trav.NumLines-2) -> 0.4977272727 | U146: 0 | V146: 0 | W146: 17
A147: 7 | B147: 4 | C147: 26 | D147: 2HE+4 | E147: E | F147: C3 | H147: 230 | I147: =NSPlus -> -230 | J147: 12 | K147: 32 | L147: =2*SUMPRODUCT(($I147>Results.NSPlus)*($A147=Results.Boards)*ISNUMBER(Results.NSPlus))+SUMPRODUCT(($I147=Results.NSPlus)*($A147=Results.Boards)*ISNUMBER(Results.NSPlus))-1 -> 12 | M147: 32 | N147: =SUMPRODUCT(($A147=Results.Boards)*ISNUMBER(Results.NSPlus)*NOT(ISBLANK(Results.Contracts))) -> 23 | O147: 12 | P147: 32 | Q147: 1 | R147: 1 | S147: =(SUMPRODUCT(SIGN(B147=INDEX(Results.Entry,,S$4)),INDEX(Results.Scoring,,13+S$4))+(2-Winners.Count)*SUMPRODUCT(SIGN(B147=INDEX(Results.Entry,,5-S$4)),INDEX(Results.Scoring,,13+5-S$4)))/(SUMPRODUCT(SIGN(B147=INDEX(Results.Entry,,S$4)),INDEX(Results.Scoring,,15+S$4))+(2-Winners.Count)*SUMPRODUCT(SIGN(B147=INDEX(Results.Entry,,5-S$4)),INDEX(Results.Scoring,,15+5-S$4)))/(2*Results.Trav.NumLines-2) -> 0.4886363636 | T147: =(SUMPRODUCT(SIGN(C147=INDEX(Results.Entry,,T$4)),INDEX(Results.Scoring,,13+T$4))+(2-Winners.Count)*SUMPRODUCT(SIGN(C147=INDEX(Results.Entry,,5-T$4)),INDEX(Results.Scoring,,13+5-T$4)))/(SUMPRODUCT(SIGN(C147=INDEX(Results.Entry,,T$4)),INDEX(Results.Scoring,,15+T$4))+(2-Winners.Count)*SUMPRODUCT(SIGN(C147=INDEX(Results.Entry,,5-T$4)),INDEX(Results.Scoring,,15+5-T$4)))/(2*Results.Trav.NumLines-2) -> 0.4613636364 | U147: 0 | V147: 0 | W147: 16
A148: 7 | B148: 5 | C148: 25 | D148: 2HE+2 | E148: E | F148: H7 | H148: 170 | I148: =NSPlus -> -170 | J148: 41 | K148: 3 | L148: =2*SUMPRODUCT(($I148>Results.NSPlus)*($A148=Results.Boards)*ISNUMBER(Results.NSPlus))+SUMPRODUCT(($I148=Results.NSPlus)*($A148=Results.Boards)*ISNUMBER(Results.NSPlus))-1 -> 41 | M148: 3 | N148: =SUMPRODUCT(($A148=Results.Boards)*ISNUMBER(Results.NSPlus)*NOT(ISBLANK(Results.Contracts))) -> 23 | O148: 41 | P148: 3 | Q148: 1 | R148: 1 | S148: =(SUMPRODUCT(SIGN(B148=INDEX(Results.Entry,,S$4)),INDEX(Results.Scoring,,13+S$4))+(2-Winners.Count)*SUMPRODUCT(SIGN(B148=INDEX(Results.Entry,,5-S$4)),INDEX(Results.Scoring,,13+5-S$4)))/(SUMPRODUCT(SIGN(B148=INDEX(Results.Entry,,S$4)),INDEX(Results.Scoring,,15+S$4))+(2-Winners.Count)*SUMPRODUCT(SIGN(B148=INDEX(Results.Entry,,5-S$4)),INDEX(Results.Scoring,,15+5-S$4)))/(2*Results.Trav.NumLines-2) -> 0.5386363636 | T148: =(SUMPRODUCT(SIGN(C148=INDEX(Results.Entry,,T$4)),INDEX(Results.Scoring,,13+T$4))+(2-Winners.Count)*SUMPRODUCT(SIGN(C148=INDEX(Results.Entry,,5-T$4)),INDEX(Results.Scoring,,13+5-T$4)))/(SUMPRODUCT(SIGN(C148=INDEX(Results.Entry,,T$4)),INDEX(Results.Scoring,,15+T$4))+(2-Winners.Count)*SUMPRODUCT(SIGN(C148=INDEX(Results.Entry,,5-T$4)),INDEX(Results.Scoring,,15+5-T$4)))/(2*Results.Trav.NumLines-2) -> 0.2818181818 | U148: 0 | V148: 0 | W148: 2
A149: 7 | B149: 6 | C149: 34 | D149: 2HE+3 | E149: E | F149: H3 | H149: 200 | I149: =NSPlus -> -200 | J149: 27 | K149: 17 | L149: =2*SUMPRODUCT(($I149>Results.NSPlus)*($A149=Results.Boards)*ISNUMBER(Results.NSPlus))+SUMPRODUCT(($I149=Results.NSPlus)*($A149=Results.Boards)*ISNUMBER(Results.NSPlus))-1 -> 27 | M149: 17 | N149: =SUMPRODUCT(($A149=Results.Boards)*ISNUMBER(Results.NSPlus)*NOT(ISBLANK(Results.Contracts))) -> 23 | O149: 27 | P149: 17 | Q149: 1 | R149: 1 | S149: =(SUMPRODUCT(SIGN(B149=INDEX(Results.Entry,,S$4)),INDEX(Results.Scoring,,13+S$4))+(2-Winners.Count)*SUMPRODUCT(SIGN(B149=INDEX(Results.Entry,,5-S$4)),INDEX(Results.Scoring,,13+5-S$4)))/(SUMPRODUCT(SIGN(B149=INDEX(Results.Entry,,S$4)),INDEX(Results.Scoring,,15+S$4))+(2-Winners.Count)*SUMPRODUCT(SIGN(B149=INDEX(Results.Entry,,5-S$4)),INDEX(Results.Scoring,,15+5-S$4)))/(2*Results.Trav.NumLines-2) -> 0.4079545455 | T149: =(SUMPRODUCT(SIGN(C149=INDEX(Results.Entry,,T$4)),INDEX(Results.Scoring,,13+T$4))+(2-Winners.Count)*SUMPRODUCT(SIGN(C149=INDEX(Results.Entry,,5-T$4)),INDEX(Results.Scoring,,13+5-T$4)))/(SUMPRODUCT(SIGN(C149=INDEX(Results.Entry,,T$4)),INDEX(Results.Scoring,,15+T$4))+(2-Winners.Count)*SUMPRODUCT(SIGN(C149=INDEX(Results.Entry,,5-T$4)),INDEX(Results.Scoring,,15+5-T$4)))/(2*Results.Trav.NumLines-2) -> 0.5636363636 | U149: 0 | V149: 0 | W149: 12
A150: 7 | B150: 7 | C150: 43 | D150: 3NW+2 | E150: W | F150: H4 | H150: 660 | I150: =NSPlus -> -660 | J150: 0 | K150: 44 | L150: =2*SUMPRODUCT(($I150>Results.NSPlus)*($A150=Results.Boards)*ISNUMBER(Results.NSPlus))+SUMPRODUCT(($I150=Results.NSPlus)*($A150=Results.Boards)*ISNUMBER(Results.NSPlus))-1 -> 0 | M150: 44 | N150: =SUMPRODUCT(($A150=Results.Boards)*ISNUMBER(Results.NSPlus)*NOT(ISBLANK(Results.Contracts))) -> 23 | O150: 0 | P150: 44 | Q150: 1 | R150: 1 | S150: =(SUMPRODUCT(SIGN(B150=INDEX(Results.Entry,,S$4)),INDEX(Results.Scoring,,13+S$4))+(2-Winners.Count)*SUMPRODUCT(SIGN(B150=INDEX(Results.Entry,,5-S$4)),INDEX(Results.Scoring,,13+5-S$4)))/(SUMPRODUCT(SIGN(B150=INDEX(Results.Entry,,S$4)),INDEX(Results.Scoring,,15+S$4))+(2-Winners.Count)*SUMPRODUCT(SIGN(B150=INDEX(Results.Entry,,5-S$4)),INDEX(Results.Scoring,,15+5-S$4)))/(2*Results.Trav.NumLines-2) -> 0.4295454545 | T150: =(SUMPRODUCT(SIGN(C150=INDEX(Results.Entry,,T$4)),INDEX(Results.Scoring,,13+T$4))+(2-Winners.Count)*SUMPRODUCT(SIGN(C150=INDEX(Results.Entry,,5-T$4)),INDEX(Results.Scoring,,13+5-T$4)))/(SUMPRODUCT(SIGN(C150=INDEX(Results.Entry,,T$4)),INDEX(Results.Scoring,,15+T$4))+(2-Winners.Count)*SUMPRODUCT(SIGN(C150=INDEX(Results.Entry,,5-T$4)),INDEX(Results.Scoring,,15+5-T$4)))/(2*Results.Trav.NumLines-2) -> 0.5488636364 | U150: 0 | V150: 0 | W150: 23
A151: 7 | B151: 8 | C151: 45 | D151: 3HE+2 | E151: E | F151: S4 | H151: 200 | I151: =NSPlus -> -200 | J151: 27 | K151: 17 | L151: =2*SUMPRODUCT(($I151>Results.NSPlus)*($A151=Results.Boards)*ISNUMBER(Results.NSPlus))+SUMPRODUCT(($I151=Results.NSPlus)*($A151=Results.Boards)*ISNUMBER(Results.NSPlus))-1 -> 27 | M151: 17 | N151: =SUMPRODUCT(($A151=Results.Boards)*ISNUMBER(Results.NSPlus)*NOT(ISBLANK(Results.Contracts))) -> 23 | O151: 27 | P151: 17 | Q151: 1 | R151: 1 | S151: =(SUMPRODUCT(SIGN(B151=INDEX(Results.Entry,,S$4)),INDEX(Results.Scoring,,13+S$4))+(2-Winners.Count)*SUMPRODUCT(SIGN(B151=INDEX(Results.Entry,,5-S$4)),INDEX(Results.Scoring,,13+5-S$4)))/(SUMPRODUCT(SIGN(B151=INDEX(Results.Entry,,S$4)),INDEX(Results.Scoring,,15+S$4))+(2-Winners.Count)*SUMPRODUCT(SIGN(B151=INDEX(Results.Entry,,5-S$4)),INDEX(Results.Scoring,,15+5-S$4)))/(2*Results.Trav.NumLines-2) -> 0.6488636364 | T151: =(SUMPRODUCT(SIGN(C151=INDEX(Results.Entry,,T$4)),INDEX(Results.Scoring,,13+T$4))+(2-Winners.Count)*SUMPRODUCT(SIGN(C151=INDEX(Results.Entry,,5-T$4)),INDEX(Results.Scoring,,13+5-T$4)))/(SUMPRODUCT(SIGN(C151=INDEX(Results.Entry,,T$4)),INDEX(Results.Scoring,,15+T$4))+(2-Winners.Count)*SUMPRODUCT(SIGN(C151=INDEX(Results.Entry,,5-T$4)),INDEX(Results.Scoring,,15+5-T$4)))/(2*Results.Trav.NumLines-2) -> 0.3965909091 | U151: 0 | V151: 0 | W151: 11
A152: 7 | B152: 9 | C152: 35 | D152: 2HE+3 | E152: E | F152: H3 | H152: 200 | I152: =NSPlus -> -200 | J152: 27 | K152: 17 | L152: =2*SUMPRODUCT(($I152>Results.NSPlus)*($A152=Results.Boards)*ISNUMBER(Results.NSPlus))+SUMPRODUCT(($I152=Results.NSPlus)*($A152=Results.Boards)*ISNUMBER(Results.NSPlus))-1 -> 27 | M152: 17 | N152: =SUMPRODUCT(($A152=Results.Boards)*ISNUMBER(Results.NSPlus)*NOT(ISBLANK(Results.Contracts))) -> 23 | O152: 27 | P152: 17 | Q152: 1 | R152: 1 | S152: =(SUMPRODUCT(SIGN(B152=INDEX(Results.Entry,,S$4)),INDEX(Results.Scoring,,13+S$4))+(2-Winners.Count)*SUMPRODUCT(SIGN(B152=INDEX(Results.Entry,,5-S$4)),INDEX(Results.Scoring,,13+5-S$4)))/(SUMPRODUCT(SIGN(B152=INDEX(Results.Entry,,S$4)),INDEX(Results.Scoring,,15+S$4))+(2-Winners.Count)*SUMPRODUCT(SIGN(B152=INDEX(Results.Entry,,5-S$4)),INDEX(Results.Scoring,,15+5-S$4)))/(2*Results.Trav.NumLines-2) -> 0.5420454545 | T152: =(SUMPRODUCT(SIGN(C152=INDEX(Results.Entry,,T$4)),INDEX(Results.Scoring,,13+T$4))+(2-Winners.Count)*SUMPRODUCT(SIGN(C152=INDEX(Results.Entry,,5-T$4)),INDEX(Results.Scoring,,13+5-T$4)))/(SUMPRODUCT(SIGN(C152=INDEX(Results.Entry,,T$4)),INDEX(Results.Scoring,,15+T$4))+(2-Winners.Count)*SUMPRODUCT(SIGN(C152=INDEX(Results.Entry,,5-T$4)),INDEX(Results.Scoring,,15+5-T$4)))/(2*Results.Trav.NumLines-2) -> 0.5215909091 | U152: 0 | V152: 0 | W152: 7
A153: 7 | B153: 10 | C153: 32 | D153: 2HE+3 | E153: E | F153: H7 | H153: 200 | I153: =NSPlus -> -200 | J153: 27 | K153: 17 | L153: =2*SUMPRODUCT(($I153>Results.NSPlus)*($A153=Results.Boards)*ISNUMBER(Results.NSPlus))+SUMPRODUCT(($I153=Results.NSPlus)*($A153=Results.Boards)*ISNUMBER(Results.NSPlus))-1 -> 27 | M153: 17 | N153: =SUMPRODUCT(($A153=Results.Boards)*ISNUMBER(Results.NSPlus)*NOT(ISBLANK(Results.Contracts))) -> 23 | O153: 27 | P153: 17 | Q153: 1 | R153: 1 | S153: =(SUMPRODUCT(SIGN(B153=INDEX(Results.Entry,,S$4)),INDEX(Results.Scoring,,13+S$4))+(2-Winners.Count)*SUMPRODUCT(SIGN(B153=INDEX(Results.Entry,,5-S$4)),INDEX(Results.Scoring,,13+5-S$4)))/(SUMPRODUCT(SIGN(B153=INDEX(Results.Entry,,S$4)),INDEX(Results.Scoring,,15+S$4))+(2-Winners.Count)*SUMPRODUCT(SIGN(B153=INDEX(Results.Entry,,5-S$4)),INDEX(Results.Scoring,,15+5-S$4)))/(2*Results.Trav.NumLines-2) -> 0.4954545455 | T153: =(SUMPRODUCT(SIGN(C153=INDEX(Results.Entry,,T$4)),INDEX(Results.Scoring,,13+T$4))+(2-Winners.Count)*SUMPRODUCT(SIGN(C153=INDEX(Results.Entry,,5-T$4)),INDEX(Results.Scoring,,13+5-T$4)))/(SUMPRODUCT(SIGN(C153=INDEX(Results.Entry,,T$4)),INDEX(Results.Scoring,,15+T$4))+(2-Winners.Count)*SUMPRODUCT(SIGN(C153=INDEX(Results.Entry,,5-T$4)),INDEX(Results.Scoring,,15+5-T$4)))/(2*Results.Trav.NumLines-2) -> 0.5215909091 | U153: 0 | V153: 0 | W153: 14
A154: 7 | B154: 11 | C154: 40 | D154: 2HE+3 | E154: E | F154: CA | H154: 200 | I154: =NSPlus -> -200 | J154: 27 | K154: 17 | L154: =2*SUMPRODUCT(($I154>Results.NSPlus)*($A154=Results.Boards)*ISNUMBER(Results.NSPlus))+SUMPRODUCT(($I154=Results.NSPlus)*($A154=Results.Boards)*ISNUMBER(Results.NSPlus))-1 -> 27 | M154: 17 | N154: =SUMPRODUCT(($A154=Results.Boards)*ISNUMBER(Results.NSPlus)*NOT(ISBLANK(Results.Contracts))) -> 23 | O154: 27 | P154: 17 | Q154: 1 | R154: 1 | S154: =(SUMPRODUCT(SIGN(B154=INDEX(Results.Entry,,S$4)),INDEX(Results.Scoring,,13+S$4))+(2-Winners.Count)*SUMPRODUCT(SIGN(B154=INDEX(Results.Entry,,5-S$4)),INDEX(Results.Scoring,,13+5-S$4)))/(SUMPRODUCT(SIGN(B154=INDEX(Results.Entry,,S$4)),INDEX(Results.Scoring,,15+S$4))+(2-Winners.Count)*SUMPRODUCT(SIGN(B154=INDEX(Results.Entry,,5-S$4)),INDEX(Results.Scoring,,15+5-S$4)))/(2*Results.Trav.NumLines-2) -> 0.5159090909 | T154: =(SUMPRODUCT(SIGN(C154=INDEX(Results.Entry,,T$4)),INDEX(Results.Scoring,,13+T$4))+(2-Winners.Count)*SUMPRODUCT(SIGN(C154=INDEX(Results.Entry,,5-T$4)),INDEX(Results.Scoring,,13+5-T$4)))/(SUMPRODUCT(SIGN(C154=INDEX(Results.Entry,,T$4)),INDEX(Results.Scoring,,15+T$4))+(2-Winners.Count)*SUMPRODUCT(SIGN(C154=INDEX(Results.Entry,,5-T$4)),INDEX(Results.Scoring,,15+5-T$4)))/(2*Results.Trav.NumLines-2) -> 0.5272727273 | U154: 0 | V154: 0 | W154: 5
A155: 7 | B155: 12 | C155: 41 | D155: 3HE+2 | E155: E | F155: CA | H155: 200 | I155: =NSPlus -> -200 | J155: 27 | K155: 17 | L155: =2*SUMPRODUCT(($I155>Results.NSPlus)*($A155=Results.Boards)*ISNUMBER(Results.NSPlus))+SUMPRODUCT(($I155=Results.NSPlus)*($A155=Results.Boards)*ISNUMBER(Results.NSPlus))-1 -> 27 | M155: 17 | N155: =SUMPRODUCT(($A155=Results.Boards)*ISNUMBER(Results.NSPlus)*NOT(ISBLANK(Results.Contracts))) -> 23 | O155: 27 | P155: 17 | Q155: 1 | R155: 1 | S155: =(SUMPRODUCT(SIGN(B155=INDEX(Results.Entry,,S$4)),INDEX(Results.Scoring,,13+S$4))+(2-Winners.Count)*SUMPRODUCT(SIGN(B155=INDEX(Results.Entry,,5-S$4)),INDEX(Results.Scoring,,13+5-S$4)))/(SUMPRODUCT(SIGN(B155=INDEX(Results.Entry,,S$4)),INDEX(Results.Scoring,,15+S$4))+(2-Winners.Count)*SUMPRODUCT(SIGN(B155=INDEX(Results.Entry,,5-S$4)),INDEX(Results.Scoring,,15+5-S$4)))/(2*Results.Trav.NumLines-2) -> 0.6420454545 | T155: =(SUMPRODUCT(SIGN(C155=INDEX(Results.Entry,,T$4)),INDEX(Results.Scoring,,13+T$4))+(2-Winners.Count)*SUMPRODUCT(SIGN(C155=INDEX(Results.Entry,,5-T$4)),INDEX(Results.Scoring,,13+5-T$4)))/(SUMPRODUCT(SIGN(C155=INDEX(Results.Entry,,T$4)),INDEX(Results.Scoring,,15+T$4))+(2-Winners.Count)*SUMPRODUCT(SIGN(C155=INDEX(Results.Entry,,5-T$4)),INDEX(Results.Scoring,,15+5-T$4)))/(2*Results.Trav.NumLines-2) -> 0.6181818182 | U155: 0 | V155: 0 | W155: 15
A156: 7 | B156: 13 | C156: 37 | D156: 3HE+2 | E156: E | F156: H7 | H156: 200 | I156: =NSPlus -> -200 | J156: 27 | K156: 17 | L156: =2*SUMPRODUCT(($I156>Results.NSPlus)*($A156=Results.Boards)*ISNUMBER(Results.NSPlus))+SUMPRODUCT(($I156=Results.NSPlus)*($A156=Results.Boards)*ISNUMBER(Results.NSPlus))-1 -> 27 | M156: 17 | N156: =SUMPRODUCT(($A156=Results.Boards)*ISNUMBER(Results.NSPlus)*NOT(ISBLANK(Results.Contracts))) -> 23 | O156: 27 | P156: 17 | Q156: 1 | R156: 1 | S156: =(SUMPRODUCT(SIGN(B156=INDEX(Results.Entry,,S$4)),INDEX(Results.Scoring,,13+S$4))+(2-Winners.Count)*SUMPRODUCT(SIGN(B156=INDEX(Results.Entry,,5-S$4)),INDEX(Results.Scoring,,13+5-S$4)))/(SUMPRODUCT(SIGN(B156=INDEX(Results.Entry,,S$4)),INDEX(Results.Scoring,,15+S$4))+(2-Winners.Count)*SUMPRODUCT(SIGN(B156=INDEX(Results.Entry,,5-S$4)),INDEX(Results.Scoring,,15+5-S$4)))/(2*Results.Trav.NumLines-2) -> 0.425 | T156: =(SUMPRODUCT(SIGN(C156=INDEX(Results.Entry,,T$4)),INDEX(Results.Scoring,,13+T$4))+(2-Winners.Count)*SUMPRODUCT(SIGN(C156=INDEX(Results.Entry,,5-T$4)),INDEX(Results.Scoring,,13+5-T$4)))/(SUMPRODUCT(SIGN(C156=INDEX(Results.Entry,,T$4)),INDEX(Results.Scoring,,15+T$4))+(2-Winners.Count)*SUMPRODUCT(SIGN(C156=INDEX(Results.Entry,,5-T$4)),INDEX(Results.Scoring,,15+5-T$4)))/(2*Results.Trav.NumLines-2) -> 0.5465909091 | U156: 0 | V156: 0 | W156: 13
A157: 7 | B157: 14 | C157: 38 | D157: 2HE+3 | E157: E | F157: H3 | H157: 200 | I157: =NSPlus -> -200 | J157: 27 | K157: 17 | L157: =2*SUMPRODUCT(($I157>Results.NSPlus)*($A157=Results.Boards)*ISNUMBER(Results.NSPlus))+SUMPRODUCT(($I157=Results.NSPlus)*($A157=Results.Boards)*ISNUMBER(Results.NSPlus))-1 -> 27 | M157: 17 | N157: =SUMPRODUCT(($A157=Results.Boards)*ISNUMBER(Results.NSPlus)*NOT(ISBLANK(Results.Contracts))) -> 23 | O157: 27 | P157: 17 | Q157: 1 | R157: 1 | S157: =(SUMPRODUCT(SIGN(B157=INDEX(Results.Entry,,S$4)),INDEX(Results.Scoring,,13+S$4))+(2-Winners.Count)*SUMPRODUCT(SIGN(B157=INDEX(Results.Entry,,5-S$4)),INDEX(Results.Scoring,,13+5-S$4)))/(SUMPRODUCT(SIGN(B157=INDEX(Results.Entry,,S$4)),INDEX(Results.Scoring,,15+S$4))+(2-Winners.Count)*SUMPRODUCT(SIGN(B157=INDEX(Results.Entry,,5-S$4)),INDEX(Results.Scoring,,15+5-S$4)))/(2*Results.Trav.NumLines-2) -> 0.6238636364 | T157: =(SUMPRODUCT(SIGN(C157=INDEX(Results.Entry,,T$4)),INDEX(Results.Scoring,,13+T$4))+(2-Winners.Count)*SUMPRODUCT(SIGN(C157=INDEX(Results.Entry,,5-T$4)),INDEX(Results.Scoring,,13+5-T$4)))/(SUMPRODUCT(SIGN(C157=INDEX(Results.Entry,,T$4)),INDEX(Results.Scoring,,15+T$4))+(2-Winners.Count)*SUMPRODUCT(SIGN(C157=INDEX(Results.Entry,,5-T$4)),INDEX(Results.Scoring,,15+5-T$4)))/(2*Results.Trav.NumLines-2) -> 0.4681818182 | U157: 0 | V157: 0 | W157: 8
A158: 7 | B158: 15 | C158: 28 | D158: 2HE+3 | E158: E | F158: S6 | H158: 200 | I158: =NSPlus -> -200 | J158: 27 | K158: 17 | L158: =2*SUMPRODUCT(($I158>Results.NSPlus)*($A158=Results.Boards)*ISNUMBER(Results.NSPlus))+SUMPRODUCT(($I158=Results.NSPlus)*($A158=Results.Boards)*ISNUMBER(Results.NSPlus))-1 -> 27 | M158: 17 | N158: =SUMPRODUCT(($A158=Results.Boards)*ISNUMBER(Results.NSPlus)*NOT(ISBLANK(Results.Contracts))) -> 23 | O158: 27 | P158: 17 | Q158: 1 | R158: 1 | S158: =(SUMPRODUCT(SIGN(B158=INDEX(Results.Entry,,S$4)),INDEX(Results.Scoring,,13+S$4))+(2-Winners.Count)*SUMPRODUCT(SIGN(B158=INDEX(Results.Entry,,5-S$4)),INDEX(Results.Scoring,,13+5-S$4)))/(SUMPRODUCT(SIGN(B158=INDEX(Results.Entry,,S$4)),INDEX(Results.Scoring,,15+S$4))+(2-Winners.Count)*SUMPRODUCT(SIGN(B158=INDEX(Results.Entry,,5-S$4)),INDEX(Results.Scoring,,15+5-S$4)))/(2*Results.Trav.NumLines-2) -> 0.4568181818 | T158: =(SUMPRODUCT(SIGN(C158=INDEX(Results.Entry,,T$4)),INDEX(Results.Scoring,,13+T$4))+(2-Winners.Count)*SUMPRODUCT(SIGN(C158=INDEX(Results.Entry,,5-T$4)),INDEX(Results.Scoring,,13+5-T$4)))/(SUMPRODUCT(SIGN(C158=INDEX(Results.Entry,,T$4)),INDEX(Results.Scoring,,15+T$4))+(2-Winners.Count)*SUMPRODUCT(SIGN(C158=INDEX(Results.Entry,,5-T$4)),INDEX(Results.Scoring,,15+5-T$4)))/(2*Results.Trav.NumLines-2) -> 0.4761363636 | U158: 0 | V158: 0 | W158: 9
A159: 7 | B159: 16 | C159: 27 | D159: 2HE+3 | E159: E | F159: CA | H159: 200 | I159: =NSPlus -> -200 | J159: 27 | K159: 17 | L159: =2*SUMPRODUCT(($I159>Results.NSPlus)*($A159=Results.Boards)*ISNUMBER(Results.NSPlus))+SUMPRODUCT(($I159=Results.NSPlus)*($A159=Results.Boards)*ISNUMBER(Results.NSPlus))-1 -> 27 | M159: 17 | N159: =SUMPRODUCT(($A159=Results.Boards)*ISNUMBER(Results.NSPlus)*NOT(ISBLANK(Results.Contracts))) -> 23 | O159: 27 | P159: 17 | Q159: 1 | R159: 1 | S159: =(SUMPRODUCT(SIGN(B159=INDEX(Results.Entry,,S$4)),INDEX(Results.Scoring,,13+S$4))+(2-Winners.Count)*SUMPRODUCT(SIGN(B159=INDEX(Results.Entry,,5-S$4)),INDEX(Results.Scoring,,13+5-S$4)))/(SUMPRODUCT(SIGN(B159=INDEX(Results.Entry,,S$4)),INDEX(Results.Scoring,,15+S$4))+(2-Winners.Count)*SUMPRODUCT(SIGN(B159=INDEX(Results.Entry,,5-S$4)),INDEX(Results.Scoring,,15+5-S$4)))/(2*Results.Trav.NumLines-2) -> 0.5602272727 | T159: =(SUMPRODUCT(SIGN(C159=INDEX(Results.Entry,,T$4)),INDEX(Results.Scoring,,13+T$4))+(2-Winners.Count)*SUMPRODUCT(SIGN(C159=INDEX(Results.Entry,,5-T$4)),INDEX(Results.Scoring,,13+5-T$4)))/(SUMPRODUCT(SIGN(C159=INDEX(Results.Entry,,T$4)),INDEX(Results.Scoring,,15+T$4))+(2-Winners.Count)*SUMPRODUCT(SIGN(C159=INDEX(Results.Entry,,5-T$4)),INDEX(Results.Scoring,,15+5-T$4)))/(2*Results.Trav.NumLines-2) -> 0.5170454545 | U159: 0 | V159: 0 | W159: 6
A160: 7 | B160: 17 | C160: 24 | D160: 2SW+1 | E160: W | F160: DJ | H160: 140 | I160: =NSPlus -> -140 | J160: 44 | K160: 0 | L160: =2*SUMPRODUCT(($I160>Results.NSPlus)*($A160=Results.Boards)*ISNUMBER(Results.NSPlus))+SUMPRODUCT(($I160=Results.NSPlus)*($A160=Results.Boards)*ISNUMBER(Results.NSPlus))-1 -> 44 | M160: 0 | N160: =SUMPRODUCT(($A160=Results.Boards)*ISNUMBER(Results.NSPlus)*NOT(ISBLANK(Results.Contracts))) -> 23 | O160: 44 | P160: 0 | Q160: 1 | R160: 1 | S160: =(SUMPRODUCT(SIGN(B160=INDEX(Results.Entry,,S$4)),INDEX(Results.Scoring,,13+S$4))+(2-Winners.Count)*SUMPRODUCT(SIGN(B160=INDEX(Results.Entry,,5-S$4)),INDEX(Results.Scoring,,13+5-S$4)))/(SUMPRODUCT(SIGN(B160=INDEX(Results.Entry,,S$4)),INDEX(Results.Scoring,,15+S$4))+(2-Winners.Count)*SUMPRODUCT(SIGN(B160=INDEX(Results.Entry,,5-S$4)),INDEX(Results.Scoring,,15+5-S$4)))/(2*Results.Trav.NumLines-2) -> 0.4693181818 | T160: =(SUMPRODUCT(SIGN(C160=INDEX(Results.Entry,,T$4)),INDEX(Results.Scoring,,13+T$4))+(2-Winners.Count)*SUMPRODUCT(SIGN(C160=INDEX(Results.Entry,,5-T$4)),INDEX(Results.Scoring,,13+5-T$4)))/(SUMPRODUCT(SIGN(C160=INDEX(Results.Entry,,T$4)),INDEX(Results.Scoring,,15+T$4))+(2-Winners.Count)*SUMPRODUCT(SIGN(C160=INDEX(Results.Entry,,5-T$4)),INDEX(Results.Scoring,,15+5-T$4)))/(2*Results.Trav.NumLines-2) -> 0.3909090909 | U160: 0 | V160: 0 | W160: 1
A161: 7 | B161: 18 | C161: 31 | D161: 2HE+3 | E161: E | F161: H7 | H161: 200 | I161: =NSPlus -> -200 | J161: 27 | K161: 17 | L161: =2*SUMPRODUCT(($I161>Results.NSPlus)*($A161=Results.Boards)*ISNUMBER(Results.NSPlus))+SUMPRODUCT(($I161=Results.NSPlus)*($A161=Results.Boards)*ISNUMBER(Results.NSPlus))-1 -> 27 | M161: 17 | N161: =SUMPRODUCT(($A161=Results.Boards)*ISNUMBER(Results.NSPlus)*NOT(ISBLANK(Results.Contracts))) -> 23 | O161: 27 | P161: 17 | Q161: 1 | R161: 1 | S161: =(SUMPRODUCT(SIGN(B161=INDEX(Results.Entry,,S$4)),INDEX(Results.Scoring,,13+S$4))+(2-Winners.Count)*SUMPRODUCT(SIGN(B161=INDEX(Results.Entry,,5-S$4)),INDEX(Results.Scoring,,13+5-S$4)))/(SUMPRODUCT(SIGN(B161=INDEX(Results.Entry,,S$4)),INDEX(Results.Scoring,,15+S$4))+(2-Winners.Count)*SUMPRODUCT(SIGN(B161=INDEX(Results.Entry,,5-S$4)),INDEX(Results.Scoring,,15+5-S$4)))/(2*Results.Trav.NumLines-2) -> 0.5238636364 | T161: =(SUMPRODUCT(SIGN(C161=INDEX(Results.Entry,,T$4)),INDEX(Results.Scoring,,13+T$4))+(2-Winners.Count)*SUMPRODUCT(SIGN(C161=INDEX(Results.Entry,,5-T$4)),INDEX(Results.Scoring,,13+5-T$4)))/(SUMPRODUCT(SIGN(C161=INDEX(Results.Entry,,T$4)),INDEX(Results.Scoring,,15+T$4))+(2-Winners.Count)*SUMPRODUCT(SIGN(C161=INDEX(Results.Entry,,5-T$4)),INDEX(Results.Scoring,,15+5-T$4)))/(2*Results.Trav.NumLines-2) -> 0.4772727273 | U161: 0 | V161: 0 | W161: 10
A162: 7 | B162: 19 | C162: 46 | D162: 2HE+3 | E162: E | F162: H7 | H162: 200 | I162: =NSPlus -> -200 | J162: 27 | K162: 17 | L162: =2*SUMPRODUCT(($I162>Results.NSPlus)*($A162=Results.Boards)*ISNUMBER(Results.NSPlus))+SUMPRODUCT(($I162=Results.NSPlus)*($A162=Results.Boards)*ISNUMBER(Results.NSPlus))-1 -> 27 | M162: 17 | N162: =SUMPRODUCT(($A162=Results.Boards)*ISNUMBER(Results.NSPlus)*NOT(ISBLANK(Results.Contracts))) -> 23 | O162: 27 | P162: 17 | Q162: 1 | R162: 1 | S162: =(SUMPRODUCT(SIGN(B162=INDEX(Results.Entry,,S$4)),INDEX(Results.Scoring,,13+S$4))+(2-Winners.Count)*SUMPRODUCT(SIGN(B162=INDEX(Results.Entry,,5-S$4)),INDEX(Results.Scoring,,13+5-S$4)))/(SUMPRODUCT(SIGN(B162=INDEX(Results.Entry,,S$4)),INDEX(Results.Scoring,,15+S$4))+(2-Winners.Count)*SUMPRODUCT(SIGN(B162=INDEX(Results.Entry,,5-S$4)),INDEX(Results.Scoring,,15+5-S$4)))/(2*Results.Trav.NumLines-2) -> 0.4340909091 | T162: =(SUMPRODUCT(SIGN(C162=INDEX(Results.Entry,,T$4)),INDEX(Results.Scoring,,13+T$4))+(2-Winners.Count)*SUMPRODUCT(SIGN(C162=INDEX(Results.Entry,,5-T$4)),INDEX(Results.Scoring,,13+5-T$4)))/(SUMPRODUCT(SIGN(C162=INDEX(Results.Entry,,T$4)),INDEX(Results.Scoring,,15+T$4))+(2-Winners.Count)*SUMPRODUCT(SIGN(C162=INDEX(Results.Entry,,5-T$4)),INDEX(Results.Scoring,,15+5-T$4)))/(2*Results.Trav.NumLines-2) -> 0.4488636364 | U162: 0 | V162: 0 | W162: 4
A163: 7 | B163: 20 | C163: 29 | D163: 4SW+1 | E163: W | F163: H4 | H163: 650 | I163: =NSPlus -> -650 | J163: 3 | K163: 41 | L163: =2*SUMPRODUCT(($I163>Results.NSPlus)*($A163=Results.Boards)*ISNUMBER(Results.NSPlus))+SUMPRODUCT(($I163=Results.NSPlus)*($A163=Results.Boards)*ISNUMBER(Results.NSPlus))-1 -> 3 | M163: 41 | N163: =SUMPRODUCT(($A163=Results.Boards)*ISNUMBER(Results.NSPlus)*NOT(ISBLANK(Results.Contracts))) -> 23 | O163: 3 | P163: 41 | Q163: 1 | R163: 1 | S163: =(SUMPRODUCT(SIGN(B163=INDEX(Results.Entry,,S$4)),INDEX(Results.Scoring,,13+S$4))+(2-Winners.Count)*SUMPRODUCT(SIGN(B163=INDEX(Results.Entry,,5-S$4)),INDEX(Results.Scoring,,13+5-S$4)))/(SUMPRODUCT(SIGN(B163=INDEX(Results.Entry,,S$4)),INDEX(Results.Scoring,,15+S$4))+(2-Winners.Count)*SUMPRODUCT(SIGN(B163=INDEX(Results.Entry,,5-S$4)),INDEX(Results.Scoring,,15+5-S$4)))/(2*Results.Trav.NumLines-2) -> 0.375 | T163: =(SUMPRODUCT(SIGN(C163=INDEX(Results.Entry,,T$4)),INDEX(Results.Scoring,,13+T$4))+(2-Winners.Count)*SUMPRODUCT(SIGN(C163=INDEX(Results.Entry,,5-T$4)),INDEX(Results.Scoring,,13+5-T$4)))/(SUMPRODUCT(SIGN(C163=INDEX(Results.Entry,,T$4)),INDEX(Results.Scoring,,15+T$4))+(2-Winners.Count)*SUMPRODUCT(SIGN(C163=INDEX(Results.Entry,,5-T$4)),INDEX(Results.Scoring,,15+5-T$4)))/(2*Results.Trav.NumLines-2) -> 0.5715909091 | U163: 0 | V163: 0 | W163: 21
A164: 7 | B164: 21 | C164: 36 | D164: 3HE+3 | E164: E | F164: D7 | H164: 230 | I164: =NSPlus -> -230 | J164: 12 | K164: 32 | L164: =2*SUMPRODUCT(($I164>Results.NSPlus)*($A164=Results.Boards)*ISNUMBER(Results.NSPlus))+SUMPRODUCT(($I164=Results.NSPlus)*($A164=Results.Boards)*ISNUMBER(Results.NSPlus))-1 -> 12 | M164: 32 | N164: =SUMPRODUCT(($A164=Results.Boards)*ISNUMBER(Results.NSPlus)*NOT(ISBLANK(Results.Contracts))) -> 23 | O164: 12 | P164: 32 | Q164: 1 | R164: 1 | S164: =(SUMPRODUCT(SIGN(B164=INDEX(Results.Entry,,S$4)),INDEX(Results.Scoring,,13+S$4))+(2-Winners.Count)*SUMPRODUCT(SIGN(B164=INDEX(Results.Entry,,5-S$4)),INDEX(Results.Scoring,,13+5-S$4)))/(SUMPRODUCT(SIGN(B164=INDEX(Results.Entry,,S$4)),INDEX(Results.Scoring,,15+S$4))+(2-Winners.Count)*SUMPRODUCT(SIGN(B164=INDEX(Results.Entry,,5-S$4)),INDEX(Results.Scoring,,15+5-S$4)))/(2*Results.Trav.NumLines-2) -> 0.5568181818 | T164: =(SUMPRODUCT(SIGN(C164=INDEX(Results.Entry,,T$4)),INDEX(Results.Scoring,,13+T$4))+(2-Winners.Count)*SUMPRODUCT(SIGN(C164=INDEX(Results.Entry,,5-T$4)),INDEX(Results.Scoring,,13+5-T$4)))/(SUMPRODUCT(SIGN(C164=INDEX(Results.Entry,,T$4)),INDEX(Results.Scoring,,15+T$4))+(2-Winners.Count)*SUMPRODUCT(SIGN(C164=INDEX(Results.Entry,,5-T$4)),INDEX(Results.Scoring,,15+5-T$4)))/(2*Results.Trav.NumLines-2) -> 0.5852272727 | U164: 0 | V164: 0 | W164: 18
A165: 7 | B165: 22 | C165: 44 | D165: 1NS-4 | E165: S | F165: S8 | H165: 400 | I165: =NSPlus -> -400 | J165: 8 | K165: 36 | L165: =2*SUMPRODUCT(($I165>Results.NSPlus)*($A165=Results.Boards)*ISNUMBER(Results.NSPlus))+SUMPRODUCT(($I165=Results.NSPlus)*($A165=Results.Boards)*ISNUMBER(Results.NSPlus))-1 -> 8 | M165: 36 | N165: =SUMPRODUCT(($A165=Results.Boards)*ISNUMBER(Results.NSPlus)*NOT(ISBLANK(Results.Contracts))) -> 23 | O165: 8 | P165: 36 | Q165: 1 | R165: 1 | S165: =(SUMPRODUCT(SIGN(B165=INDEX(Results.Entry,,S$4)),INDEX(Results.Scoring,,13+S$4))+(2-Winners.Count)*SUMPRODUCT(SIGN(B165=INDEX(Results.Entry,,5-S$4)),INDEX(Results.Scoring,,13+5-S$4)))/(SUMPRODUCT(SIGN(B165=INDEX(Results.Entry,,S$4)),INDEX(Results.Scoring,,15+S$4))+(2-Winners.Count)*SUMPRODUCT(SIGN(B165=INDEX(Results.Entry,,5-S$4)),INDEX(Results.Scoring,,15+5-S$4)))/(2*Results.Trav.NumLines-2) -> 0.3534090909 | T165: =(SUMPRODUCT(SIGN(C165=INDEX(Results.Entry,,T$4)),INDEX(Results.Scoring,,13+T$4))+(2-Winners.Count)*SUMPRODUCT(SIGN(C165=INDEX(Results.Entry,,5-T$4)),INDEX(Results.Scoring,,13+5-T$4)))/(SUMPRODUCT(SIGN(C165=INDEX(Results.Entry,,T$4)),INDEX(Results.Scoring,,15+T$4))+(2-Winners.Count)*SUMPRODUCT(SIGN(C165=INDEX(Results.Entry,,5-T$4)),INDEX(Results.Scoring,,15+5-T$4)))/(2*Results.Trav.NumLines-2) -> 0.3806818182 | U165: 0 | V165: 0 | W165: 19
A166: 7 | B166: 23 | C166: 33 | D166: 2HE+2 | E166: E | F166: S6 | H166: 170 | I166: =NSPlus -> -170 | J166: 41 | K166: 3 | L166: =2*SUMPRODUCT(($I166>Results.NSPlus)*($A166=Results.Boards)*ISNUMBER(Results.NSPlus))+SUMPRODUCT(($I166=Results.NSPlus)*($A166=Results.Boards)*ISNUMBER(Results.NSPlus))-1 -> 41 | M166: 3 | N166: =SUMPRODUCT(($A166=Results.Boards)*ISNUMBER(Results.NSPlus)*NOT(ISBLANK(Results.Contracts))) -> 23 | O166: 41 | P166: 3 | Q166: 1 | R166: 1 | S166: =(SUMPRODUCT(SIGN(B166=INDEX(Results.Entry,,S$4)),INDEX(Results.Scoring,,13+S$4))+(2-Winners.Count)*SUMPRODUCT(SIGN(B166=INDEX(Results.Entry,,5-S$4)),INDEX(Results.Scoring,,13+5-S$4)))/(SUMPRODUCT(SIGN(B166=INDEX(Results.Entry,,S$4)),INDEX(Results.Scoring,,15+S$4))+(2-Winners.Count)*SUMPRODUCT(SIGN(B166=INDEX(Results.Entry,,5-S$4)),INDEX(Results.Scoring,,15+5-S$4)))/(2*Results.Trav.NumLines-2) -> 0.4340909091 | T166: =(SUMPRODUCT(SIGN(C166=INDEX(Results.Entry,,T$4)),INDEX(Results.Scoring,,13+T$4))+(2-Winners.Count)*SUMPRODUCT(SIGN(C166=INDEX(Results.Entry,,5-T$4)),INDEX(Results.Scoring,,13+5-T$4)))/(SUMPRODUCT(SIGN(C166=INDEX(Results.Entry,,T$4)),INDEX(Results.Scoring,,15+T$4))+(2-Winners.Count)*SUMPRODUCT(SIGN(C166=INDEX(Results.Entry,,5-T$4)),INDEX(Results.Scoring,,15+5-T$4)))/(2*Results.Trav.NumLines-2) -> 0.6079545455 | U166: 0 | V166: 0 | W166: 3
A167: 8 | B167: 1 | C167: 42 | D167: 3NE= | E167: E | F167: C10 | H167: 400 | I167: =NSPlus -> -400 | J167: 14 | K167: 30 | L167: =2*SUMPRODUCT(($I167>Results.NSPlus)*($A167=Results.Boards)*ISNUMBER(Results.NSPlus))+SUMPRODUCT(($I167=Results.NSPlus)*($A167=Results.Boards)*ISNUMBER(Results.NSPlus))-1 -> 14 | M167: 30 | N167: =SUMPRODUCT(($A167=Results.Boards)*ISNUMBER(Results.NSPlus)*NOT(ISBLANK(Results.Contracts))) -> 23 | O167: 14 | P167: 30 | Q167: 1 | R167: 1 | S167: =(SUMPRODUCT(SIGN(B167=INDEX(Results.Entry,,S$4)),INDEX(Results.Scoring,,13+S$4))+(2-Winners.Count)*SUMPRODUCT(SIGN(B167=INDEX(Results.Entry,,5-S$4)),INDEX(Results.Scoring,,13+5-S$4)))/(SUMPRODUCT(SIGN(B167=INDEX(Results.Entry,,S$4)),INDEX(Results.Scoring,,15+S$4))+(2-Winners.Count)*SUMPRODUCT(SIGN(B167=INDEX(Results.Entry,,5-S$4)),INDEX(Results.Scoring,,15+5-S$4)))/(2*Results.Trav.NumLines-2) -> 0.5954545455 | T167: =(SUMPRODUCT(SIGN(C167=INDEX(Results.Entry,,T$4)),INDEX(Results.Scoring,,13+T$4))+(2-Winners.Count)*SUMPRODUCT(SIGN(C167=INDEX(Results.Entry,,5-T$4)),INDEX(Results.Scoring,,13+5-T$4)))/(SUMPRODUCT(SIGN(C167=INDEX(Results.Entry,,T$4)),INDEX(Results.Scoring,,15+T$4))+(2-Winners.Count)*SUMPRODUCT(SIGN(C167=INDEX(Results.Entry,,5-T$4)),INDEX(Results.Scoring,,15+5-T$4)))/(2*Results.Trav.NumLines-2) -> 0.5920454545 | U167: 0 | V167: 0 | W167: 13
A168: 8 | B168: 2 | C168: 39 | D168: 3NE= | E168: E | F168: C10 | H168: 400 | I168: =NSPlus -> -400 | J168: 14 | K168: 30 | L168: =2*SUMPRODUCT(($I168>Results.NSPlus)*($A168=Results.Boards)*ISNUMBER(Results.NSPlus))+SUMPRODUCT(($I168=Results.NSPlus)*($A168=Results.Boards)*ISNUMBER(Results.NSPlus))-1 -> 14 | M168: 30 | N168: =SUMPRODUCT(($A168=Results.Boards)*ISNUMBER(Results.NSPlus)*NOT(ISBLANK(Results.Contracts))) -> 23 | O168: 14 | P168: 30 | Q168: 1 | R168: 1 | S168: =(SUMPRODUCT(SIGN(B168=INDEX(Results.Entry,,S$4)),INDEX(Results.Scoring,,13+S$4))+(2-Winners.Count)*SUMPRODUCT(SIGN(B168=INDEX(Results.Entry,,5-S$4)),INDEX(Results.Scoring,,13+5-S$4)))/(SUMPRODUCT(SIGN(B168=INDEX(Results.Entry,,S$4)),INDEX(Results.Scoring,,15+S$4))+(2-Winners.Count)*SUMPRODUCT(SIGN(B168=INDEX(Results.Entry,,5-S$4)),INDEX(Results.Scoring,,15+5-S$4)))/(2*Results.Trav.NumLines-2) -> 0.5795454545 | T168: =(SUMPRODUCT(SIGN(C168=INDEX(Results.Entry,,T$4)),INDEX(Results.Scoring,,13+T$4))+(2-Winners.Count)*SUMPRODUCT(SIGN(C168=INDEX(Results.Entry,,5-T$4)),INDEX(Results.Scoring,,13+5-T$4)))/(SUMPRODUCT(SIGN(C168=INDEX(Results.Entry,,T$4)),INDEX(Results.Scoring,,15+T$4))+(2-Winners.Count)*SUMPRODUCT(SIGN(C168=INDEX(Results.Entry,,5-T$4)),INDEX(Results.Scoring,,15+5-T$4)))/(2*Results.Trav.NumLines-2) -> 0.4988636364 | U168: 0 | V168: 0 | W168: 15
A169: 8 | B169: 3 | C169: 30 | D169: 3NE= | E169: E | F169: S5 | H169: 400 | I169: =NSPlus -> -400 | J169: 14 | K169: 30 | L169: =2*SUMPRODUCT(($I169>Results.NSPlus)*($A169=Results.Boards)*ISNUMBER(Results.NSPlus))+SUMPRODUCT(($I169=Results.NSPlus)*($A169=Results.Boards)*ISNUMBER(Results.NSPlus))-1 -> 14 | M169: 30 | N169: =SUMPRODUCT(($A169=Results.Boards)*ISNUMBER(Results.NSPlus)*NOT(ISBLANK(Results.Contracts))) -> 23 | O169: 14 | P169: 30 | Q169: 1 | R169: 1 | S169: =(SUMPRODUCT(SIGN(B169=INDEX(Results.Entry,,S$4)),INDEX(Results.Scoring,,13+S$4))+(2-Winners.Count)*SUMPRODUCT(SIGN(B169=INDEX(Results.Entry,,5-S$4)),INDEX(Results.Scoring,,13+5-S$4)))/(SUMPRODUCT(SIGN(B169=INDEX(Results.Entry,,S$4)),INDEX(Results.Scoring,,15+S$4))+(2-Winners.Count)*SUMPRODUCT(SIGN(B169=INDEX(Results.Entry,,5-S$4)),INDEX(Results.Scoring,,15+5-S$4)))/(2*Results.Trav.NumLines-2) -> 0.4034090909 | T169: =(SUMPRODUCT(SIGN(C169=INDEX(Results.Entry,,T$4)),INDEX(Results.Scoring,,13+T$4))+(2-Winners.Count)*SUMPRODUCT(SIGN(C169=INDEX(Results.Entry,,5-T$4)),INDEX(Results.Scoring,,13+5-T$4)))/(SUMPRODUCT(SIGN(C169=INDEX(Results.Entry,,T$4)),INDEX(Results.Scoring,,15+T$4))+(2-Winners.Count)*SUMPRODUCT(SIGN(C169=INDEX(Results.Entry,,5-T$4)),INDEX(Results.Scoring,,15+5-T$4)))/(2*Results.Trav.NumLines-2) -> 0.4977272727 | U169: 0 | V169: 0 | W169: 16
A170: 8 | B170: 4 | C170: 26 | D170: 3NW= | E170: W | F170: CJ | H170: 400 | I170: =NSPlus -> -400 | J170: 14 | K170: 30 | L170: =2*SUMPRODUCT(($I170>Results.NSPlus)*($A170=Results.Boards)*ISNUMBER(Results.NSPlus))+SUMPRODUCT(($I170=Results.NSPlus)*($A170=Results.Boards)*ISNUMBER(Results.NSPlus))-1 -> 14 | M170: 30 | N170: =SUMPRODUCT(($A170=Results.Boards)*ISNUMBER(Results.NSPlus)*NOT(ISBLANK(Results.Contracts))) -> 23 | O170: 14 | P170: 30 | Q170: 1 | R170: 1 | S170: =(SUMPRODUCT(SIGN(B170=INDEX(Results.Entry,,S$4)),INDEX(Results.Scoring,,13+S$4))+(2-Winners.Count)*SUMPRODUCT(SIGN(B170=INDEX(Results.Entry,,5-S$4)),INDEX(Results.Scoring,,13+5-S$4)))/(SUMPRODUCT(SIGN(B170=INDEX(Results.Entry,,S$4)),INDEX(Results.Scoring,,15+S$4))+(2-Winners.Count)*SUMPRODUCT(SIGN(B170=INDEX(Results.Entry,,5-S$4)),INDEX(Results.Scoring,,15+5-S$4)))/(2*Results.Trav.NumLines-2) -> 0.4886363636 | T170: =(SUMPRODUCT(SIGN(C170=INDEX(Results.Entry,,T$4)),INDEX(Results.Scoring,,13+T$4))+(2-Winners.Count)*SUMPRODUCT(SIGN(C170=INDEX(Results.Entry,,5-T$4)),INDEX(Results.Scoring,,13+5-T$4)))/(SUMPRODUCT(SIGN(C170=INDEX(Results.Entry,,T$4)),INDEX(Results.Scoring,,15+T$4))+(2-Winners.Count)*SUMPRODUCT(SIGN(C170=INDEX(Results.Entry,,5-T$4)),INDEX(Results.Scoring,,15+5-T$4)))/(2*Results.Trav.NumLines-2) -> 0.4613636364 | U170: 0 | V170: 0 | W170: 12
A171: 8 | B171: 5 | C171: 25 | D171: 2HE+1 | E171: E | F171: C10 | H171: 140 | I171: =NSPlus -> -140 | J171: 40 | K171: 4 | L171: =2*SUMPRODUCT(($I171>Results.NSPlus)*($A171=Results.Boards)*ISNUMBER(Results.NSPlus))+SUMPRODUCT(($I171=Results.NSPlus)*($A171=Results.Boards)*ISNUMBER(Results.NSPlus))-1 -> 40 | M171: 4 | N171: =SUMPRODUCT(($A171=Results.Boards)*ISNUMBER(Results.NSPlus)*NOT(ISBLANK(Results.Contracts))) -> 23 | O171: 40 | P171: 4 | Q171: 1 | R171: 1 | S171: =(SUMPRODUCT(SIGN(B171=INDEX(Results.Entry,,S$4)),INDEX(Results.Scoring,,13+S$4))+(2-Winners.Count)*SUMPRODUCT(SIGN(B171=INDEX(Results.Entry,,5-S$4)),INDEX(Results.Scoring,,13+5-S$4)))/(SUMPRODUCT(SIGN(B171=INDEX(Results.Entry,,S$4)),INDEX(Results.Scoring,,15+S$4))+(2-Winners.Count)*SUMPRODUCT(SIGN(B171=INDEX(Results.Entry,,5-S$4)),INDEX(Results.Scoring,,15+5-S$4)))/(2*Results.Trav.NumLines-2) -> 0.5386363636 | T171: =(SUMPRODUCT(SIGN(C171=INDEX(Results.Entry,,T$4)),INDEX(Results.Scoring,,13+T$4))+(2-Winners.Count)*SUMPRODUCT(SIGN(C171=INDEX(Results.Entry,,5-T$4)),INDEX(Results.Scoring,,13+5-T$4)))/(SUMPRODUCT(SIGN(C171=INDEX(Results.Entry,,T$4)),INDEX(Results.Scoring,,15+T$4))+(2-Winners.Count)*SUMPRODUCT(SIGN(C171=INDEX(Results.Entry,,5-T$4)),INDEX(Results.Scoring,,15+5-T$4)))/(2*Results.Trav.NumLines-2) -> 0.2818181818 | U171: 0 | V171: 0 | W171: 3
A172: 8 | B172: 6 | C172: 34 | D172: 3NE= | E172: E | F172: C10 | H172: 400 | I172: =NSPlus -> -400 | J172: 14 | K172: 30 | L172: =2*SUMPRODUCT(($I172>Results.NSPlus)*($A172=Results.Boards)*ISNUMBER(Results.NSPlus))+SUMPRODUCT(($I172=Results.NSPlus)*($A172=Results.Boards)*ISNUMBER(Results.NSPlus))-1 -> 14 | M172: 30 | N172: =SUMPRODUCT(($A172=Results.Boards)*ISNUMBER(Results.NSPlus)*NOT(ISBLANK(Results.Contracts))) -> 23 | O172: 14 | P172: 30 | Q172: 1 | R172: 1 | S172: =(SUMPRODUCT(SIGN(B172=INDEX(Results.Entry,,S$4)),INDEX(Results.Scoring,,13+S$4))+(2-Winners.Count)*SUMPRODUCT(SIGN(B172=INDEX(Results.Entry,,5-S$4)),INDEX(Results.Scoring,,13+5-S$4)))/(SUMPRODUCT(SIGN(B172=INDEX(Results.Entry,,S$4)),INDEX(Results.Scoring,,15+S$4))+(2-Winners.Count)*SUMPRODUCT(SIGN(B172=INDEX(Results.Entry,,5-S$4)),INDEX(Results.Scoring,,15+5-S$4)))/(2*Results.Trav.NumLines-2) -> 0.4079545455 | T172: =(SUMPRODUCT(SIGN(C172=INDEX(Results.Entry,,T$4)),INDEX(Results.Scoring,,13+T$4))+(2-Winners.Count)*SUMPRODUCT(SIGN(C172=INDEX(Results.Entry,,5-T$4)),INDEX(Results.Scoring,,13+5-T$4)))/(SUMPRODUCT(SIGN(C172=INDEX(Results.Entry,,T$4)),INDEX(Results.Scoring,,15+T$4))+(2-Winners.Count)*SUMPRODUCT(SIGN(C172=INDEX(Results.Entry,,5-T$4)),INDEX(Results.Scoring,,15+5-T$4)))/(2*Results.Trav.NumLines-2) -> 0.5636363636 | U172: 0 | V172: 0 | W172: 20
A173: 8 | B173: 7 | C173: 43 | D173: 2NE+1 | E173: E | F173: C10 | H173: 150 | I173: =NSPlus -> -150 | J173: 33 | K173: 11 | L173: =2*SUMPRODUCT(($I173>Results.NSPlus)*($A173=Results.Boards)*ISNUMBER(Results.NSPlus))+SUMPRODUCT(($I173=Results.NSPlus)*($A173=Results.Boards)*ISNUMBER(Results.NSPlus))-1 -> 33 | M173: 11 | N173: =SUMPRODUCT(($A173=Results.Boards)*ISNUMBER(Results.NSPlus)*NOT(ISBLANK(Results.Contracts))) -> 23 | O173: 33 | P173: 11 | Q173: 1 | R173: 1 | S173: =(SUMPRODUCT(SIGN(B173=INDEX(Results.Entry,,S$4)),INDEX(Results.Scoring,,13+S$4))+(2-Winners.Count)*SUMPRODUCT(SIGN(B173=INDEX(Results.Entry,,5-S$4)),INDEX(Results.Scoring,,13+5-S$4)))/(SUMPRODUCT(SIGN(B173=INDEX(Results.Entry,,S$4)),INDEX(Results.Scoring,,15+S$4))+(2-Winners.Count)*SUMPRODUCT(SIGN(B173=INDEX(Results.Entry,,5-S$4)),INDEX(Results.Scoring,,15+5-S$4)))/(2*Results.Trav.NumLines-2) -> 0.4295454545 | T173: =(SUMPRODUCT(SIGN(C173=INDEX(Results.Entry,,T$4)),INDEX(Results.Scoring,,13+T$4))+(2-Winners.Count)*SUMPRODUCT(SIGN(C173=INDEX(Results.Entry,,5-T$4)),INDEX(Results.Scoring,,13+5-T$4)))/(SUMPRODUCT(SIGN(C173=INDEX(Results.Entry,,T$4)),INDEX(Results.Scoring,,15+T$4))+(2-Winners.Count)*SUMPRODUCT(SIGN(C173=INDEX(Results.Entry,,5-T$4)),INDEX(Results.Scoring,,15+5-T$4)))/(2*Results.Trav.NumLines-2) -> 0.5488636364 | U173: 0 | V173: 0 | W173: 9
A174: 8 | B174: 8 | C174: 45 | D174: 2NW+1 | E174: W | F174: CJ | H174: 150 | I174: =NSPlus -> -150 | J174: 33 | K174: 11 | L174: =2*SUMPRODUCT(($I174>Results.NSPlus)*($A174=Results.Boards)*ISNUMBER(Results.NSPlus))+SUMPRODUCT(($I174=Results.NSPlus)*($A174=Results.Boards)*ISNUMBER(Results.NSPlus))-1 -> 33 | M174: 11 | N174: =SUMPRODUCT(($A174=Results.Boards)*ISNUMBER(Results.NSPlus)*NOT(ISBLANK(Results.Contracts))) -> 23 | O174: 33 | P174: 11 | Q174: 1 | R174: 1 | S174: =(SUMPRODUCT(SIGN(B174=INDEX(Results.Entry,,S$4)),INDEX(Results.Scoring,,13+S$4))+(2-Winners.Count)*SUMPRODUCT(SIGN(B174=INDEX(Results.Entry,,5-S$4)),INDEX(Results.Scoring,,13+5-S$4)))/(SUMPRODUCT(SIGN(B174=INDEX(Results.Entry,,S$4)),INDEX(Results.Scoring,,15+S$4))+(2-Winners.Count)*SUMPRODUCT(SIGN(B174=INDEX(Results.Entry,,5-S$4)),INDEX(Results.Scoring,,15+5-S$4)))/(2*Results.Trav.NumLines-2) -> 0.6488636364 | T174: =(SUMPRODUCT(SIGN(C174=INDEX(Results.Entry,,T$4)),INDEX(Results.Scoring,,13+T$4))+(2-Winners.Count)*SUMPRODUCT(SIGN(C174=INDEX(Results.Entry,,5-T$4)),INDEX(Results.Scoring,,13+5-T$4)))/(SUMPRODUCT(SIGN(C174=INDEX(Results.Entry,,T$4)),INDEX(Results.Scoring,,15+T$4))+(2-Winners.Count)*SUMPRODUCT(SIGN(C174=INDEX(Results.Entry,,5-T$4)),INDEX(Results.Scoring,,15+5-T$4)))/(2*Results.Trav.NumLines-2) -> 0.3965909091 | U174: 0 | V174: 0 | W174: 8
A175: 8 | B175: 9 | C175: 35 | D175: 3NE= | E175: E | F175: C10 | H175: 400 | I175: =NSPlus -> -400 | J175: 14 | K175: 30 | L175: =2*SUMPRODUCT(($I175>Results.NSPlus)*($A175=Results.Boards)*ISNUMBER(Results.NSPlus))+SUMPRODUCT(($I175=Results.NSPlus)*($A175=Results.Boards)*ISNUMBER(Results.NSPlus))-1 -> 14 | M175: 30 | N175: =SUMPRODUCT(($A175=Results.Boards)*ISNUMBER(Results.NSPlus)*NOT(ISBLANK(Results.Contracts))) -> 23 | O175: 14 | P175: 30 | Q175: 1 | R175: 1 | S175: =(SUMPRODUCT(SIGN(B175=INDEX(Results.Entry,,S$4)),INDEX(Results.Scoring,,13+S$4))+(2-Winners.Count)*SUMPRODUCT(SIGN(B175=INDEX(Results.Entry,,5-S$4)),INDEX(Results.Scoring,,13+5-S$4)))/(SUMPRODUCT(SIGN(B175=INDEX(Results.Entry,,S$4)),INDEX(Results.Scoring,,15+S$4))+(2-Winners.Count)*SUMPRODUCT(SIGN(B175=INDEX(Results.Entry,,5-S$4)),INDEX(Results.Scoring,,15+5-S$4)))/(2*Results.Trav.NumLines-2) -> 0.5420454545 | T175: =(SUMPRODUCT(SIGN(C175=INDEX(Results.Entry,,T$4)),INDEX(Results.Scoring,,13+T$4))+(2-Winners.Count)*SUMPRODUCT(SIGN(C175=INDEX(Results.Entry,,5-T$4)),INDEX(Results.Scoring,,13+5-T$4)))/(SUMPRODUCT(SIGN(C175=INDEX(Results.Entry,,T$4)),INDEX(Results.Scoring,,15+T$4))+(2-Winners.Count)*SUMPRODUCT(SIGN(C175=INDEX(Results.Entry,,5-T$4)),INDEX(Results.Scoring,,15+5-T$4)))/(2*Results.Trav.NumLines-2) -> 0.5215909091 | U175: 0 | V175: 0 | W175: 14
A176: 8 | B176: 10 | C176: 32 | D176: 3NE= | E176: E | F176: C10 | H176: 400 | I176: =NSPlus -> -400 | J176: 14 | K176: 30 | L176: =2*SUMPRODUCT(($I176>Results.NSPlus)*($A176=Results.Boards)*ISNUMBER(Results.NSPlus))+SUMPRODUCT(($I176=Results.NSPlus)*($A176=Results.Boards)*ISNUMBER(Results.NSPlus))-1 -> 14 | M176: 30 | N176: =SUMPRODUCT(($A176=Results.Boards)*ISNUMBER(Results.NSPlus)*NOT(ISBLANK(Results.Contracts))) -> 23 | O176: 14 | P176: 30 | Q176: 1 | R176: 1 | S176: =(SUMPRODUCT(SIGN(B176=INDEX(Results.Entry,,S$4)),INDEX(Results.Scoring,,13+S$4))+(2-Winners.Count)*SUMPRODUCT(SIGN(B176=INDEX(Results.Entry,,5-S$4)),INDEX(Results.Scoring,,13+5-S$4)))/(SUMPRODUCT(SIGN(B176=INDEX(Results.Entry,,S$4)),INDEX(Results.Scoring,,15+S$4))+(2-Winners.Count)*SUMPRODUCT(SIGN(B176=INDEX(Results.Entry,,5-S$4)),INDEX(Results.Scoring,,15+5-S$4)))/(2*Results.Trav.NumLines-2) -> 0.4954545455 | T176: =(SUMPRODUCT(SIGN(C176=INDEX(Results.Entry,,T$4)),INDEX(Results.Scoring,,13+T$4))+(2-Winners.Count)*SUMPRODUCT(SIGN(C176=INDEX(Results.Entry,,5-T$4)),INDEX(Results.Scoring,,13+5-T$4)))/(SUMPRODUCT(SIGN(C176=INDEX(Results.Entry,,T$4)),INDEX(Results.Scoring,,15+T$4))+(2-Winners.Count)*SUMPRODUCT(SIGN(C176=INDEX(Results.Entry,,5-T$4)),INDEX(Results.Scoring,,15+5-T$4)))/(2*Results.Trav.NumLines-2) -> 0.5215909091 | U176: 0 | V176: 0 | W176: 17
A177: 8 | B177: 11 | C177: 40 | D177: 2NE+3 | E177: E | F177: C10 | H177: 210 | I177: =NSPlus -> -210 | J177: 26 | K177: 18 | L177: =2*SUMPRODUCT(($I177>Results.NSPlus)*($A177=Results.Boards)*ISNUMBER(Results.NSPlus))+SUMPRODUCT(($I177=Results.NSPlus)*($A177=Results.Boards)*ISNUMBER(Results.NSPlus))-1 -> 26 | M177: 18 | N177: =SUMPRODUCT(($A177=Results.Boards)*ISNUMBER(Results.NSPlus)*NOT(ISBLANK(Results.Contracts))) -> 23 | O177: 26 | P177: 18 | Q177: 1 | R177: 1 | S177: =(SUMPRODUCT(SIGN(B177=INDEX(Results.Entry,,S$4)),INDEX(Results.Scoring,,13+S$4))+(2-Winners.Count)*SUMPRODUCT(SIGN(B177=INDEX(Results.Entry,,5-S$4)),INDEX(Results.Scoring,,13+5-S$4)))/(SUMPRODUCT(SIGN(B177=INDEX(Results.Entry,,S$4)),INDEX(Results.Scoring,,15+S$4))+(2-Winners.Count)*SUMPRODUCT(SIGN(B177=INDEX(Results.Entry,,5-S$4)),INDEX(Results.Scoring,,15+5-S$4)))/(2*Results.Trav.NumLines-2) -> 0.5159090909 | T177: =(SUMPRODUCT(SIGN(C177=INDEX(Results.Entry,,T$4)),INDEX(Results.Scoring,,13+T$4))+(2-Winners.Count)*SUMPRODUCT(SIGN(C177=INDEX(Results.Entry,,5-T$4)),INDEX(Results.Scoring,,13+5-T$4)))/(SUMPRODUCT(SIGN(C177=INDEX(Results.Entry,,T$4)),INDEX(Results.Scoring,,15+T$4))+(2-Winners.Count)*SUMPRODUCT(SIGN(C177=INDEX(Results.Entry,,5-T$4)),INDEX(Results.Scoring,,15+5-T$4)))/(2*Results.Trav.NumLines-2) -> 0.5272727273 | U177: 0 | V177: 0 | W177: 10
A178: 8 | B178: 12 | C178: 41 | D178: 3NE= | E178: E | F178: C10 | H178: 400 | I178: =NSPlus -> -400 | J178: 14 | K178: 30 | L178: =2*SUMPRODUCT(($I178>Results.NSPlus)*($A178=Results.Boards)*ISNUMBER(Results.NSPlus))+SUMPRODUCT(($I178=Results.NSPlus)*($A178=Results.Boards)*ISNUMBER(Results.NSPlus))-1 -> 14 | M178: 30 | N178: =SUMPRODUCT(($A178=Results.Boards)*ISNUMBER(Results.NSPlus)*NOT(ISBLANK(Results.Contracts))) -> 23 | O178: 14 | P178: 30 | Q178: 1 | R178: 1 | S178: =(SUMPRODUCT(SIGN(B178=INDEX(Results.Entry,,S$4)),INDEX(Results.Scoring,,13+S$4))+(2-Winners.Count)*SUMPRODUCT(SIGN(B178=INDEX(Results.Entry,,5-S$4)),INDEX(Results.Scoring,,13+5-S$4)))/(SUMPRODUCT(SIGN(B178=INDEX(Results.Entry,,S$4)),INDEX(Results.Scoring,,15+S$4))+(2-Winners.Count)*SUMPRODUCT(SIGN(B178=INDEX(Results.Entry,,5-S$4)),INDEX(Results.Scoring,,15+5-S$4)))/(2*Results.Trav.NumLines-2) -> 0.6420454545 | T178: =(SUMPRODUCT(SIGN(C178=INDEX(Results.Entry,,T$4)),INDEX(Results.Scoring,,13+T$4))+(2-Winners.Count)*SUMPRODUCT(SIGN(C178=INDEX(Results.Entry,,5-T$4)),INDEX(Results.Scoring,,13+5-T$4)))/(SUMPRODUCT(SIGN(C178=INDEX(Results.Entry,,T$4)),INDEX(Results.Scoring,,15+T$4))+(2-Winners.Count)*SUMPRODUCT(SIGN(C178=INDEX(Results.Entry,,5-T$4)),INDEX(Results.Scoring,,15+5-T$4)))/(2*Results.Trav.NumLines-2) -> 0.6181818182 | U178: 0 | V178: 0 | W178: 21
A179: 8 | B179: 13 | C179: 37 | D179: 1NW+2 | E179: W | F179: S2 | H179: 150 | I179: =NSPlus -> -150 | J179: 33 | K179: 11 | L179: =2*SUMPRODUCT(($I179>Results.NSPlus)*($A179=Results.Boards)*ISNUMBER(Results.NSPlus))+SUMPRODUCT(($I179=Results.NSPlus)*($A179=Results.Boards)*ISNUMBER(Results.NSPlus))-1 -> 33 | M179: 11 | N179: =SUMPRODUCT(($A179=Results.Boards)*ISNUMBER(Results.NSPlus)*NOT(ISBLANK(Results.Contracts))) -> 23 | O179: 33 | P179: 11 | Q179: 1 | R179: 1 | S179: =(SUMPRODUCT(SIGN(B179=INDEX(Results.Entry,,S$4)),INDEX(Results.Scoring,,13+S$4))+(2-Winners.Count)*SUMPRODUCT(SIGN(B179=INDEX(Results.Entry,,5-S$4)),INDEX(Results.Scoring,,13+5-S$4)))/(SUMPRODUCT(SIGN(B179=INDEX(Results.Entry,,S$4)),INDEX(Results.Scoring,,15+S$4))+(2-Winners.Count)*SUMPRODUCT(SIGN(B179=INDEX(Results.Entry,,5-S$4)),INDEX(Results.Scoring,,15+5-S$4)))/(2*Results.Trav.NumLines-2) -> 0.425 | T179: =(SUMPRODUCT(SIGN(C179=INDEX(Results.Entry,,T$4)),INDEX(Results.Scoring,,13+T$4))+(2-Winners.Count)*SUMPRODUCT(SIGN(C179=INDEX(Results.Entry,,5-T$4)),INDEX(Results.Scoring,,13+5-T$4)))/(SUMPRODUCT(SIGN(C179=INDEX(Results.Entry,,T$4)),INDEX(Results.Scoring,,15+T$4))+(2-Winners.Count)*SUMPRODUCT(SIGN(C179=INDEX(Results.Entry,,5-T$4)),INDEX(Results.Scoring,,15+5-T$4)))/(2*Results.Trav.NumLines-2) -> 0.5465909091 | U179: 0 | V179: 0 | W179: 7
A180: 8 | B180: 14 | C180: 38 | D180: 2DW+2 | E180: W | F180: HK | H180: 130 | I180: =NSPlus -> -130 | J180: 43 | K180: 1 | L180: =2*SUMPRODUCT(($I180>Results.NSPlus)*($A180=Results.Boards)*ISNUMBER(Results.NSPlus))+SUMPRODUCT(($I180=Results.NSPlus)*($A180=Results.Boards)*ISNUMBER(Results.NSPlus))-1 -> 43 | M180: 1 | N180: =SUMPRODUCT(($A180=Results.Boards)*ISNUMBER(Results.NSPlus)*NOT(ISBLANK(Results.Contracts))) -> 23 | O180: 43 | P180: 1 | Q180: 1 | R180: 1 | S180: =(SUMPRODUCT(SIGN(B180=INDEX(Results.Entry,,S$4)),INDEX(Results.Scoring,,13+S$4))+(2-Winners.Count)*SUMPRODUCT(SIGN(B180=INDEX(Results.Entry,,5-S$4)),INDEX(Results.Scoring,,13+5-S$4)))/(SUMPRODUCT(SIGN(B180=INDEX(Results.Entry,,S$4)),INDEX(Results.Scoring,,15+S$4))+(2-Winners.Count)*SUMPRODUCT(SIGN(B180=INDEX(Results.Entry,,5-S$4)),INDEX(Results.Scoring,,15+5-S$4)))/(2*Results.Trav.NumLines-2) -> 0.6238636364 | T180: =(SUMPRODUCT(SIGN(C180=INDEX(Results.Entry,,T$4)),INDEX(Results.Scoring,,13+T$4))+(2-Winners.Count)*SUMPRODUCT(SIGN(C180=INDEX(Results.Entry,,5-T$4)),INDEX(Results.Scoring,,13+5-T$4)))/(SUMPRODUCT(SIGN(C180=INDEX(Results.Entry,,T$4)),INDEX(Results.Scoring,,15+T$4))+(2-Winners.Count)*SUMPRODUCT(SIGN(C180=INDEX(Results.Entry,,5-T$4)),INDEX(Results.Scoring,,15+5-T$4)))/(2*Results.Trav.NumLines-2) -> 0.4681818182 | U180: 0 | V180: 0 | W180: 1
A181: 8 | B181: 15 | C181: 28 | D181: 2NE+1 | E181: E | F181: C8 | H181: 150 | I181: =NSPlus -> -150 | J181: 33 | K181: 11 | L181: =2*SUMPRODUCT(($I181>Results.NSPlus)*($A181=Results.Boards)*ISNUMBER(Results.NSPlus))+SUMPRODUCT(($I181=Results.NSPlus)*($A181=Results.Boards)*ISNUMBER(Results.NSPlus))-1 -> 33 | M181: 11 | N181: =SUMPRODUCT(($A181=Results.Boards)*ISNUMBER(Results.NSPlus)*NOT(ISBLANK(Results.Contracts))) -> 23 | O181: 33 | P181: 11 | Q181: 1 | R181: 1 | S181: =(SUMPRODUCT(SIGN(B181=INDEX(Results.Entry,,S$4)),INDEX(Results.Scoring,,13+S$4))+(2-Winners.Count)*SUMPRODUCT(SIGN(B181=INDEX(Results.Entry,,5-S$4)),INDEX(Results.Scoring,,13+5-S$4)))/(SUMPRODUCT(SIGN(B181=INDEX(Results.Entry,,S$4)),INDEX(Results.Scoring,,15+S$4))+(2-Winners.Count)*SUMPRODUCT(SIGN(B181=INDEX(Results.Entry,,5-S$4)),INDEX(Results.Scoring,,15+5-S$4)))/(2*Results.Trav.NumLines-2) -> 0.4568181818 | T181: =(SUMPRODUCT(SIGN(C181=INDEX(Results.Entry,,T$4)),INDEX(Results.Scoring,,13+T$4))+(2-Winners.Count)*SUMPRODUCT(SIGN(C181=INDEX(Results.Entry,,5-T$4)),INDEX(Results.Scoring,,13+5-T$4)))/(SUMPRODUCT(SIGN(C181=INDEX(Results.Entry,,T$4)),INDEX(Results.Scoring,,15+T$4))+(2-Winners.Count)*SUMPRODUCT(SIGN(C181=INDEX(Results.Entry,,5-T$4)),INDEX(Results.Scoring,,15+5-T$4)))/(2*Results.Trav.NumLines-2) -> 0.4761363636 | U181: 0 | V181: 0 | W181: 5
A182: 8 | B182: 16 | C182: 27 | D182: 2NE+1 | E182: E | F182: C10 | H182: 150 | I182: =NSPlus -> -150 | J182: 33 | K182: 11 | L182: =2*SUMPRODUCT(($I182>Results.NSPlus)*($A182=Results.Boards)*ISNUMBER(Results.NSPlus))+SUMPRODUCT(($I182=Results.NSPlus)*($A182=Results.Boards)*ISNUMBER(Results.NSPlus))-1 -> 33 | M182: 11 | N182: =SUMPRODUCT(($A182=Results.Boards)*ISNUMBER(Results.NSPlus)*NOT(ISBLANK(Results.Contracts))) -> 23 | O182: 33 | P182: 11 | Q182: 1 | R182: 1 | S182: =(SUMPRODUCT(SIGN(B182=INDEX(Results.Entry,,S$4)),INDEX(Results.Scoring,,13+S$4))+(2-Winners.Count)*SUMPRODUCT(SIGN(B182=INDEX(Results.Entry,,5-S$4)),INDEX(Results.Scoring,,13+5-S$4)))/(SUMPRODUCT(SIGN(B182=INDEX(Results.Entry,,S$4)),INDEX(Results.Scoring,,15+S$4))+(2-Winners.Count)*SUMPRODUCT(SIGN(B182=INDEX(Results.Entry,,5-S$4)),INDEX(Results.Scoring,,15+5-S$4)))/(2*Results.Trav.NumLines-2) -> 0.5602272727 | T182: =(SUMPRODUCT(SIGN(C182=INDEX(Results.Entry,,T$4)),INDEX(Results.Scoring,,13+T$4))+(2-Winners.Count)*SUMPRODUCT(SIGN(C182=INDEX(Results.Entry,,5-T$4)),INDEX(Results.Scoring,,13+5-T$4)))/(SUMPRODUCT(SIGN(C182=INDEX(Results.Entry,,T$4)),INDEX(Results.Scoring,,15+T$4))+(2-Winners.Count)*SUMPRODUCT(SIGN(C182=INDEX(Results.Entry,,5-T$4)),INDEX(Results.Scoring,,15+5-T$4)))/(2*Results.Trav.NumLines-2) -> 0.5170454545 | U182: 0 | V182: 0 | W182: 4
A183: 8 | B183: 17 | C183: 24 | D183: 3NE+1 | E183: E | F183: C8 | H183: 430 | I183: =NSPlus -> -430 | J183: 1 | K183: 43 | L183: =2*SUMPRODUCT(($I183>Results.NSPlus)*($A183=Results.Boards)*ISNUMBER(Results.NSPlus))+SUMPRODUCT(($I183=Results.NSPlus)*($A183=Results.Boards)*ISNUMBER(Results.NSPlus))-1 -> 1 | M183: 43 | N183: =SUMPRODUCT(($A183=Results.Boards)*ISNUMBER(Results.NSPlus)*NOT(ISBLANK(Results.Contracts))) -> 23 | O183: 1 | P183: 43 | Q183: 1 | R183: 1 | S183: =(SUMPRODUCT(SIGN(B183=INDEX(Results.Entry,,S$4)),INDEX(Results.Scoring,,13+S$4))+(2-Winners.Count)*SUMPRODUCT(SIGN(B183=INDEX(Results.Entry,,5-S$4)),INDEX(Results.Scoring,,13+5-S$4)))/(SUMPRODUCT(SIGN(B183=INDEX(Results.Entry,,S$4)),INDEX(Results.Scoring,,15+S$4))+(2-Winners.Count)*SUMPRODUCT(SIGN(B183=INDEX(Results.Entry,,5-S$4)),INDEX(Results.Scoring,,15+5-S$4)))/(2*Results.Trav.NumLines-2) -> 0.4693181818 | T183: =(SUMPRODUCT(SIGN(C183=INDEX(Results.Entry,,T$4)),INDEX(Results.Scoring,,13+T$4))+(2-Winners.Count)*SUMPRODUCT(SIGN(C183=INDEX(Results.Entry,,5-T$4)),INDEX(Results.Scoring,,13+5-T$4)))/(SUMPRODUCT(SIGN(C183=INDEX(Results.Entry,,T$4)),INDEX(Results.Scoring,,15+T$4))+(2-Winners.Count)*SUMPRODUCT(SIGN(C183=INDEX(Results.Entry,,5-T$4)),INDEX(Results.Scoring,,15+5-T$4)))/(2*Results.Trav.NumLines-2) -> 0.3909090909 | U183: 0 | V183: 0 | W183: 22
A184: 8 | B184: 18 | C184: 31 | D184: 3NE= | E184: E | F184: C8 | H184: 400 | I184: =NSPlus -> -400 | J184: 14 | K184: 30 | L184: =2*SUMPRODUCT(($I184>Results.NSPlus)*($A184=Results.Boards)*ISNUMBER(Results.NSPlus))+SUMPRODUCT(($I184=Results.NSPlus)*($A184=Results.Boards)*ISNUMBER(Results.NSPlus))-1 -> 14 | M184: 30 | N184: =SUMPRODUCT(($A184=Results.Boards)*ISNUMBER(Results.NSPlus)*NOT(ISBLANK(Results.Contracts))) -> 23 | O184: 14 | P184: 30 | Q184: 1 | R184: 1 | S184: =(SUMPRODUCT(SIGN(B184=INDEX(Results.Entry,,S$4)),INDEX(Results.Scoring,,13+S$4))+(2-Winners.Count)*SUMPRODUCT(SIGN(B184=INDEX(Results.Entry,,5-S$4)),INDEX(Results.Scoring,,13+5-S$4)))/(SUMPRODUCT(SIGN(B184=INDEX(Results.Entry,,S$4)),INDEX(Results.Scoring,,15+S$4))+(2-Winners.Count)*SUMPRODUCT(SIGN(B184=INDEX(Results.Entry,,5-S$4)),INDEX(Results.Scoring,,15+5-S$4)))/(2*Results.Trav.NumLines-2) -> 0.5238636364 | T184: =(SUMPRODUCT(SIGN(C184=INDEX(Results.Entry,,T$4)),INDEX(Results.Scoring,,13+T$4))+(2-Winners.Count)*SUMPRODUCT(SIGN(C184=INDEX(Results.Entry,,5-T$4)),INDEX(Results.Scoring,,13+5-T$4)))/(SUMPRODUCT(SIGN(C184=INDEX(Results.Entry,,T$4)),INDEX(Results.Scoring,,15+T$4))+(2-Winners.Count)*SUMPRODUCT(SIGN(C184=INDEX(Results.Entry,,5-T$4)),INDEX(Results.Scoring,,15+5-T$4)))/(2*Results.Trav.NumLines-2) -> 0.4772727273 | U184: 0 | V184: 0 | W184: 18
